Workbook

Sheet EN_PL

Sheet Intro
B3: Uwaga: | J3: Please note:
B5: W niniejszym pliku zaprezentowane są dane finansowe Grupy Asseco za kwartały lat 2024, 2023, 2022, 2021, 2020, 2019 i 2018. | J5: This workbook contains financial information of the Asseco Group for the quarters of the years 2024, 2023, 2022, 2021, 2020, 2019 and 2018.
B6: Objaśnienia:
B8: Arkusze oznaczone kolorem niebieskim zawierają P&L, Bilans i Rachunek przepływów pieniężnych (w tym Rachunek przepływów pieniężnych za okres ostatnich 12 miesięcy). W arkuszu Segments, znajdują się informacje dotyczące segmentów operacyjnych grupy. Arkusz RevenuesAndCosts zawiera dane uszczegóławiające do pozycji przychodów i kosztów operacyjnych. Kursy walut funkcjonalnych zagranicznych jednostek zależnych obowiązujące na dni bilansowe oraz kursy średnie stosowane w latach 2015-2024 zamieszczone są w arkuszu Exchange rates. | J8: The sheets marked with blue colour contain P&L, statement of financial position and the statement of cash flow of the Asseco Group. The Segments sheet contains data on the groups' operating segments. The RevenuesAndCosts sheet presents details for the items of revenues and operating costs. The exchange rates of the foreign subsidiaries' functional currencies as at the balance sheet date and the average exchange rates used in years 2015-2024 are presented in the Exchange Rates sheet.

Sheet PL
A1: P&L (Grupa Asseco) | B1: P&L (Asseco Group) | C1: YE 2017 | D1: Q1 2018 | E1: Q2 2018 | F1: Q3 2018 | G1: Q4 2018 | H1: Q1 2019 | I1: Q2 2019 | J1: Q3 2019 | K1: Q4 2019 | L1: Q1 2020 | M1: Q2 2020 | N1: Q3 2020 | O1: Q4 2020 | P1: Q1 2021 | Q1: Q2 2021 | R1: Q3 2021 | S1: Q4 2021 | T1: Q1 2022 | U1: Q2 2022 | V1: Q3 2022 | W1: Q4 2022 | X1: Q1 2023 | Y1: Q2 2023 | Z1: Q3 2023 | AA1: Q4 2023 | AB1: Q1 2024
C4: mln PLN | D4: mln PLN | E4: mln PLN | F4: mln PLN | G4: mln PLN | H4: mln PLN | I4: mln PLN | J4: mln PLN | K4: mln PLN | L4: mln PLN | M4: mln PLN | N4: mln PLN | O4: mln PLN | P4: mln PLN | Q4: mln PLN | R4: mln PLN | S4: mln PLN | T4: mln PLN | U4: mln PLN | V4: mln PLN | W4: mln PLN | X4: mln PLN | Y4: mln PLN | Z4: mln PLN | AA4: mln PLN | AB4: mln PLN
A6: Działalność kontynuowana | B6: Continuing operations
A7: Przychody ze sprzedaży | B7: Sales revenues | C7: 7829.3 | D7: 2149 | E7: 2310.9 | F7: 2218.4 | G7: 2650.3 | H7: 2452.2 | I7: 2538.7 | J7: 2738.4 | K7: 2938.1 | L7: 2920.4 | M7: 2850.3 | N7: 2938.1 | O7: 3484 | P7: 3339.1 | Q7: 3451.9 | R7: 3502.1 | S7: 4205 | T7: ='[19]P&L'!$Q$11 -> 4047.5 | U7: ='[20]P&L'!$T$11 -> 4202.5 | V7: ='[21]P&L'!$W$11 -> 4456.8 | W7: ='[22]P&L'!$N$11 -> 4663.3 | X7: ='[19]P&L'!$B$11 -> 4335.4 | Y7: ='[20]P&L'!$F$11-X7 -> 4180 | Z7: ='[21]P&L'!$I$11-X7-Y7 -> 4095.2 | AA7: ='[22]P&L'!$L$11-X7-Y7-Z7 -> 4285.9 | AB7: ='[23]P&L'!$C$11 -> 4249.6
A9: Koszt własny sprzedaży (-) | B9: Cost of sales | C9: -6157.5 | D9: -1711.7 | E9: -1797.8 | F9: -1748.3 | G9: -2081.6 | H9: -1923.4 | I9: -1989.3 | J9: -2145.3 | K9: -2310 | L9: -2312.8 | M9: -2229.6 | N9: -2295.1 | O9: -2692 | P9: ='[24]P&L'!$R$12 -> -2624.5 | Q9: -2662.8 | R9: ='[25]P&L'!$W$12 -> -2691.8 | S9: -3276.2 | T9: ='[19]P&L'!$Q$12 -> -3157.1 | U9: ='[20]P&L'!$T$12 -> -3329.5 | V9: ='[21]P&L'!$W$12 -> -3504 | W9: ='[22]P&L'!$N$12 -> -3596 | X9: ='[23]P&L'!$R$12 -> -3395.3 | Y9: ='[20]P&L'!$F$12-X9 -> -3257.4 | Z9: ='[21]P&L'!$I$12-X9-Y9 -> -3199.9 | AA9: ='[22]P&L'!$L$12-X9-Y9-Z9 -> -3318.2 | AB9: ='[23]P&L'!$C$12 -> -3338.7
A11: Zysk brutto ze sprzedaży | B11: Gross profit on sales | C11: =SUM(C7:C9) -> 1671.8 | D11: =SUM(D7:D9) -> 437.3 | E11: 513.1 | F11: 470.1 | G11: 568.7 | H11: =SUM(H7:H9) -> 528.8 | I11: =SUM(I7:I9) -> 549.4 | J11: 593.1 | K11: 628.1 | L11: 607.6 | M11: 620.7 | N11: 643 | O11: 792 | P11: 714.6 | Q11: 789.1 | R11: 810.3 | S11: 928.8 | T11: =SUM(T7:T9) -> 890.4 | U11: 873 | V11: =SUM(V7:V9) -> 952.8 | W11: 1067.3 | X11: =SUM(X7:X9) -> 940.1 | Y11: 922.6 | Z11: =SUM(Z7:Z9) -> 895.3 | AA11: 967.7 | AB11: =SUM(AB7:AB9) -> 910.9
A13: Koszty sprzedaży (-) | B13: Selling costs | C13: -446.8 | D13: -118.4 | E13: -130.7 | F13: -120.3 | G13: -134.5 | H13: -130.2 | I13: -132.8 | J13: -147.3 | K13: -158 | L13: -148.1 | M13: -142.8 | N13: -145.2 | O13: -174 | P13: -175.1 | Q13: -189.6 | R13: -188.9 | S13: -244.9 | T13: ='[19]P&L'!$Q$14 -> -225.8 | U13: ='[26]P&L'!$E$14 -> -229.3 | V13: ='[25]P&L'!$H$14 -> -266.8 | W13: ='[27]P&L'!$K$14 -> -282.4 | X13: ='[19]P&L'!$B$14 -> -241.5 | Y13: ='[20]P&L'!$F$14-X13 -> -239.1 | Z13: ='[21]P&L'!$I$14-X13-Y13 -> -226.5 | AA13: ='[22]P&L'!$L$14-X13-Y13-Z13 -> -234 | AB13: ='[23]P&L'!$C$14 -> -225.3
A14: Koszty ogólnego zarządu (-) | B14: General administrative expenses | C14: -624.9 | D14: -147.8 | E14: -176.6 | F14: -161.8 | G14: -189.9 | H14: -168.9 | I14: -185.2 | J14: -184.7 | K14: -206.4 | L14: -205.1 | M14: -170.6 | N14: -196.9 | O14: -248.9 | P14: -214 | Q14: -247.3 | R14: -248.8 | S14: -267.1 | T14: ='[19]P&L'!$Q$15 -> -268.4 | U14: ='[20]P&L'!$T$15 -> -282.6 | V14: ='[21]P&L'!$W$15 -> -279.8 | W14: ='[27]P&L'!$K$15 -> -335.4 | X14: ='[19]P&L'!$B$15 -> -302.3 | Y14: ='[20]P&L'!$F$15-X14 -> -284.6 | Z14: ='[21]P&L'!$I$15-X14-Y14 -> -292.4 | AA14: ='[22]P&L'!$L$15-X14-Y14-Z14 -> -285.7 | AB14: ='[23]P&L'!$C$15 -> -274.1
A16: Zysk netto ze sprzedaży | B16: Net profit on sales | C16: =SUM(C11,C13:C14) -> 600.1 | D16: =SUM(D11,D13:D14) -> 171.1 | E16: 205.8 | F16: 188 | G16: =SUM(G11,G13:G14) -> 244.3 | H16: 229.7 | I16: 231.4 | J16: 261.1 | K16: 263.7 | L16: 254.4 | M16: 307.3 | N16: 300.9 | O16: 369.1 | P16: 325.5 | Q16: 352.2 | R16: 372.6 | S16: 416.8 | T16: =SUM(T11,T13:T14) -> 396.2 | U16: 361.1 | V16: =SUM(V11,V13:V14) -> 406.2 | W16: 449.5 | X16: =SUM(X11,X13:X14) -> 396.3 | Y16: 398.9 | Z16: =SUM(Z11,Z13:Z14) -> 376.4 | AA16: 448 | AB16: =SUM(AB11,AB13:AB14) -> 411.5
A18: Pozostałe przychody operacyjne* | B18: Other operating income* | C18: 41.6 | D18: 8.6 | E18: 8.1 | F18: 16.6 | G18: 5.4 | H18: 11.9 | I18: 7.1 | J18: 11.3 | K18: 10.8 | L18: 8 | M18: 3.3 | N18: 6.9 | O18: 6.4 | P18: 5.7 | Q18: 6.6 | R18: 8.8 | S18: 3.6 | T18: ='[19]P&L'!$Q$17 -> 15.1 | U18: ='[20]P&L'!$T$17 -> 202.6 | V18: ='[21]P&L'!$W$17 -> 50.7 | W18: ='[22]P&L'!$N$17 -> 31.8 | X18: ='[19]P&L'!$B$17 -> 15.2 | Y18: ='[20]P&L'!$F$17-X18 -> 19.6 | Z18: ='[21]P&L'!$I$17-X18-Y18 -> 21.1 | AA18: ='[22]P&L'!$L$17-X18-Y18-Z18 -> 30.3 | AB18: ='[23]P&L'!$C$17 -> 28
A19: Pozostałe koszty operacyjne (-)* | B19: Other operating expenses* | C19: -56.9 | D19: -12.4 | E19: -10.1 | F19: -17 | G19: -11.6 | H19: -16.9 | I19: -9.6 | J19: -11.8 | K19: -14.1 | L19: -12.6 | M19: -6.9 | N19: -8.8 | O19: -13.4 | P19: -8.6 | Q19: -9.4 | R19: -8.8 | S19: -10.1 | T19: ='[19]P&L'!$Q$18 -> -24.6 | U19: ='[20]P&L'!$T$18 -> -27.2 | V19: ='[21]P&L'!$W$18 -> -33.3 | W19: ='[22]P&L'!$N$18 -> -34.2 | X19: ='[19]P&L'!$B$18 -> -14.3 | Y19: ='[20]P&L'!$F$18-X19 -> -23.2 | Z19: ='[21]P&L'!$I$18-X19-Y19 -> -23.9 | AA19: ='[22]P&L'!$L$18-X19-Y19-Z19 -> -20 | AB19: ='[23]P&L'!$C$18 -> -19.2
A21: Zysk z działalności operacyjnej | B21: Operating profit | C21: =SUM(C16:C19) -> 584.8 | D21: =SUM(D16:D19) -> 167.3 | E21: 203.8 | F21: 187.6 | G21: 238.1 | H21: =SUM(H16:H19) -> 224.7 | I21: =SUM(I16:I19) -> 228.9 | J21: 260.6 | K21: 260.4 | L21: 249.8 | M21: 303.7 | N21: 299 | O21: 362.1 | P21: 322.6 | Q21: 349.4 | R21: 372.6 | S21: 410.3 | T21: =SUM(T16:T19) -> 386.7 | U21: 536.5 | V21: =SUM(V16:V19) -> 423.6 | W21: 447.1 | X21: =SUM(X16:X19) -> 397.2 | Y21: 395.3 | Z21: =SUM(Z16:Z19) -> 373.6 | AA21: 458.3 | AB21: =SUM(AB16:AB19) -> 420.3
A23: Działalność finansowa | B23: Financial activity | C23: 191.7 | D23: -6.1 | E23: -6.5 | F23: -9.6 | G23: -0.6 | H23: -24.6 | I23: -11 | J23: -29.9 | K23: -22.5 | L23: -20 | M23: -30.8 | N23: -34.4 | O23: -51.1 | P23: -24.9 | Q23: -7 | R23: -34.3 | S23: -43.4 | T23: ='[19]P&L'!$Q$20+'[19]P&L'!$Q$21 -> -18.2 | U23: ='[20]P&L'!$T$20+'[20]P&L'!$T$21 -> 15.2 | V23: ='[21]P&L'!$W$20+'[21]P&L'!$W$21 -> -13.7 | W23: ='[22]P&L'!$N$20+'[22]P&L'!$N$21 -> -34.4 | X23: ='[19]P&L'!$B$20+'[19]P&L'!$B$21 -> -20.2 | Y23: ='[20]P&L'!$F$20+'[20]P&L'!$F$21-X23 -> -13.1 | Z23: =SUM('[21]P&L'!$I$20:$I$21)-X23-Y23 -> -9.2 | AA23: =SUM('[22]P&L'!$L$20:$L$21)-Y23-Z23-X23 -> -56 | AB23: ='[23]P&L'!$C$20+'[23]P&L'!$C$21 -> -24.8
A25: Zysk przed opodatkowaniem i udziałem w wynikach jednostek stowarzyszonych i wspólnych przedsięwzięć | B25: Pre-tax profit and share in profits of associates and joint ventures | C25: =SUM(C20:C23) -> 776.5 | D25: =SUM(D20:D23) -> 161.2 | E25: 197.3 | F25: 178 | G25: 237.5 | H25: =SUM(H20:H23) -> 200.1 | I25: =SUM(I20:I23) -> 217.9 | J25: 230.7 | K25: 237.9 | L25: 229.8 | M25: 272.9 | N25: 264.6 | O25: 311 | P25: 297.7 | Q25: 342.4 | R25: 338.3 | S25: 366.9 | T25: =SUM(T20:T23) -> 368.5 | U25: 551.7 | V25: =SUM(V20:V23) -> 409.9 | W25: 412.7 | X25: =SUM(X20:X23) -> 377 | Y25: 382.2 | Z25: =SUM(Z20:Z23) -> 364.4 | AA25: 402.3 | AB25: =SUM(AB20:AB23) -> 395.5
A27: Podatek dochodowy | B27: Corporate income tax | C27: -122 | D27: -43.2 | E27: -45.2 | F27: -37 | G27: -56.9 | H27: -43.8 | I27: -48.2 | J27: -50.7 | K27: -47.9 | L27: -51.6 | M27: -62.1 | N27: -55.2 | O27: -46.8 | P27: ='[24]P&L'!$Q$23 -> -64.6 | Q27: -75.9 | R27: ='[25]P&L'!$W$23 -> -72.2 | S27: -79.5 | T27: ='[19]P&L'!$Q$23 -> -82.4 | U27: ='[20]P&L'!$T$23 -> -119.3 | V27: ='[21]P&L'!$W$23 -> -80.6 | W27: ='[22]P&L'!$N$23 -> -102.4 | X27: ='[19]P&L'!$B$23 -> -83.5 | Y27: ='[20]P&L'!$F$23-X27 -> -77.4 | Z27: ='[21]P&L'!$I$23-X27-Y27 -> -72.8 | AA27: ='[22]P&L'!$L$23-X27-Y27-Z27 -> -83.5 | AB27: ='[23]P&L'!$C$23 -> -85.4
A28: Udział w wynikach jednostek stowarzyszonych i wspólnych przedsięwzięć | B28: Share in profits of associates and joint ventures | C28: -37.7 | D28: -1.4 | E28: -0.7 | F28: 0.3 | G28: 3.8 | H28: 0.9 | I28: -0.3 | J28: 1.2 | K28: 4.5 | L28: -1.8 | M28: 0.8 | N28: -1.9 | O28: 7.5 | P28: -0.2 | Q28: 3 | R28: -2.4 | S28: -9.3 | T28: ='[19]P&L'!$Q$24 -> 1 | U28: ='[20]P&L'!$T$24 -> 9.3 | V28: ='[25]P&L'!$H$24 -> 1.3 | W28: ='[27]P&L'!$K$24 -> -11.7 | X28: ='[19]P&L'!$B$24 -> -1.4 | Y28: ='[20]P&L'!$F$24-X28 -> 1.2 | Z28: ='[21]P&L'!$I$24-X28-Y28 -> 2.2 | AA28: ='[22]P&L'!$L$24-X28-Y28-Z28 -> 1.9 | AB28: ='[23]P&L'!$C$24 -> 2.5
A30: Zysk z działalności kontynuowanej za okres sprawozdawczy | B30: Net profit for the period from continuing operations | C30: =SUM(C25,C27:C28) -> 616.8 | D30: =SUM(D25,D27:D28) -> 116.6 | E30: 151.4 | F30: 141.3 | G30: 184.4 | H30: =SUM(H25,H27:H28) -> 157.2 | I30: =SUM(I25,I27:I28) -> 169.4 | J30: 181.2 | K30: 194.5 | L30: 176.4 | M30: 211.6 | N30: 207.5 | O30: 271.7 | P30: 232.9 | Q30: 269.5 | R30: 263.7 | S30: 278.1 | T30: =SUM(T25,T27:T28) -> 287.1 | U30: 441.7 | V30: =SUM(V25,V27:V28) -> 330.6 | W30: 298.6 | X30: =SUM(X25,X27:X28) -> 292.1 | Y30: 306 | Z30: =SUM(Z25,Z27:Z28) -> 293.8 | AA30: 320.7 | AB30: =SUM(AB25,AB27:AB28) -> 312.6
A32: Działalność zaniechana | B32: Discontinued operations
A33: Zysk z działalności zaniechanej za okres sprawozdawczy | B33: Net profit for the period from discontinued operations | C33: 0 | D33: 0 | E33: 0 | F33: 0 | G33: 0 | H33: 0 | I33: 0 | J33: 0 | K33: 0 | L33: 0 | M33: 0 | N33: 0 | O33: 0 | P33: 0 | Q33: 0 | R33: 0 | S33: 0 | T33: 0 | U33: 0 | V33: 0 | W33: 0 | X33: 0 | Y33: 0 | Z33: 0 | AA33: 0 | AB33: 0
A35: Zysk za okres sprawozdawczy | B35: Net profit for the reporting period | C35: =C30+C33 -> 616.8 | D35: =D30+D33 -> 116.6 | E35: 151.4 | F35: =F30+F33 -> 141.3 | G35: =G30+G33 -> 184.4 | H35: =H30+H33 -> 157.2 | I35: =I30+I33 -> 169.4 | J35: =J30+J33 -> 181.2 | K35: 194.5 | L35: 176.4 | M35: 211.6 | N35: 207.5 | O35: 271.7 | P35: 232.9 | Q35: =Q30+Q33 -> 269.5 | R35: 263.7 | S35: 278.1 | T35: =T30+T33 -> 287.1 | U35: 441.7 | V35: =V30+V33 -> 330.6 | W35: 298.6 | X35: =X30+X33 -> 292.1 | Y35: 306 | Z35: =Z30+Z33 -> 293.8 | AA35: 320.7 | AB35: =AB30+AB33 -> 312.6
A36: Przypadający: | B36: Attributable to:
A37: Akcjonariuszom Jednostki Dominującej | B37: Shareholders of the Parent Company | C37: =C35-C38 -> 466.6 | D37: =D35-D38 -> 68.9 | E37: 88.4 | F37: 78 | G37: 98 | H37: =H35-H38 -> 79.6 | I37: =I35-I38 -> 80.1 | J37: 78.4 | K37: =K35-K38 -> 83.8 | L37: 81.7 | M37: 95.1 | N37: 90.7 | O37: 134.1 | P37: 102.2 | Q37: =Q35-Q38 -> 139.6 | R37: 120.2 | S37: 105.6 | T37: =T35-T38 -> 107.6 | U37: 140.3 | V37: =V35-V38 -> 127.80448 | W37: 126.59552 | X37: =X35-X38 -> 107.9 | Y37: 122.6 | Z37: =Z35-Z38 -> 113.7 | AA37: 138.6 | AB37: =AB35-AB38 -> 125.2
A38: Udziałowcom niekontrolującym | B38: Non-controling interests | C38: 150.2 | D38: 47.7 | E38: 63 | F38: 63.3 | G38: 86.4 | H38: 77.6 | I38: 89.3 | J38: 102.8 | K38: 110.7 | L38: 94.7 | M38: 116.5 | N38: 116.8 | O38: 137.6 | P38: ='[24]P&L'!$Q$33 -> 130.7 | Q38: 129.9 | R38: ='[25]P&L'!$W$33 -> 143.5 | S38: 172.5 | T38: ='[19]P&L'!$Q$33 -> 179.5 | U38: ='[20]P&L'!$T$33 -> 301.4 | V38: ='[21]P&L'!$W$33 -> 202.79552 | W38: ='[22]P&L'!$N$33 -> 172.00448 | X38: ='[23]P&L'!$R$33 -> 184.2 | Y38: ='[20]P&L'!$F$33-X38 -> 183.4 | Z38: ='[21]P&L'!$I$33-X38-Y38 -> 180.1 | AA38: ='[22]P&L'!$L$33-X38-Y38-Z38 -> 182.1 | AB38: ='[23]P&L'!$C$33 -> 187.4
A40: *W ramach pozostałej działalności operacyjnej dokonano spersaldowania wyniku (przychodów i kosztów) na sprzedaży środków trwałych, wartości niematerialnych oraz aktywów z tytułu prawa do użytkowania | B40: * As part of other operating activities, the result (income and expenses) on the sale of property, plant and equipment, intangible assets and assets due to the right of use was offset.

Sheet BS
A1: Bilans (Grupa Asseco) | B1: Statement of financial position (Asseco Group) | C1: YE 2017 | D1: Q1 2018 | E1: Q2 2018 | F1: Q3 2018 | G1: Q4 2018 | H1: Q1 2019 | I1: Q2 2019 | J1: Q3 2019 | K1: Q4 2019 | L1: Q1 2020 | M1: Q2 2020 | N1: Q3 2020 | O1: Q4 2020 | P1: Q1 2021 | Q1: Q2 2021 | R1: Q3 2021 | S1: Q4 2021 | T1: Q1 2022 | U1: Q2 2022 | V1: Q3 2022 | W1: Q4 2022 | X1: Q1 2023 | Y1: Q2 2023 | Z1: Q3 2023 | AA1: Q4 2023 | AB1: Q1 2024
C4: mln PLN | D4: mln PLN | E4: mln PLN | F4: mln PLN | G4: mln PLN | H4: mln PLN | I4: mln PLN | J4: mln PLN | K4: mln PLN | L4: mln PLN | M4: mln PLN | N4: mln PLN | O4: mln PLN | P4: mln PLN | Q4: mln PLN | R4: mln PLN | S4: mln PLN | T4: mln PLN | U4: mln PLN | V4: mln PLN | W4: mln PLN | X4: mln PLN | Y4: mln PLN | Z4: mln PLN | AA4: mln PLN | AB4: mln PLN
A7: Aktywa trwałe | B7: Non-current assets
A8: Rzeczowe aktywa trwałe | B8: Property, plant and equipment | C8: 850.2 | D8: 832.3 | E8: 851.2 | F8: 838.4 | G8: 828.4 | H8: 767.3 | I8: 773.8 | J8: 825.9 | K8: 822.7 | L8: 863.3 | M8: 859.1 | N8: 892.5 | O8: 914.7 | P8: 908.8 | Q8: 888.4 | R8: 899.5 | S8: 905.9 | T8: =[24]BS!$C$12 -> 906.4 | U8: =[26]BS!$E12 -> 912.7 | V8: =[25]BS!$G$12 -> 949.6 | W8: =[27]BS!$I$12 -> 993 | X8: =[19]BS!$C$12 -> 992.1 | Y8: =[20]BS!$E$12 -> 965.2 | Z8: =[21]BS!$G$12 -> 984.8 | AA8: =[23]BS!$K$12 -> 965.3 | AB8: =[23]BS!$C$12 -> 955
A9: Wartości niematerialne | B9: Intangible assets | C9: 2083.2 | D9: 2031.4 | E9: 2112.1 | F9: 2036.9 | G9: 1991 | H9: 2073.6 | I9: 2018.3 | J9: 2171.4 | K9: 2106.5 | L9: 2219.6 | M9: 2152.7 | N9: 2177.8 | O9: 2282.6 | P9: =[24]BS!$M$13 -> 2276.1 | Q9: 2317 | R9: 2456.3 | S9: =[27]BS!$K$13 -> 2503.8 | T9: =[24]BS!$C$13 -> 2564.3 | U9: =[26]BS!$E13 -> 2481 | V9: =[25]BS!$G$13 -> 2635.3 | W9: =[22]BS!$K$13 -> 2391.7 | X9: =[19]BS!$C$13 -> 2258.6 | Y9: =[20]BS!$E$13 -> 2134.8 | Z9: =[21]BS!$G$13 -> 2120.9 | AA9: =[23]BS!$K$13 -> 2024.4 | AB9: =[23]BS!$C$13 -> 1959.8
A10: Aktywa z tytułu prawa do użytkowania | B10: Right-to-use assets | C10: 0 | D10: 0 | E10: 0 | F10: 0 | G10: 0 | H10: 655.3 | I10: 716.1 | J10: 738.7 | K10: 686.6 | L10: 708.3 | M10: 731.3 | N10: 678.6 | O10: 724.7 | P10: 727.2 | Q10: 688.4 | R10: 673.7 | S10: 831.1 | T10: =[24]BS!$C$14 -> 806.3 | U10: =[26]BS!$E14 -> 778.3 | V10: =[25]BS!$G$14 -> 880.2 | W10: =[27]BS!$I$14 -> 789.9 | X10: =[19]BS!$C$14 -> 787 | Y10: =[20]BS!$E$14 -> 748.3 | Z10: =[21]BS!$G$14 -> 736.7 | AA10: =[23]BS!$K$14 -> 754.9 | AB10: =[23]BS!$C$14 -> 750.7
A11: Nieruchomości inwestycyjne | B11: Investment property | C11: 19.7 | D11: 19.8 | E11: 20.1 | F11: 20.1 | G11: 21 | H11: 23.4 | I11: 24.2 | J11: 20.7 | K11: 20.6 | L11: 20.7 | M11: 17.4 | N11: 16.7 | O11: 18 | P11: 18 | Q11: 18 | R11: 18 | S11: 5.3 | T11: =[24]BS!$C$15 -> 5.3 | U11: =[26]BS!$E15 -> 1.8 | V11: =[25]BS!$G$15 -> 1.8 | W11: =[27]BS!$I$15 -> 1.7 | X11: =[19]BS!$C$15 -> 1.7 | Y11: =[20]BS!$E$15 -> 1.7 | Z11: =[21]BS!$G$15 -> 1.7 | AA11: 0 | AB11: 0
A12: Wartość firmy | B12: Goodwill | C12: 4017 | D12: 4024.4 | E12: 4204.7 | F12: 4197.4 | G12: 4254 | H12: 4418.8 | I12: 4411.4 | J12: 4614.9 | K12: 4561.4 | L12: 4759.1 | M12: 4742.2 | N12: 4876.4 | O12: 5131.2 | P12: =[24]BS!$M$16 -> 5204.4 | Q12: 5427 | R12: 5452.4 | S12: =[27]BS!$K$16 -> 5572.5 | T12: =[24]BS!$C$16 -> 5753.8 | U12: =[26]BS!$E16 -> 5971.2 | V12: =[25]BS!$G$16 -> 6159 | W12: =[22]BS!$K$16 -> 5930.5 | X12: =[19]BS!$C$16 -> 5931.6 | Y12: =[20]BS!$E$16 -> 5826.2 | Z12: =[21]BS!$G$16 -> 5935.4 | AA12: =[23]BS!$K$16 -> 5846.1 | AB12: =[23]BS!$C$16 -> 5859.4
A13: Inwestycje wyceniane metodą praw własności | B13: Investments valued using equity method | C13: 100.5 | D13: 97.6 | E13: 105 | F13: 102.9 | G13: 111.5 | H13: 133 | I13: 131 | J13: 139.6 | K13: 145 | L13: 160 | M13: 156.6 | N13: 152.3 | O13: 162.4 | P13: 168.2 | Q13: 162.6 | R13: 166 | S13: 159.3 | T13: =[24]BS!$C$17 -> 162.9 | U13: =[26]BS!$E17 -> 166.8 | V13: =[25]BS!$G$17 -> 171.3 | W13: =[27]BS!$I$17 -> 123.1 | X13: =[19]BS!$C$17 -> 117.4 | Y13: =[20]BS!$E$17 -> 112.2 | Z13: =[21]BS!$G$17 -> 116.2 | AA13: =[22]BS!$I$17 -> 101.6 | AB13: =[23]BS!$C$17 -> 99.2
A14: Należności długoterminowe | B14: Long-term receivables | C14: 108.3 | D14: 106.8 | E14: 118.9 | F14: 119.9 | G14: 127.5 | H14: 117.6 | I14: 107.5 | J14: 123.7 | K14: 110.3 | L14: 110.9 | M14: 90.9 | N14: 79.5 | O14: 94.2 | P14: 90.7 | Q14: 79 | R14: 71.9 | S14: 64.9 | T14: =[24]BS!$C$18 -> 77.3 | U14: =[26]BS!$E18 -> 76.2 | V14: =[25]BS!$G$18 -> 80 | W14: =[27]BS!$I$18 -> 70.6 | X14: =[19]BS!$C$18 -> 81.2 | Y14: =[20]BS!$E$18 -> 82.8 | Z14: =[21]BS!$G$18 -> 91.8 | AA14: =[22]BS!$I$18 -> 75.8 | AB14: =[23]BS!$C$18 -> 84
A15: Aktywa z tytułu odroczonego pod. doch. | B15: Deferred income tax assets | C15: 87.1 | D15: 77.9 | E15: 85.5 | F15: 76.4 | G15: 84.8 | H15: 93.2 | I15: 93.4 | J15: 102.3 | K15: 177.7 | L15: 200.4 | M15: 187.8 | N15: 189.1 | O15: 202.4 | P15: 208.6 | Q15: 220.5 | R15: 231.3 | S15: 250.8 | T15: =[24]BS!$C$19 -> 252.3 | U15: =[26]BS!$E19 -> 241.9 | V15: =[25]BS!$G$19 -> 271.5 | W15: =[27]BS!$I$19 -> 267.3 | X15: =[19]BS!$C$19 -> 248 | Y15: =[20]BS!$E$19 -> 256 | Z15: =[21]BS!$G$19 -> 232.6 | AA15: =[22]BS!$I$19 -> 228.6 | AB15: =[23]BS!$C$19 -> 236.2
A16: Długoterminowe rozliczenia międzyokresowe | B16: Long-term prepayments and accrued income | C16: 46.3 | D16: 51.9 | E16: 53.4 | F16: 50.9 | G16: 59.2 | H16: 58.6 | I16: 64.1 | J16: 73.9 | K16: 68.4 | L16: 76.2 | M16: 71.7 | N16: 68.6 | O16: 101.6 | P16: 114.4 | Q16: 105.7 | R16: 99.8 | S16: =[25]BS!$K$20 -> 89.4 | T16: =[24]BS!$C$20 -> 103.5 | U16: =[26]BS!$E$20 -> 96.6 | V16: =[25]BS!$G$20 -> 108.7 | W16: =[27]BS!$I$20 -> 89.1 | X16: =[19]BS!$C$20 -> 87.6 | Y16: =[20]BS!$E$20 -> 88.7 | Z16: =[21]BS!$G$20 -> 90.6 | AA16: =[22]BS!$I$20 -> 84.7 | AB16: =[23]BS!$C$20 -> 95.3
A17: Inne aktywa niefinansowe | B17: Other non-financial assets | C17: 0.2 | D17: 0.1 | E17: 0.2 | F17: 0 | G17: 0.1 | H17: 0 | I17: 0 | J17: 0 | K17: 0.5 | L17: 0 | M17: 0 | N17: 0 | O17: 0 | P17: 0 | Q17: 0 | R17: 0 | S17: =[25]BS!$K$21 -> 0 | T17: 0 | U17: 0 | V17: =[25]BS!$G$21 -> 0 | W17: =[27]BS!$I$21 -> 0.2 | X17: =[19]BS!$C$21 -> 0.2 | Y17: =[20]BS!$E$21 -> 0.2 | Z17: =[21]BS!$G$21 -> 0.2 | AA17: =[22]BS!$I$21 -> 1.9 | AB17: =[23]BS!$C$21 -> 1.8
A18: Pozostałe długoterminowe aktywa finansowe | B18: Long-term financial assets | C18: 177.1 | D18: 169.5 | E18: 176.8 | F18: 153.8 | G18: 175.1 | H18: 162.6 | I18: 150.9 | J18: 152.9 | K18: 142.2 | L18: 145.8 | M18: 143.3 | N18: 125 | O18: 128.7 | P18: 115.8 | Q18: 112 | R18: 39.6 | S18: =[25]BS!$K$22 -> 43.4 | T18: =[24]BS!$C$22 -> 30.3 | U18: =[26]BS!$E$22 -> 54.2 | V18: =[25]BS!$G$22 -> 118.7 | W18: =[27]BS!$I$22 -> 103.4 | X18: =[19]BS!$C$22 -> 110.3 | Y18: =[20]BS!$E$22 -> 139.8 | Z18: =[21]BS!$G$22 -> 145 | AA18: =[22]BS!$I$22 -> 139.6 | AB18: =[23]BS!$C$22 -> 164.6
C19: =SUM(C8:C18) -> 7489.6 | D19: 7411.7 | E19: 7727.9 | F19: 7596.7 | G19: 7652.6 | H19: 8503.4 | I19: 8490.7 | J19: 8964 | K19: 8841.9 | L19: 9264.3 | M19: 9153 | N19: 9256.5 | O19: 9760.5 | P19: 9832.2 | Q19: 10018.6 | R19: 10108.5 | S19: 10426.4 | T19: 10662.4 | U19: 10780.7 | V19: 11376.1 | W19: 10760.5 | X19: 10615.7 | Y19: 10355.9 | Z19: 10455.9 | AA19: =SUM(AA8:AA18) -> 10222.9 | AB19: 10206
A20: Aktywa obrotowe | B20: Current assets
A21: Zapasy | B21: Inventories | C21: 72.9 | D21: 81.2 | E21: 76.9 | F21: 93.8 | G21: 94.3 | H21: 99.3 | I21: 111.2 | J21: 124.1 | K21: 122.6 | L21: 123.2 | M21: 136.6 | N21: 162.9 | O21: 186.9 | P21: 190.2 | Q21: 174 | R21: 181.2 | S21: 202.5 | T21: =[24]BS!$C$25 -> 273.8 | U21: =[26]BS!$E25 -> 333.9 | V21: =[25]BS!$G$25 -> 376.4 | W21: =[27]BS!$I$25 -> 326 | X21: =[19]BS!$C$25 -> 346.5 | Y21: =[20]BS!$E$25 -> 319.7 | Z21: =[21]BS!$G$25 -> 352 | AA21: =[22]BS!$I$25 -> 325.9 | AB21: =[23]BS!$C$25 -> 273
A22: Rozliczenia międzyokresowe | B22: Prepayments and accrued income | C22: 149.8 | D22: 179.4 | E22: 182 | F22: 172.7 | G22: 168.5 | H22: 232.2 | I22: 237 | J22: 254.6 | K22: 242.9 | L22: 297.2 | M22: 277.8 | N22: 267.8 | O22: 291.5 | P22: 347.4 | Q22: 321.9 | R22: 320.8 | S22: 312.3 | T22: =[24]BS!$C$26 -> 374.4 | U22: =[26]BS!$E26 -> 346 | V22: =[25]BS!$G$26 -> 340.9 | W22: =[27]BS!$I$26 -> 323 | X22: =[19]BS!$C$26 -> 363.4 | Y22: =[20]BS!$E$26 -> 301.2 | Z22: =[21]BS!$G$26 -> 316.1 | AA22: =[22]BS!$I$26 -> 318.6 | AB22: =[23]BS!$C$26 -> 343.4
A23: Należności z tytułu dostaw i usług | B23: Trade receivables | C23: 2372.1 | D23: 2211.7 | E23: 2116.3 | F23: 2183.5 | G23: 2432.7 | H23: 2348.7 | I23: 2448.1 | J23: 2553.1 | K23: 2632.4 | L23: 2724.6 | M23: 2517.8 | N23: 2625.5 | O23: 2890.9 | P23: 3004.5 | Q23: 3040.5 | R23: 3253.4 | S23: 3711.5 | T23: =[24]BS!$C$27 -> 3626.6 | U23: =[26]BS!$E27 -> 3684.5 | V23: =[25]BS!$G$27 -> 3986.6 | W23: =[22]BS!$K$27 -> 3954.1 | X23: =[19]BS!$C$27 -> 3780.3 | Y23: =[20]BS!$E$27 -> 3746.9 | Z23: =[21]BS!$G$27 -> 3857.7 | AA23: =[22]BS!$I$27 -> 3610.5 | AB23: =[23]BS!$C$27 -> 3617.1
A24: Aktywa z tytułu umów z klientami | B24: Contract assets | C24: 0 | D24: 0 | E24: 270.1 | F24: 262.9 | G24: 214.3 | H24: 279.7 | I24: 254.9 | J24: 286.4 | K24: 212.6 | L24: 278.7 | M24: 328.6 | N24: 347.9 | O24: 303.9 | P24: 374.2 | Q24: 396.1 | R24: 444.3 | S24: 501.9 | T24: =[24]BS!$C$28 -> 512.6 | U24: =[26]BS!$E28 -> 678.8 | V24: =[25]BS!$G$28 -> 766.9 | W24: =[27]BS!$I$28 -> 763.1 | X24: =[19]BS!$C$28 -> 854.3 | Y24: =[20]BS!$E$28 -> 775.4 | Z24: =[21]BS!$G$28 -> 725.2 | AA24: =[22]BS!$I$28 -> 697.2 | AB24: =[23]BS!$C$28 -> 739.6
A25: Należności z tytułu podatku CIT | B25: Corporate income tax receivable | C25: 88.7 | D25: 77.1 | E25: 57 | F25: 56.6 | G25: 47.6 | H25: 58.8 | I25: 69.4 | J25: 66.3 | K25: 71.5 | L25: 56.8 | M25: 61 | N25: 65.2 | O25: 101 | P25: 75.8 | Q25: 76.3 | R25: 83.3 | S25: 76.5 | T25: =[24]BS!$C$29 -> 77.6 | U25: =[26]BS!$E29 -> 101.8 | V25: =[25]BS!$G$29 -> 105.9 | W25: =[27]BS!$I$29 -> 62.8 | X25: =[19]BS!$C$29 -> 99.5 | Y25: =[20]BS!$E$29 -> 105.1 | Z25: =[21]BS!$G$29 -> 152 | AA25: =[22]BS!$I$29 -> 130.8 | AB25: =[23]BS!$C$29 -> 141.5
A26: Należności budżetowe | B26: Receivables from the state and local budgets | C26: 20.6 | D26: 25.6 | E26: 29.2 | F26: 32.8 | G26: 37.3 | H26: 34.6 | I26: 34.9 | J26: 35.4 | K26: 34.5 | L26: 36.4 | M26: 31.9 | N26: 30.1 | O26: 29.7 | P26: 40.7 | Q26: 34 | R26: 29.5 | S26: 26.6 | T26: =ROUND([28]D_BS!$C$29/1000,1)-T25 -> 53.6 | U26: =ROUND([29]D_BS!$C$29/1000,1)-U25 -> 49.6 | V26: =ROUND([30]D_BS!$C$29/1000,1)-V25+0.1 -> 55.8 | W26: =ROUND([31]D_BS!$C$29/1000,1)-W25 -> 43.6 | X26: =ROUND([32]D_BS!$C$29/1000,1)-X25-0.1 -> 81.3 | Y26: =ROUND([33]D_BS!$C$29/1000,1)-Y25+0.1 -> 59.8 | Z26: =ROUND([34]D_BS!$C$29/1000,1)-Z25 -> 69.1 | AA26: =ROUND([35]D_BS!$C$29/1000,1)-AA25 -> 53.1 | AB26: =ROUND([36]D_BS!$C$29/1000,1)-AB25 -> 67.6
A27: Pozostałe należności | B27: Other receivables | C27: 38.5 | D27: 43.9 | E27: 45.1 | F27: 48.9 | G27: 39.1 | H27: 367.8 | I27: 49.1 | J27: 68.1 | K27: 73.4 | L27: 81.3 | M27: 61.5 | N27: 60.5 | O27: 59.3 | P27: 65.6 | Q27: 72.1 | R27: 88.2 | S27: 79.9 | T27: =ROUND([28]D_BS!$C$30/1000,1) -> 83.4 | U27: =ROUND([29]D_BS!$C$30/1000,1) -> 96.4 | V27: =ROUND([30]D_BS!$C$30/1000,1) -> 79.4 | W27: =ROUND([31]D_BS!$C$30/1000,1) -> 80.9 | X27: =ROUND([32]D_BS!$C$30/1000,1) -> 79.6 | Y27: =ROUND([33]D_BS!$C$30/1000,1) -> 89.5 | Z27: =ROUND([34]D_BS!$C$30/1000,1) -> 79.4 | AA27: =ROUND([35]D_BS!$C$30/1000,1) -> 135.4 | AB27: =ROUND([36]D_BS!$C$30/1000,1) -> 141.5
A28: Inne aktywa niefinansowe | B28: Other non-financial receivables | C28: 9.1 | D28: 12.3 | E28: 9.2 | F28: 11 | G28: 9 | H28: 8 | I28: 12.3 | J28: 25.5 | K28: 12.8 | L28: 12.8 | M28: 13.9 | N28: 14.4 | O28: 7.5 | P28: 10 | Q28: 9.5 | R28: 13.2 | S28: 13.9 | T28: =[24]BS!$C$31 -> 13.5 | U28: =[26]BS!$E$31 -> 13.8 | V28: =[25]BS!$G$31 -> 14.4 | W28: =[27]BS!$I$31 -> 18 | X28: =[19]BS!$C$31 -> 21.3 | Y28: =[20]BS!$E$31 -> 12.9 | Z28: =[21]BS!$G$31 -> 12.5 | AA28: =[22]BS!$I$31 -> 6.9 | AB28: =[23]BS!$C$31 -> 14.9
A29: Pozostałe aktywa finansowe | B29: Financial assets | C29: 86 | D29: 83.5 | E29: 67.3 | F29: 84.8 | G29: 139.3 | H29: 108.1 | I29: 108.9 | J29: 105.2 | K29: 194.8 | L29: 102.8 | M29: 73 | N29: 53.7 | O29: 186.6 | P29: 203.1 | Q29: 112.5 | R29: 208.7 | S29: 142.3 | T29: =[24]BS!$C$32 -> 164.6 | U29: =[26]BS!$E$32 -> 210.5 | V29: =[25]BS!$G$32 -> 234.9 | W29: =[19]BS!$K$32 -> 120 | X29: =[19]BS!$C$32 -> 348.3 | Y29: =[20]BS!$E$32 -> 392.8 | Z29: =[21]BS!$G$32 -> 351.6 | AA29: =[22]BS!$I$32 -> 310.9 | AB29: =[23]BS!$C$32 -> 328.2
A30: Środki pieniężne i depozyty krótkoterminowe | B30: Cash and short-term deposits | C30: 1547.7 | D30: 1546.7 | E30: 1447.4 | F30: 1604 | G30: 1800.5 | H30: 1853.6 | I30: 1867.5 | J30: 1927.4 | K30: 2153.5 | L30: 2634.8 | M30: 2489.4 | N30: 2392.7 | O30: 2896 | P30: 2716.9 | Q30: 2492.4 | R30: 2714.5 | S30: 3064.2 | T30: =[24]BS!$C$33 -> 3451.9 | U30: =[26]BS!$E$33 -> 2778.9 | V30: =[25]BS!$G$33 -> 3334.7 | W30: =[27]BS!$I$33 -> 3636 | X30: =[19]BS!$C$33 -> 3189.2 | Y30: =[20]BS!$E$33 -> 2545.3 | Z30: =[21]BS!$G$33 -> 2594.7 | AA30: =[22]BS!$I$33 -> 2987.1 | AB30: =[23]BS!$C$33 -> 2934
A31: Aktywa długoterm. sklas. jako przezn. do sprzedaży | B31: Non-current assets classified as held for sale | C31: 7.4 | D31: 7.4 | E31: 7.5 | F31: 9.6 | G31: 10.9 | H31: 8.4 | I31: 3.6 | J31: 1.5 | K31: 1.3 | L31: 1.3 | M31: 1.3 | N31: 1.3 | O31: 0 | P31: 0 | S31: 12.3 | T31: =[24]BS!$C$35 -> 3.5 | U31: =[26]BS!$E$35 -> 14.4 | V31: =[25]BS!$G$35 -> 99 | W31: =[27]BS!$I$35 -> 42.5 | X31: =[19]BS!$C$35 -> 42.5 | Y31: =[20]BS!$E$35 -> 41.4 | Z31: =[21]BS!$G$35 -> 42.3 | AA31: =[22]BS!$I$35 -> 43.2 | AB31: =[23]BS!$C$35 -> 19.5
C32: =SUM(C21:C31) -> 4392.8 | D32: =SUM(D21:D31) -> 4268.8 | E32: 4308 | F32: 4560.6 | G32: 4993.5 | H32: =SUM(H21:H31) -> 5399.2 | I32: =SUM(I21:I31) -> 5196.9 | J32: 5447.6 | K32: 5752.3 | L32: =SUM(L21:L31) -> 6349.9 | M32: 5992.8 | N32: 6022 | O32: 6953.3 | P32: 7028.4 | Q32: 6729.3 | R32: 7337.1 | S32: =SUM(S21:S31) -> 8143.9 | T32: 8635.5 | U32: 8308.6 | V32: =SUM(V21:V31) -> 9394.9 | W32: 9370 | X32: =SUM(X21:X31) -> 9206.2 | Y32: 8390 | Z32: =SUM(Z21:Z31) -> 8552.6 | AA32: 8619.6 | AB32: =SUM(AB21:AB31) -> 8620.3
A34: SUMA AKTYWÓW | B34: TOTAL ASSETS | C34: =C32+C19 -> 11882.4 | D34: =D32+D19 -> 11680.5 | E34: 12035.9 | F34: 12157.3 | G34: 12646.1 | H34: =H32+H19 -> 13902.6 | I34: 13687.6 | J34: 14411.6 | K34: 14594.2 | L34: 15614.2 | M34: =M32+M19 -> 15145.8 | N34: 15278.5 | O34: =O32+O19 -> 16713.8 | P34: 16860.6 | Q34: =Q32+Q19 -> 16747.9 | R34: 17445.6 | S34: =S32+S19 -> 18570.3 | T34: 19297.9 | U34: 19089.3 | V34: =V32+V19 -> 20771 | W34: 20130.5 | X34: =X32+X19 -> 19821.9 | Y34: 18745.9 | Z34: =Z32+Z19 -> 19008.5 | AA34: 18842.5 | AB34: =AB32+AB19 -> 18826.3
A36: Kapitał własny (przypisany akcjonariuszom Jednostki Dominującej) | B36: Equity (attributable to shareholders of the Parent Company) | C36: 5601.4 | D36: 5615.9 | E36: 5574.7 | F36: 5604.6 | G36: 5717.7 | H36: 5818.8 | I36: 5608.7 | J36: 5748.1 | K36: 5764.9 | L36: 5959.2 | M36: 5765.6 | N36: 5844.7 | O36: 6044.4 | P36: =[24]BS!$M$47 -> 6193.3 | Q36: 5992.9 | R36: 6189.7 | S36: =[27]BS!$K$47 -> 6282.2 | T36: =[24]BS!$C$47 -> 6417.6 | U36: =[26]BS!$E$47 -> 6338.9 | V36: =[25]BS!$G$47 -> 6608.4 | W36: =[22]BS!$K$48 -> 6549.5 | X36: =[19]BS!$C$47 -> 6632.9 | Y36: =[20]BS!$E$47 -> 6329.2 | Z36: =[21]BS!$G$48 -> 5360.6 | AA36: =[23]BS!$K$48 -> 5302.8 | AB36: =[23]BS!$C$48 -> 5409.5
A38: Udziały niekontrolujące | B38: Non-controlling interests | C38: 1727.1 | D38: 1660.6 | E38: 1784.8 | F38: 1867.8 | G38: 1944.6 | H38: 2080.4 | I38: 2054 | J38: 2211.1 | K38: 2218.9 | L38: 2385.6 | M38: 2342.4 | N38: 2372.8 | O38: 2913 | P38: =[24]BS!$M$48 -> 3065.7 | Q38: 2976.6 | R38: 3169.9 | S38: =[27]BS!$K$48 -> 3363.2 | T38: =[24]BS!$C$48 -> 3465 | U38: =[26]BS!$E$48 -> 3630 | V38: =[25]BS!$G$48 -> 3878 | W38: =[22]BS!$K$49 -> 3663.3 | X38: =[19]BS!$C$48 -> 3666.2 | Y38: =[20]BS!$E$48 -> 3603.2 | Z38: =[21]BS!$G$49 -> 3826.4 | AA38: =[23]BS!$K$49 -> 3771.6 | AB38: =[23]BS!$C$49 -> 3833.8
A40: Kapitał własny ogółem | B40: Total equity | C40: =SUM(C36:C38) -> 7328.5 | D40: =SUM(D36:D38) -> 7276.5 | E40: 7359.5 | F40: 7472.4 | G40: 7662.3 | H40: =SUM(H36:H38) -> 7899.2 | I40: =SUM(I36:I38) -> 7662.7 | J40: 7959.2 | K40: 7983.8 | L40: 8344.8 | M40: 8108 | N40: 8217.5 | O40: 8957.4 | P40: 9259 | Q40: 8969.5 | R40: 9359.6 | S40: 9645.4 | T40: =SUM(T36:T38) -> 9882.6 | U40: 9968.9 | V40: =SUM(V36:V38) -> 10486.4 | W40: 10212.8 | X40: =SUM(X36:X38) -> 10299.1 | Y40: 9932.4 | Z40: =SUM(Z36:Z38) -> 9187 | AA40: 9074.4 | AB40: =SUM(AB36:AB38) -> 9243.3
A42: Zobowiązania długoterminowe | B42: Non-current liabilities
A43: Oprocentowane kred. bankowe, poż., dłużne pap. wart. | B43: Interest-bearing bank loans, borrowing and debt securities | C43: 1046.3 | D43: 935.9 | E43: 911.7 | F43: 889.6 | G43: 1082.9 | H43: 1276.5 | I43: 1228 | J43: 1278 | K43: 1366.2 | L43: 1564.7 | M43: 1777.7 | N43: 1644 | O43: 1552.2 | P43: 1434.7 | Q43: 1531.3 | R43: 1566.8 | S43: 1570.8 | T43: =[24]BS!$C52 -> 1515.2 | U43: =[26]BS!$E52 -> 1436.8 | V43: =[25]BS!$G$52 -> 2162.8 | W43: =[27]BS!$I$52 -> 2021.8 | X43: =[19]BS!$C$52 -> 1813.7 | Y43: =[20]BS!$E$52 -> 1685.1 | Z43: =[21]BS!$G$53 -> 2504 | AA43: =[22]BS!$I$53 -> 2241.8 | AB43: =[23]BS!$C$53 -> 2011.4
A44: Długoterminowe zob. z tyt. leasingu | B44: Long-term lease liabilities | C44: 49.2 | D44: 45.1 | E44: 43.9 | F44: 37.4 | G44: 32.1 | H44: 478.1 | I44: 519.2 | J44: 526.2 | K44: 472.3 | L44: 506.9 | M44: 530.9 | N44: 501.2 | O44: 544.7 | P44: 552.3 | Q44: 513.8 | R44: 497.8 | S44: 610.1 | T44: =[24]BS!$C53 -> 583.4 | U44: =[26]BS!$E53 -> 560.5 | V44: =[25]BS!$G$53 -> 627 | W44: =[27]BS!$I$53 -> 535.6 | X44: =[19]BS!$C$53 -> 523 | Y44: =[20]BS!$E$53 -> 500.1 | Z44: =[21]BS!$G$54 -> 499.8 | AA44: =[23]BS!$K$54 -> 519.2 | AB44: =[23]BS!$C$54 -> 516.4
A45: Długoterminowe zob. finansowe | B45: Long-term financial liabilities | C45: 275.4 | D45: 320.8 | E45: 256.4 | F45: 257.5 | G45: 180.3 | H45: 248.6 | I45: 227.4 | J45: 292 | K45: 234.6 | L45: 273.9 | M45: 174 | N45: 255.4 | O45: 188.7 | P45: 173.3 | Q45: 255.6 | R45: 268.6 | S45: =[25]BS!$K$54 -> 305 | T45: =[24]BS!$C54 -> 334.9 | U45: =[26]BS!$E54 -> 337.1 | V45: =[25]BS!$G$54 -> 263 | W45: =[27]BS!$I$54 -> 221.7 | X45: =[19]BS!$C$54 -> 234 | Y45: =[20]BS!$E$54 -> 200.4 | Z45: =[21]BS!$G$55 -> 204.8 | AA45: =[22]BS!$I$55 -> 293.9 | AB45: =[23]BS!$C$55 -> 257.3
A46: Rezerwy z tytułu odroczonego pod. doch. | B46: Deferred income tax liabilities | C46: 414.2 | D46: 409.1 | E46: 424 | F46: 410.4 | G46: 410.7 | H46: 426.4 | I46: 415.3 | J46: 447.4 | K46: 479.6 | L46: 513.1 | M46: 495.3 | N46: 498.4 | O46: 531.2 | P46: =[24]BS!$M$55 -> 535.8 | Q46: 547.5 | R46: 587.1 | S46: =[27]BS!$K$55 -> 619.6 | T46: =[24]BS!$C55 -> 627.9 | U46: =[26]BS!$E55 -> 616.5 | V46: =[25]BS!$G$55 -> 665.5 | W46: =[21]BS!$K$56 -> 574 | X46: =[19]BS!$C$55 -> 558.4 | Y46: =[20]BS!$E$55 -> 523.2 | Z46: =[21]BS!$G$56 -> 479.1 | AA46: =[23]BS!$K$56 -> 449.8 | AB46: =[23]BS!$C$56 -> 431.5
A47: Zobowiązania z tytułu podatku dochodowego od osób prawnych | B47: Liabilities due to corporate income tax | C47: 0 | D47: 0 | E47: 0 | F47: 0 | G47: 0 | H47: 0 | I47: 0 | J47: 0 | K47: 0 | L47: 0 | M47: 0 | N47: 0 | O47: 37 | P47: =[24]BS!$M$57 -> 41.6 | Q47: 0 | R47: 0 | S47: 43.6 | T47: =[24]BS!$C$57 -> 0.1 | U47: =[26]BS!$E57 -> 48.2 | V47: =[25]BS!$G$57 -> 56.7 | W47: =[27]BS!$I$57 -> 59 | X47: =[19]BS!$C$57 -> 57.7 | Y47: =[20]BS!$E$57 -> 54.8 | Z47: =[21]BS!$G$58 -> 56.9 | AA47: =[22]BS!$I$58 -> 5.6 | AB47: =[23]BS!$C$58 -> 0
A48: Długoterminowe rezerwy | B48: Long-term provisions | C48: 73.2 | D48: 64.8 | E48: 66.7 | F48: 64.1 | G48: 67.9 | H48: 72.9 | I48: 75.9 | J48: 79.8 | K48: 81.9 | L48: 93.9 | M48: 93.5 | N48: 112.5 | O48: 72.7 | P48: =[24]BS!$M$59 -> 67.2 | Q48: 106.8 | R48: 108.6 | S48: 63.7 | T48: =[24]BS!$C$59 -> 107.4 | U48: =[26]BS!$E59 -> 57 | V48: =[25]BS!$G$59 -> 57.4 | W48: =[27]BS!$I$59 -> 59.5 | X48: =[19]BS!$C$59 -> 58.6 | Y48: =[20]BS!$E$59 -> 66.4 | Z48: =[21]BS!$G$60 -> 68.5 | AA48: =[22]BS!$I$60 -> 64.4 | AB48: =[23]BS!$C$60 -> 62.1
A49: Długoterminowe rozliczenia międzyok. przych. i kosztów | B49: Accruals and deferred income | C49: 78.7 | D49: 79.4 | E49: 43.4 | F49: 43.4 | G49: 43.3 | H49: 43.1 | I49: 43 | J49: 42 | K49: 41 | L49: 50.5 | M49: 54.7 | N49: 59.8 | O49: 64.7 | P49: 63.9 | Q49: 61.9 | R49: 62.4 | S49: 62.6 | T49: =[24]BS!$C$60 -> 61.9 | U49: =[26]BS!$E60 -> 62.4 | V49: =[25]BS!$G$60 -> 58.2 | W49: =[27]BS!$I$60 -> 56.4 | X49: =[19]BS!$C$60 -> 55.8 | Y49: =[20]BS!$E$60 -> 55.5 | Z49: =[21]BS!$G$61 -> 57 | AA49: =[22]BS!$I$61 -> 55.5 | AB49: =[23]BS!$C$61 -> 56.1
A50: Pozostałe zobowiązania długoterminowe | B50: Other long-term liabilities | C50: 16.2 | D50: 15.1 | E50: 47.2 | F50: 44.3 | G50: 46.9 | H50: 49.3 | I50: 44.8 | J50: 51.7 | K50: 70 | L50: 90 | M50: 92 | N50: 105.9 | O50: 142.6 | P50: 151.9 | Q50: 139.7 | R50: 139.5 | S50: 127.6 | T50: =[24]BS!$C$58+[24]BS!$C$56 -> 128.4 | U50: =[26]BS!$E$58+[26]BS!$E$56 -> 113.7 | V50: =[25]BS!$G$58+[25]BS!$G$56 -> 110.8 | W50: =[27]BS!$I$56+[27]BS!$I$58 -> 95.5 | X50: =[19]BS!$C$56+[19]BS!$C$58 -> 84.7 | Y50: =[20]BS!$E$56+[20]BS!$E$58 -> 82.2 | Z50: =[21]BS!$G$59+[21]BS!$G$57 -> 76.6 | AA50: =[22]BS!$I$57+[22]BS!$I$59 -> 103.9 | AB50: =[23]BS!$C$57+[23]BS!$C$59 -> 156.5
C51: =SUM(C43:C50) -> 1953.2 | D51: =SUM(D43:D50) -> 1870.2 | E51: 1793.3 | F51: 1746.7 | G51: 1864.1 | H51: =SUM(H43:H50) -> 2594.9 | I51: =SUM(I43:I50) -> 2553.6 | J51: 2717.1 | K51: 2745.6 | L51: 3093 | M51: 3218.1 | N51: 3177.2 | O51: =SUM(O43:O50) -> 3133.8 | P51: 3020.7 | Q51: 3156.6 | R51: 3230.8 | S51: 3403 | T51: =SUM(T43:T50) -> 3359.2 | U51: 3232.2 | V51: =SUM(V43:V50) -> 4001.4 | W51: 3623.5 | X51: =SUM(X43:X50) -> 3385.9 | Y51: 3167.7 | Z51: =SUM(Z43:Z50) -> 3946.7 | AA51: 3734.1 | AB51: =SUM(AB43:AB50) -> 3491.3
A52: Zobowiązania krótkoterminowe | B52: Current liabilities
A53: Oprocentowane kred. bankowe, poż., dłużne pap. wart. | B53: Interest-bearing bank loans, borrowing and debt securities | C53: 395.3 | D53: 561 | E53: 724.3 | F53: 806.2 | G53: 581.6 | H53: 691.6 | I53: 786.5 | J53: 878.3 | K53: 689.4 | L53: 937 | M53: 679.7 | N53: 707.3 | O53: 703.1 | P53: 744.6 | Q53: 845.5 | R53: 1126 | S53: 1017.2 | T53: =[24]BS!$C$63 -> 1406.5 | U53: =[26]BS!$E63 -> 1308.5 | V53: =[25]BS!$G$63 -> 1314.9 | W53: =[20]BS!$K$63 -> 1141.9 | X53: =[19]BS!$C$63 -> 1170.5 | Y53: =[20]BS!$E$63 -> 1113.1 | Z53: =[21]BS!$G$64 -> 1270.4 | AA53: =[22]BS!$I$64 -> 1100.6 | AB53: =[23]BS!$C$64 -> 1151
A54: Zobowiązania z tytułu leasingu | B54: Lease liabilities | C54: 26.8 | D54: 26.8 | E54: 28.7 | F54: 28.1 | G54: 28.9 | H54: 189.8 | I54: 206.6 | J54: 224.3 | K54: 216.7 | L54: 205.7 | M54: 199.6 | N54: 178.4 | O54: 183.9 | P54: 191.9 | Q54: 184.5 | R54: 190.1 | S54: 236 | T54: =[24]BS!$C$64 -> 238.7 | U54: =[26]BS!$E64 -> 236.6 | V54: =[25]BS!$G$64 -> 275.7 | W54: =[27]BS!$I$64 -> 264.4 | X54: =[19]BS!$C$64 -> 273.1 | Y54: =[20]BS!$E$64 -> 252 | Z54: =[21]BS!$G$65 -> 243.8 | AA54: =[23]BS!$K$65 -> 235.4 | AB54: =[23]BS!$C$65 -> 236.1
A55: Pozostałe zobowiązania finansowe | B55: Financial liabilities | C55: 114.5 | D55: 78.3 | E55: 187 | F55: 189.4 | G55: 199.3 | H55: 198 | I55: 218.7 | J55: 267 | K55: 265.1 | L55: 218.2 | M55: 296.9 | N55: 280.1 | O55: 331.5 | P55: 373.3 | Q55: 363.3 | R55: 215.5 | S55: 285.2 | T55: =[24]BS!$C$65 -> 444.8 | U55: =[26]BS!$E65 -> 390.2 | V55: =[25]BS!$G$65 -> 452.1 | W55: =[21]BS!$K$66 -> 516.4 | X55: =[19]BS!$C$65 -> 532.5 | Y55: =[20]BS!$E$65 -> 402.2 | Z55: =[21]BS!$G$66 -> 340.6 | AA55: =[22]BS!$I$66 -> 260.3 | AB55: =[23]BS!$C$66 -> 428.5
A56: Zobowiązania z tytułu dostaw i usług | B56: Trade payables | C56: 855.8 | D56: 683.2 | E56: 692.1 | F56: 729.8 | G56: 938.2 | H56: 839.1 | I56: 792.9 | J56: 801 | K56: 983.5 | L56: 952.8 | M56: 852.9 | N56: 933.6 | O56: 1191.7 | P56: 1016.3 | Q56: 1042.7 | R56: 1080.4 | S56: 1522.1 | T56: =[24]BS!$C$66 -> 1358.5 | U56: =[26]BS!$E66 -> 1435.4 | V56: =[25]BS!$G$66 -> 1556.1 | W56: =[22]BS!$K$67 -> 1599.7 | X56: =[19]BS!$C$66 -> 1386.8 | Y56: =[20]BS!$E$66 -> 1379.3 | Z56: =[21]BS!$G$67 -> 1462.8 | AA56: =[22]BS!$I$67 -> 1645.8 | AB56: =[23]BS!$C$67 -> 1321.7
A57: Zobowiązania z tytułu umów z klientami | B57: Contract liabilities | C57: 0 | D57: 0 | E57: 440.2 | F57: 388 | G57: 451.1 | H57: 603.8 | I57: 584.6 | J57: 606.1 | K57: 627.3 | L57: 799.6 | M57: 733.8 | N57: 710.3 | O57: 900.1 | P57: 1039.1 | Q57: 936.8 | R57: 887.1 | S57: =[25]BS!$K$67 -> 985.4 | T57: =[24]BS!$C$67 -> 1132.3 | U57: =[26]BS!$E67 -> 1048.9 | V57: =[25]BS!$G$67 -> 1041.2 | W57: =[27]BS!$I$67 -> 1126.8 | X57: =[19]BS!$C$67 -> 1265.8 | Y57: =[20]BS!$E$67 -> 1068.7 | Z57: =[21]BS!$G$68 -> 1038 | AA57: =[22]BS!$I$68 -> 1109.6 | AB57: =[23]BS!$C$68 -> 1310.7
A58: Zobowiązania z tytułu podatku CIT | B58: Corporate income tax payable | C58: 73.9 | D58: 69.2 | E58: 83.3 | F58: 84.7 | G58: 73.7 | H58: 68 | I58: 63.2 | J58: 70.8 | K58: 89.5 | L58: 83.7 | M58: 81.2 | N58: 41.9 | O58: 75.3 | P58: =[24]BS!$M$68 -> 67.9 | Q58: 76.4 | R58: 99.9 | S58: 77.5 | T58: =[24]BS!$C$68 -> 98.4 | U58: =[26]BS!$E68 -> 107.4 | V58: =[25]BS!$G$68 -> 109.1 | W58: =[27]BS!$I$68 -> 115.2 | X58: =[19]BS!$C$68 -> 120.5 | Y58: =[20]BS!$E$68 -> 90 | Z58: =[21]BS!$G$69 -> 124.9 | AA58: =[22]BS!$I$69 -> 148 | AB58: =[23]BS!$C$69 -> 174.5
A59: Zobowiązania budżetowe | B59: Liabilities to the state and local budgets | C59: 162.7 | D59: 120.6 | E59: 128 | F59: 133.7 | G59: 204.8 | H59: 155.1 | I59: 177.1 | J59: 168.8 | K59: 231 | L59: 212.8 | M59: 204.6 | N59: 243.3 | O59: 296.2 | P59: 212.2 | Q59: 215.5 | R59: 266.3 | S59: 343.8 | T59: =[24]BS!$C$69 -> 243.4 | U59: =[26]BS!$E69 -> 233 | V59: =[25]BS!$G$69 -> 250.4 | W59: =[27]BS!$I$69 -> 322.8 | X59: =[19]BS!$C$69 -> 227.8 | Y59: =[20]BS!$E$69 -> 252.8 | Z59: =[21]BS!$G$70 -> 247.4 | AA59: =[22]BS!$I$70 -> 344.2 | AB59: =[23]BS!$C$70 -> 251.9
A60: Pozostałe zobowiązania | B60: Other liabilities | C60: 290.2 | D60: 279.4 | E60: 282.3 | F60: 267.7 | G60: 314.3 | H60: 340.9 | I60: 309.9 | J60: 338.1 | K60: 372.8 | L60: 394.3 | M60: 382.3 | N60: 384.5 | O60: 483.2 | P60: 501 | Q60: 450.9 | R60: 502.5 | S60: 557.3 | T60: =[24]BS!$C$70 -> 625.9 | U60: =[26]BS!$E70 -> 591.8 | V60: =[25]BS!$G$70 -> 658.1 | W60: =[21]BS!$K$71 -> 646.2 | X60: =[19]BS!$C$70 -> 634.2 | Y60: =[20]BS!$E$70 -> 565.5 | Z60: =[21]BS!$G$71 -> 624.1 | AA60: =[23]BS!$K$71 -> 612.1 | AB60: =[23]BS!$C$71 -> 671.2
A61: Rezerwy | B61: Provisions | C61: 51.4 | D61: 36.2 | E61: 34.2 | F61: 35.7 | G61: 45.4 | H61: 47 | I61: 35.7 | J61: 42.9 | K61: 39.2 | L61: 48 | M61: 39.1 | N61: 36.2 | O61: 28.8 | P61: =[24]BS!$M$71 -> 22.4 | Q61: 33.5 | R61: 31.4 | S61: 17.2 | T61: =[24]BS!$C$71 -> 27.5 | U61: =[26]BS!$E71 -> 18.5 | V61: =[25]BS!$G$71 -> 27.2 | W61: =[27]BS!$I$71 -> 38.4 | X61: =[19]BS!$C$71 -> 46 | Y61: =[20]BS!$E$71 -> 47.6 | Z61: =[21]BS!$G$72 -> 46.3 | AA61: =[22]BS!$I$72 -> 40.5 | AB61: =[23]BS!$C$72 -> 35.5
A62: Rozliczenia międzyokresowe przychodów | B62: Deferred income | C62: 358.1 | D62: 440.5 | E62: 16.3 | F62: 10 | G62: 7.8 | H62: 9.7 | I62: 10.9 | J62: 11.1 | K62: 9.8 | L62: 9.8 | M62: 7.1 | N62: 5.6 | O62: 7.5 | P62: 8.4 | Q62: 9.7 | R62: 8.2 | S62: 10.1 | T62: =ROUND([28]D_BS!C73/1000,1)-ROUND(SUM([28]N_28B!$C$8,[28]N_28B!$C$12,[28]N_28B!$C$16,[28]N_28B!$C$20)/1000,1)-ROUND([28]N_28B!$C$21/1000,1) -> 11.7 | U62: =ROUND([29]D_BS!$C$73/1000,1)-ROUND(SUM([29]N_28B!$C$8,[29]N_28B!$C$12,[29]N_28B!$C$16,[29]N_28B!$C$20)/1000,1)-ROUND([29]N_28B!$C$21/1000,1) -> 10.5 | V62: =ROUND([30]D_BS!$C$73/1000,1)-ROUND(SUM([30]N_28B!$C$8,[30]N_28B!$C$12,[30]N_28B!$C$16,[30]N_28B!$C$20,[30]N_28B!$C$21)/1000,1) -> 10.9 | W62: =ROUND([31]D_BS!$C$76/1000,1) -> 8 | X62: =ROUND([32]D_BS!$C$76/1000,1) -> 8.5 | Y62: =ROUND([33]D_BS!$C$76/1000,1) -> 8.1 | Z62: =ROUND([34]D_BS!$C$76/1000,1) -> 10.5 | AA62: =ROUND([35]D_BS!$C$76/1000,1) -> 7.9 | AB62: =ROUND([36]D_BS!$C$76/1000,1) -> 5.8
A63: Rozliczenia międzyokresowe kosztów | B63: Accruals | C63: 272 | D63: 238.6 | E63: 266.7 | F63: 264.9 | G63: 274.6 | H63: 265.5 | I63: 285.2 | J63: 326.9 | K63: 340.5 | L63: 314.5 | M63: 342.5 | N63: 362.6 | O63: 421.3 | P63: 403.8 | Q63: 463 | R63: 447.8 | S63: =469+0.6 -> 469.6 | T63: =ROUND([28]D_BS!$C$74/1000,1)-0.1 -> 468.4 | U63: =ROUND([29]D_BS!$C$74/1000,1) -> 504.7 | V63: =ROUND([30]D_BS!$C$74/1000,1) -> 541.9 | W63: =ROUND([31]D_BS!$C$77/1000,1) -> 511.3 | X63: =ROUND([32]D_BS!$C$77/1000,1) -> 468.1 | Y63: =ROUND([33]D_BS!$C$77/1000,1)-0.1 -> 463.4 | Z63: =ROUND([34]D_BS!$C$77/1000,1)-0.1 -> 462.9 | AA63: =ROUND([35]D_BS!$C$77/1000,1) -> 522.5 | AB63: =ROUND([36]D_BS!$C$77/1000,1) -> 504.8
A64: Zobowiązania powiązane z aktywami przeznaczonymi do sprzedaży | B64: Liabilities related to assets held for sale | C64: 0 | D64: 0 | E64: 0 | F64: 0 | G64: 0 | H64: 0 | I64: 0 | J64: 0 | K64: 0 | L64: 0 | M64: 0 | N64: 0 | O64: 0 | P64: 0 | Q64: 0 | R64: 0 | S64: 0.5 | T64: =[24]BS!$C$73 -> 0 | U64: =[26]BS!$E$73 -> 2.7 | V64: =[25]BS!$G$73 -> 45.6 | W64: =[27]BS!$I$73 -> 3.1 | X64: =[19]BS!$C$73 -> 3.1 | Y64: =[20]BS!$E$73 -> 3.1 | Z64: =[21]BS!$G$74 -> 3.1 | AA64: =[22]BS!$I$74 -> 7.1 | AB64: =[23]BS!$C$74 -> 0
C65: =SUM(C53:C64) -> 2600.7 | D65: 2533.8 | E65: 2883.1 | F65: 2938.2 | G65: 3119.7 | H65: 3408.5 | I65: 3471.3 | J65: 3735.3 | K65: 3864.8 | L65: 4176.4 | M65: 3819.7 | N65: 3883.8 | O65: 4622.6 | P65: 4580.9 | Q65: 4621.8 | R65: 4855.2 | S65: 5521.9 | T65: =SUM(T53:T64) -> 6056.1 | U65: 5888.2 | V65: =SUM(V53:V64) -> 6283.2 | W65: 6294.2 | X65: =SUM(X53:X64) -> 6136.9 | Y65: 5645.8 | Z65: =SUM(Z53:Z64) -> 5874.8 | AA65: 6034 | AB65: =SUM(AB53:AB64) -> 6091.7
A66: Suma zobowiązań | B66: Total liabilities | C66: =SUM(C51,C65) -> 4553.9 | D66: =SUM(D51,D65) -> 4404 | E66: 4676.4 | F66: 4684.9 | G66: 4983.8 | H66: =SUM(H51,H65) -> 6003.4 | I66: 6024.9 | J66: 6452.4 | K66: 6610.4 | L66: 7269.4 | M66: =SUM(M51,M65) -> 7037.8 | N66: 7061 | O66: =SUM(O51,O65) -> 7756.4 | P66: 7601.6 | Q66: =SUM(Q51,Q65) -> 7778.4 | R66: 8086 | S66: =SUM(S51,S65) -> 8924.9 | T66: 9415.3 | U66: =SUM(U51,U65) -> 9120.4 | V66: 10284.6 | W66: =SUM(W51,W65) -> 9917.7 | X66: 9522.8 | Y66: =SUM(Y51,Y65) -> 8813.5 | Z66: 9821.5 | AA66: =SUM(AA51,AA65) -> 9768.1 | AB66: 9583
A68: SUMA PASYWÓW | B68: TOTAL EQUITY AND LIABILITIES | C68: =SUM(C66,C40) -> 11882.4 | D68: =SUM(D66,D40) -> 11680.5 | E68: 12035.9 | F68: 12157.3 | G68: 12646.1 | H68: =SUM(H66,H40) -> 13902.6 | I68: =SUM(I66,I40) -> 13687.6 | J68: 14411.6 | K68: 14594.2 | L68: 15614.2 | M68: =SUM(M66,M40) -> 15145.8 | N68: 15278.5 | O68: =SUM(O66,O40) -> 16713.8 | P68: 16860.6 | Q68: =SUM(Q66,Q40) -> 16747.9 | R68: 17445.6 | S68: =SUM(S66,S40) -> 18570.3 | T68: 19297.9 | U68: =SUM(U66,U40) -> 19089.3 | V68: 20771 | W68: =SUM(W66,W40) -> 20130.5 | X68: 19821.9 | Y68: =SUM(Y66,Y40) -> 18745.9 | Z68: 19008.5 | AA68: =SUM(AA66,AA40) -> 18842.5 | AB68: 18826.3
C69: =C68-C34 -> 0 | D69: =D68-D34 -> 0 | E69: =E68-E34 -> 0 | F69: 0 | G69: 0 | H69: 0 | I69: 0 | J69: 0 | K69: 0 | L69: 0 | M69: 0 | N69: 0 | O69: 0 | P69: 0 | Q69: 0 | R69: 0 | S69: =S68-S34 -> 0 | T69: 0 | U69: =U68-U34 -> 0 | V69: 0 | W69: =W68-W34 -> 0 | X69: 0 | Y69: =Y68-Y34 -> 0 | Z69: 0 | AA69: =AA68-AA34 -> 0 | AB69: 0

Sheet CF
A1: Rachunek przepływów pieniężnych (Grupa Asseco) | B1: Statement of cash flows (Asseco Group)
C2: YE 2017 | D2: Q1 2018 | E2: Q2 2018 | F2: Q3 2018 | G2: Q4 2018 | H2: Q1 2019 | I2: Q2 2019 | J2: Q3 2019 | K2: Q4 2019 | L2: Q1 2020 | M2: Q2 2020 | N2: Q3 2020 | O2: Q4 2020 | P2: Q1 2021 | Q2: Q2 2021 | R2: Q3 2021 | S2: Q4 2021 | T2: Q1 2022 | U2: Q2 2022 | V2: Q3 2022 | W2: Q4 2022 | X2: Q1 2023 | Y2: Q2 2023 | Z2: Q3 2023 | AA2: Q4 2023 | AB2: Q1 2024
C4: mln PLN | D4: mln PLN | E4: mln PLN | F4: mln PLN | G4: mln PLN | H4: mln PLN | I4: mln PLN | J4: mln PLN | K4: mln PLN | L4: mln PLN | M4: mln PLN | N4: mln PLN | O4: mln PLN | P4: mln PLN | Q4: mln PLN | R4: mln PLN | S4: mln PLN | T4: mln PLN | U4: mln PLN | V4: mln PLN | W4: mln PLN | X4: mln PLN | Y4: mln PLN | Z4: mln PLN | AA4: mln PLN | AB4: mln PLN
A6: Przepływy środków pieniężnych z działalności operacyjnej | B6: Cash flows - operating activities
A7: Zysk przed opodatkowaniem i udziałem w wynikach jednostek stowarzyszonych i wspólnych przedsięwzięć | B7: Profit before tax and share of profits of associates and joint ventures | C7: 776.5 | D7: 161.2 | E7: 197.3 | F7: 178 | G7: 237.5 | H7: 200.1 | I7: 217.9 | J7: 230.7 | K7: 237.9 | L7: 229.8 | M7: 272.9 | N7: 264.6 | O7: 311 | P7: =[24]CF!$N$9 -> 297.7 | Q7: 342.4 | R7: =338.7-0.4 -> 338.3 | S7: 366.9 | T7: =[19]CF!$Q$9 -> 368.5 | U7: =[26]CF!$F$9-T7 -> 553.3 | V7: =[25]CF!$J$9-U7-T7 -> 407.1 | W7: =[27]CF!$L$9-T7-U7-V7-0.8 -> 413.9 | X7: =[23]CF!$Q$9 -> 377 | Y7: =[20]CF!$G$9-X7 -> 382.2 | Z7: =[21]CF!$J$9-X7-Y7 -> 364.4 | AA7: =[22]CF!$M$9-X7-Y7-Z7 -> 402.3 | AB7: =[23]CF!$D$9 -> 395.5
A9: Korekty o pozycje: | B9: Total adjustments: | C9: =SUM(C10:C28) -> 86.6 | D9: =SUM(D10:D28) -> 21.2 | E9: 10.9 | F9: 17.8 | G9: 353.9 | H9: 166.9 | I9: -12.9 | J9: =SUM(J10:J28) -> 170.6 | K9: 558.5 | L9: =SUM(L10:L28) -> 157.9 | M9: 209.4 | N9: 219 | O9: 566.7 | P9: -155.6 | Q9: 109.4 | R9: 83.9 | S9: 503 | T9: =SUM(T10:T28) -> 80 | U9: -249.1 | V9: =SUM(V10:V28) -> 120.2 | W9: 556.4 | X9: =SUM(X10:X28) -> 30.4 | Y9: 154.8 | Z9: =SUM(Z10:Z28) -> 309.6 | AA9: 949.5 | AB9: =SUM(AB10:AB28) -> 48
A10: Amortyzacja | B10: Depreciation and amortization | C10: 337.1 | D10: 117.2 | E10: 112.5 | F10: 113.7 | G10: 116.1 | H10: 144.4 | I10: 158.8 | J10: 164.2 | K10: 169.6 | L10: 170.3 | M10: 172.8 | N10: 177.9 | O10: 186.5 | P10: =[24]CF!$N$12 -> 175.2 | Q10: 186.3 | R10: =189.9+0.4 -> 190.3 | S10: 238.5 | T10: =[19]CF!$Q$12 -> 214.3 | U10: =[26]CF!$F12-T10 -> 213.5 | V10: =[25]CF!$J$12-U10-T10 -> 236.2 | W10: =[27]CF!$L$12-T10-U10-V10+0.6 -> 228.9 | X10: =[23]CF!$Q$12 -> 225.3 | Y10: =[20]CF!$G$12-X10 -> 216.8 | Z10: =[21]CF!J12-X10-Y10 -> 217.3 | AA10: =[22]CF!$M$12-X10-Y10-Z10 -> 215 | AB10: =[23]CF!$D$12 -> 205.7
A11: Zmiany stanu kapitału pracującego (szczegóły poniżej) | B11: Changes in working capital (see below) | C11: -70.8 | D11: -101.2 | E11: -104.9 | F11: -115.2 | G11: 238.1 | H11: 3.1 | I11: -198.9 | J11: -28.5 | K11: 354.6 | L11: -51.1 | M11: 14.4 | N11: -1 | O11: 314.1 | P11: -361.9 | Q11: -101.6 | R11: -148.9 | S11: 195 | T11: =[19]CF!$Q$13 -> -161.8 | U11: =[26]CF!$F13-T11 -> -322 | V11: =[25]CF!$J$13-U11-T11 -> -107.1 | W11: =[27]CF!$L$13-T11-U11-V11+0.2 -> 264.7 | X11: =[19]CF!$D$13 -> -231.6 | Y11: =[20]CF!$G$13-X11 -> -118.9 | Z11: =[21]CF!J13-X11-Y11 -> 48.6 | AA11: =[22]CF!$M$13-X11-Y11-Z11 -> 630.3 | AB11: =[23]CF!$D$13 -> -212.5
A12: Przychody/koszty z tytułu odsetek | B12: Interest income/expenses | C12: 43.1 | D12: 7.2 | E12: 13.2 | F12: -1 | G12: 7.2 | H12: 15 | I12: 24.5 | J12: 24.8 | K12: 19.4 | L12: 13 | M12: 24.4 | N12: 22.8 | O12: 15.7 | P12: 17.2 | Q12: 19.1 | R12: 20 | S12: 27.4 | T12: =[24]CF!$D$14 -> 13.5 | U12: =[26]CF!$F14-T12 -> 7.4 | V12: =[25]CF!$J$14-U12-T12 -> 34.5 | W12: =[27]CF!$L$14-T12-U12-V12 -> 42.6 | X12: =[19]CF!$D$14 -> 28.6 | Y12: =[20]CF!$G$14-X12 -> 32.5 | Z12: =[21]CF!J14-X12-Y12 -> 40.3 | AA12: =[22]CF!$M$14-X12-Y12-Z12 -> 47.5 | AB12: =[23]CF!$D$14 -> 49.1
A13: Przychody/koszty z różnic kursowych | B13: Gain/loss on foreign exchange differences | C13: 44.4 | D13: -3.2 | E13: -26.8 | F13: 8 | G13: -3.6 | H13: 4.2 | I13: -9.6 | J13: -7.1 | K13: 15.7 | L13: -7.1 | M13: 2.5 | N13: 1.9 | O13: 21.7 | P13: -8.3 | Q13: 8.5 | R13: -3.3 | S13: 5.6 | T13: =[24]CF!$D$15 -> -8.1 | U13: =[26]CF!$F15-T13 -> -7.5 | V13: =[25]CF!$J$15-U13-T13 -> -11.8 | W13: =[27]CF!$L$15-T13-U13-V13 -> 3.8 | X13: =[19]CF!$D$15 -> -4.9 | Y13: =[20]CF!$G$15-X13 -> -4.2 | Z13: =[21]CF!J15-X13-Y13 -> -8.8 | AA13: =[22]CF!$M$15-X13-Y13-Z13 -> 39.9 | AB13: =[23]CF!$D$15 -> 9.7
A14: Przychody/koszty z tytułu aktywów finansowych | B14: Gain/loss on financial assets [1] | C14: -71.1 | D14: 0 | E14: 0 | F14: 0 | G14: 0 | H14: 0 | I14: 0 | J14: 0 | K14: 0 | L14: 0 | M14: 0 | N14: 0 | O14: 0 | P14: 0 | Q14: 0 | R14: 0 | S14: 0 | T14: 0 | U14: 0 | V14: 0 | W14: 0 | X14: 0 | Y14: 0 | Z14: 0 | AA14: 0 | AB14: 0
A15: Pozostałe przychody/koszty finansowe | B15: Other financial income/expenses | C15: 27 | D15: 0.2 | E15: 10.6 | F15: 5.6 | G15: -4.6 | H15: -4.3 | I15: 8.1 | J15: 10.6 | K15: -3.5 | L15: 18.7 | M15: -4.6 | N15: 9.8 | O15: 3.4 | P15: 8.7 | Q15: -16.9 | R15: 14.6 | S15: 13.9 | T15: =[24]CF!$D$16 -> 3.6 | U15: =[26]CF!$F$16-T15 -> 16.3 | V15: =[25]CF!$J$16-U15-T15 -> -10.3 | W15: =[27]CF!$L$16-T15-U15-V15-11.5 -> -11 | X15: =[19]CF!$D$16 -> 12 | Y15: =[20]CF!$G$16-X15 -> 0.5 | Z15: =[21]CF!$J$16-X15-Y15 -> 11.8 | AA15: =[22]CF!$M$16-X15-Y15-Z15 -> -5.3 | AB15: =[23]CF!$D$16 -> 2.7
A16: (Przychody)/koszty związane z akwizycjami (w tym m.in. wycena zobowiązań PUT, zobowiązań warunkowych, wycena aktywów do wartości godziwej na dzień objęcia kontroli) | B16: Gain/loss related to acquisitions (including, among others, valuation of contingent liabilities, contingent liabilities, fair value assessment of assets at the date of obtaining control) | W16: =[22]CF!$O$17 -> -19 | AA16: =[22]CF!$M$17 -> -30 | AB16: =[23]CF!$D$17 -> 0.5
A17: Zysk na utracie kontroli nad spółkami zależnymi | B17: Gain on lose of control over subsidiaries | C17: -359.2 | D17: 0 | E17: 0 | F17: 0 | G17: 0 | H17: 0 | I17: 0 | J17: 0 | K17: 0 | L17: 0 | M17: 0 | N17: 0 | O17: 0 | P17: 0 | Q17: 0 | R17: 0 | S17: 0 | T17: 0 | U17: 0 | V17: 0 | W17: 0 | X17: =[19]CF!$D$17 -> -0.3 | Y17: =[20]CF!$G$17-X17 -> -2.2 | Z17: =[21]CF!$J$17-X17-Y17 -> 0 | AA17: =[22]CF!$M$18-X17-Y17-Z17 -> 1.9 | AB17: =[23]CF!$D$18 -> -0.5
A18: Odpis z tytułu utraty wartości firmy | B18: Write-off of consolidated goodwill | C18: 100.1 | D18: 0 | E18: 0 | F18: 0 | G18: 0 | H18: 0 | I18: 0 | J18: 0 | K18: 0 | L18: 0 | M18: 0 | N18: 0 | O18: 0 | P18: 0 | Q18: 0 | R18: 0 | S18: 0 | T18: 0 | U18: =[26]CF!$F$18-T18 -> 12.7 | V18: =[25]CF!$J$18-U18-T18 -> 0.1 | W18: =[27]CF!$L$18-T18-U18-V18 -> 5 | X18: =[19]CF!$D$18 -> 0 | Y18: =[20]CF!$G$18-X18 -> 4.9 | Z18: =[21]CF!$J$18-X18-Y18 -> 0 | AA18: =[22]CF!$M$19-X18-Y18-Z18 -> 0 | AB18: =[23]CF!$D$19 -> 0
A19: Zyski/straty na sprzedaży rzeczowych AT, WN oraz nieruchomości inwestycyjnych[1] | B19: Gain/loss on disposal of PPE, IA and investment properties[1] | C19: -5.5 | D19: -0.7 | E19: -0.4 | F19: -0.8 | G19: -2.1 | H19: -0.6 | I19: -1 | J19: -0.7 | K19: -0.4 | L19: -0.5 | M19: -1 | N19: -1 | O19: -0.7 | P19: -2 | Q19: -0.8 | R19: -2.2 | S19: 4 | T19: =[24]CF!$D$19 -> -0.4 | U19: =[26]CF!$F$19-T19 -> -1.9 | V19: =[25]CF!$J$19-U19-T19 -> -16 | W19: =[27]CF!$L$19-T19-U19-V19 -> -11.2 | X19: =[19]CF!$D$19 -> -1.7 | Y19: =[20]CF!$G$19-X19 -> -1.6 | Z19: =[21]CF!$J$19-X19-Y19 -> -1.2 | AA19: =[22]CF!$M$25-X19-Y19-Z19-X24-Y24-Z24 -> -1.6 | AB19: =[23]CF!$D$24 -> -14.2
A20: Zysk na sprzedaży spółki zależnej | B20: Gain on disposal of subsidiary | C20: 0 | D20: 0 | E20: 0 | F20: 0 | G20: -9 | H20: 0 | I20: 0 | J20: 0 | K20: 0 | L20: 0 | M20: 0 | N20: 0 | O20: -0.3 | P20: 0 | Q20: 0 | R20: 0 | S20: 0 | T20: 0 | U20: =[26]CF!$F$20-T20 -> -192.2 | V20: =[25]CF!$J$20-U20-T20 -> -3.5 | W20: =[27]CF!$L$20-T20-U20-V20 -> -11.5 | X20: =[19]CF!$D$20 -> 0 | Y20: 0 | Z20: 0 | AA20: 0 | AB20: 0
A21: Zysk na sprzedaży działalności zaniechanej | B21: Gain on disposal of discontinued operations | D21: 0 | E21: 0 | F21: 0 | G21: 0 | H21: 0 | I21: 0 | J21: 0 | K21: 0 | L21: 0 | M21: 0 | N21: 0
A22: Koszty trans. z pracownikami rozliczanych w formie instr. kapitałowych | B22: Costs of equity-settled employee payment transactions | C22: 18.8 | D22: 5.4 | E22: 6.3 | F22: 5.3 | G22: 4.6 | H22: 5.1 | I22: 3.8 | J22: 4.3 | K22: 3.4 | L22: 13.3 | M22: -2.7 | N22: 4.9 | O22: 16 | P22: 15 | Q22: 14.3 | R22: 11.9 | S22: 17.4 | T22: =[24]CF!$D$22 -> 18.3 | U22: =[26]CF!$F$22-T22 -> 13.9 | V22: =[25]CF!$J$22-U22-T22 -> 12.4 | W22: =[27]CF!$L$22-T22-U22-V22 -> 20.2 | X22: =[19]CF!$D$22 -> 19.3 | Y22: =[20]CF!$G$22-X22 -> 19.9 | Z22: =[21]CF!$J$22-X22-Y22 -> 18.2 | AA22: =[22]CF!$M$23-X22-Y22-Z22 -> 23.3 | AB22: =[23]CF!$D$22 -> 17.8
A23: Odpis aktualizujący wartości niematerialne, rzeczowe aktywa trwałe i nieruchomości inwestycyjne | B23: Impairment of intangible and tangible fixed assets and investment property | C23: 0 | D23: 0 | E23: 0 | F23: 0 | G23: 0 | H23: 0 | I23: 0 | J23: 0 | K23: 0 | L23: 0 | M23: 0 | N23: 0 | O23: 7.9 | P23: 0 | Q23: 0 | R23: 0 | S23: 14.3 | T23: =[24]CF!$D$23 -> 0 | U23: =[26]CF!$F$23-T23 -> 32 | V23: =[25]CF!$J$23-U23-T23 -> -5.2 | W23: =[27]CF!$L$23-T23-U23-V23 -> 10.8 | X23: =[19]CF!$D$23 -> -1.3 | Y23: =[20]CF!$G$23-X23 -> 1.1 | Z23: =[21]CF!$J$23-X23-Y23 -> 1 | AA23: =[22]CF!$M$24-X23-Y23-Z23 -> 2.9 | AB23: =[23]CF!$D$23 -> 0.2
A24: Zyski/straty z tytułu likwidacji rzeczowych aktywów trwałych i wartości niematerialnych | B24: Profit / loss on liquidation of FA and IA | C24: 8.8 | D24: 0 | E24: 0.1 | F24: 0.4 | G24: 5.6 | H24: 0 | I24: 1.6 | J24: 1.7 | K24: 0.6 | L24: 0.7 | M24: 0.5 | N24: 1.5 | O24: 4.1 | P24: 0.2 | Q24: 0 | R24: 0.2 | S24: 0.4 | T24: =[24]CF!$D$24 -> 0.1 | U24: =[26]CF!$F$24-T24 -> 0.7 | V24: =[25]CF!$J$24-U24-T24 -> 0.4 | W24: =[27]CF!$L$24-T24-U24-V24 -> 0.5 | X24: =[19]CF!$D$24 -> 0.1 | Y24: =[20]CF!$G$24-X24 -> 0.7 | Z24: =[21]CF!$J$24-X24-Y24 -> 1 | AA24: 0 | AB24: 0
A25: Zyski/straty z modyfikacji umów leasingowych | B25: Profit / loss on lease modifications | X25: =[19]CF!$D$25 -> -4.7 | Y25: =[20]CF!$G$25-X25 -> 0.2 | Z25: =[21]CF!$J$25-X25-Y25 -> -1 | AA25: =[22]CF!$M$26-X25-Y25-Z25 -> 5.5 | AB25: =[23]CF!$D$25 -> 0.1
A26: Zyski/straty z tytułu hiperinflacji | B26: Profit/loss due to hyperinflation | U26: =[26]CF!$F$25 -> -20.3 | V26: =[25]CF!$J$25-U26 -> -8.9 | W26: =[27]CF!$L$25-T26-U26-V26 -> 2.9 | X26: =[19]CF!$D$26 -> -9.9 | Y26: =[20]CF!$G$26-X26 -> 4.7 | Z26: =[21]CF!$J$26-X26-Y26 -> -17.7 | AA26: =[22]CF!$M$28-X26-Y26-Z26 -> 2 | AB26: =[23]CF!$D$27 -> -10.4
A27: Koszt dywidend przypisany udziałowcom niekontrolującym | B27: Dividend costs for NCI | W27: =[22]CF!$O$29 -> 30.5 | X27: =[23]CF!$Q$28 -> 0 | AA27: =[22]CF!$M$29 -> 20.1 | AB27: =[23]CF!$D$28 -> 0
A28: Pozostałe korekty zysku brutto | B28: Other pre-tax profit adjustments | C28: 13.9 | D28: -3.7 | E28: 0.3 | F28: 1.8 | G28: 1.6 | H28: 0 | I28: -0.2 | J28: 1.3 | K28: -0.9 | L28: 0.6 | M28: 3.1 | N28: 2.2 | O28: -1.7 | P28: 0.3 | Q28: 0.5 | R28: 1.3 | S28: -13.5 | T28: =[24]CF!$D$25 -> 0.5 | U28: =[26]CF!$F$26-T28 -> -1.7 | V28: =[25]CF!$J$26-U28-T28 -> -0.6 | W28: =[27]CF!$L$26-T28-U28-V28 -> -0.8 | X28: =[19]CF!$D$27 -> -0.5 | Y28: =[20]CF!$G$27-X28 -> 0.4 | Z28: =[21]CF!$J$27-X28-Y28 -> 0.1 | AA28: =[22]CF!$M$30-X28-Y28-Z28 -> -2 | AB28: =[23]CF!$D$29 -> -0.2
A29: Środki pieniężne netto wygenerowane z działalności operacyjnej | B29: Cash generated from operating activities | C29: =C9+C7 -> 863.1 | D29: 182.4 | E29: 208.2 | F29: 195.8 | G29: 591.4 | H29: 367 | I29: 205 | J29: 401.3 | K29: 796.4 | L29: 387.7 | M29: 482.3 | N29: 483.6 | O29: 877.7 | P29: 142.1 | Q29: 451.8 | R29: 422.2 | S29: 869.9 | T29: 448.5 | U29: 304.2 | V29: 527.3 | W29: =W9+W7 -> 970.3 | X29: 407.4 | Y29: =Y9+Y7 -> 537 | Z29: 674 | AA29: =AA9+AA7 -> 1351.8 | AB29: 443.5
A30: Zapłacony podatek dochodowy | B30: Corporate income tax paid | C30: -171.7 | D30: -41.8 | E30: -21.9 | F30: -40.7 | G30: -72.7 | H30: -68.5 | I30: -73.6 | J30: -39.9 | K30: -86.4 | L30: -57.7 | M30: -62.1 | N30: -113.6 | O30: -37.2 | P30: -60.3 | Q30: -67.7 | R30: -66.8 | S30: -98.2 | T30: =[24]CF!$D$27 -> -73.5 | U30: =[26]CF!$F$28-T30 -> -119.2 | V30: =[25]CF!$J$28-U30-T30 -> -99.2 | W30: =[27]CF!$L$28-T30-U30-V30 -> -109.6 | X30: =[19]CF!$D$29 -> -100.5 | Y30: =[20]CF!$G$29-X30 -> -160.9 | Z30: =[21]CF!$J$29-X30-Y30 -> -113.1 | AA30: =[22]CF!$M$32-X30-Y30-Z30 -> -106.9 | AB30: =[23]CF!$D$31 -> -99.9
A31: Środki pieniężne netto z działalności operacyjnej | B31: Net cash provided by (used in) operating activities | C31: =C29+C30 -> 691.4 | D31: =D29+D30 -> 140.6 | E31: 186.3 | F31: 155.1 | G31: 518.7 | H31: 298.5 | I31: 131.4 | J31: 361.4 | K31: 710 | L31: =L29+L30 -> 330 | M31: 420.2 | N31: 370 | O31: 840.5 | P31: 81.8 | Q31: 384.1 | R31: 355.4 | S31: 771.7 | T31: =T29+T30 -> 375 | U31: 185 | V31: =V29+V30 -> 428.1 | W31: 860.7 | X31: =X29+X30 -> 306.9 | Y31: 376.1 | Z31: =Z29+Z30 -> 560.9 | AA31: 1244.9 | AB31: =AB29+AB30 -> 343.6
A33: Przepływy środków pieniężnych z działalności inwestycyjnej | B33: Cash flows – investing activities
A34: Wpływy ze sprzedaży rzeczowych AT i WN [1] oraz NI [5] | B34: Disposal of PPE and IA [1] and IP [5] | C34: 30.3 | D34: 1.7 | E34: 0.7 | F34: 1.1 | G34: 4.4 | H34: 8.2 | I34: 10 | J34: 6.1 | K34: 3.9 | L34: 2.3 | M34: 2.7 | N34: 2.4 | O34: 3.2 | P34: 4.6 | Q34: 8.7 | R34: 2.6 | S34: 15.3 | T34: =[24]CF!$D$32 -> 2.2 | U34: =[26]CF!$F$33-T34 -> 9.8 | V34: =[25]CF!$J$33-U34-T34 -> 24 | W34: =[27]CF!$L$33-T34-U34-V34 -> 9.5 | X34: =[19]CF!$D$34 -> 5.7 | Y34: =[20]CF!$G$34-X34 -> 8.7 | Z34: =[21]CF!$J$34-X34-Y34 -> 2.8 | AA34: =[22]CF!$M$37-X34-Y34-Z34 -> 2.3 | AB34: =[23]CF!$D$36 -> 33
A35: Nabycie rzeczowych AT i WN [1] oraz NI [5] | B35: Acquisition of PPE and IA [1] | C35: -225.9 | D35: -49.3 | E35: -60.2 | F35: -58 | G35: -72.8 | H35: -72.5 | I35: -69.6 | J35: -98.8 | K35: -78.8 | L35: -88.9 | M35: -66.8 | N35: -73.7 | O35: -84.6 | P35: -61.4 | Q35: -68 | R35: -68.2 | S35: -100.9 | T35: =[24]CF!$D$46 -> -99.9 | U35: =[26]CF!$F$47-T35 -> -89.8 | V35: =[25]CF!$J$47-U35-T35 -> -87.6 | W35: =[27]CF!$L$47-T35-U35-V35 -> -145.6 | X35: =[19]CF!$D$48 -> -98.6 | Y35: =[20]CF!$G$48-X35 -> -82.6 | Z35: =[21]CF!$J$48-X35-Y35 -> -68.7 | AA35: =[22]CF!$M$51-X35-Y35-Z35 -> -92.2 | AB35: =[23]CF!$D$50 -> -68.8
A36: Wydatki z tytułu nabycia jedn. zależnych i stowarzyszonych | B36: Expenditures for the acquisition of subsidiaries and associates | C36: -675.9 | D36: -110.8 | E36: -37.9 | F36: -16 | G36: -83.9 | H36: -104.8 | I36: -48.5 | J36: -92.2 | K36: -82.7 | L36: -0.8 | M36: -66.4 | N36: -153.4 | O36: -302 | P36: -20.1 | Q36: -304.6 | R36: -54.1 | S36: -107.7 | T36: =[19]CF!$Q$50 -> -125.6 | U36: =[26]CF!$F$49-T36 -> -111.8 | V36: =[25]CF!$J$49-U36-T36 -> -80.8 | W36: =[27]CF!$L$49-T36-U36-V36+4 -> -13.5 | X36: =[19]CF!$D$50 -> -129.6 | Y36: =[20]CF!$G$50-X36 -> -114.8 | Z36: =[21]CF!$J$50-X36-Y36 -> -8.7 | AA36: =[22]CF!$M$53-X36-Y36-Z36 -> -107.5 | AB36: =[23]CF!$D$51 -> -10.3
A37: Środki pieniężne i ich ekwiwalenty w nabytych jednostkach zależnych | B37: Cash and cash equivalents in subsidiaries acquired | C37: 917.1 | D37: 0 | E37: 0 | F37: 0 | G37: 0 | H37: 0 | I37: 0 | J37: 0 | K37: 0 | L37: 0 | M37: 0 | N37: 0 | O37: 0 | P37: 0 | Q37: 0 | R37: 0 | S37: 0 | T37: 0 | U37: 0 | V37: 0 | W37: 0 | X37: 0 | Y37: 0 | Z37: 0 | AA37: 0 | AB37: 0
A38: Wpływy ze sprzedaży akcji/udziałów w jednostkach powiązanych | B38: Proceeds from sale of investment in subsidiaries | C38: 340.3 | D38: 3.7 | E38: 4.6 | F38: 1.5 | G38: 11.4 | H38: 0.4 | I38: 3.9 | J38: 5.7 | K38: 2.5 | L38: 1.8 | M38: 26.2 | N38: 4.2 | O38: -0.3 | P38: 2.7 | Q38: 22.1 | R38: 5 | S38: 0.8 | T38: =[24]CF!$D$36 -> 2.4 | U38: =[26]CF!$F$37-T38 -> 156.4 | V38: =[25]CF!$J$37-U38-T38 -> 41.7 | W38: =[27]CF!$L$37-T38-U38-V38 -> 43.5 | X38: =[19]CF!$D$38 -> 1 | Y38: =[20]CF!$G$38-X38 -> 2.7 | Z38: =[21]CF!$J$38-X38-Y38 -> 8.1 | AA38: =[22]CF!$M$41-X38-Y38-Z38 -> 2 | AB38: =[23]CF!$D$39 -> 0.4
A39: Środki pieniężne i ich ekwiwalenty w sprzedanych jednostkach zależnych (działalność zaniechana) | B39: Cash and cash equivalents in subsidiaries disposed of (discontinued operations) | C39: -725.8 | D39: 0 | E39: 0 | F39: 0 | G39: 6.4 | H39: 0 | I39: 0 | J39: 0 | K39: 0 | L39: 0 | M39: 0 | N39: 0 | O39: 0 | P39: 0 | Q39: 0 | R39: 0 | S39: 0 | T39: 0 | U39: 0 | V39: 0 | W39: 0 | X39: 0 | Y39: 0 | Z39: 0 | AA39: 0 | AB39: 0
A40: Wpływy ze sprzedaży/rozliczenia aktywów finansowych [2] / [6] | B40: Disposal/settlement of financial assets [2] / [6] | C40: 189.7 | D40: 1.2 | E40: 6.2 | F40: 1.3 | G40: 7.9 | H40: 2.9 | I40: 6.7 | J40: -0.8 | K40: 4.3 | L40: 23.5 | M40: -23.3 | N40: 21.1 | O40: 90 | P40: 0 | Q40: 0 | R40: 0 | S40: 0.3 | T40: =[24]CF!$D$37 -> 0 | U40: =[26]CF!$F$38 -> 0 | V40: =[25]CF!$J$38-U40-T40 -> 1.1 | W40: =[27]CF!$L$38-T40-U40-V40 -> 5.5 | X40: =[19]CF!$D$39 -> 4.7 | Y40: =[20]CF!$G$39+[20]CF!$G$41-X40 -> 1 | Z40: =[21]CF!$J$39+[21]CF!$J$41-X40-Y40 -> 1.1 | AA40: =[22]CF!$M$42+[22]CF!$M$43-Y40-Z40-X40 -> 0.7 | AB40: =[23]CF!$D$40 -> 0.1
A41: Wydatki na nabycie/wydatki z tytułu rozliczenia aktywów finansowych [3] / [7] | B41: Acquisition/settlement of financial assets [3] / [7] | C41: -26.2 | D41: -2 | E41: 0.6 | F41: -1.5 | G41: -14.8 | H41: -0.1 | I41: -0.6 | J41: 0.6 | K41: -90.2 | L41: -2.5 | M41: 17.7 | N41: -17.7 | O41: -0.8 | P41: 0 | Q41: -0.6 | R41: -19.1 | S41: 0.8 | T41: =[24]CF!$D$49 -> 0 | U41: =[26]CF!$F$50-T41+[26]CF!$F$51 -> -0.8 | V41: =[25]CF!$J$50-U41-T41 -> -67.6 | W41: =[27]CF!$L$50+[27]CF!$L$51-T41-U41-V41 -> -2.2 | X41: =[19]CF!$D$51+[19]CF!$D$52 -> -1.5 | Y41: =[20]CF!$G$51+[20]CF!$G$52-X41 -> -6.4 | Z41: =[21]CF!$J$51-X41-Y41 -> -4 | AA41: =[22]CF!$M$54+[22]CF!$M$55+[22]CF!$M$56-X41-Y41-Z41 -> -9.8 | AB41: =[23]CF!$D$52 -> -4.1
A42: Środki pieniężne i ich ekwiwalenty w sprzedanych jednostkach zależnych (działalność zaniechana) | C42: 0 | D42: 0 | E42: 0 | F42: 0 | G42: 0 | H42: 0 | I42: 0 | J42: 0 | K42: 0 | L42: 0 | M42: 0 | N42: 0
A43: Wpływ ze sprzedaży pozostałych instrumentów dłużnych [8] | B43: Disposal of other debt instruments [8] | C43: 0 | D43: 0 | E43: 0 | F43: 1.3 | G43: 2.8 | H43: 0 | I43: 3.5 | J43: 0 | K43: 3.1 | L43: 10.6 | M43: 2 | N43: 0 | O43: 0.1 | P43: 0 | Q43: 0 | R43: 0 | S43: 0 | T43: 0 | U43: 0 | V43: 0 | W43: 0 | X43: 0 | Y43: 0 | Z43: 0 | AA43: 0 | AB43: 0
A44: Wydatki na nabycie inwestycji w instrumenty dłużne [9] | B44: Acquisition of ivestments in debt instruments measured at amortised cost [9] | C44: 0 | D44: -1.8 | E44: 0 | F44: -9.8 | G44: 0 | H44: -4.5 | I44: 0 | J44: -0.1 | K44: -11.6 | L44: -1.8 | M44: -0.1 | N44: 0 | O44: 0 | P44: 0 | Q44: 0 | R44: 0 | S44: 0 | T44: =[24]CF!$D$51 -> -1.2 | U44: =[26]CF!$F$52-T44 -> 1.1 | V44: =[25]CF!$J$52-U44-T44 -> -0.2 | W44: =[27]CF!$L$52-T44-U44-V44 -> -0.3 | X44: =[19]CF!$D$53 -> 0 | Y44: =[20]CF!$G$53-X44 -> 0 | Z44: 0 | AA44: 0 | AB44: 0
A45: Wpływ ze sprzedaży pozostałych aktywów finansowych | B45: Proceeds from sale of other financial assets | C45: 0 | D45: 0 | E45: 0 | F45: 0 | G45: 0 | H45: 0 | I45: 0 | J45: 0 | K45: 0 | L45: 0 | M45: 0 | N45: 0
A46: Pożyczki udzielone (w tym zawarte lokaty) | B46: Loans granted | C46: -74.5 | D46: -11.7 | E46: -7 | F46: -0.3 | G46: -64.6 | H46: -0.4 | I46: -3.9 | J46: -9.3 | K46: -23.4 | L46: -10.8 | M46: -5.9 | N46: 4.2 | O46: -162.3 | P46: -0.5 | Q46: -6.1 | R46: -103.5 | S46: -24.3 | T46: =[24]CF!$D$52 -> -63 | U46: =[26]CF!$F$53-T46 -> -37.6 | V46: =[25]CF!$J$53-U46-T46 -> -252 | W46: =[27]CF!$L$53-T46-U46-V46 -> -3 | X46: =[19]CF!$D$54 -> -334.6 | Y46: =[20]CF!$G$55-X46 -> -98.2 | Z46: =[21]CF!$J$55-X46-Y46 -> -3.6 | AA46: =[22]CF!$M$58-X46-Y46-Z46 -> 2.3 | AB46: =[23]CF!$D$57 -> -266.1
A47: Pożyczki spłacone (w tym zakończone lokaty) | B47: Loans collected | C47: 99.5 | D47: 14.9 | E47: 13.5 | F47: 5.9 | G47: 1 | H47: 30.2 | I47: 1.1 | J47: 9.4 | K47: 20.3 | L47: 1.2 | M47: 30.3 | N47: 30.9 | O47: 20.4 | P47: 0.6 | Q47: 88.8 | R47: 86.8 | S47: 86.9 | T47: =[24]CF!$D$41 -> 59 | U47: =[26]CF!$F$42-T47 -> 1.4 | V47: =[25]CF!$J$42-U47-T47 -> 245.7 | W47: =[27]CF!$L$42-T47-U47-V47 -> 79 | X47: =[19]CF!$D$43 -> 89 | Y47: =[20]CF!$G$43-X47 -> 45.3 | Z47: =[21]CF!$J$43-X47-Y47 -> 66.9 | AA47: =[22]CF!$M$46-X47-Y47-Z47 -> 3.1 | AB47: =[23]CF!$D$45 -> 256
A48: Otrzymane odsetki | B48: Interest received | C48: 15.4 | D48: 5.6 | E48: 0.7 | F48: 1.9 | G48: 0.4 | H48: 5.3 | I48: 0 | J48: 0.8 | K48: 3.1 | L48: 3.7 | M48: 0.7 | N48: 0.1 | O48: 1.6 | P48: 2.7 | Q48: 0.1 | R48: 1.3 | S48: 0.2 | T48: =[24]CF!$D$42 -> 1 | U48: =[26]CF!$F$43-T48 -> 4.4 | V48: =[25]CF!$J$43-U48-T48 -> -1.2 | W48: =[27]CF!$L$43-T48-U48-V48 -> -1.6 | X48: =[19]CF!$D$44 -> 3.2 | Y48: =[20]CF!$G$44-X48 -> 6 | Z48: =[21]CF!$J$44-X48-Y48 -> 3.5 | AA48: =[22]CF!$M$47-X48-Y48-Z48 -> 7.5 | AB48: =[23]CF!$D$46 -> 4.6
A49: Dywidendy otrzymane | B49: Dividends received | C49: 1.6 | D49: 0 | E49: 0.9 | F49: -0.1 | G49: 0.9 | H49: 0 | I49: 1.2 | J49: 0.4 | K49: 0 | L49: 0 | M49: 13.5 | N49: -0.1 | O49: 0.7 | P49: 0 | Q49: 10.3 | R49: 0.3 | S49: 0 | T49: =[24]CF!$D$43 -> 0.3 | U49: =[26]CF!$F$44-T49 -> 1.8 | V49: =[25]CF!$J$44-U49-T49 -> 1.1 | W49: =[27]CF!$L$44-T49-U49-V49 -> 0 | X49: =[19]CF!$D$45 -> 0.2 | Y49: =[20]CF!$G$45-X49 -> -0.1 | Z49: =[21]CF!$J$45-X49-Y49 -> 0.1 | AA49: =[22]CF!$M$48-X49-Y49-Z49 -> 0 | AB49: =[23]CF!$D$47 -> 0.5
A50: Pozostałe przepływy z działalności inwestycyjnej | B50: Other cash flows from investing activities | C50: 8.6 | D50: -2.2 | E50: -1.5 | F50: -3.4 | G50: 7 | H50: -8 | I50: 7.6 | J50: -11 | K50: 0.9 | L50: 4.7 | M50: 2.4 | N50: 2.3 | O50: 0 | P50: -4.5 | Q50: -10.8 | R50: 10.2 | S50: 2.2 | T50: =[24]CF!$D$44 -> 7.6 | U50: =[26]CF!$F$45-T50 -> -1.5 | V50: =[25]CF!$J$45-U50-T50 -> 1.7 | W50: =[27]CF!$L$45+[27]CF!$L$54-T50-U50-V50 -> -1.776356839e-15 | X50: =[19]CF!$D$46+[19]CF!$D$55 -> 0 | Y50: =[19]CF!$D$46+[19]CF!$D$55 -> 0 | Z50: =[21]CF!$J$46+[21]CF!$J$56-X50-Y50 -> -4.6 | AA50: =[22]CF!$M$59-Z50 -> 4.4 | AB50: =[23]CF!$D$58 -> -0.2
A51: Środki pieniężne netto wykorzystane w działalności inwestycyjnej | B51: Net cash provided by (used in) investing activities | C51: =SUM(C34:C50) -> -125.8 | D51: =SUM(D34:D50) -> -150.7 | E51: -79.4 | F51: -76.1 | G51: -193.9 | H51: -143.3 | I51: -88.6 | J51: -189.2 | K51: -248.6 | L51: =SUM(L34:L50) -> -57 | M51: -67 | N51: -179.7 | O51: -434 | P51: -75.9 | Q51: -260.1 | R51: -138.7 | S51: -126.4 | T51: =SUM(T34:T50) -> -217.2 | U51: -66.6 | V51: =SUM(V34:V50) -> -174.1 | W51: -28.7 | X51: =SUM(X34:X50) -> -460.5 | Y51: -238.4 | Z51: =SUM(Z34:Z50) -> -7.1 | AA51: -187.2 | AB51: =SUM(AB34:AB50) -> -54.9
A53: Przepływy środków pieniężnych z działalności finansowej | B53: Cash flows – financing activities
A54: Wpływ z tytułu emisji kapitału | B54: Proceeds from issue of capital | C54: 0 | D54: 0 | E54: 0 | F54: 90.7 | G54: 5.8 | H54: 0 | I54: 0 | J54: 0 | K54: 0 | L54: 0 | M54: 0 | N54: 0 | O54: 424.6 | P54: 0 | Q54: 0 | R54: 0 | S54: 0 | T54: =[24]CF!$D$58 -> 0 | U54: =[26]CF!$F59-T54 -> 0 | V54: =[25]CF!$J$59-U54-T54 -> 0 | W54: =[27]CF!$L$59-T54-U54-V54 -> 0 | X54: =[19]CF!$D$60 -> 11.5 | Y54: =[20]CF!$G$61-X54 -> -0.3 | Z54: =[21]CF!$J$61-X54-Y54 -> 20.7 | AA54: =[22]CF!$M$64-X54-Y54-Z54 -> -0.4 | AB54: =[23]CF!$D$63 -> 0
A55: Nabycie akcji własnych | B55: Purchase of treasury shares | C55: 0 | D55: 0 | E55: 0 | F55: 0 | G55: 0 | H55: 0 | I55: 0 | J55: 0 | K55: 0 | L55: 0 | M55: 0 | N55: 0 | O55: 0 | P55: 0 | Q55: 0 | R55: 0 | S55: 0 | T55: 0 | U55: 0 | V55: 0 | W55: 0 | X55: 0 | Y55: 0 | Z55: =[21]CF!$J$68 -> -1187.6 | AA55: =[22]CF!$M$71-Z55 -> 1.4 | AB55: =[23]CF!$D$70 -> 0
A56: Wpływy z realizacji programu opcji pracowniczych | B56: Proceeds from share-based payments | C56: 11.9 | D56: 0 | E56: 0.4 | F56: 2.3 | G56: -1.8 | H56: 0 | I56: 0.4 | J56: 1.6 | K56: 3.6 | L56: 5.5 | M56: 4.8 | N56: 10 | O56: 0.4 | P56: 1.6 | Q56: 0.9 | R56: 1.6 | S56: 3.9 | T56: =[24]CF!$D$59 -> 0 | U56: =[26]CF!$F60-T56 -> 0.2 | V56: =[25]CF!$J$60-U56-T56 -> 0.1 | W56: =[27]CF!$L$60-T56-U56-V56 -> -0.3 | X56: =[19]CF!$D$61 -> 0 | Y56: =[20]CF!$G$62-X56 -> 0 | Z56: =[21]CF!$J$62-X56-Y56 -> 0 | AA56: 0 | AB56: =[23]CF!$D$64 -> 0
A57: Wydatki z tytułu nabycia udziałów niekontrolujących | B57: Acquisition of non-controlling interests | C57: -4.7 | D57: -9.2 | E57: -1 | F57: -2.7 | G57: -45.1 | H57: 0 | I57: -4.6 | J57: -7.6 | K57: -16.8 | L57: -87.3 | M57: -12.5 | N57: 1.8 | O57: -17.3 | P57: -0.3 | Q57: -8.9 | R57: -67.8 | S57: -4.7 | T57: =[24]CF!$D$65 -> -34.4 | U57: =[26]CF!$F$66-T57 -> -30 | V57: =[25]CF!$J$66-U57-T57 -> -13.7 | W57: =[27]CF!$L$66-T57-U57-V57 -> -8.5 | X57: =[19]CF!$D$67 -> -12.4 | Y57: =[20]CF!$G$68-X57 -> -34.3 | Z57: =[21]CF!$J$69-X57-Y57 -> -20.9 | AA57: =[22]CF!$M$72-X57-Y57-Z57 -> -43.8 | AB57: =[23]CF!$D$71 -> -24.2
A58: Wpływy z tytułu zaciągnięcia pożyczek/kredytów | B58: Proceeds from bank loans and borrowings | C58: 425.8 | D58: 33.3 | E58: 106 | F58: 128.6 | G58: 124.2 | H58: 234.8 | I58: 194.3 | J58: 46.8 | K58: 79.4 | L58: 534.7 | M58: 64.2 | N58: 26 | O58: 4.9 | P58: 24.7 | Q58: 176.1 | R58: 254.4 | S58: -133.4 | T58: =[24]CF!$D$60 -> 465.6 | U58: =[26]CF!$F$61-T58 -> -7.8 | V58: =[25]CF!$J$61-U58-T58 -> 61.5 | W58: =[27]CF!$L$61-T58-U58-V58 -> 183.9 | X58: =[19]CF!$D$62 -> 118.1 | Y58: =[20]CF!$G$63-X58 -> 152 | Z58: =[21]CF!$J$63-X58-Y58 -> 969.9 | AA58: =[22]CF!$M$66-X58-Y58-Z58 -> 22.7 | AB58: =[23]CF!$D$65 -> 77.1
A59: Wpływy z tytułu emisji dłużnych papierów wartościowych | B59: Proceeds from the issuance of debt securities | C59: 3.4 | D59: 153.7 | E59: 5.9 | F59: 2.3 | G59: 2.4 | H59: 0 | I59: 311.4 | J59: 7.3 | K59: 2.2 | L59: 0 | M59: 302.3 | N59: -6 | O59: -1.6 | P59: 0 | Q59: 190.6 | R59: 2.9 | S59: 124.8 | T59: =[24]CF!$D$61 -> 0 | U59: =[26]CF!$F$62 -> 0 | V59: =[25]CF!$J$62-U59-T59 -> 649 | W59: =[27]CF!$L$62-T59-U59-V59 -> 232.6 | X59: =[19]CF!$D$63 -> 0 | Y59: =[20]CF!$G$64 -> 0 | Z59: 0 | AA59: 0 | AB59: 0
A60: Wykup dłużnych papierów wartościowych | B60: Repayment/redemption of debt securities | C60: -14.1 | D60: 0 | E60: -33 | F60: -0.5 | G60: -0.5 | H60: -80.4 | I60: -0.1 | J60: -38.3 | K60: -0.5 | L60: -102.7 | M60: -0.9 | N60: -37.2 | O60: -37.7 | P60: -75.5 | Q60: -38.8 | R60: -1.4 | S60: -65.4 | T60: =[24]CF!$D$66 -> -82.4 | U60: =[26]CF!$F$67-T60 -> -46.7 | V60: =[25]CF!$J$67-U60-T60 -> -4.4 | W60: =[27]CF!$L$67-T60-U60-V60 -> -107.6 | X60: =[19]CF!$D$68 -> -86.4 | Y60: =[20]CF!$G$69-X60 -> -38.4 | Z60: =[21]CF!$J$70-X60-Y60 -> -37.5 | AA60: =[22]CF!$M$73-X60-Y60-Z60 -> -89 | AB60: =[23]CF!$D$72 -> -116.3
A61: Spłata pożyczek/kredytów | B61: Repayment of bank loans and borrowings | C61: -306.1 | D61: -82.2 | E61: -42.5 | F61: -41.5 | G61: -136.1 | H61: -137.1 | I61: -138.3 | J61: -67 | K61: -96.7 | L61: -110.6 | M61: -374.4 | N61: -81.3 | O61: -165 | P61: -81.3 | Q61: -102 | R61: -94.5 | S61: -127.2 | T61: =[24]CF!$D$67 -> -100.9 | U61: =[26]CF!$F68-T61 -> -122 | V61: =[25]CF!$J$68-U61-T61 -> -259 | W61: =[27]CF!$L$68-T61-U61-V61 -> -331.9 | X61: =[19]CF!$D$69 -> -133.7 | Y61: =[20]CF!$G$70-X61 -> -125.5 | Z61: =[21]CF!$J$71-X61-Y61 -> -60.7 | AA61: =[22]CF!$M$74-X61-Y61-Z61 -> -191.3 | AB61: =[23]CF!$D$73 -> -123.5
A62: Spłata zobowiązań z tytułu leasingu | B62: Lease liabilities paid | C62: -28.5 | D62: -6.6 | E62: -7.5 | F62: -7.8 | G62: -7.4 | H62: -48.2 | I62: -50.8 | J62: -51.4 | K62: -56.1 | L62: -55.2 | M62: -59.7 | N62: -49.9 | O62: -57.4 | P62: -50.4 | Q62: -50 | R62: -49.1 | S62: -89.8 | T62: =[24]CF!$D$68 -> -62.6 | U62: =[26]CF!$F69-T62 -> -71.6 | V62: =[25]CF!$J$69-U62-T62 -> -82.2 | W62: =[27]CF!$L$69-T62-U62-V62 -> -79.4 | X62: =[19]CF!$D$70 -> -77.7 | Y62: =[20]CF!$G$71-X62 -> -73.5 | Z62: =[21]CF!$J$72-X62-Y62 -> -73.2 | AA62: =[22]CF!$M$75-X62-Y62-Z62 -> -70.6 | AB62: =[23]CF!$D$74 -> -67.6
A63: Zapłacone odsetki (w tym z tytułu leasingu) | B63: Interest paid | C63: -39.8 | D63: -13.5 | E63: -12.4 | F63: -7.3 | G63: -7.4 | H63: -26.3 | I63: -12.8 | J63: -25.6 | K63: -18.8 | L63: -23 | M63: -19.2 | N63: -22.8 | O63: -24 | P63: -15.4 | Q63: -19.9 | R63: -20.3 | S63: -25.4 | T63: =[24]CF!$D$69 -> -14.1 | U63: =[26]CF!$F70-T63 -> -19.4 | V63: =[25]CF!$J$70-U63-T63 -> -22.5 | W63: =[27]CF!$L$70-T63-U63-V63 -> -34.7 | X63: =[19]CF!$D$71 -> -36.6 | Y63: =[20]CF!$G$72-X63 -> -29.9 | Z63: =[21]CF!$J$73-X63-Y63 -> -23.9 | AA63: =[22]CF!$M$76-X63-Y63-Z63 -> -62.8 | AB63: =[23]CF!$D$75 -> -51.8
A64: Dywidendy wypłacone przez Jednostkę Dominującą | B64: Dividends paid out to the shareholders of Parent Company | C64: -249.8 | D64: 0 | E64: -249.8 | F64: 0 | G64: 0 | H64: 0 | I64: -254.8 | J64: 0 | K64: 0 | L64: 0 | M64: -249.8 | N64: 0 | O64: 0 | P64: 0 | Q64: -258.1 | R64: 0 | S64: 0 | T64: =[24]CF!$D$70 -> 0 | U64: =[26]CF!$F71-T64 -> -278.9 | V64: =[25]CF!$J$71-U64-T64 -> 0 | W64: =[27]CF!$L$71-T64-U64-V64 -> 0 | X64: =[19]CF!$D$72 -> 0 | Y64: =[20]CF!$G$73-X64 -> -290.5 | Z64: =[21]CF!$J$74-X64-Y64 -> 0 | AA64: =[22]CF!$M$77-X64-Y64-Z64 -> 0 | AB64: =[23]CF!$D$76 -> 0
A65: Dywidendy wypłacone dla udziałowców niekontrolujących | B65: Dividends paid out to non-controlling interests | C65: -168.9 | D65: -34.8 | E65: -65 | F65: -55.8 | G65: -40.2 | H65: -59.5 | I65: -61.1 | J65: -96.1 | K65: -34.7 | L65: -70.5 | M65: -101.4 | N65: -94.7 | O65: -48.5 | P65: -63.1 | Q65: -150.9 | R65: -134 | S65: -41 | T65: =[24]CF!$D$71 -> -11.4 | U65: =[26]CF!$F72-T65 -> -258.3 | V65: =[25]CF!$J$72-U65-T65 -> -249.6 | W65: =[27]CF!$L$72-T65-U65-V65 -> -71.4 | X65: =[19]CF!$D$73 -> -12.6 | Y65: =[20]CF!$G$74-X65 -> -216.2 | Z65: =[21]CF!$J$75-X65-Y65 -> -173.7 | AA65: =[22]CF!$M$78-X65-Y65-Z65 -> -8.8 | AB65: =[23]CF!$D$77 -> -19.6
A66: Dotacje otrzymane [4] | B66: Grants received [4] | C66: 9.8 | D66: 0 | E66: 0 | F66: 0 | G66: 1 | H66: 0 | I66: 2.3 | J66: 2.8 | K66: 0 | L66: 3.4 | M66: 2.2 | N66: 1.1 | O66: 4.4 | P66: 2.9 | Q66: -0.1 | R66: 0.7 | S66: 0.4 | T66: =[24]CF!$D$62 -> 0.2 | U66: =[26]CF!$F$63-T66 -> 1.1 | V66: =[25]CF!$J$63-U66-T66 -> 0.3 | W66: =[27]CF!$L$63-T66-U66-V66 -> 1.8 | X66: =[19]CF!$D$64 -> 0.2 | Y66: =[20]CF!$G$65-X66 -> 0.6 | Z66: =[21]CF!$J$65-X66-Y66 -> 0.1 | AA66: =[22]CF!$M$68-X66-Y66-Z66 -> 0.5 | AB66: =[23]CF!$D$67 -> 0
A67: Dotacje zwrócone | B67: Grants returned | C67: 0 | D67: 0 | E67: 0 | F67: 0 | G67: -9.5 | H67: 0 | I67: 0 | J67: 0 | K67: 0 | L67: 0 | M67: 0 | N67: 0 | O67: 0 | P67: 0 | Q67: 0 | R67: 0 | S67: 0 | T67: 0 | U67: 0 | V67: 0 | W67: 0 | X67: 0 | Y67: 0 | Z67: 0 | AA67: 0 | AB67: 0
A68: Pozostałe przepływy z działalności finansowej | B68: Other cash flows from financing activities | C68: -3.4 | D68: 0 | E68: 0 | F68: 0 | G68: 0.2 | I68: 0 | J68: 0 | K68: 0 | L68: 0 | M68: 0 | N68: 0 | O68: 0 | P68: 0 | Q68: 0 | R68: 0 | S68: 0 | T68: =[24]CF!$D$73 -> -1.8 | U68: =[26]CF!$F$74-T68 -> 1.8 | V68: =[25]CF!$J$74-U68-T68 -> -0.4 | W68: =[27]CF!$L$74-T68-U68-V68 -> 0 | X68: =[19]CF!$D$75 -> -0.4 | Y68: =[20]CF!$G$76-X68 -> 0.4 | Z68: =[21]CF!$J$77-X68-Y68 -> 0 | AA68: =[22]CF!$M$80-X68-Y68-Z68 -> -12.9 | AB68: 0
A69: Środki pieniężne netto z działalności finansowej | B69: Net cash provided by (used in) financing activities | C69: =SUM(C54:C68) -> -364.4 | D69: =SUM(D54:D68) -> 40.7 | E69: -298.9 | F69: 108.3 | G69: -114.4 | H69: -116.7 | I69: -14.1 | J69: -227.5 | K69: -138.4 | L69: =SUM(L54:L68) -> 94.3 | M69: -444.4 | N69: -253 | O69: =SUM(O54:O68) -> 82.8 | P69: -256.8 | Q69: =SUM(Q54:Q68) -> -261.1 | R69: -107.5 | S69: -357.8 | T69: =SUM(T54:T68) -> 158.2 | U69: -831.6 | V69: =SUM(V54:V68) -> 79.1 | W69: -215.5 | X69: =SUM(X54:X68) -> -230 | Y69: -655.6 | Z69: =SUM(Z54:Z68) -> -586.8 | AA69: -455 | AB69: =SUM(AB54:AB68) -> -325.9
A71: Zwiększenie/Zmniejszenie netto stanu środków pieniężnych i ich ekwiwalentów | B71: Net increase (decrease) in cash and cash equivalents | C71: =C31+C51+C69 -> 201.2 | D71: =D31+D51+D69 -> 30.6 | E71: -192 | F71: 187.3 | G71: 210.4 | H71: 38.5 | I71: 28.7 | J71: -55.3 | K71: 323 | L71: =L31+L51+L69 -> 367.3 | M71: -91.2 | N71: -62.7 | O71: =O31+O51+O69 -> 489.3 | P71: -250.9 | Q71: =Q31+Q51+Q69 -> -137.1 | R71: 109.2 | S71: 287.5 | T71: =T31+T51+T69 -> 316 | U71: =U31+U51+U69 -> -713.2 | V71: 333.1 | W71: =W31+W51+W69 -> 616.5 | X71: -383.6 | Y71: =Y31+Y51+Y69 -> -517.9 | Z71: -33 | AA71: =AA31+AA51+AA69 -> 602.7 | AB71: -37.2
A73: Różnice kursowe netto | B73: Net foreign exchange differences | C73: -189.3 | D73: -19.1 | E73: 72.8 | F73: -18.9 | G73: 12.4 | H73: 27.1 | I73: -22.4 | J73: 94.9 | K73: -83.8 | L73: 126.9 | M73: -59.3 | N73: -33.4 | O73: 17 | P73: 70.2 | Q73: -85.4 | R73: 98.1 | S73: 56.9 | T73: =[24]CF!$D$77 -> 57.8 | U73: =[26]CF!$F$78-T73-1.2 -> 26.5 | V73: =[25]CF!$J$78-U73-T73-1.2 -> 222.6 | W73: =[27]CF!$L$78-T73-U73-V73-1.2 -> -317.6 | X73: =[23]CF!$Q$83-4 -> -85.4 | Y73: =[20]CF!$G$80-X73 -> -126.3 | Z73: =[21]CF!$J$81-X73-Y73 -> 76.1 | AA73: =[22]CF!$M$84-X73-Y73-Z73 -> -188.1 | AB73: =[23]CF!$D$83 -> -2
A74: Środki pieniężne i ich ekwiwalenty netto na początek danego okresu | B74: Cash and cash equivalents at the beginning of the period | C74: 1472.1 | D74: 1484 | E74: 1495.5 | F74: 1376.3 | G74: 1544.7 | H74: 1767.5 | I74: 1833.1 | J74: 1839.4 | K74: 1879 | L74: 2118.2 | M74: 2612.4 | N74: 2461.9 | O74: 2365.8 | P74: 2872.1 | Q74: 2691.4 | R74: 2468.9 | S74: =2676.2 -> 2676.2 | T74: =[19]CF!$Q$80 -> 3021.8 | U74: =T75 -> 3395.6 | V74: 2708.9 | W74: 3264.6 | X74: 3563.5 | Y74: 3094.5 | Z74: 2450.3 | AA74: 2493.4 | AB74: 2908
A75: Środki pieniężne i ich ekwiwalenty netto na koniec danego okresu | B75: Cash and cash equivalents at the end of the period | C75: 1484 | D75: 1495.5 | E75: 1376.3 | F75: 1544.7 | G75: 1767.5 | H75: 1833.1 | I75: 1839.4 | J75: 1879 | K75: 2118.2 | L75: 2612.4 | M75: 2461.9 | N75: 2365.8 | O75: 2872.1 | P75: 2691.4 | Q75: 2468.9 | R75: 2676.2 | S75: =3021.8-1.2 -> 3020.6 | T75: =[24]CF!$D$79 -> 3395.6 | U75: =[26]CF!$F$80 -> 2708.9 | V75: =[25]CF!$J$80 -> 3264.6 | W75: =[27]CF!$L$80+4 -> 3563.5 | X75: =[19]CF!$D$81 -> 3094.5 | Y75: =[20]CF!$G$82 -> 2450.3 | Z75: =[21]CF!$J$83 -> 2493.4 | AA75: =[22]CF!$M$86 -> 2908 | AB75: =[23]CF!$D$86 -> 2868.8
C76: =C74+C73+C71-C75 -> 0 | D76: =D74+D73+D71-D75 -> 0 | E76: 0 | F76: 0 | G76: 0 | H76: 0 | I76: 0 | J76: 0 | K76: 0 | L76: =L74+L73+L71-L75 -> 0 | M76: 0 | N76: =N74+N73+N71-N75 -> 0 | O76: 0 | P76: 0 | Q76: 0 | R76: 0 | S76: 0 | T76: =T74+T73+T71-T75 -> 0 | U76: 0 | V76: =V74+V73+V71-V75 -> 0 | W76: 0 | X76: =X74+X73+X71-X75 -> 0 | Y76: 0 | Z76: =Z74+Z73+Z71-Z75 -> 0 | AA76: 0 | AB76: =AB74+AB73+AB71-AB75 -> 0
A78: Zmiany stanu kapitału pracującego | B78: Changes in working capital
C79: YE 2017 | D79: Q1 2018 | E79: Q2 2018 | F79: Q3 2018 | G79: Q4 2018 | H79: =H2 -> Q1 2019 | I79: Q2 2019 | J79: Q3 2019 | K79: Q4 2019 | L79: Q1 2020 | M79: Q2 2020 | N79: Q3 2020 | O79: Q4 2020 | P79: Q1 2021 | Q79: Q2 2021 | R79: Q3 2021 | S79: Q4 2021 | T79: Q1 2022 | U79: Q2 2022 | V79: Q3 2022 | W79: =W2 -> Q4 2022 | X79: Q1 2023 | Y79: Q2 2023 | Z79: Q3 2023 | AA79: Q4 2023 | AB79: Q1 2024
C81: mln PLN | D81: mln PLN | E81: mln PLN | F81: mln PLN | G81: mln PLN | H81: =H4 -> mln PLN | I81: mln PLN | J81: mln PLN | K81: mln PLN | L81: mln PLN | M81: mln PLN | N81: mln PLN | O81: mln PLN | P81: mln PLN | Q81: mln PLN | R81: mln PLN | S81: mln PLN | T81: mln PLN | U81: mln PLN | V81: mln PLN | W81: mln PLN | X81: mln PLN | Y81: mln PLN | Z81: mln PLN | AA81: mln PLN | AB81: mln PLN
A82: Zmiana stanu zapasów | B82: Change in inventories | C82: 0 | D82: -8.8 | E82: 7.3 | F82: -18.2 | G82: 1.1 | H82: -3.7 | I82: -4.8 | J82: -8.6 | K82: -4.4 | L82: 7.8 | M82: -16 | N82: -10.7 | O82: -16 | P82: -3 | Q82: 10.3 | R82: -1.9 | S82: -7.8 | T82: =[24]CF!$D$86 -> -69.2 | U82: =[26]CF!$F$87-T82 -> -54.8 | V82: =[25]CF!$J$87-U82-T82 -> -23 | W82: =[27]CF!$L$87-T82-U82-V82 -> 35.1 | X82: =[19]CF!$D$88 -> -12.6 | Y82: =[20]CF!$G$89-X82 -> 6.4 | Z82: =[21]CF!$J$90-X82-Y82 -> -22.8 | AA82: =[22]CF!$M$93-X82-Y82-Z82 -> 7 | AB82: =[23]CF!$D$92 -> 43.8
A83: Zmiana stanu należności i aktywów niefinansowych | B83: Change in receivables and non-financial assets | C83: -151.8 | D83: 121.3 | E83: -65.6 | F83: -60.3 | G83: -210.7 | H83: 178.5 | I83: -104.7 | J83: 30.2 | K83: -18.7 | L83: -10.9 | M83: 137.7 | N83: -96.6 | O83: -99.2 | P83: -157.4 | Q83: -135.8 | R83: -36 | S83: -325.4 | T83: =[24]CF!$D$87+[24]CF!$D$96+[24]CF!$D$88 -> 89.6 | U83: =[26]CF!$F$88+[26]CF!$F$89+[26]CF!$F$97-T83 -> -262.8 | V83: =[25]CF!$J$88+[25]CF!$J$89+[25]CF!$J$97-U83-T83 -> -65.8 | W83: =[27]CF!$L$88+[27]CF!$L$89+[27]CF!$L$97-T83-U83-V83 -> -316.7 | X83: =[19]CF!$D$89+[19]CF!$D$90+[19]CF!$D$98 -> 27.5 | Y83: =[20]CF!$G$90+[20]CF!$G$91+[20]CF!$G$99-X83 -> -105.1 | Z83: =[21]CF!$J$91+[21]CF!$J$92+[21]CF!$J$100-X83-Y83 -> 90.8 | AA83: =[22]CF!$M$94+[22]CF!$M$95+[22]CF!$M$103-X83-Y83-Z83 -> 102.6 | AB83: =[23]CF!$D$93+[23]CF!$D$94+[23]CF!$D$102 -> -114.7
A84: Zmiana stanu zobowiązań | B84: Change in liabilities | C84: 19.4 | D84: -248.1 | E84: -11.3 | F84: 17.1 | G84: 415 | H84: -237.9 | I84: -54 | J84: -7.8 | K84: 358 | L84: -97.2 | M84: -91.9 | N84: 125.9 | O84: 370.3 | P84: -268.4 | Q84: 18.9 | R84: -36.6 | S84: 476.3 | T84: =[19]CF!$Q$91+[19]CF!$Q$94 -> -269.8 | U84: =[26]CF!$F$90+[26]CF!$F$93-T84 -> 60.6 | V84: =[25]CF!$J$90+[25]CF!$J$93-U84-T84 -> 42.6 | W84: =[27]CF!$L$90+[27]CF!$L$93-T84-U84-V84 -> 407.2 | X84: =[19]CF!$D$91+[19]CF!$D$94 -> -225.7 | Y84: =[20]CF!$G$92+[20]CF!$G$95-X84 -> -45.1 | Z84: =[21]CF!$J$93+[21]CF!$J$96-X84-Y84 -> -18.2 | AA84: =[22]CF!$M$96+[22]CF!$M$99-X84-Y84-Z84 -> 548.2 | AB84: =[23]CF!$D$95+[23]CF!$D$98 -> -135
A85: Zmiana stanu rozliczeń międzyokresowych | B85: Change in prepayments and accruals | C85: 85 | D85: 56.4 | E85: -34.7 | F85: -55.5 | G85: 28.6 | H85: 64.9 | I85: -28.1 | J85: -44.1 | K85: 27.8 | L85: 44.8 | M85: -15.2 | N85: -30.2 | O85: 55.3 | P85: 78.4 | Q85: 0 | R85: -72 | S85: 55.7 | T85: =[19]CF!$Q$95 -> 83.1 | U85: =[26]CF!$F$94-T85 -> -58.7 | V85: =[25]CF!$J$94-U85-T85 -> -67.7 | W85: =[27]CF!$L$94-T85-U85-V85 -> 121.3 | X85: =[19]CF!$D$95 -> -26 | Y85: =[20]CF!$G$96-X85 -> 14.3 | Z85: =[21]CF!$J$97-X85-Y85 -> 0.1 | AA85: =[22]CF!$M$100-X85-Y85-Z85 -> -15 | AB85: =[23]CF!$D$99 -> -2.1
A86: Zmiana stanu rezerw | B86: Change in provisions | C86: -23.2 | D86: -17.5 | E86: -5.1 | F86: 1.7 | G86: 5.9 | H86: -1.3 | I86: -4.7 | J86: 1.8 | K86: 1.3 | L86: 3.2 | M86: 0.7 | N86: 12.7 | O86: 0.9 | P86: -9.3 | Q86: 3.7 | R86: -3.3 | S86: -1.8 | T86: =[24]CF!$D$94 -> 4.5 | U86: =[26]CF!$F$95-T86 -> -5.8 | V86: =[25]CF!$J$95-U86-T86 -> 6.6 | W86: =[27]CF!$L$95-T86-U86-V86 -> 17.7 | X86: =[19]CF!$D$96 -> 5.2 | Y86: =[20]CF!$G$97-X86 -> 10.6 | Z86: =[21]CF!$J$98-X86-Y86 -> -1.3 | AA86: =[22]CF!$M$101-X86-Y86-Z86 -> -2.3 | AB86: =[23]CF!$D$100 -> -4
A87: Zmiana stanu pozostałe | B87: Change in restricted cash | C87: -0.2 | D87: -4.5 | E87: 4.5 | F87: 0 | G87: -1.8 | H87: 2.6 | I87: -2.6 | J87: 0 | K87: -9.4 | L87: 1.2 | M87: -0.9 | N87: -2.1 | O87: 2.8 | P87: -2.2 | Q87: 1.3 | R87: 0.9 | S87: -2 | T87: 0 | U87: =[26]CF!$F$96 -> -0.5 | V87: =[25]CF!$J$96-U87-T87 -> 0.2 | W87: =[27]CF!$L$96-T87-U87-V87 -> -0.1 | X87: =[19]CF!$D$97 -> 0 | Y87: =[20]CF!$G$98-X87 -> 0 | Z87: =[21]CF!$J$99-X87-Y87 -> 0 | AA87: =[22]CF!$M$102-X87-Y87-Z87 -> -10.2 | AB87: =[23]CF!$D$101 -> -0.5
C88: =ROUND(SUM(C82:C87),1) -> -70.8 | D88: =ROUND(SUM(D82:D87),1) -> -101.2 | E88: -104.9 | F88: -115.2 | G88: 238.1 | H88: 3.1 | I88: -198.9 | J88: -28.5 | K88: 354.6 | L88: -51.1 | M88: =ROUND(SUM(M82:M87),1) -> 14.4 | N88: -1 | O88: 314.1 | P88: -361.9 | Q88: =ROUND(SUM(Q82:Q87),1) -> -101.6 | R88: -148.9 | S88: =ROUND(SUM(S82:S87),1) -> 195 | T88: -161.8 | U88: -322 | V88: =ROUND(SUM(V82:V87),1) -> -107.1 | W88: 264.5 | X88: =ROUND(SUM(X82:X87),1) -> -231.6 | Y88: -118.9 | Z88: =ROUND(SUM(Z82:Z87),1) -> 48.6 | AA88: 630.3 | AB88: =ROUND(SUM(AB82:AB87),1) -> -212.5
C89: =C88-C11 -> 0 | D89: 0 | E89: 0 | F89: 0 | G89: 0 | H89: 0 | I89: 0 | J89: 0 | K89: 0 | L89: 0 | M89: 0 | N89: 0 | O89: 0 | P89: 0 | Q89: 0 | R89: 0 | S89: 0 | T89: 0 | U89: 0 | V89: 0 | W89: =W88-W11 -> -0.2 | X89: 0 | Y89: =Y88-Y11 -> 0 | Z89: 0 | AA89: =AA88-AA11 -> 0 | AB89: 0
A90: Objaśnienia: | B90: Legend:
A91: [1] AT i WN - aktywów trwałych i wartości niematerialnych | B91: [1] PPE and IA - property, plant and equipment and intangible assets
A92: [2] Wpływy ze sprzedaży/rozliczenia akt. finansowych . wycenianych w wart. godz. przez wynik finansowy | B92: [2] Disposal/settlement of financial assets carried at fair value through profit or loss
A93: [3] Wydatki na nabycie/wydatki z tytułu rozliczenia akt. fin. wycenianych w wart. godz. przez wynik finansowy | B93: [3] Acquisition/settlement of financial assets carried at fair value through profit or loss
A94: [4] Dotacje otrzymane do zakupu środków trwałych lub/i projektów rozwojowych | B94: [4] Grants received for purchases of property, plant and equipment and/or development projects
A95: [5] NI - nieruchomości inwestycyjnych | B95: [5] IP - investment property
A96: [6] Wpływy ze sprzedaży aktywów finansowych wycenianych w wartości godziwej przez pozostałe dochody całkowite | B96: [6] Proceeds from disposal of financial assets valued at fair value through other comprehensive income
A97: [7] Nabycie aktywów finansowych wycenianych w wartości godziwej przez pozostałe dochody całkowite | B97: [7] Purchase of financial assets valued at fair value through other comprehensive income
A98: [8] Wpływ ze sprzedaży inwestycji w pozostałe instrumenty dłużne wyceniane w zamortyzowanym koszcie | B98: [8] Disposal of other debt instruments carried valued at amortized cost
A99: [9] Nabycie inwestycji w pozostałe instrumenty dłużne wyceniane w zamortyzowanym koszcie | B99: [9] Acquisition of investment in other debt instruments valued at amortized cost

Sheet CF (LTM)
A1: Rachunek przepływów pieniężnych (Grupa Asseco) | B1: Statement of cash flows (Asseco Group)
C2: Last 12 months
C4: mln PLN
A6: Przepływy środków pieniężnych z działalności operacyjnej | B6: Cash flows - operating activities
A7: Zysk przed opodatkowaniem i udziałem w wynikach jednostek stowarzyszonych i wspólnych przedsięwzięć | B7: Profit before tax and share of profits of associates and joint ventures | C7: =SUM(CF!Y7:AB7) -> 1544.4
A9: Korekty o pozycje: | B9: Total adjustments: | C9: =SUM(C10:C28) -> 1461.9
A10: Amortyzacja | B10: Depreciation and amortization | C10: =SUM(CF!Y10:AB10) -> 854.8
A11: Zmiany stanu kapitału pracującego (szczegóły poniżej) | B11: Changes in working capital (see below) | C11: =SUM(CF!Y11:AB11) -> 347.5
A12: Przychody/koszty z tytułu odsetek | B12: Interest income/expenses | C12: =SUM(CF!Y12:AB12) -> 169.4
A13: Przychody/koszty z różnic kursowych | B13: Gain/loss on foreign exchange differences | C13: =SUM(CF!Y13:AB13) -> 36.6
A14: Przychody/koszty z tytułu aktywów finansowych [1] | B14: Gain/loss on financial assets [1] | C14: =SUM(CF!Y14:AB14) -> 0
A15: Pozostałe przychody/koszty finansowe | B15: Other financial income/expenses | C15: =SUM(CF!Y15:AB15) -> 9.7
A16: (Przychody)/koszty związane z akwizycjami (w tym m.in. wycena zobowiązań PUT, zobowiązań warunkowych, wycena aktywów do wartości godziwej na dzień objęcia kontroli) | B16: Gain/loss related to acquisitions (including, among others, valuation of contingent liabilities, contingent liabilities, fair value assessment of assets at the date of obtaining control) | C16: =SUM(CF!Y16:AB16) -> -29.5
A17: Zysk na utracie kontroli nad spółkami zależnymi | B17: Gain on lose of control over subsidiaries | C17: =SUM(CF!Y17:AB17) -> -0.8
A18: Odpis z tytułu utraty wartości firmy | B18: Write-off of consolidated goodwill | C18: =SUM(CF!Y18:AB18) -> 4.9
A19: Zyski/straty na sprzedaży rzeczowych AT, WN oraz nieruchomości inwestycyjnych[1] | B19: Gain/loss on disposal of PPE, IA and investment properties[1] | C19: =SUM(CF!Y19:AB19) -> -18.6
A20: Zysk na sprzedaży spółki zależnej | B20: Gain on disposal of subsidiary | C20: =SUM(CF!Y20:AB20) -> 0
A21: Zysk na sprzedaży działalności zaniechanej | B21: Gain on disposal of discontinued operations | C21: =SUM(CF!Y21:AB21) -> 0
A22: Koszty trans. z pracownikami rozliczanych w formie instr. kapitałowych | B22: Costs of equity-settled employee payment transactions | C22: =SUM(CF!Y22:AB22) -> 79.2
A23: Odpis aktualizujący wartości niematerialne, rzeczowe aktywa trwałe i nieruchomości inwestycyjne | B23: Impairment of intangible and tangible fixed assets and investment property | C23: =SUM(CF!Y23:AB23) -> 5.2
A24: Zyski/straty z tytułu likwidacji rzeczowych aktywów trwałych i wartości niematerialnych | B24: Profit / loss on liquidation of FA and IA | C24: =SUM(CF!Y24:AB24) -> 1.7
A25: Zyski/straty z modyfikacji umów leasingowych | B25: Profit / loss on lease modifications | C25: =SUM(CF!Y25:AB25) -> 4.8
A26: Zyski/straty z tytułu hiperinflacji | B26: Profit/loss due to hyperinflation | C26: =SUM(CF!Y26:AB26) -> -21.4
A27: Koszt dywidend przypisany udziałowcom niekontrolującym | B27: Dividend costs for NCI | C27: =SUM(CF!Y27:AB27) -> 20.1
A28: Pozostałe korekty zysku brutto | B28: Other pre-tax profit adjustments | C28: =SUM(CF!Y28:AB28) -> -1.7
A29: Środki pieniężne netto wygenerowane z działalności operacyjnej | B29: Cash generated from operating activities | C29: =C9+C7 -> 3006.3
A30: Zapłacony podatek dochodowy | B30: Corporate income tax paid | C30: =SUM(CF!Y30:AB30) -> -480.8
A31: Środki pieniężne netto z działalności operacyjnej | B31: Net cash provided by (used in) operating activities | C31: =C29+C30 -> 2525.5
A33: Przepływy środków pieniężnych z działalności inwestycyjnej | B33: Cash flows – investing activities
A34: Wpływy ze sprzedaży rzeczowych AT i WN [1] oraz NI [5] | B34: Disposal of PPE and IA [1] and IP [5] | C34: =SUM(CF!Y34:AB34) -> 46.8
A35: Nabycie rzeczowych AT i WN [1] oraz NI [5] | B35: Acquisition of PPE and IA [1] | C35: =SUM(CF!Y35:AB35) -> -312.3
A36: Wydatki z tytułu nabycia jedn. zależnych i stowarzyszonych | B36: Expenditures for the acquisition of subsidiaries and associates | C36: =SUM(CF!Y36:AB36) -> -241.3
A37: Środki pieniężne i ich ekwiwalenty w nabytych jednostkach zależnych | B37: Cash and cash equivalents in subsidiaries acquired | C37: =SUM(CF!Y37:AB37) -> 0
A38: Wpływy ze sprzedaży akcji/udziałów w jednostkach powiązanych | B38: Proceeds from sale of investment in subsidiaries | C38: =SUM(CF!Y38:AB38) -> 13.2
A39: Środki pieniężne i ich ekwiwalenty w sprzedanych jednostkach zależnych (działalność zaniechana) | B39: Cash and cash equivalents in subsidiaries disposed of (discontinued operations) | C39: =SUM(CF!Y39:AB39) -> 0
A40: Wpływy ze sprzedaży/rozliczenia aktywów finansowych [2] / [6] | B40: Disposal/settlement of financial assets [2] / [6] | C40: =SUM(CF!Y40:AB40) -> 2.9
A41: Wydatki na nabycie/wydatki z tytułu rozliczenia aktywów finansowych [3] / [7] | B41: Acquisition/settlement of financial assets [3] / [7] | C41: =SUM(CF!Y41:AB41) -> -24.3
A42: Środki pieniężne i ich ekwiwalenty w sprzedanych jednostkach zależnych (działalność zaniechana) | C42: =SUM(CF!Y42:AB42) -> 0
A43: Wpływ ze sprzedaży pozostałych instrumentów dłużnych [8] | B43: Disposal of other debt instruments [8] | C43: =SUM(CF!Y43:AB43) -> 0
A44: Wydatki na nabycie inwestycji w instrumenty dłużne [9] | B44: Acquisition of ivestments in debt instruments measured at amortised cost [9] | C44: =SUM(CF!Y44:AB44) -> 0
A45: Wpływ ze sprzedaży pozostałych aktywów finansowych | B45: Proceeds from sale of other financial assets | C45: =SUM(CF!Y45:AB45) -> 0
A46: Pożyczki udzielone (w tym zawarte lokaty) | B46: Loans granted | C46: =SUM(CF!Y46:AB46) -> -365.6
A47: Pożyczki spłacone (w tym zakończone lokaty) | B47: Loans collected | C47: =SUM(CF!Y47:AB47) -> 371.3
A48: Otrzymane odsetki | B48: Interest received | C48: =SUM(CF!Y48:AB48) -> 21.6
A49: Dywidendy otrzymane | B49: Dividends received | C49: =SUM(CF!Y49:AB49) -> 0.5
A50: Pozostałe przepływy z działalności inwestycyjnej | B50: Other cash flows from investing activities | C50: =SUM(CF!Y50:AB50) -> -0.4
A51: Środki pieniężne netto wykorzystane w działalności inwestycyjnej | B51: Net cash provided by (used in) investing activities | C51: =SUM(C34:C50) -> -487.6
A53: Przepływy środków pieniężnych z działalności finansowej | B53: Cash flows – financing activities
A54: Wpływ z tytułu emisji kapitału | B54: Proceeds from issue of capital | C54: =SUM(CF!Y54:AB54) -> 20
A55: Nabycie akcji własnych | B55: Purchase of treasury shares | C55: =SUM(CF!Y55:AB55) -> -1186.2
A56: Wpływy z realizacji programu opcji pracowniczych | B56: Proceeds from share-based payments | C56: =SUM(CF!Y56:AB56) -> 0
A57: Wydatki z tytułu nabycia udziałów niekontrolujących | B57: Acquisition of non-controlling interests | C57: =SUM(CF!Y57:AB57) -> -123.2
A58: Wpływy z tytułu zaciągnięcia pożyczek/kredytów | B58: Proceeds from bank loans and borrowings | C58: =SUM(CF!Y58:AB58) -> 1221.7
A59: Wpływy z tytułu emisji dłużnych papierów wartościowych | B59: Proceeds from the issuance of debt securities | C59: =SUM(CF!Y59:AB59) -> 0
A60: Wykup dłużnych papierów wartościowych | B60: Repayment/redemption of debt securities | C60: =SUM(CF!Y60:AB60) -> -281.2
A61: Spłata pożyczek/kredytów | B61: Repayment of bank loans and borrowings | C61: =SUM(CF!Y61:AB61) -> -501
A62: Spłata zobowiązań z tytułu leasingu | B62: Lease liabilities paid | C62: =SUM(CF!Y62:AB62) -> -284.9
A63: Zapłacone odsetki (w tym z tytułu leasingu) | B63: Interest paid | C63: =SUM(CF!Y63:AB63) -> -168.4
A64: Dywidendy wypłacone przez Jednostkę Dominującą | B64: Dividends paid out to the shareholders of Parent Company | C64: =SUM(CF!Y64:AB64) -> -290.5
A65: Dywidendy wypłacone dla udziałowców niekontrolujących | B65: Dividends paid out to non-controlling interests | C65: =SUM(CF!Y65:AB65) -> -418.3
A66: Dotacje otrzymane [4] | B66: Grants received [4] | C66: =SUM(CF!Y66:AB66) -> 1.2
A67: Dotacje zwrócone | B67: Grants returned | C67: =SUM(CF!Y67:AB67) -> 0
A68: Pozostałe przepływy z działalności finansowej | B68: Other cash flows from financing activities | C68: =SUM(CF!Y68:AB68) -> -12.5
A69: Środki pieniężne netto z działalności finansowej | B69: Net cash provided by (used in) financing activities | C69: =SUM(C54:C68) -> -2023.3
A71: Zwiększenie/Zmniejszenie netto stanu środków pieniężnych i ich ekwiwalentów | B71: Net increase (decrease) in cash and cash equivalents | C71: =C31+C51+C69 -> 14.6
A73: Różnice kursowe netto | B73: Net foreign exchange differences | C73: =SUM(CF!Y73:AB73) -> -240.3
A74: Środki pieniężne i ich ekwiwalenty netto na dzień 1 kwietnia 2023 | B74: Cash and cash equivalents at 1 April 2023 | C74: =CF!Y74 -> 3094.5
A75: Środki pieniężne i ich ekwiwalenty netto na dzień 31 marca 2024 | B75: Cash and cash equivalents at 31 March 2024 | C75: =CF!AB75 -> 2868.8
C76: =C74+C73+C71-C75 -> 0
A78: Zmiany stanu kapitału pracującego | B78: Changes in working capital
C79: Last 12 months
C81: mln PLN
A82: Zmiana stanu zapasów | B82: Change in inventories | C82: =SUM(CF!Y82:AB82) -> 34.4
A83: Zmiana stanu należności i aktywów niefinansowych | B83: Change in receivables and non-financial assets | C83: =SUM(CF!Y83:AB83) -> -26.4
A84: Zmiana stanu zobowiązań | B84: Change in liabilities | C84: =SUM(CF!Y84:AB84) -> 349.9
A85: Zmiana stanu rozliczeń międzyokresowych | B85: Change in prepayments and accruals | C85: =SUM(CF!Y85:AB85) -> -2.7
A86: Zmiana stanu rezerw | B86: Change in provisions | C86: =SUM(CF!Y86:AB86) -> 3
A87: Zmiana stanu pozostałe | B87: Change in restricted cash | C87: =SUM(CF!Y87:AB87) -> -10.7
C88: =ROUND(SUM(C82:C87),1) -> 347.5
C89: =C88-C11 -> 0
A90: Objaśnienia: | B90: Legend:
A91: [1] AT i WN - aktywów trwałych i wartości niematerialnych | B91: [1] PPE and IA - property, plant and equipment and intangible assets
A92: [2] Wpływy ze sprzedaży/rozliczenia akt. finansowych . wycenianych w wart. godz. przez wynik finansowy | B92: [2] Disposal/settlement of financial assets carried at fair value through profit or loss
A93: [3] Wydatki na nabycie/wydatki z tytułu rozliczenia akt. fin. wycenianych w wart. godz. przez wynik finansowy | B93: [3] Acquisition/settlement of financial assets carried at fair value through profit or loss
A94: [4] Dotacje otrzymane do zakupu środków trwałych lub/i projektów rozwojowych | B94: [4] Grants received for purchases of property, plant and equipment and/or development projects
A95: [5] NI - nieruchomości inwestycyjnych | B95: [5] IP - investment property
A96: [6] Wpływy ze sprzedaży aktywów finansowych wycenianych w wartości godziwej przez pozostałe dochody całkowite | B96: [6] Proceeds from disposal of financial assets valued at fair value through other comprehensive income
A97: [7] Nabycie aktywów finansowych wycenianych w wartości godziwej przez pozostałe dochody całkowite | B97: [7] Purchase of financial assets valued at fair value through other comprehensive income
A98: [8] Wpływ ze sprzedaży inwestycji w pozostałe instrumenty dłużne wyceniane w zamortyzowanym koszcie | B98: [8] Disposal of other debt instruments carried valued at amortized cost
A99: [9] Nabycie inwestycji w pozostałe instrumenty dłużne wyceniane w zamortyzowanym koszcie | B99: [9] Acquisition of investment in other debt instruments valued at amortized cost

Sheet Segments
A1: Segmenty działalności | B1: Operating segments
A3: Przejdź do: | B3: Go to:
A4: =seg_pl_pl -> Segment Asseco Poland | B4: =seg_en_pl -> Segment Asseco Poland
A5: =seg_pl_see -> Segment Asseco International | B5: =seg_en_see -> Segment Asseco International
A6: =seg_pl_we -> Segment Formula Systems | B6: =seg_en_we -> Segment Formula Systems
A10: Segment Asseco Poland | B10: Segment Asseco Poland | C10: YE 2017 | D10: Q1 2018 | E10: Q2 2018 | F10: Q3 2018 | G10: Q4 2018 | H10: Q1 2019 | I10: Q2 2019 | J10: Q3 2019 | K10: Q4 2019 | L10: Q1 2020 | M10: Q2 2020 | N10: Q3 2020 | O10: Q4 2020 | P10: Q1 2021 | Q10: Q2 2021 | R10: Q3 2021 | S10: Q4 2021 | T10: Q1 2022 | U10: Q2 2022 | V10: Q3 2022 | W10: Q4 2022 | X10: Q1 2023 | Y10: Q2 2023 | Z10: Q3 2023 | AA10: Q4 2023 | AB10: Q1 2024
C12: mln PLN | D12: mln PLN | E12: mln PLN | F12: mln PLN | G12: mln PLN | H12: mln PLN | I12: mln PLN | J12: mln PLN | K12: mln PLN | L12: mln PLN | M12: mln PLN | N12: mln PLN | O12: mln PLN | P12: mln PLN | Q12: mln PLN | R12: mln PLN | S12: mln PLN | T12: mln PLN | U12: mln PLN | V12: mln PLN | W12: mln PLN | X12: mln PLN | Y12: mln PLN | Z12: mln PLN | AA12: mln PLN | AB12: mln PLN
A14: Sprzedaż na rzecz klientów zewnętrznych | B14: Sales to external customers | C14: 1336.6 | D14: 314.5 | E14: 350.2 | F14: 306.1 | G14: 376.5 | H14: 294.9 | I14: 302.8 | J14: 287.3 | K14: 314.7 | L14: 307.3 | M14: 329.9 | N14: 364 | O14: 423 | P14: 364.3 | Q14: 378.7 | R14: 370 | S14: 447.4 | T14: =[24]Seg_CY!$C$9 -> 404.1 | U14: =[26]Seg_CY!$T$9-T14 -> 426.7 | V14: =[25]Seg_CY!$AK$9-U14-T14 -> 417.3 | W14: =[27]Seg_CY!$BC$9-T14-U14-V14 -> 473.9 | X14: =[19]Seg_CY!$C$9 -> 449.7 | Y14: =[20]Seg_CY!$T$9-X14 -> 510.4 | Z14: =[21]Seg_CY!$AK$9-X14-Y14 -> 441.5 | AA14: =[22]Seg_CY!$BC$9-Z14-Y14-X14 -> 538.2 | AB14: =[23]Seg_CY!$C$9 -> 499.3
A15: Sprzedaż pomiędzy segmentami | B15: Inter-segment sales | C15: 9.1 | D15: 1.8 | E15: 1.9 | F15: 2.1 | G15: 5.7 | H15: 3.7 | I15: 2.3 | J15: 2.8 | K15: 3.8 | L15: 3.4 | M15: 2.1 | N15: 1.5 | O15: 7.4 | P15: 2.5 | Q15: 5.6 | R15: 2.4 | S15: 4.3 | T15: =[24]Seg_CY!$C$10 -> 4.3 | U15: =[26]Seg_CY!$T$10-T15 -> 3.3 | V15: =[25]Seg_CY!$AK$10-U15-T15 -> 2.7 | W15: =[27]Seg_CY!$BC$10-T15-U15-V15 -> 5.7 | X15: =[19]Seg_CY!$C$10 -> 7.4 | Y15: =[20]Seg_CY!$T$10-X15 -> 3.2 | Z15: =[21]Seg_CY!$AK$10-X15-Y15 -> 3.1 | AA15: =[22]Seg_CY!$BC$10-X15-Y15-Z15 -> 10.3 | AB15: =[23]Seg_CY!$C$10 -> 9.4
A16: Zysk/strata netto z działalności operacyjnej segmentu | B16: Net operating profit/loss | C16: 152.5 | D16: 55.8 | E16: 64.7 | F16: 52.6 | G16: 47.6 | H16: 43.3 | I16: 44.1 | J16: 38.2 | K16: 27.5 | L16: 42.7 | M16: 52.1 | N16: 60.2 | O16: 59.8 | P16: 59 | Q16: 78.3 | R16: 70 | S16: 56 | T16: =[19]Seg_PY!$C$33 -> 67.5 | U16: =[20]Seg_PY!$C$56-T16 -> 73 | V16: =[21]Seg_PY!$C$82-U16-T16 -> 74.1 | W16: =[27]Seg_CY!$BC$12-T16-U16-V16-0.3 -> 60.4 | X16: =[19]Seg_CY!$C$12 -> 66.2 | Y16: =[20]Seg_CY!$T$12-X16 -> 76.7 | Z16: =[21]Seg_CY!$AK$12-X16-Y16 -> 56.2 | AA16: =[22]Seg_CY!$BC$12-X16-Y16-Z16 -> 65.3 | AB16: =[23]Seg_CY!$C$12 -> 86
A17: Przychody z tytułu odsetek | B17: Interest income | C17: 4.6 | D17: 2.2 | E17: 0.7 | F17: 2 | G17: 1.6 | H17: 1.6 | I17: 1.1 | J17: 1.2 | K17: 1.3 | L17: 1.3 | M17: 0.6 | N17: 0.5 | O17: 0.3 | P17: 0.3 | Q17: 0.3 | R17: 0.3 | S17: 0.3 | T17: =[24]Seg_CY!$C$13 -> 0.9 | U17: =[26]Seg_CY!$T$13-T17 -> 3.6 | V17: =[25]Seg_CY!$AK$13-U17-T17 -> 3.4 | W17: =[27]Seg_CY!$BC$13-T17-U17-V17 -> 4.5 | X17: =[19]Seg_CY!$C$13 -> 5.5 | Y17: =[20]Seg_CY!$T$13-X17 -> 6.6 | Z17: =[21]Seg_CY!$AK$13-X17-Y17 -> 4.6 | AA17: =[22]Seg_CY!$BC$13-X17-Y17-Z17 -> 4.6 | AB17: =[23]Seg_CY!$C$13 -> 4.1
A18: Koszty z tytułu odsetek | B18: Interest expenses | C18: -9.3 | D18: -1.4 | E18: -2 | F18: -2.3 | G18: -1.3 | H18: -1.7 | I18: -1.4 | J18: -4 | K18: -1.3 | L18: -1.3 | M18: -0.8 | N18: -0.9 | O18: -1 | P18: -0.9 | Q18: -0.7 | R18: -0.7 | S18: -2.2 | T18: =[24]Seg_CY!$C$14 -> -0.9 | U18: =[26]Seg_CY!$T$14-T18 -> -0.9 | V18: =[25]Seg_CY!$AK$14-U18-T18 -> -1.7 | W18: =[27]Seg_CY!$BC$14-T18-U18-V18 -> -0.9 | X18: =[19]Seg_CY!$C$14 -> -2.6 | Y18: =[20]Seg_CY!$T$14-X18 -> -1.4 | Z18: =[21]Seg_CY!$AK$14-X18-Y18 -> -3.2 | AA18: =[22]Seg_CY!$BC$14-X18-Y18-Z18 -> -14.6 | AB18: =[23]Seg_CY!$C$14 -> -16.4
A19: Podatek dochodowy | B19: Corporate income tax | C19: -25.5 | D19: -15.1 | E19: -13.9 | F19: -12.5 | G19: -14.2 | H19: -8.1 | I19: -7.8 | J19: -6.9 | K19: -6.2 | L19: -7.9 | M19: -12.5 | N19: -13.5 | O19: -3.2 | P19: -12 | Q19: -16.5 | R19: -13.8 | S19: -9.7 | T19: =[24]Seg_CY!$C$15 -> -19 | U19: =[26]Seg_CY!$T$15-T19 -> -13.4 | V19: =[25]Seg_CY!$AK$15-U19-T19 -> -12.1 | W19: =[27]Seg_CY!$BC$15-T19-U19-V19+0.1 -> -24.1 | X19: =[19]Seg_CY!$C$15 -> -16.4 | Y19: =[20]Seg_CY!$T$15-X19 -> -18.2 | Z19: =[21]Seg_CY!$AK$15-X19-Y19 -> -5.2 | AA19: =[22]Seg_CY!$BC$15-X19-Y19-Z19 -> -7.7 | AB19: =[23]Seg_CY!$C$15 -> -14.8
A20: Pozycje niepieniężne: | B20: Non-cash items:
A21: Amortyzacja | B21: Depreciation and amortization | C21: -79.7 | D21: -19.8 | E21: -19.9 | F21: -21.8 | G21: -21.6 | H21: -23.4 | I21: -22.8 | J21: -22.8 | K21: -22.7 | L21: -23.2 | M21: -22.9 | N21: -24 | O21: -21.7 | P21: -21 | Q21: -21.1 | R21: -21.5 | S21: -21.5 | T21: =[24]Seg_CY!$C$17 -> -23.1 | U21: =[26]Seg_CY!$T$17-T21 -> -22.7 | V21: =[21]Seg_PY!$C$87-U21-T21 -> -22.7 | W21: =[27]Seg_CY!$BC$17-T21-U21-V21-0.1 -> -22.9 | X21: =[19]Seg_CY!$C$17 -> -23.2 | Y21: =[20]Seg_CY!$T$17-X21 -> -23.4 | Z21: =[21]Seg_CY!$AK$17-X21-Y21 -> -23.8 | AA21: =[22]Seg_CY!$BC$17-X21-Y21-Z21 -> -24.9 | AB21: =[23]Seg_CY!$C$17 -> -24.8
A22: w tym amortyzacja wartości niematerialnych rozpoznanych w wyniku procesu alokacji ceny nabycia (PPA) | B22: of which amortization of IA recognized in purchase price allocation process (PPA) | C22: -18 | D22: -4.2 | E22: -4.2 | F22: -4.6 | G22: -4.8 | H22: -3.7 | I22: -4.7 | J22: -4.2 | K22: -4.1 | L22: -4 | M22: -4.1 | N22: -4.1 | O22: -8.2 | P22: -3.8 | Q22: -3.8 | R22: -3.8 | S22: -3.7 | T22: =[24]Seg_CY!$C$18 -> -3.2 | U22: =[26]Seg_CY!$T$18-T22 -> -3.2 | V22: =[21]Seg_PY!$C$88-U22-T22 -> -3.3 | W22: =[27]Seg_CY!$BC$18-T22-U22-V22-0.1 -> -3.2 | X22: =[19]Seg_CY!$C$18 -> -3.5 | Y22: =[20]Seg_CY!$T$18-X22 -> -3.5 | Z22: =[21]Seg_CY!$AK$18-X22-Y22 -> -3.6 | AA22: =[22]Seg_CY!$BC$18-X22-Y22-Z22 -> -3.5 | AB22: =[23]Seg_CY!$C$18 -> -3.9
A23: Koszty transakcji z pracownikami rozliczanych w formie instrumentów kapitałowych | B23: Costs of share-based payment transactions with employees | C23: 0 | D23: 0 | E23: 0 | F23: 0 | G23: 0 | H23: 0 | I23: 0 | J23: 0 | K23: 0 | L23: 0 | M23: 0 | N23: 0 | O23: 0 | P23: 0 | Q23: 0 | R23: 0 | S23: 0 | T23: 0 | U23: =[26]Seg_CY!$T$19 -> 0 | V23: =[25]Seg_CY!$AK$19 -> 0 | W23: =[27]Seg_CY!$BC$19-T23-U23-V23 -> 0 | X23: =[19]Seg_CY!$C$19 -> 0 | Y23: =[20]Seg_CY!$T$19-X23 -> 0 | Z23: =[21]Seg_CY!$AK$19-X23-Y23 -> 0 | AA23: 0 | AB23: 0
A24: Odpis z tyt. utraty wartości aktywów segmentu | B24: Impairment write-downs on segment assets | C24: -80.5 | D24: 6.9 | E24: -4.2 | F24: -1.4 | G24: -3.7 | H24: 2.6 | I24: -2.7 | J24: -0.4 | K24: 1.2 | L24: -0.2 | M24: -2.9 | N24: -2.7 | O24: -12.6 | P24: -0.2 | Q24: -0.7 | R24: -3.1 | S24: -1.1 | T24: =[24]Seg_CY!$C$20 -> 1.9 | U24: =[26]Seg_CY!$T$20-T24 -> 3.9 | V24: =[25]Seg_CY!$AK$20-U24-T24 -> -3 | W24: =[27]Seg_CY!$BC$20-T24-U24-V24 -> -5.4 | X24: =[19]Seg_CY!$C$20 -> 0.5 | Y24: =[20]Seg_CY!$T$20-X24 -> -4.9 | Z24: =[21]Seg_CY!$AK$20-X24-Y24 -> -0.7 | AA24: =[22]Seg_CY!$BC$20-X24-Y24-Z24 -> 0.8 | AB24: =[23]Seg_CY!$C$20 -> -0.8
A25: Udział w wynikach jednostek stowarzyszonych i wspólnych przedsięwziąć | B25: Share in profits of associates and joint ventures | C25: -1.1 | D25: -0.6 | E25: -0.6 | F25: 0.2 | G25: 1.1 | H25: 0 | I25: -0.4 | J25: -0.6 | K25: -0.4 | L25: -0.8 | M25: -0.6 | N25: -1.5 | O25: 0.6 | P25: 0.1 | Q25: 0.6 | R25: -1.6 | S25: -1.9 | T25: =[24]Seg_CY!$C$23 -> -0.2 | U25: =[26]Seg_CY!$T$24-T25 -> -0.2 | V25: =[25]Seg_CY!$AK$24-U25-T25 -> 0.2 | W25: =[27]Seg_CY!$BC$25-T25-U25-V25 -> -0.6 | X25: =[19]Seg_CY!$C$24 -> -1.2 | Y25: =[20]Seg_CY!$T$24-X25 -> 0.1 | Z25: =[21]Seg_CY!$AK$24-X25-Y25 -> 0.1 | AA25: =[22]Seg_CY!$BC$25-X25-Y25-Z25 -> 1.4 | AB25: =[23]Seg_CY!$C$25 -> 1.8
A26: Zysk/strata netto segmentu przypisany Jednostce Dominującej | B26: Net profit/loss attributable to shareholders of the Parent Company | C26: 7.1 | D26: 38.8 | E26: 45.3 | F26: 40.5 | G26: 37 | H26: 35.3 | I26: 33.5 | J26: 24.9 | K26: 20 | L26: 32.1 | M26: 37.1 | N26: 42.9 | O26: 55.8 | P26: 45.9 | Q26: 68.7 | R26: 50.5 | S26: 41.4 | T26: =[24]Seg_CY!$C$24 -> 48.6 | U26: =[20]Seg_PY!$C$69-T26 -> 61.1 | V26: =[21]Seg_PY!$C$95-U26-T26 -> 61.1 | W26: =[27]Seg_CY!$BC$26-T26-U26-V26-0.1 -> 40.1 | X26: =[19]Seg_CY!$C$25 -> 49.9 | Y26: =[20]Seg_CY!$T$25-X26 -> 63.5 | Z26: =[21]Seg_CY!$AK$25-X26-Y26 -> 48.3 | AA26: =[22]Seg_CY!$BC$26-X26-Y26-Z26 -> 46.9 | AB26: =[23]Seg_CY!$C$26-0.1 -> 58.1
A27: Środki pieniężne netto z działalności operacyjnej | B27: Net cash provided by (used in) operating activities | C27: 137.4 | D27: 54.5 | E27: 104.3 | F27: 67.2 | G27: 128.4 | H27: 68.4 | I27: 26.6 | J27: 90.4 | K27: 110.3 | L27: 64.6 | M27: 60.1 | N27: 54.8 | O27: 138.1 | P27: 61.1 | Q27: 60.4 | R27: 78.2 | S27: 86.8 | T27: =[24]Seg_CY!$C$25 -> 98.4 | U27: =[26]Seg_CY!$T$26-T27 -> 45.7 | V27: =[25]Seg_CY!$AK$26-U27-T27 -> 69.9 | W27: =[27]Seg_CY!$BC$27-T27-U27-V27 -> 98.7 | X27: =[19]Seg_CY!$C$26 -> 31 | Y27: =[20]Seg_CY!$T$26-X27 -> 59.3 | Z27: =[21]Seg_CY!$AK$25-X27-Y27 -> 71.4 | AA27: =[22]Seg_CY!$BC$27-X27-Y27-Z27 -> 317.7 | AB27: =[23]Seg_CY!$C$27 -> 28.5
A28: Wartość firmy | B28: Goodwill | C28: 2254.4 | D28: 2253.7 | E28: 2256.9 | F28: 2256.3 | G28: 2257.1 | H28: 2257.1 | I28: 2260.7 | J28: 2260.6 | K28: 2260.6 | L28: 2260.6 | M28: 2260.6 | N28: 2260.6 | O28: 2257.1 | P28: 2257.1 | Q28: 2257.1 | R28: 2257.1 | S28: 2257.1 | T28: =[19]Seg_PY!$C$107 -> 2273.1 | U28: =[26]Seg_CY!$T$37 -> 2271.6 | V28: =[21]Seg_PY!$C$107 -> 2264.3 | W28: =[20]Seg_PY!$C$107 -> 2264.3 | X28: =[19]Seg_CY!$C$37 -> 2264.3 | Y28: =[20]Seg_CY!$T$37 -> 2259.4 | Z28: =[21]Seg_CY!$AK$37 -> 2259.4 | AA28: =[23]Seg_PY!$C$107 -> 2271.7 | AB28: =[23]Seg_CY!$C$38 -> 2271.7
A31: Segment Asseco International | B31: Segment Asseco International | C31: YE 2017 | D31: Q1 2018 | E31: Q2 2018 | F31: Q3 2018 | G31: Q4 2018 | H31: Q1 2019 | I31: Q2 2019 | J31: Q3 2019 | K31: Q4 2019 | L31: Q1 2020 | M31: Q2 2020 | N31: Q3 2020 | O31: Q4 2020 | P31: Q1 2021 | Q31: Q2 2021 | R31: Q3 2021 | S31: Q4 2021 | T31: Q1 2022 | U31: Q2 2022 | V31: =V10 -> Q3 2022 | W31: Q4 2022 | X31: Q1 2023 | Y31: Q2 2023 | Z31: Q3 2023 | AA31: Q4 2023 | AB31: =AB10 -> Q1 2024
C33: mln PLN | D33: mln PLN | E33: mln PLN | F33: mln PLN | G33: mln PLN | H33: mln PLN | I33: mln PLN | J33: mln PLN | K33: mln PLN | L33: mln PLN | M33: mln PLN | N33: mln PLN | O33: mln PLN | P33: mln PLN | Q33: mln PLN | R33: mln PLN | S33: mln PLN | T33: mln PLN | U33: mln PLN | V33: mln PLN | W33: mln PLN | X33: mln PLN | Y33: mln PLN | Z33: mln PLN | AA33: mln PLN | AB33: mln PLN
A35: Sprzedaż na rzecz klientów zewnętrznych | B35: Sales to external customers | C35: 2227.4 | D35: 573.6 | E35: 640.6 | F35: 586.7 | G35: 788.6 | H35: 674.5 | I35: 671.7 | J35: 685.9 | K35: 894.1 | L35: 753.4 | M35: 747.2 | N35: 717.9 | O35: 1000.9 | P35: 817.3 | Q35: 870.8 | R35: 844.3 | S35: 1108.4 | T35: =[19]Seg_PY!$D$30 -> 939.2 | U35: =[26]Seg_CY!$U$9-T35 -> 1001.2 | V35: =[25]Seg_CY!$AL$9-U35-T35 -> 1047.7 | W35: =[27]Seg_CY!BD9-T35-U35-V35 -> 1204.3 | X35: =[19]Seg_CY!$D$9 -> 986.8 | Y35: =[20]Seg_CY!$U$9-X35 -> 950 | Z35: =[21]Seg_CY!$AL$9-X35-Y35 -> 945.1 | AA35: =[22]Seg_CY!$BD$9-X35-Y35-Z35 -> 1167.7 | AB35: =[23]Seg_CY!$D$9 -> 952.062
A36: Sprzedaż pomiędzy segmentami | B36: Inter-segment sales | C36: 5.5 | D36: 0.4 | E36: 3.7 | F36: 0.1 | G36: -1.5 | H36: -0.9 | I36: 0.9 | J36: 0.7 | K36: 2.5 | L36: 1.2 | M36: 2.3 | N36: 3 | O36: 1.2 | P36: 1.5 | Q36: 1.7 | R36: 1.6 | S36: -0.5 | T36: =[24]Seg_CY!$D$10 -> 1.1 | U36: =[26]Seg_CY!$U$10-T36 -> 1.5 | V36: =[25]Seg_CY!$AL$10-U36-T36 -> 0.7 | W36: =[27]Seg_CY!$BD$10-T36-U36-V36 -> 1.1 | X36: =[19]Seg_CY!$D$10 -> 1.6 | Y36: =[20]Seg_CY!$U$10-X36 -> 3.8 | Z36: =[21]Seg_CY!$AL$10-X36-Y36 -> 2.7 | AA36: =[22]Seg_CY!$BD$10-X36-Y36-Z36 -> 1.7 | AB36: =[23]Seg_CY!$D$10 -> 3.038
A37: Zysk/strata netto z działalności operacyjnej segmentu | B37: Net operating profit/loss | C37: 248.8 | D37: 54.3 | E37: 69.6 | F37: 58.9 | G37: 91.1 | H37: 76.4 | I37: 74.4 | J37: 87.7 | K37: 109.8 | L37: 80.9 | M37: 91.7 | N37: 78.8 | O37: 136.8 | P37: =[24]Seg_PY!$D$31-0.4 -> 97.2 | Q37: 101.1 | R37: 119.8 | S37: 113.8 | T37: =[19]Seg_PY!$D$33 -> 95.1 | U37: =[20]Seg_PY!$D$56-T37 -> 60.6 | V37: =[21]Seg_PY!$D$82-U37-T37 -> 99.9 | W37: =[27]Seg_CY!$BD$12-T37-U37-V37+0.1 -> 151 | X37: =[23]Seg_PY!$D$33 -> 97.3 | Y37: =[20]Seg_CY!$U$12-X37 -> 89.6 | Z37: =[21]Seg_CY!$AL$12-X37-Y37 -> 103.6 | AA37: =[22]Seg_CY!$BD$12-X37-Y37-Z37 -> 165.7 | AB37: =[23]Seg_CY!$D$12 -> 102.2
A38: Przychody z tytułu odsetek | B38: Interest income | C38: 7.2 | D38: 1.4 | E38: 1.8 | F38: 1.7 | G38: 1.5 | H38: 1.6 | I38: 2 | J38: 1.5 | K38: 1.6 | L38: 1.8 | M38: 2.1 | N38: 0.7 | O38: 1.2 | P38: 1.5 | Q38: 1.7 | R38: 0.9 | S38: 0.9 | T38: =[24]Seg_CY!$D$13 -> 0.8 | U38: =[26]Seg_CY!$U$13-T38 -> 1.3 | V38: =[25]Seg_CY!$AL$13-U38-T38 -> 0.8 | W38: =[27]Seg_CY!$BD$13-T38-U38-V38 -> 2 | X38: =[19]Seg_CY!$D$13 -> 3.8 | Y38: =[20]Seg_CY!$U$13-X38 -> 5.2 | Z38: =[21]Seg_CY!$AL$13-X38-Y38 -> 3.1 | AA38: =[22]Seg_CY!$BD$13-X38-Y38-Z38 -> 4.1 | AB38: =[23]Seg_CY!$D$13 -> 4.4
A39: Koszty z tytułu odsetek | B39: Interest expenses | C39: -2 | D39: -0.7 | E39: -0.9 | F39: -1.2 | G39: -1 | H39: -1.9 | I39: -1.9 | J39: -2.4 | K39: -2.4 | L39: -2.1 | M39: -2.7 | N39: -2.3 | O39: -2.5 | P39: -2 | Q39: -1.9 | R39: -2.1 | S39: -2.1 | T39: =[24]Seg_CY!$D$14 -> -2.5 | U39: =[26]Seg_CY!$U$14-T39 -> -2.7 | V39: =[25]Seg_CY!$AL$14-U39-T39 -> -3 | W39: =[27]Seg_CY!$BD$14-T39-U39-V39 -> -3.8 | X39: =[19]Seg_CY!$D$14 -> -3.8 | Y39: =[20]Seg_CY!$U$14-X39 -> -4 | Z39: =[21]Seg_CY!$AL$14-X39-Y39 -> -3.8 | AA39: =[22]Seg_CY!$BD$14-X39-Y39-Z39 -> -5.9 | AB39: =[23]Seg_CY!$D$14 -> -3.9
A40: Podatek dochodowy | B40: Corporate income tax | C40: -25.9 | D40: -14.7 | E40: -16.2 | F40: -13.5 | G40: -16.8 | H40: -16.1 | I40: -17.7 | J40: -18.3 | K40: -19.9 | L40: -17.1 | M40: -17.1 | N40: -14.3 | O40: -24.1 | P40: =[24]Seg_PY!$D$34+0.1 -> -20.9 | Q40: -21.4 | R40: -23.9 | S40: -22.9 | T40: =[19]Seg_PY!$D$36 -> -20.8 | U40: =[20]Seg_PY!$D$59-T40 -> -16.4 | V40: =[21]Seg_PY!$D$85-U40-T40 -> -21.7 | W40: =[27]Seg_CY!$BD$15-T40-U40-V40 -> -29.1 | X40: =[19]Seg_CY!$D$15 -> -22.6 | Y40: =[20]Seg_CY!$U$15-X40 -> -17.2 | Z40: =[21]Seg_CY!$AL$15-X40-Y40 -> -20.6 | AA40: =[22]Seg_CY!$BD$15-X40-Y40-Z40 -> -37 | AB40: =[23]Seg_CY!$D$15 -> -20.2
A41: Pozycje niepieniężne: | B41: Non-cash items:
A42: Amortyzacja | B42: Depreciation and amortization | C42: -90.6 | D42: -24.7 | E42: -27.8 | F42: -27.3 | G42: -25.2 | H42: -34.5 | I42: -35.9 | J42: -38.8 | K42: -41.1 | L42: -42.8 | M42: -43.2 | N42: -43 | O42: -42.3 | P42: =[24]Seg_PY!$D$36-0.3 -> -42.8 | Q42: -43.4 | R42: -43.8 | S42: -45.7 | T42: =[19]Seg_PY!$D$38 -> -47.1 | U42: =[20]Seg_PY!$D$61-T42 -> -48.8 | V42: =[21]Seg_PY!$D$87-U42-T42 -> -48.5 | W42: =[27]Seg_CY!$BD$17-T42-U42-V42-0.5 -> -46.1 | X42: =[23]Seg_PY!$D$38 -> -47.7 | Y42: =[20]Seg_CY!$U$17-X42 -> -45.4 | Z42: =[21]Seg_CY!$AL$17-X42-Y42 -> -47.2 | AA42: =[22]Seg_CY!$BD$17-X42-Y42-Z42 -> -46.1 | AB42: =[23]Seg_CY!$D$17 -> -49.4
A43: w tym amortyzacja wartości niematerialnych rozpoznanych w wyniku procesu alokacji ceny nabycia (PPA) | B43: of which amortization of IA recognized in purchase price allocation process (PPA) | C43: -7.7 | D43: -1.9 | E43: -2 | F43: -2 | G43: -3.1 | H43: -2.3 | I43: -2.2 | J43: -2.6 | K43: -4.1 | L43: -3.5 | M43: -3.4 | N43: -3.3 | O43: -3.2 | P43: =-3.5-0.1 -> -3.6 | Q43: =-4.5-0.2 -> -4.7 | R43: =-3.9-0.1 -> -4 | S43: -3.1 | T43: =[24]Seg_CY!$D$18 -> -4.5 | U43: =[26]Seg_CY!$U$18-T43 -> -5.4 | V43: =[21]Seg_PY!$D$88-U43-T43 -> -7.3 | W43: =[27]Seg_CY!$BD$18-T43-U43-V43-0.5 -> -5.7 | X43: =[23]Seg_PY!$D$39 -> -4.7 | Y43: =[20]Seg_CY!$U$18-X43 -> -4 | Z43: =[21]Seg_CY!$AL$18-X43-Y43 -> -5 | AA43: =[22]Seg_CY!$BD$18-X43-Z43-Y43 -> -4.3 | AB43: =[23]Seg_CY!$D$18 -> -5.8
A44: Koszty transakcji z pracownikami rozliczanych w formie instrumentów kapitałowych | B44: Costs of share-based payment transactions with employees | C44: -1.2 | D44: 0.6 | E44: -1.8 | F44: -0.6 | G44: -0.7 | H44: -0.7 | I44: -0.8 | J44: -0.3 | K44: -0.3 | L44: -0.3 | M44: -0.4 | N44: 0 | O44: 0 | P44: 0 | Q44: 0 | R44: 0 | S44: -0.1 | T44: =[24]Seg_CY!$D$19 -> -0.1 | U44: =[26]Seg_CY!$U$19-T44 -> 0 | V44: =[25]Seg_CY!$AL$19-U44-T44 -> -0.2 | W44: =[27]Seg_CY!$BD$19-T44-U44-V44 -> -0.1 | X44: =[19]Seg_CY!$D$19 -> -0.2 | Y44: =[20]Seg_CY!$U$19-X44 -> -0.1 | Z44: =[21]Seg_CY!$AL$19-X44-Y44 -> -0.2 | AA44: =[22]Seg_CY!$BD$19-X44-Y44-Z44 -> -0.1 | AB44: =[23]Seg_CY!$D$19 -> -0.2
A45: Odpis z tyt. utraty wartości aktywów segmentu | B45: Impairment write-downs on segment assets | C45: -32.1 | D45: -0.6 | E45: 0.4 | F45: -3.6 | G45: -4.7 | H45: -2.3 | I45: -1.8 | J45: -3.9 | K45: -2.2 | L45: -1.5 | M45: -2.6 | N45: -4.2 | O45: 0.1 | P45: -2.6 | Q45: 0.4 | R45: 3.8 | S45: -3.2 | T45: =[24]Seg_CY!$D$20 -> -3.9 | U45: =[26]Seg_CY!$U$20-T45 -> -47.8 | V45: =[25]Seg_CY!$AL$20-U45-T45 -> -3.6 | W45: =[27]Seg_CY!$BD$20-T45-U45-V45 -> -13.2 | X45: =[19]Seg_CY!$D$20 -> -2.8 | Y45: =[20]Seg_CY!$U$20-X45 -> -8.8 | Z45: =[21]Seg_CY!$AL$20-X45-Y45 -> -3 | AA45: =[22]Seg_CY!$BD$20-X45-Z45-Y45 -> -3.8 | AB45: =[23]Seg_CY!$D$20 -> -3.9
A46: Udział w wynikach jednostek stowarzyszonych i wspólnych przedsięwziąć | B46: Share in profits of associates and joint ventures | C46: -40 | D46: -1 | E46: 0.3 | F46: 0.1 | G46: 1.1 | H46: -1.9 | I46: -1.3 | J46: 0.2 | K46: 3.7 | L46: -1.5 | M46: 0.5 | N46: -0.3 | O46: 2.5 | P46: -1.3 | Q46: 0.7 | R46: 0.3 | S46: -8 | T46: =[24]Seg_CY!$D$23 -> 0.3 | U46: =[26]Seg_CY!$U$24-T46 -> 7.8 | V46: =[25]Seg_CY!$AL$24-U46-T46 -> 1.2 | W46: =[27]Seg_CY!$BD$25-T46-U46-V46 -> 0 | X46: =[19]Seg_CY!$D$24 -> -0.4 | Y46: =[20]Seg_CY!$U$24-X46 -> 0.4 | Z46: =[21]Seg_CY!$AL$24-X46-Y46 -> 0.4 | AA46: =[22]Seg_CY!$BD$25-X46-Y46-Z46 -> -0.1 | AB46: =[23]Seg_CY!$D$25 -> 0.3
A47: Zysk/strata netto segmentu przypisany Jednostce Dominującej | B47: Net profit/loss attributable to shareholders of the Parent Company | C47: 55.7 | D47: 26.3 | E47: 38.2 | F47: 31.8 | G47: 53.3 | H47: 38.3 | I47: 36.6 | J47: 44.9 | K47: 55.3 | L47: 42.7 | M47: 46.5 | N47: 36.2 | O47: 70.2 | P47: =[24]Seg_PY!$D$43-0.2 -> 45.1 | Q47: 63.3 | R47: 57.4 | S47: 46.1 | T47: =[19]Seg_PY!$D$45 -> 43.5 | U47: =[20]Seg_PY!$D$69-T47 -> 45.4 | V47: =[21]Seg_PY!$D$95-U47-T47 -> 47.7 | W47: =[27]Seg_CY!$BD$26-T47-U47-V47-0.2 -> 73.4 | X47: =[23]Seg_PY!$D$45 -> 46.3 | Y47: =[20]Seg_CY!$U$25-X47 -> 38.9 | Z47: =[21]Seg_CY!$AL$25-X47-Y47 -> 50.9 | AA47: =[22]Seg_CY!$BD$26-X47-Y47-Z47 -> 78 | AB47: =[23]Seg_CY!$D$26 -> 54.4
A48: Środki pieniężne netto z działalności operacyjnej | B48: Net cash provided by (used in) operating activities | C48: 341.6 | D48: 40.5 | E48: 58 | F48: 67.3 | G48: 229.9 | H48: 80.5 | I48: 43.3 | J48: 69.6 | K48: 299.8 | L48: 66 | M48: 93.3 | N48: 136.3 | O48: 284.2 | P48: 34.2 | Q48: 111.3 | R48: 152.4 | S48: 286.5 | T48: =[24]Seg_CY!$D$25 -> 77.3 | U48: =[26]Seg_CY!$U$26-T48 -> 69 | V48: =[25]Seg_CY!$AL$26-U48-T48 -> 117.4 | W48: =[27]Seg_CY!$BD$27-T48-U48-V48 -> 253.5 | X48: =[19]Seg_CY!$D$26 -> 153.2 | Y48: =[20]Seg_CY!$U$26-X48 -> 63.2 | Z48: =[21]Seg_CY!$AL$26-X48-Y48 -> 152.9 | AA48: =[22]Seg_CY!$BD$27-X48-Y48-Z48 -> 413.5 | AB48: =[23]Seg_CY!$D$27 -> 107.6
A49: Wartość firmy | B49: Goodwill | C49: 1327.2 | D49: 1345.6 | E49: 1394 | F49: 1366.1 | G49: 1367.7 | H49: 1362.7 | I49: 1355.5 | J49: 1443.2 | K49: 1419.6 | L49: 1490.6 | M49: 1469.2 | N49: 1477.7 | O49: 1511.9 | P49: =[24]Seg_PY!$D$103 -> 1645.1 | Q49: 1498.9 | R49: 1627.7 | S49: 1623.9 | T49: =[19]Seg_PY!$D$107 -> 1717.3 | U49: =[26]Seg_CY!$U$37 -> 1731 | V49: =[21]Seg_PY!$D$107 -> 1709.8 | W49: =[22]Seg_PY!$D$107 -> 1710 | X49: =[19]Seg_CY!$D$37 -> 1722.7 | Y49: =[20]Seg_CY!$U$37 -> 1636 | Z49: =[21]Seg_CY!$AL$37 -> 1692.8 | AA49: =[23]Seg_PY!$D$107 -> 1744.9 | AB49: =[23]Seg_CY!$D$38 -> 1727.8
A52: Segment Formula Systems | B52: Segment Formula Systems
C53: YE 2017 | D53: Q1 2018 | E53: Q2 2018 | F53: Q3 2018 | G53: Q4 2018 | H53: Q1 2019 | I53: Q2 2019 | J53: Q3 2019 | K53: Q4 2019 | L53: Q1 2020 | M53: Q2 2020 | N53: Q3 2020 | O53: Q4 2020 | P53: Q1 2021 | Q53: Q2 2021 | R53: Q3 2021 | S53: Q4 2021 | T53: Q1 2022 | U53: Q2 2022 | V53: =V10 -> Q3 2022 | W53: Q4 2022 | X53: Q1 2023 | Y53: Q2 2023 | Z53: Q3 2023 | AA53: Q4 2023 | AB53: =AB10 -> Q1 2024
C55: mln PLN | D55: mln PLN | E55: mln PLN | F55: mln PLN | G55: mln PLN | H55: mln PLN | I55: mln PLN | J55: mln PLN | K55: mln PLN | L55: mln PLN | M55: mln PLN | N55: mln PLN | O55: mln PLN | P55: mln PLN | Q55: mln PLN | R55: mln PLN | S55: mln PLN | T55: mln PLN | U55: mln PLN | V55: mln PLN | W55: mln PLN | X55: mln PLN | Y55: mln PLN | Z55: mln PLN | AA55: mln PLN | AB55: mln PLN
A57: Sprzedaż na rzecz klientów zewnętrznych | B57: Sales to external customers | C57: 4265.3 | D57: 1260.9 | E57: 1320.1 | F57: 1325.6 | G57: 1485.2 | H57: 1482.8 | I57: 1564.2 | J57: 1765.2 | K57: 1729.3 | L57: 1859.7 | M57: 1773.2 | N57: 1856.2 | O57: 2060.1 | P57: 2157.5 | Q57: 2202.4 | R57: 2287.8 | S57: 2649.2 | T57: =[19]Seg_PY!$E$30 -> 2704.2 | U57: =[20]Seg_PY!$E$53-T57 -> 2774.6 | V57: =[21]Seg_PY!$E$79-U57-T57 -> 2991.8 | W57: =[27]Seg_CY!$BE$9-T57-U57-V57 -> 2985.1 | X57: =[19]Seg_CY!$E$9 -> 2898.9 | Y57: =[20]Seg_CY!$V$9-X57 -> 2719.6 | Z57: =[21]Seg_CY!$AM$9-X57-Y57 -> 2708.6 | AA57: =[22]Seg_CY!$BE$9-X57-Y57-Z57 -> 2580 | AB57: =[23]Seg_CY!$E$9 -> 2798.2
A58: Sprzedaż pomiędzy segmentami | B58: Inter-segment sales | C58: 27.6 | D58: 2.9 | E58: 2.8 | F58: 2.2 | G58: 3 | H58: 3.3 | I58: 3 | J58: 3.4 | K58: 3.2 | L58: 2.8 | M58: 2.6 | N58: 2.8 | O58: 4 | P58: 2.4 | Q58: 3.6 | R58: 3 | S58: 3 | T58: =[19]Seg_PY!$E$31 -> 2.1 | U58: =[26]Seg_CY!$V$10-T58 -> 2.9 | V58: =[25]Seg_CY!$AM$10-U58-T58 -> 1.8 | W58: =[27]Seg_CY!$BE$10-T58-U58-V58 -> 1.5 | X58: =[19]Seg_CY!$E$10 -> 4.5 | Y58: =[20]Seg_CY!$V$10-X58 -> 3 | Z58: =[21]Seg_CY!$AM$10-X58-Y58 -> 4.5 | AA58: =[22]Seg_CY!$BE$10-X58-Y58-Z58 -> 3.8 | AB58: =[23]Seg_CY!$E$10 -> 3.4
A59: Zysk/strata netto z działalności operacyjnej segmentu | B59: Net operating profit/loss | C59: 185.3 | D59: 56.8 | E59: 69.8 | F59: 74.8 | G59: 99.7 | H59: 105 | I59: 109.4 | J59: 135 | K59: 123.3 | L59: 126.9 | M59: 160.5 | N59: 159 | O59: 168.2 | P59: 166.5 | Q59: 172.5 | R59: 182.9 | S59: 237.9 | T59: =[19]Seg_PY!$E$33 -> 224.6 | U59: =[20]Seg_PY!$E$56-T59 -> 403.1 | V59: =[21]Seg_PY!$E$82-U59-T59 -> 250.9 | W59: =[27]Seg_CY!$BE$12-T59-U59-V59-21.1 -> 235.2 | X59: =[19]Seg_CY!$E$12 -> 237.6 | Y59: =[20]Seg_CY!$V$12-X59 -> 225.7 | Z59: =[21]Seg_CY!$AM$12-X59-Y59 -> 214.6 | AA59: =[22]Seg_CY!$BE$12-X59-Y59-Z59 -> 228.5 | AB59: =[23]Seg_CY!$E$12 -> 236.6
A60: Przychody z tytułu odsetek | B60: Interest income | C60: 6.1 | D60: 0.4 | E60: 0.5 | F60: 0.7 | G60: 0.8 | H60: 1.3 | I60: 0.9 | J60: 2.3 | K60: 0.1 | L60: 1 | M60: 0.5 | N60: 4.6 | O60: -2.8 | P60: 0.8 | Q60: 0 | R60: 0.5 | S60: 1.8 | T60: =[24]Seg_CY!$E$13 -> 0.4 | U60: =[26]Seg_CY!$V$13-T60 -> 2.3 | V60: =[25]Seg_CY!$AM$13-U60-T60 -> 6.7 | W60: =[27]Seg_CY!$BE$13-T60-U60-V60 -> 5.7 | X60: =[19]Seg_CY!$E$13 -> 8.7 | Y60: =[20]Seg_CY!$V$13-X60 -> 12.2 | Z60: =[21]Seg_CY!$AM$13-X60-Y60 -> 10.1 | AA60: =[22]Seg_CY!$BE$13-X60-Y60-Z60 -> 18.3 | AB60: =[23]Seg_CY!$E$13 -> 14.2
A61: Koszty z tytułu odsetek | B61: Interest expenses | C61: -32.3 | D61: -9.9 | E61: -10.4 | F61: -11.2 | G61: -11.4 | H61: -13.8 | I61: -17.2 | J61: -19.8 | K61: -14.5 | L61: -17.8 | M61: -19.9 | N61: -17.9 | O61: -21.1 | P61: -16.3 | Q61: -16.8 | R61: -17.5 | S61: -20.6 | T61: =[24]Seg_CY!$E$14 -> -17.7 | U61: =[26]Seg_CY!$V$14-T61 -> -16.9 | V61: =[25]Seg_CY!$AM$14-U61-T61 -> -24.2 | W61: =[27]Seg_CY!$BE$14-T61-U61-V61 -> -28.5 | X61: =[19]Seg_CY!$E$14 -> -28.3 | Y61: =[20]Seg_CY!$V$14-X61 -> -35.2 | Z61: =[21]Seg_CY!$AM$14-X61-Y61 -> -30.1 | AA61: =[22]Seg_CY!$BE$14-X61-Y61-Z61 -> -31.8 | AB61: =[23]Seg_CY!$E$14 -> -32.4
A62: Podatek dochodowy | B62: Corporate income tax | C62: -70.6 | D62: -13.4 | E62: -15.1 | F62: -11 | G62: -25.9 | H62: -19.6 | I62: -22.7 | J62: -25.5 | K62: -21.8 | L62: -26.6 | M62: -32.5 | N62: -27.4 | O62: -19.5 | P62: -31.6 | Q62: -38 | R62: -34.6 | S62: -46.9 | T62: =[24]Seg_CY!$E$15 -> -42.6 | U62: =[20]Seg_PY!$E$59-T62 -> -89.5 | V62: =[21]Seg_PY!$E$85-U62-T62 -> -47.5 | W62: =[27]Seg_CY!$BE$15-T62-U62-V62 -> -48.6 | X62: =[19]Seg_CY!$E$15 -> -44.5 | Y62: =[20]Seg_CY!$V$15-X62 -> -42 | Z62: =[21]Seg_CY!$AM$15-X62-Y62 -> -47 | AA62: =[22]Seg_CY!$BE$15-X62-Y62-Z62 -> -38.8 | AB62: =[23]Seg_CY!$E$15 -> -50.4
A63: Pozycje niepieniężne: | B63: Non-cash items:
A64: Amortyzacja | B64: Depreciation and amortization | C64: -169.9 | D64: -73.6 | E64: -65.5 | F64: -65.9 | G64: -70 | H64: -87.5 | I64: -101 | J64: -104.1 | K64: -107 | L64: -104.8 | M64: -107.1 | N64: -111.7 | O64: -122.7 | P64: -112.2 | Q64: -122.5 | R64: -125 | S64: -171.8 | T64: =[19]Seg_PY!$E$38 -> -144.9 | U64: =[20]Seg_PY!$E$61-T64 -> -144 | V64: =[21]Seg_PY!$E$87-U64-T64 -> -163.5 | W64: =[27]Seg_CY!$BE$17-T64-U64-V64 -> -161.2 | X64: =[19]Seg_CY!$E$17 -> -155 | Y64: =[20]Seg_CY!$V$17-X64 -> -148.5 | Z64: =[21]Seg_CY!$AM$17-X64-Y64 -> -146.8 | AA64: =[22]Seg_CY!$BE$17-X64-Y64-Z64 -> -144.6 | AB64: =[23]Seg_CY!$E$17 -> -132.3
A65: w tym amortyzacja wartości niematerialnych rozpoznanych w wyniku procesu alokacji ceny nabycia (PPA) | B65: of which amortization of IA recognized in purchase price allocation process (PPA) | C65: -114 | D65: -56.5 | E65: -48.1 | F65: -47.5 | G65: -51.1 | H65: -44.9 | I65: -44.4 | J65: -48.6 | K65: -47.4 | L65: -45.8 | M65: -49.9 | N65: -50 | O65: -51.7 | P65: -53.3 | Q65: -55.8 | R65: -64.4 | S65: -63.6 | T65: =[24]Seg_CY!$E$18 -> -63.9 | U65: =[26]Seg_CY!$V$18-T65 -> -66.4 | V65: =[21]Seg_PY!$E$88-U65-T65 -> -68.4 | W65: =[27]Seg_CY!$BE$18-T65-U65-V65 -> -69.4 | X65: =[19]Seg_CY!$E$18 -> -67.5 | Y65: =[20]Seg_CY!$V$18-X65 -> -62.5 | Z65: =[21]Seg_CY!$AM$18-X65-Y65 -> -63.8 | AA65: =[22]Seg_CY!$BE$18-X65-Y65-Z65 -> -59.9 | AB65: =[23]Seg_CY!$E$18 -> -51.9
A66: Koszty transakcji z pracownikami rozliczanych w formie instrumentów kapitałowych | B66: Costs of share-based payment transactions with employees | C66: -17.6 | D66: -4.8 | E66: -5.7 | F66: -4.7 | G66: -3.9 | H66: -4.4 | I66: -3 | J66: -4 | K66: -3.1 | L66: -13 | M66: 3.1 | N66: -4.9 | O66: -16 | P66: -15 | Q66: -14.3 | R66: -11.9 | S66: -17.3 | T66: =[24]Seg_CY!$E$19 -> -18.2 | U66: =[26]Seg_CY!$V$19-T66 -> -13.9 | V66: =[25]Seg_CY!$AM$19-U66-T66 -> -12.2 | W66: =[27]Seg_CY!$BE$19-T66-U66-V66 -> -20.1 | X66: =[19]Seg_CY!$E$19 -> -19.1 | Y66: =[20]Seg_CY!$V$19-X66 -> -19.8 | Z66: =[21]Seg_CY!$AM$19-X66-Y66 -> -18 | AA66: =[22]Seg_CY!$BE$19-X66-Y66-Z66 -> -23.2 | AB66: =[23]Seg_CY!$E$19 -> -17.6
A67: Odpis z tyt. utraty wartości aktywów segmentu | B67: Impairment write-downs on segment assets | C67: -4 | D67: -1.6 | E67: -0.9 | F67: -0.8 | G67: -1.7 | H67: 0.1 | I67: -0.6 | J67: -0.9 | K67: -1.9 | L67: -1.9 | M67: -3.3 | N67: -3.3 | O67: -2.4 | P67: 2.3 | Q67: -0.5 | R67: -0.4 | S67: -5.7 | T67: =[24]Seg_CY!$E$20 -> 0.6 | U67: =[26]Seg_CY!$V$20-T67 -> 1.5 | V67: =[25]Seg_CY!$AM$20-U67-T67 -> 0.4 | W67: =[27]Seg_CY!$BE$20-T67-U67-V67 -> -2.9 | X67: =[19]Seg_CY!$E$20 -> -3.9 | Y67: =[20]Seg_CY!$V$20-X67 -> -5.3 | Z67: =[21]Seg_CY!$AM$20-X67-Y67 -> -3.5 | AA67: =[22]Seg_CY!$BE$20-X67-Y67-Z67 -> -3.3 | AB67: =[23]Seg_CY!$E$20 -> 1.9
A68: Udział w wynikach jednostek stowarzyszonych i wspólnych przedsięwziąć | B68: Share in profits of associates and joint ventures | C68: 3.4 | D68: 0.2 | E68: -0.4 | F68: 0 | G68: 1.6 | H68: 2.8 | I68: 1.4 | J68: 1.6 | K68: 1.2 | L68: 0.5 | M68: 0.9 | N68: -0.1 | O68: 4.4 | P68: 1 | Q68: 1.7 | R68: -1.1 | S68: 0.6 | T68: =[24]Seg_CY!$E$23 -> 0.9 | U68: =[26]Seg_CY!$V$24-T68 -> 1.7 | V68: =[25]Seg_CY!$AM$24-U68-T68 -> -0.1 | W68: =[27]Seg_CY!$BE$25-T68-U68-V68 -> -11.1 | X68: =[19]Seg_CY!$E$24 -> 0.2 | Y68: =[20]Seg_CY!$V$24-X68 -> 0.7 | Z68: =[21]Seg_CY!$AM$24-X68-Y68 -> 1.7 | AA68: =[22]Seg_CY!$BE$25-X68-Y68-Z68 -> 0.6 | AB68: =[23]Seg_CY!$E$25 -> 0.4
A69: Zysk/strata netto segmentu przypisany Jednostce Dominującej | B69: Net profit/loss attributable to shareholders of the Parent Company | C69: 405.5 | D69: 3.4 | E69: 5.1 | F69: 4.3 | G69: 7.8 | H69: 6 | I69: 8.8 | J69: 8.8 | K69: 8.7 | L69: 7.4 | M69: 11.9 | N69: 10.5 | O69: 10.7 | P69: 11.4 | Q69: 10.2 | R69: 11.9 | S69: 15.2 | T69: =[19]Seg_PY!$E$45 -> 16 | U69: =[20]Seg_PY!$E$69-T69 -> 34 | V69: =[21]Seg_PY!$E$95-U69-T69 -> 19.30448 | W69: =[27]Seg_CY!$BE$26-T69-U69-V69-0.1 -> 12.99552 | X69: =[19]Seg_CY!$E$25 -> 15.5 | Y69: =[20]Seg_CY!$V$25-X69 -> 16.9 | Z69: =[21]Seg_CY!$AM$25-Y69-X69 -> 15.1 | AA69: =[22]Seg_CY!$BE$26-X69-Y69-Z69 -> 14.9 | AB69: =[23]Seg_CY!$E$26 -> 17.1
A70: Środki pieniężne netto z działalności operacyjnej | B70: Net cash provided by (used in) operating activities | C70: 382.9 | D70: 89 | E70: 40.5 | F70: 55.1 | G70: 241.5 | H70: 218.1 | I70: 135.6 | J70: 245.7 | K70: 382.7 | L70: 257.4 | M70: 329.5 | N70: 293.2 | O70: 456.1 | P70: 47.8 | Q70: 280.4 | R70: 191.9 | S70: 497.6 | T70: =[19]Seg_PY!$E$46 -> 273.7 | U70: =[26]Seg_CY!$V$26-T70 -> 190.1 | V70: =[25]Seg_CY!$AM$26-U70-T70 -> 340.1 | W70: =[27]Seg_CY!$BE$27-T70-U70-V70 -> 618.5 | X70: =[19]Seg_CY!$E$26 -> 223.6 | Y70: =[20]Seg_CY!$V$26-X70 -> 415.2 | Z70: =[21]Seg_CY!$AM$26-X70-Y70 -> 367.9 | AA70: =[22]Seg_CY!$BE$27-X70-Y70-Z70 -> 707.7 | AB70: =[23]Seg_CY!$E$27 -> 307.9
A71: Wartość firmy | B71: Goodwill | C71: 435.4 | D71: 628.8 | E71: 551.3 | F71: 575 | G71: 628.3 | H71: 796.6 | I71: 795.2 | J71: 922.6 | K71: 881.2 | L71: 1014.4 | M71: 1014.8 | N71: 1141.1 | O71: 1362.2 | P71: =[24]Seg_PY!$E$103 -> 1694.9 | Q71: 1671 | R71: 1694.4 | S71: 1691.5 | T71: =[19]Seg_PY!$E$107 -> 1959.7 | U71: =[26]Seg_CY!$V$37 -> 1968.6 | V71: =[21]Seg_PY!$E$107 -> 1963.6 | W71: =[22]Seg_PY!$E$107 -> 1956.2 | X71: =[19]Seg_CY!$E$37 -> 1944.6 | Y71: =[20]Seg_CY!$V$37 -> 1930.8 | Z71: =[21]Seg_CY!$AM$37 -> 1983.2 | AA71: =[23]Seg_PY!$E$107 -> 1829.5 | AB71: =[23]Seg_CY!$E$38 -> 1859.9

Sheet wyniki spolek (hidden)
E1: Przychody ze sprzedaży | AI1: Zysk operacyjny | BM1: Zysk operacyjny non-IFRS | CQ1: Zysk netto 100% | DU1: Zysk netto kontrybucja do Asseco Poland | EY1: Zysk netto kontrybucja do Asseco Poland non-IFRS
E2: Q1 2017 | F2: Q2 2017 | G2: Q3 2017 PF | H2: Q4 2017 PF | I2: Q1 2018 | J2: Q2 2018 | K2: Q3 2018 | L2: Q4 2018 | M2: Q1 2019 | N2: Q2 2019 | O2: Q3 2019 | P2: Q4 2019 | Q2: Q1 2020 | R2: Q2 2020 | S2: Q3 2020 | T2: Q4 2020 | U2: Q1 2021 | V2: Q2 2021 | W2: Q3 2021 | X2: Q4 2021 | Y2: Q1 2022 | Z2: Q2 2022 | AA2: Q3 2022 | AB2: Q4 2022 | AC2: Q1 2023 | AD2: Q2 2023 | AE2: Q3 2023 | AF2: Q4 2023 | AG2: Q1 2024 | AI2: Q1 2017 | AJ2: Q2 2017 | AK2: Q3 2017 PF | AL2: Q4 2017 PF | AM2: Q1 2018 | AN2: Q2 2018 | AO2: Q3 2018 | AP2: Q4 2018 | AQ2: Q1 2019 | AR2: Q2 2019 | AS2: Q3 2019 | AT2: Q4 2019 | AU2: Q1 2020 | AV2: Q2 2020 | AW2: Q3 2020 | AX2: Q4 2020 | AY2: Q1 2021 | AZ2: Q2 2021 | BA2: Q3 2021 | BB2: Q4 2021 | BC2: Q1 2022 | BD2: Q2 2022 | BE2: Q3 2022 | BF2: Q4 2022 | BG2: Q1 2023 | BH2: Q2 2023 | BI2: Q3 2023 | BJ2: Q4 2023 | BK2: Q1 2024 | BM2: Q1 2017 | BN2: Q2 2017 | BO2: Q3 2017 PF | BP2: Q4 2017 PF | BQ2: Q1 2018 | BR2: Q2 2018 | BS2: Q3 2018 | BT2: Q4 2018 | BU2: Q1 2019 | BV2: Q2 2019 | BW2: Q3 2019 | BX2: Q4 2019 | BY2: Q1 2020 | BZ2: Q2 2020 | CA2: Q3 2020 | CB2: Q4 2020 | CC2: Q1 2021 | CD2: Q2 2021 | CE2: Q3 2021 | CF2: Q4 2021 | CG2: Q1 2022 | CH2: Q2 2022 | CI2: Q3 2022 | CJ2: Q4 2022 | CK2: Q1 2023 | CL2: Q2 2023 | CM2: Q3 2023 | CN2: Q4 2023 | CO2: Q1 2024 | CQ2: Q1 2017 | CR2: Q2 2017 | CS2: Q3 2017 PF | CT2: Q4 2017 PF | CU2: Q1 2018 | CV2: Q2 2018 | CW2: Q3 2018 | CX2: Q4 2018 | CY2: Q1 2019 | CZ2: Q2 2019 | DA2: Q3 2019 | DB2: Q4 2019 | DC2: Q1 2020 | DD2: Q2 2020 | DE2: Q3 2020 | DF2: Q4 2020 | DG2: Q1 2021 | DH2: Q2 2021 | DI2: Q3 2021 | DJ2: Q4 2021 | DK2: Q1 2022 | DL2: Q2 2022 | DM2: Q3 2022 | DN2: Q4 2022 | DO2: Q1 2023 | DP2: Q2 2023 | DQ2: Q3 2023 | DR2: Q4 2023 | DS2: Q1 2024 | DU2: Q1 2017 | DV2: Q2 2017 | DW2: Q3 2017 PF | DX2: Q4 2017 PF | DY2: Q1 2018 | DZ2: Q2 2018 | EA2: Q3 2018 | EB2: Q4 2018 | EC2: Q1 2019 | ED2: Q2 2019 | EE2: Q3 2019 | EF2: Q4 2019 | EG2: Q1 2020 | EH2: Q2 2020 | EI2: Q3 2020 | EJ2: Q4 2020 | EK2: Q1 2021 | EL2: Q2 2021 | EM2: Q3 2021 | EN2: Q4 2021 | EO2: Q1 2022 | EP2: Q2 2022 | EQ2: Q3 2022 | ER2: Q4 2022 | ES2: Q1 2023 | ET2: Q2 2023 | EU2: Q3 2023 | EV2: Q4 2023 | EW2: Q1 2024 | EY2: Q1 2017 | EZ2: Q2 2017 | FA2: Q3 2017 PF | FB2: Q4 2017 PF | FC2: Q1 2018 | FD2: Q2 2018 | FE2: Q3 2018 | FF2: Q4 2018 | FG2: Q1 2019 | FH2: Q2 2019 | FI2: Q3 2019 | FJ2: Q4 2019 | FK2: Q1 2020 | FL2: Q2 2020 | FM2: Q3 2020 | FN2: Q4 2020 | FO2: Q1 2021 | FP2: Q2 2021 | FQ2: Q3 2021 | FR2: Q4 2021 | FS2: Q1 2022 | FT2: Q2 2022 | FU2: Q3 2022 | FV2: Q4 2022 | FW2: Q1 2023 | FX2: Q2 2023 | FY2: Q3 2023 | FZ2: Q4 2023 | GA2: Q1 2024
B3: Rynek polski | E3: 309516599.5 | F3: 315459007.2 | G3: 316876448.7 | H3: 403847944.7 | I3: 316300000 | J3: 352100000 | K3: 308200000 | L3: 382200000 | M3: 298600000 | N3: 305100000 | O3: 290100000 | P3: 318500000 | Q3: 310700000 | R3: 332000000 | S3: 365500000 | T3: 430400000 | U3: ='[37]wyniki spółek Q1 adj przypisane'!$F$3 -> 366800000 | V3: ='[38]wyniki spółek H1 adj przypisane'!$F$3-U3 -> 384300000 | W3: ='[39]wyniki spółek Q1-Q3'!$F$3-U3-V3 -> 372400000 | X3: ='[40]wyniki spółek Q1-Q4'!$F$3-W3-V3-U3 -> 451700000 | Y3: ='[41]wyniki spółek Q1 (adj)'!$F$3 -> 408400000 | Z3: ='[42]wyniki spółek Q1-Q2 (adj)'!$F$3-Y3 -> 430000000 | AA3: ='[43]wyniki spółek Q1-Q3 (adj)'!$F$3-Z3-Y3 -> 420000000 | AB3: ='[44]wyniki spółek Q1-Q4 (adj)'!$F$3-AA3-Z3-Y3 -> 479600000 | AC3: ='[45]wyniki spółek Q1 (adj)'!$F$3 -> 457100000 | AD3: ='[42]wyniki spółek Q1-Q2 (adj)'!$E$3-AC3 -> 513600000 | AE3: ='[43]wyniki spółek Q1-Q3 (adj)'!$E$3-AD3-AC3 -> 444600000 | AF3: ='[44]wyniki spółek Q1-Q4 (adj)'!$E$3-AE3-AD3-AC3 -> 548500000 | AG3: ='[45]wyniki spółek Q1 (adj)'!$E$3 -> 508700000 | AI3: 39548957.47 | AJ3: 31800597.66 | AK3: 35960657.83 | AL3: 45189787.04 | AM3: 55800000 | AN3: 64700000 | AO3: 52600000 | AP3: 47600000 | AQ3: 43300000 | AR3: 44100000 | AS3: 38200000 | AT3: 27500000 | AU3: 42700000 | AV3: 52100000 | AW3: 60200000 | AX3: 59800000 | AY3: ='[37]wyniki spółek Q1 adj przypisane'!$J$3 -> 59000000 | AZ3: ='[38]wyniki spółek H1 adj przypisane'!$J$3-AY3 -> 78300000 | BA3: ='[39]wyniki spółek Q1-Q3'!$J$3-AY3-AZ3 -> 70000000 | BB3: ='[40]wyniki spółek Q1-Q4'!$J$3-BA3-AZ3-AY3 -> 56000000 | BC3: ='[41]wyniki spółek Q1 (adj)'!$J$3 -> 67500000 | BD3: ='[42]wyniki spółek Q1-Q2 (adj)'!$J$3-BC3 -> 73000000 | BE3: ='[43]wyniki spółek Q1-Q3 (adj)'!$N$3-BD3-BC3 -> 74100000 | BF3: ='[44]wyniki spółek Q1-Q4 (adj)'!$N$3-BE3-BD3-BC3 -> 60400000 | BG3: ='[45]wyniki spółek Q1 (adj)'!$N$3 -> 66200000 | BH3: ='[42]wyniki spółek Q1-Q2 (adj)'!$I$3-BG3 -> 76700000 | BI3: ='[43]wyniki spółek Q1-Q3 (adj)'!$M$3-BH3-BG3 -> 56200000 | BJ3: ='[44]wyniki spółek Q1-Q4 (adj)'!$M$3-BI3-BH3-BG3 -> 65300000 | BK3: ='[45]wyniki spółek Q1 (adj)'!$M$3 -> 86000000 | BM3: 44062957.47 | BN3: 36309597.66 | BO3: 40471657.83 | BP3: 49697787.04 | BQ3: 60015000 | BR3: 68917000 | BS3: 57201888.89 | BT3: 52401611.11 | BU3: 46963000 | BV3: 48868000 | BW3: 42415000 | BX3: 31551000 | BY3: 46715000 | BZ3: 56206000 | CA3: 64245896.34 | CB3: 68049000 | CC3: ='[37]wyniki spółek Q1 adj przypisane'!$N$3 -> 62792000 | CD3: ='[38]wyniki spółek H1 adj przypisane'!$N$3-CC3 -> 82092000 | CE3: ='[39]wyniki spółek Q1-Q3'!$N$3-CC3-CD3 -> 73792000 | CF3: ='[40]wyniki spółek Q1-Q4'!$N$3-CE3-CD3-CC3 -> 59761000 | CG3: ='[41]wyniki spółek Q1 (adj)'!$N$3 -> 70813000 | CH3: ='[42]wyniki spółek Q1-Q2 (adj)'!$N$3-CG3 -> 76272000 | CI3: ='[43]wyniki spółek Q1-Q3 (adj)'!$R$3-CH3-CG3 -> 76934501.85 | CJ3: ='[44]wyniki spółek Q1-Q4 (adj)'!$R$3-CI3-CH3-CG3 -> 68650498.15 | CK3: ='[45]wyniki spółek Q1 (adj)'!$R$3 -> 69722000 | CL3: ='[42]wyniki spółek Q1-Q2 (adj)'!$M$3-CK3 -> 85138000 | CM3: ='[43]wyniki spółek Q1-Q3 (adj)'!$Q$3-CL3-CK3 -> 59722000 | CN3: ='[44]wyniki spółek Q1-Q4 (adj)'!$Q$3-CM3-CL3-CK3 -> 63577000 | CO3: ='[45]wyniki spółek Q1 (adj)'!$Q$3 -> 89912379.31 | CQ3: 61188493.37 | CR3: -7064661.769 | CS3: 21429629.69 | CT3: -55737461.29 | CU3: 40102344 | CV3: 47387684.99 | CW3: 42641000.25 | CX3: 38170000 | CY3: 36046000 | CZ3: 35529000 | DA3: 25786000 | DB3: 20997000 | DC3: 32498000 | DD3: 39809000 | DE3: 44183000 | DF3: 55249000 | DG3: ='[37]wyniki spółek Q1 adj przypisane'!$R$3 -> 45856000 | DH3: ='[38]wyniki spółek H1 adj przypisane'!$R$3-DG3 -> 69866000 | DI3: ='[39]wyniki spółek Q1-Q3'!$R$3-DG3-DH3 -> 51464000 | DJ3: ='[40]wyniki spółek Q1-Q4'!$R$3-DI3-DH3-DG3 -> 41895000 | DK3: ='[41]wyniki spółek Q1 (adj)'!$R$3 -> 47850000 | DL3: ='[42]wyniki spółek Q1-Q2 (adj)'!$R$3-DK3 -> 62902000 | DM3: ='[43]wyniki spółek Q1-Q3 (adj)'!$V$3-DL3-DK3 -> 62869000 | DN3: ='[44]wyniki spółek Q1-Q4 (adj)'!$V$3-DM3-DL3-DK3 -> 41561000 | DO3: ='[45]wyniki spółek Q1 (adj)'!$V$3 -> 51134000 | DP3: ='[42]wyniki spółek Q1-Q2 (adj)'!$Q$3-DO3 -> 65434000 | DQ3: ='[43]wyniki spółek Q1-Q3 (adj)'!$U$3-DP3-DO3 -> 50336000 | DR3: ='[44]wyniki spółek Q1-Q4 (adj)'!$U$3-DQ3-DP3-DO3 -> 49524000 | DS3: ='[45]wyniki spółek Q1 (adj)'!$U$3 -> 60165000 | DU3: 32692050.16 | DV3: 18452194.74 | DW3: 17264902.86 | DX3: -61329708.7 | DY3: 38838820.02 | DZ3: 45274107.62 | EA3: 40449367.94 | EB3: 37024006.86 | EC3: 35275148.13 | ED3: 33558061.85 | EE3: 24904693.43 | EF3: 20001920.55 | EG3: 32130028.11 | EH3: 37069971.89 | EI3: 42982204.68 | EJ3: 55713900.92 | EK3: ='[37]wyniki spółek Q1 adj przypisane'!$V$3 -> 45900000 | EL3: ='[38]wyniki spółek H1 adj przypisane'!$V$3-EK3 -> 68700000 | EM3: ='[39]wyniki spółek Q1-Q3'!$V$3-EK3-EL3 -> 50451537.32 | EN3: ='[40]wyniki spółek Q1-Q4'!$V$3-EM3-EL3-EK3 -> 41548462.68 | EO3: ='[41]wyniki spółek Q1 (adj)'!$V$3 -> 48600000 | EP3: ='[42]wyniki spółek Q1-Q2 (adj)'!$V$3-EO3 -> 61100000 | EQ3: ='[43]wyniki spółek Q1-Q3 (adj)'!$Z$3-EP3-EO3 -> 61108941.87 | ER3: ='[44]wyniki spółek Q1-Q4 (adj)'!$Z$3-EQ3-EP3-EO3 -> 40084778.41 | ES3: ='[45]wyniki spółek Q1 (adj)'!$Z$3 -> 49880190.19 | ET3: ='[42]wyniki spółek Q1-Q2 (adj)'!$U$3-ES3 -> 63510335.91 | EU3: ='[43]wyniki spółek Q1-Q3 (adj)'!$Y$3-ET3-ES3 -> 48358737.32 | EV3: ='[44]wyniki spółek Q1-Q4 (adj)'!$Y$3-EU3-ET3-ES3 -> 46859397.33 | EW3: ='[45]wyniki spółek Q1 (adj)'!$Y$3 -> 58110153.34 | EY3: 36515879.33 | EZ3: 21823327.26 | FA3: 20942396.14 | FB3: 23927950.23 | FC3: 42233927.18 | FD3: 48799776.92 | FE3: 43380577.79 | FF3: 37137603.95 | FG3: 38245108.59 | FH3: 37655121.85 | FI3: 28268693.43 | FJ3: 23305010.09 | FK3: 35382028.11 | FL3: 40411412.03 | FM3: 46265011.02 | FN3: 62432350.92 | FO3: ='[37]wyniki spółek Q1 adj przypisane'!$Z$3 -> 48971000 | FP3: ='[38]wyniki spółek H1 adj przypisane'!$Z$3-FO3 -> 64692278.5 | FQ3: ='[39]wyniki spółek Q1-Q3'!$Z$3-FO3-FP3 -> 55254737.32 | FR3: ='[40]wyniki spółek Q1-Q4'!$Z$3-FQ3-FP3-FO3 -> 42845984.18 | FS3: ='[41]wyniki spółek Q1 (adj)'!$Z$3 -> 51315000 | FT3: ='[42]wyniki spółek Q1-Q2 (adj)'!$Z$3-FS3 -> 63751000 | FU3: ='[43]wyniki spółek Q1-Q3 (adj)'!$AD$3-FT3-FS3 -> 63708755.03 | FV3: ='[44]wyniki spółek Q1-Q4 (adj)'!$AD$3-FU3-FT3-FS3 -> 52931824.89 | FW3: ='[45]wyniki spółek Q1 (adj)'!$AD$3 -> 53236195.19 | FX3: ='[42]wyniki spółek Q1-Q2 (adj)'!$Y$3-FW3 -> 71172330.91 | FY3: ='[43]wyniki spółek Q1-Q3 (adj)'!$AC$3-FX3-FW3 -> 49916737.32 | FZ3: ='[44]wyniki spółek Q1-Q4 (adj)'!$AC$3-FY3-FX3-FW3 -> 45988397.33 | GA3: ='[45]wyniki spółek Q1 (adj)'!$AC$3 -> 61334878.33
B4: Asseco Poland (bez dywidend) | E4: 202880000 | F4: 196326000 | G4: 202853000 | H4: 259176000 | I4: 205373000 | J4: 225425000 | K4: 210982000 | L4: 251505000 | M4: 195051000 | N4: 210024000 | O4: 191685000 | P4: 208784000 | Q4: 203854000 | R4: 226591000 | S4: 261223000 | T4: 315204000 | U4: ='[37]wyniki spółek Q1 adj przypisane'!$F$4 -> 261578000 | V4: ='[38]wyniki spółek H1 adj przypisane'!$F$4-U4 -> 268176000 | W4: ='[39]wyniki spółek Q1-Q3'!$F$4-U4-V4 -> 263503000 | X4: ='[40]wyniki spółek Q1-Q4'!$F$4-W4-V4-U4 -> 305705000 | Y4: ='[41]wyniki spółek Q1 (adj)'!$F$4 -> 279847000 | Z4: ='[42]wyniki spółek Q1-Q2 (adj)'!$F$4-Y4 -> 293426000 | AA4: ='[43]wyniki spółek Q1-Q3 (adj)'!$F$4-Z4-Y4 -> 303086000 | AB4: ='[44]wyniki spółek Q1-Q4 (adj)'!$F$4-AA4-Z4-Y4 -> 326428000 | AC4: ='[45]wyniki spółek Q1 (adj)'!$F$4 -> 317481000 | AD4: ='[42]wyniki spółek Q1-Q2 (adj)'!$E$4-AC4 -> 367072000 | AE4: ='[43]wyniki spółek Q1-Q3 (adj)'!$E$4-AD4-AC4 -> 322455000 | AF4: ='[44]wyniki spółek Q1-Q4 (adj)'!$E$4-AE4-AD4-AC4 -> 373126000 | AG4: ='[45]wyniki spółek Q1 (adj)'!$E$4 -> 370979000 | AI4: 31517000 | AJ4: 22093000 | AK4: 32430000 | AL4: 34655000 | AM4: 46308000 | AN4: 43215000 | AO4: 47506000 | AP4: 44687000 | AQ4: 29061000 | AR4: 31933000 | AS4: 28117000 | AT4: 20223000 | AU4: 31374000 | AV4: 34011000 | AW4: 43893000 | AX4: 48777000 | AY4: ='[37]wyniki spółek Q1 adj przypisane'!$J$4 -> 46049000 | AZ4: ='[38]wyniki spółek H1 adj przypisane'!$J$4-AY4 -> 56996000 | BA4: ='[39]wyniki spółek Q1-Q3'!$J$4-AY4-AZ4 -> 55925000 | BB4: ='[40]wyniki spółek Q1-Q4'!$J$4-BA4-AZ4-AY4 -> 27558000 | BC4: ='[41]wyniki spółek Q1 (adj)'!$J$4 -> 46609000 | BD4: ='[42]wyniki spółek Q1-Q2 (adj)'!$J$4-BC4 -> 49778000 | BE4: ='[43]wyniki spółek Q1-Q3 (adj)'!$N$4-BD4-BC4 -> 48956000 | BF4: ='[44]wyniki spółek Q1-Q4 (adj)'!$N$4-BE4-BD4-BC4 -> 46894000 | BG4: ='[45]wyniki spółek Q1 (adj)'!$N$4 -> 50121000 | BH4: ='[42]wyniki spółek Q1-Q2 (adj)'!$I$4-BG4 -> 60572000 | BI4: ='[43]wyniki spółek Q1-Q3 (adj)'!$M$4-BH4-BG4 -> 42383000 | BJ4: ='[44]wyniki spółek Q1-Q4 (adj)'!$M$4-BI4-BH4-BG4 -> 34751000 | BK4: ='[45]wyniki spółek Q1 (adj)'!$M$4 -> 69223000 | BM4: 34225000 | BN4: 24801000 | BO4: 35136000 | BP4: 37363000 | BQ4: 49016000 | BR4: 45922000 | BS4: 50213000 | BT4: 47397000 | BU4: 31769000 | BV4: 34640000 | BW4: 30825000 | BX4: 22731000 | BY4: 33881000 | BZ4: 36518000 | CA4: 46490000 | CB4: 55622000 | CC4: ='[37]wyniki spółek Q1 adj przypisane'!$N$4 -> 48422000 | CD4: ='[38]wyniki spółek H1 adj przypisane'!$N$4-CC4 -> 59369000 | CE4: ='[39]wyniki spółek Q1-Q3'!$N$4-CC4-CD4 -> 58299000 | CF4: ='[40]wyniki spółek Q1-Q4'!$N$4-CE4-CD4-CC4 -> 29929000 | CG4: ='[41]wyniki spółek Q1 (adj)'!$N$4 -> 48214000 | CH4: ='[42]wyniki spółek Q1-Q2 (adj)'!$N$4-CG4 -> 51383000 | CI4: ='[43]wyniki spółek Q1-Q3 (adj)'!$R$4-CH4-CG4 -> 50561000 | CJ4: ='[44]wyniki spółek Q1-Q4 (adj)'!$R$4-CI4-CH4-CG4 -> 48499000 | CK4: ='[45]wyniki spółek Q1 (adj)'!$R$4 -> 51726000 | CL4: ='[42]wyniki spółek Q1-Q2 (adj)'!$M$4-CK4 -> 62177000 | CM4: ='[43]wyniki spółek Q1-Q3 (adj)'!$Q$4-CL4-CK4 -> 43988000 | CN4: ='[44]wyniki spółek Q1-Q4 (adj)'!$Q$4-CM4-CL4-CK4 -> 36356000 | CO4: ='[45]wyniki spółek Q1 (adj)'!$Q$4 -> 70828000 | CQ4: 21672691.01 | CR4: 17421308.99 | CS4: -5260351.69 | CT4: -3603648.31 | CU4: 38885000 | CV4: 30938000 | CW4: 40170000 | CX4: 36002000 | CY4: 24125000 | CZ4: 28206000 | DA4: 22701000 | DB4: 16943000 | DC4: 24274000 | DD4: 25451000 | DE4: 32927000 | DF4: 46838000 | DG4: ='[37]wyniki spółek Q1 adj przypisane'!$R$4 -> 35587000 | DH4: ='[38]wyniki spółek H1 adj przypisane'!$R$4-DG4 -> 55225000 | DI4: ='[39]wyniki spółek Q1-Q3'!$R$4-DG4-DH4 -> 41537000 | DJ4: ='[40]wyniki spółek Q1-Q4'!$R$4-DI4-DH4-DG4 -> 18171000 | DK4: ='[41]wyniki spółek Q1 (adj)'!$R$4 -> 34949000 | DL4: ='[42]wyniki spółek Q1-Q2 (adj)'!$R$4-DK4 -> 44092000 | DM4: ='[43]wyniki spółek Q1-Q3 (adj)'!$V$4-DL4-DK4 -> 40439000 | DN4: ='[44]wyniki spółek Q1-Q4 (adj)'!$V$4-DM4-DL4-DK4 -> 29767000 | DO4: ='[45]wyniki spółek Q1 (adj)'!$V$4 -> 40148000 | DP4: ='[42]wyniki spółek Q1-Q2 (adj)'!$Q$4-DO4 -> 41846000 | DQ4: ='[43]wyniki spółek Q1-Q3 (adj)'!$U$4-DP4-DO4 -> 37988000 | DR4: ='[44]wyniki spółek Q1-Q4 (adj)'!$U$4-DQ4-DP4-DO4 -> 16288000 | DS4: ='[45]wyniki spółek Q1 (adj)'!$U$4 -> 42731000 | DU4: 21673327.38 | DV4: 17418918.51 | DW4: 38624527.39 | DX4: -47487118.33 | DY4: 38871445.81 | DZ4: 30952157.06 | EA4: 40171489.3 | EB4: 35998889.84 | EC4: 24129251.68 | ED4: 28206840.23 | EE4: 22699789.32 | EF4: 16940611.43 | EG4: 24274060.82 | EH4: 25451752.91 | EI4: 32926129.27 | EJ4: 46837140.47 | EK4: ='[37]wyniki spółek Q1 adj przypisane'!$V$4 -> 35586840.07 | EL4: ='[38]wyniki spółek H1 adj przypisane'!$V$4-EK4 -> 55226050.92 | EM4: ='[39]wyniki spółek Q1-Q3'!$V$4-EK4-EL4 -> 41533846.12 | EN4: ='[40]wyniki spółek Q1-Q4'!$V$4-EM4-EL4-EK4 -> 18171952.55 | EO4: ='[41]wyniki spółek Q1 (adj)'!$V$4 -> 34948681.27 | EP4: ='[42]wyniki spółek Q1-Q2 (adj)'!$V$4-EO4 -> 44091064.87 | EQ4: ='[43]wyniki spółek Q1-Q3 (adj)'!$Z$4-EP4-EO4 -> 40439603.28 | ER4: ='[44]wyniki spółek Q1-Q4 (adj)'!$Z$4-EQ4-EP4-EO4 -> 29769485.92 | ES4: ='[45]wyniki spółek Q1 (adj)'!$Z$4 -> 40148535.75 | ET4: ='[42]wyniki spółek Q1-Q2 (adj)'!$U$4-ES4 -> 41845190.58 | EU4: ='[43]wyniki spółek Q1-Q3 (adj)'!$Y$4-ET4-ES4 -> 37987279.3 | EV4: ='[44]wyniki spółek Q1-Q4 (adj)'!$Y$4-EU4-ET4-ES4 -> 16288490.01 | EW4: ='[45]wyniki spółek Q1 (adj)'!$Y$4 -> 42731120.41 | EY4: 27375152.44 | EZ4: 17497420.6 | FA4: -4545743.491 | FB4: 23711460.23 | FC4: 41021568.13 | FD4: 33205951.2 | FE4: 42381339.35 | FF4: 38193989.43 | FG4: 26319752.14 | FH4: 29609360.23 | FI4: 24894789.32 | FJ4: 18974700.97 | FK4: 26305060.82 | FL4: 27481752.91 | FM4: 35030039.27 | FN4: 52385590.47 | FO4: ='[37]wyniki spółek Q1 adj przypisane'!$Z$4 -> 37508840.07 | FP4: ='[38]wyniki spółek H1 adj przypisane'!$Z$4-FO4 -> 48875329.42 | FQ4: ='[39]wyniki spółek Q1-Q3'!$Z$4-FO4-FP4 -> 43479046.12 | FR4: ='[40]wyniki spółek Q1-Q4'!$Z$4-FQ4-FP4-FO4 -> 20092474.05 | FS4: ='[41]wyniki spółek Q1 (adj)'!$Z$4 -> 36248681.27 | FT4: ='[42]wyniki spółek Q1-Q2 (adj)'!$Z$4-FS4 -> 45393064.87 | FU4: ='[43]wyniki spółek Q1-Q3 (adj)'!$AD$4-FT4-FS4 -> 42539603.28 | FV4: ='[44]wyniki spółek Q1-Q4 (adj)'!$AD$4-FU4-FT4-FS4 -> 41757280.56 | FW4: ='[45]wyniki spółek Q1 (adj)'!$AD$4 -> 41760535.75 | FX4: ='[42]wyniki spółek Q1-Q2 (adj)'!$Y$4-FW4 -> 50601190.58 | FY4: ='[43]wyniki spółek Q1-Q3 (adj)'!$AC$4-FX4-FW4 -> 37811279.3 | FZ4: ='[44]wyniki spółek Q1-Q4 (adj)'!$AC$4-FY4-FX4-FW4 -> 21178490.01 | GA4: ='[45]wyniki spółek Q1 (adj)'!$AC$4 -> 44031120.41
B5: Asseco Data Systems | C5: Asseco Data Systems PF | D5: Asseco Data Systems PF | E5: 69557000 | F5: 74634000 | G5: 84596000 | H5: 128724000 | I5: 89075000 | J5: 93260000 | K5: 76711000 | L5: 91508000 | M5: 72401000 | N5: 68301000 | O5: 60973000 | P5: 74111000 | Q5: 67693000 | R5: 66439000 | S5: 72765000 | T5: 88263000 | U5: ='[37]wyniki spółek Q1 adj przypisane'!$F$9 -> 76813000 | V5: ='[38]wyniki spółek H1 adj przypisane'!$F$9-U5 -> 80753000 | W5: ='[39]wyniki spółek Q1-Q3'!$F$9-V5-U5 -> 69943000 | X5: ='[40]wyniki spółek Q1-Q4'!$F$9-W5-V5-U5 -> 92725000 | Y5: ='[41]wyniki spółek Q1 (adj)'!$F$9 -> 83359000 | Z5: ='[42]wyniki spółek Q1-Q2 (adj)'!$F$9-Y5 -> 87151000 | AA5: ='[43]wyniki spółek Q1-Q3 (adj)'!$F$9-Z5-Y5 -> 74783000 | AB5: ='[44]wyniki spółek Q1-Q4 (adj)'!$F$9-AA5-Z5-Y5 -> 97172000 | AC5: ='[45]wyniki spółek Q1 (adj)'!$F$9 -> 94352000 | AD5: ='[42]wyniki spółek Q1-Q2 (adj)'!$E$9-AC5 -> 91380000 | AE5: ='[43]wyniki spółek Q1-Q3 (adj)'!$E$9-AD5-AC5 -> 91337000 | AF5: ='[44]wyniki spółek Q1-Q4 (adj)'!$E$9-AE5-AD5-AC5 -> 108881000 | AG5: ='[45]wyniki spółek Q1 (adj)'!$E$9 -> 91202000 | AI5: 5752000 | AJ5: 2545000 | AK5: 4173000 | AL5: -4130000 | AM5: 5623000 | AN5: 12511000 | AO5: 1308000 | AP5: 6374000 | AQ5: 8989000 | AR5: 8071000 | AS5: 916000 | AT5: 6438000 | AU5: 7319000 | AV5: 11376000 | AW5: 11071000 | AX5: 7314000 | AY5: ='[37]wyniki spółek Q1 adj przypisane'!$J$9 -> 12926000 | AZ5: ='[38]wyniki spółek H1 adj przypisane'!$J$9-AY5 -> 16579000 | BA5: ='[39]wyniki spółek Q1-Q3'!$J$9-AZ5-AY5 -> 7299000 | BB5: ='[40]wyniki spółek Q1-Q4'!$J$9-BA5-AZ5-AY5 -> 16445000 | BC5: ='[41]wyniki spółek Q1 (adj)'!$J$9 -> 15439000 | BD5: ='[42]wyniki spółek Q1-Q2 (adj)'!$J$9-BC5 -> 12130000 | BE5: ='[43]wyniki spółek Q1-Q3 (adj)'!$N$9-BD5-BC5 -> 6864000 | BF5: ='[44]wyniki spółek Q1-Q4 (adj)'!$N$9-BE5-BD5-BC5 -> 13732000 | BG5: ='[45]wyniki spółek Q1 (adj)'!$N$9 -> 15937000 | BH5: ='[42]wyniki spółek Q1-Q2 (adj)'!$I$9-BG5 -> 9987000 | BI5: ='[43]wyniki spółek Q1-Q3 (adj)'!$M$9-BH5-BG5 -> 11275000 | BJ5: ='[44]wyniki spółek Q1-Q4 (adj)'!$M$9-BI5-BH5-BG5 -> 10330000 | BK5: ='[45]wyniki spółek Q1 (adj)'!$M$9 -> 11756000 | BM5: 7466000 | BN5: 4260000 | BO5: 5888000 | BP5: -2419000 | BQ5: 7041000 | BR5: 13932000 | BS5: 2725000 | BT5: 7792000 | BU5: 10407000 | BV5: 9491000 | BW5: 2334000 | BX5: 7857000 | BY5: 8738000 | BZ5: 12795000 | CA5: 12489000 | CB5: 8733000 | CC5: ='[37]wyniki spółek Q1 adj przypisane'!$N$9 -> 14345000 | CD5: ='[38]wyniki spółek H1 adj przypisane'!$N$9-CC5 -> 17998000 | CE5: ='[39]wyniki spółek Q1-Q3'!$N$9-CD5-CC5 -> 8717000 | CF5: ='[40]wyniki spółek Q1-Q4'!$N$9-CE5-CD5-CC5 -> 17835000 | CG5: ='[41]wyniki spółek Q1 (adj)'!$N$9 -> 17147000 | CH5: ='[42]wyniki spółek Q1-Q2 (adj)'!$N$9-CG5 -> 13797000 | CI5: ='[43]wyniki spółek Q1-Q3 (adj)'!$R$9-CH5-CG5 -> 8512501.847 | CJ5: ='[44]wyniki spółek Q1-Q4 (adj)'!$R$9-CI5-CH5-CG5 -> 15377498.15 | CK5: ='[45]wyniki spółek Q1 (adj)'!$R$9 -> 17854000 | CL5: ='[42]wyniki spółek Q1-Q2 (adj)'!$M$9-CK5 -> 11906000 | CM5: ='[43]wyniki spółek Q1-Q3 (adj)'!$Q$9-CL5-CK5 -> 13192000 | CN5: ='[44]wyniki spółek Q1-Q4 (adj)'!$Q$9-CM5-CL5-CK5 -> 12774000 | CO5: ='[45]wyniki spółek Q1 (adj)'!$Q$9 -> 13673000 | CQ5: 4055000 | CR5: 2241000 | CS5: 2788000 | CT5: -5380000 | CU5: 4471000 | CV5: 10087000 | CW5: 979000 | CX5: 3704000 | CY5: 7819000 | CZ5: 6262000 | DA5: -2858000 | DB5: 4971000 | DC5: 6005000 | DD5: 8775000 | DE5: 8988000 | DF5: 5812000 | DG5: ='[37]wyniki spółek Q1 adj przypisane'!$R$9 -> 10334000 | DH5: ='[38]wyniki spółek H1 adj przypisane'!$R$9-DG5 -> 13101000 | DI5: ='[39]wyniki spółek Q1-Q3'!$R$9-DH5-DG5 -> 5777000 | DJ5: ='[40]wyniki spółek Q1-Q4'!$R$9-DI5-DH5-DG5 -> 11502000 | DK5: ='[41]wyniki spółek Q1 (adj)'!$R$9 -> 14011000 | DL5: ='[42]wyniki spółek Q1-Q2 (adj)'!$R$9-DK5 -> 11155000 | DM5: ='[43]wyniki spółek Q1-Q3 (adj)'!$V$9-DL5-DK5 -> 5737680 | DN5: ='[44]wyniki spółek Q1-Q4 (adj)'!$V$9-DM5-DL5-DK5 -> 13005320 | DO5: ='[45]wyniki spółek Q1 (adj)'!$V$9 -> 13618000 | DP5: ='[42]wyniki spółek Q1-Q2 (adj)'!$Q$9-DO5 -> 9270000 | DQ5: ='[43]wyniki spółek Q1-Q3 (adj)'!$U$9-DP5-DO5 -> 10017000 | DR5: ='[44]wyniki spółek Q1-Q4 (adj)'!$U$9-DQ5-DP5-DO5 -> 12122000 | DS5: ='[45]wyniki spółek Q1 (adj)'!$U$9 -> 12908000 | DU5: 4055000 | DV5: 2241000 | DW5: 2788000 | DX5: -5380000 | DY5: 4471000 | DZ5: 10087000 | EA5: 979000 | EB5: 3704000 | EC5: 7819000 | ED5: 6262000 | EE5: -2858000 | EF5: 4971000 | EG5: 6005000 | EH5: 8775000 | EI5: 8988000 | EJ5: 5812000 | EK5: ='[37]wyniki spółek Q1 adj przypisane'!$V$9 -> 10334000 | EL5: ='[38]wyniki spółek H1 adj przypisane'!$V$9-EK5 -> 13101000 | EM5: ='[39]wyniki spółek Q1-Q3'!$V$9-EL5-EK5 -> 5777839.93 | EN5: ='[40]wyniki spółek Q1-Q4'!$V$9-EM5-EL5-EK5 -> 11501160.07 | EO5: ='[41]wyniki spółek Q1 (adj)'!$V$9 -> 14011000 | EP5: ='[42]wyniki spółek Q1-Q2 (adj)'!$V$9-EO5 -> 11209000 | EQ5: ='[43]wyniki spółek Q1-Q3 (adj)'!$Z$9-EP5-EO5 -> 5640000 | ER5: ='[44]wyniki spółek Q1-Q4 (adj)'!$Z$9-EQ5-EP5-EO5 -> 12749000 | ES5: ='[45]wyniki spółek Q1 (adj)'!$Z$9 -> 13618000 | ET5: ='[42]wyniki spółek Q1-Q2 (adj)'!$U$9-ES5 -> 9270000 | EU5: ='[43]wyniki spółek Q1-Q3 (adj)'!$Y$9-ET5-ES5 -> 10017000 | EV5: ='[44]wyniki spółek Q1-Q4 (adj)'!$Y$9-EU5-ET5-ES5 -> 12122000 | EW5: ='[45]wyniki spółek Q1 (adj)'!$Y$9 -> 12908000 | EY5: 5443340 | EZ5: 3630150 | FA5: 4177150 | FB5: -3994090 | FC5: 5619580 | FD5: 11238010 | FE5: 2126770 | FF5: 4852580 | FG5: 8967580 | FH5: 7412420 | FI5: -1710000 | FJ5: 6121000 | FK5: 7154000 | FL5: 9925000 | FM5: 10136000 | FN5: 6982000 | FO5: ='[37]wyniki spółek Q1 adj przypisane'!$Z$9 -> 11483000 | FP5: ='[38]wyniki spółek H1 adj przypisane'!$Z$9-FO5 -> 14251000 | FQ5: ='[39]wyniki spółek Q1-Q3'!$Z$9-FP5-FO5 -> 6925839.93 | FR5: ='[40]wyniki spółek Q1-Q4'!$Z$9-FQ5-FP5-FO5 -> 12627160.07 | FS5: ='[41]wyniki spółek Q1 (adj)'!$Z$9 -> 15426000 | FT5: ='[42]wyniki spółek Q1-Q2 (adj)'!$Z$9-FS5 -> 12776000 | FU5: ='[43]wyniki spółek Q1-Q3 (adj)'!$AD$9-FT5-FS5 -> 7056813.162 | FV5: ='[44]wyniki spółek Q1-Q4 (adj)'!$AD$9-FU5-FT5-FS5 -> 14257246.84 | FW5: ='[45]wyniki spółek Q1 (adj)'!$AD$9 -> 15362000 | FX5: ='[42]wyniki spółek Q1-Q2 (adj)'!$Y$9-FW5 -> 11023000 | FY5: ='[43]wyniki spółek Q1-Q3 (adj)'!$AC$9-FX5-FW5 -> 11751000 | FZ5: ='[44]wyniki spółek Q1-Q4 (adj)'!$AC$9-FY5-FX5-FW5 -> 14254000 | GA5: ='[45]wyniki spółek Q1 (adj)'!$AC$9 -> 14643000
B6: Pozostałe | E6: 48913000 | F6: 56389000 | G6: 47929000 | H6: 52198000 | I6: 34999000 | J6: 43634000 | K6: 38749000 | L6: 51071000 | M6: 40260000 | N6: 40737000 | O6: 47596000 | P6: 49022000 | Q6: 49500000 | R6: 51781000 | S6: 42668000 | T6: 48345000 | U6: ='[37]wyniki spółek Q1 adj przypisane'!$F$10-U7 -> 34359000 | V6: ='[38]wyniki spółek H1 adj przypisane'!$F$10-V7-U6-U7 -> 42208000 | W6: ='[39]wyniki spółek Q1-Q3'!$F$10-'[39]wyniki spółek Q1-Q3'!$F$27-V6-U6 -> 45947000 | X6: ='[40]wyniki spółek Q1-Q4'!$F$10-'[40]wyniki spółek Q1-Q4'!$F$28-W6-V6-U6 -> 70722000 | Y6: ='[41]wyniki spółek Q1 (adj)'!$F$10-'[41]wyniki spółek Q1 (adj)'!$F$28 -> 63025000 | Z6: ='[42]wyniki spółek Q1-Q2 (adj)'!$F$10-'[42]wyniki spółek Q1-Q2 (adj)'!$F$28-Y6 -> 65950000 | AA6: ='[43]wyniki spółek Q1-Q3 (adj)'!$F$10-'[43]wyniki spółek Q1-Q3 (adj)'!$F$28-Z6-Y6 -> 64799000 | AB6: ='[44]wyniki spółek Q1-Q4 (adj)'!$F$10-'[44]wyniki spółek Q1-Q4 (adj)'!$F$28-AA6-Z6-Y6 -> 81305000 | AC6: ='[45]wyniki spółek Q1 (adj)'!$F$10-'[45]wyniki spółek Q1 (adj)'!$F$30 -> 64346000 | AD6: ='[42]wyniki spółek Q1-Q2 (adj)'!$E$10-'[42]wyniki spółek Q1-Q2 (adj)'!$E$28-AC6 -> 75042000 | AE6: ='[43]wyniki spółek Q1-Q3 (adj)'!$E$10-'[43]wyniki spółek Q1-Q3 (adj)'!$E$28-AD6-AC6 -> 58705000 | AF6: ='[44]wyniki spółek Q1-Q4 (adj)'!$E$10-'[44]wyniki spółek Q1-Q4 (adj)'!$E$28-AE6-AD6-AC6 -> 86591000 | AG6: ='[45]wyniki spółek Q1 (adj)'!$E$10-'[45]wyniki spółek Q1 (adj)'!$E$30 -> 68780000 | AI6: 4706000 | AJ6: 6467000 | AK6: 2263000 | AL6: 10583000 | AM6: 4411000 | AN6: 6700000 | AO6: 7299000 | AP6: 5913000 | AQ6: 4142000 | AR6: 4254000 | AS6: 8740946.064 | AT6: 3889315.355 | AU6: 4052000 | AV6: 7494000 | AW6: 6841000 | AX6: 655000 | AY6: ='[37]wyniki spółek Q1 adj przypisane'!$J$10-AY7 -> 998000 | AZ6: ='[38]wyniki spółek H1 adj przypisane'!$J$10-AZ7-AY6-AY7 -> 4659000 | BA6: ='[39]wyniki spółek Q1-Q3'!$J$10-'[39]wyniki spółek Q1-Q3'!$J$27-AZ6-AY6 -> 7760000 | BB6: ='[40]wyniki spółek Q1-Q4'!$J$10-'[40]wyniki spółek Q1-Q4'!$J$28-BA6-AZ6-AY6 -> 6623000 | BC6: ='[41]wyniki spółek Q1 (adj)'!$J$10-'[41]wyniki spółek Q1 (adj)'!$J$28 -> 6413000 | BD6: ='[42]wyniki spółek Q1-Q2 (adj)'!$J$10-'[42]wyniki spółek Q1-Q2 (adj)'!$J$28-BC6 -> 11345000 | BE6: ='[43]wyniki spółek Q1-Q3 (adj)'!$N$10-'[43]wyniki spółek Q1-Q3 (adj)'!$N$28-BD6-BC6 -> 23715000 | BF6: ='[44]wyniki spółek Q1-Q4 (adj)'!$N$10-'[44]wyniki spółek Q1-Q4 (adj)'!$N$28-BE6-BD6-BC6 -> 8012000 | BG6: ='[45]wyniki spółek Q1 (adj)'!$N$10-'[45]wyniki spółek Q1 (adj)'!$N$30 -> 4296000 | BH6: ='[42]wyniki spółek Q1-Q2 (adj)'!$I$10-'[42]wyniki spółek Q1-Q2 (adj)'!$I$28-BG6 -> 7577000 | BI6: ='[43]wyniki spółek Q1-Q3 (adj)'!$M$10-'[43]wyniki spółek Q1-Q3 (adj)'!$M$28-BH6-BG6 -> 7175000 | BJ6: ='[44]wyniki spółek Q1-Q4 (adj)'!$M$10-'[44]wyniki spółek Q1-Q4 (adj)'!$M$28-BI6-BH6-BG6 -> 10268000 | BK6: ='[45]wyniki spółek Q1 (adj)'!$M$10-'[45]wyniki spółek Q1 (adj)'!$M$30 -> 7018000 | BM6: 4706000 | BN6: 6467000 | BO6: 2263000 | BP6: 10583000 | BQ6: 4411000 | BR6: 6700000 | BS6: 7299000 | BT6: 5913000 | BU6: 4142000 | BV6: 4254000 | BW6: 8740946.064 | BX6: 3889315.355 | BY6: 4052000 | BZ6: 7494000 | CA6: 6841000 | CB6: 655000 | CC6: ='[37]wyniki spółek Q1 adj przypisane'!$N$10-CC7 -> 998000 | CD6: ='[38]wyniki spółek H1 adj przypisane'!$N$10-CD7-CC6-CC7 -> 4659000 | CE6: ='[39]wyniki spółek Q1-Q3'!$N$10-'[39]wyniki spółek Q1-Q3'!$N$27-CD6-CC6 -> 7760000 | CF6: ='[40]wyniki spółek Q1-Q4'!$N$10-'[40]wyniki spółek Q1-Q4'!$N$28-CE6-CD6-CC6 -> 6623000 | CG6: ='[41]wyniki spółek Q1 (adj)'!$N$10-'[41]wyniki spółek Q1 (adj)'!$N$28 -> 6413000 | CH6: ='[42]wyniki spółek Q1-Q2 (adj)'!$N$10-'[42]wyniki spółek Q1-Q2 (adj)'!$N$28-CG6 -> 11345000 | CI6: ='[43]wyniki spółek Q1-Q3 (adj)'!$R$10-'[43]wyniki spółek Q1-Q3 (adj)'!$R$28-CH6-CG6 -> 23715000 | CJ6: ='[44]wyniki spółek Q1-Q4 (adj)'!$R$10-'[44]wyniki spółek Q1-Q4 (adj)'!$R$28-CI6-CH6-CG6 -> 8012000 | CK6: ='[45]wyniki spółek Q1 (adj)'!$R$10-'[45]wyniki spółek Q1 (adj)'!$R$30 -> 4296000 | CL6: ='[42]wyniki spółek Q1-Q2 (adj)'!$M$10-'[42]wyniki spółek Q1-Q2 (adj)'!$M$28-CK6 -> 7577000 | CM6: ='[43]wyniki spółek Q1-Q3 (adj)'!$Q$10-'[43]wyniki spółek Q1-Q3 (adj)'!$Q$28-CL6-CK6 -> 7175000 | CN6: ='[44]wyniki spółek Q1-Q4 (adj)'!$Q$10-'[44]wyniki spółek Q1-Q4 (adj)'!$Q$28-CM6-CL6-CK6 -> 10265000 | CO6: ='[45]wyniki spółek Q1 (adj)'!$Q$10-'[45]wyniki spółek Q1 (adj)'!$Q$30 -> 7018000 | CQ6: 3148000 | CR6: 4220000 | CS6: 1226000 | CT6: 8398000 | CU6: 2511000 | CV6: 4613000 | CW6: 5748000 | CX6: 4852000 | CY6: 3036000 | CZ6: 2179000 | DA6: 5898946.064 | DB6: 2593315.355 | DC6: 2547000 | DD6: 5680000 | DE6: 3883000 | DF6: 976000 | DG6: ='[37]wyniki spółek Q1 adj przypisane'!$R$10-DG7 -> 701000 | DH6: ='[38]wyniki spółek H1 adj przypisane'!$R$10-DH7-DG6-DG7 -> -2809000 | DI6: ='[39]wyniki spółek Q1-Q3'!$R$10-'[39]wyniki spółek Q1-Q3'!$R$27-DH6-DG6 -> 12184000 | DJ6: ='[40]wyniki spółek Q1-Q4'!$R$10-'[40]wyniki spółek Q1-Q4'!$R$28-DI6-DH6-DG6 -> 4875000 | DK6: ='[41]wyniki spółek Q1 (adj)'!$R$10-'[41]wyniki spółek Q1 (adj)'!$R$28 -> 4416000 | DL6: ='[42]wyniki spółek Q1-Q2 (adj)'!$R$10-'[42]wyniki spółek Q1-Q2 (adj)'!$R$28-DK6 -> 8549000 | DM6: ='[43]wyniki spółek Q1-Q3 (adj)'!$V$10-'[43]wyniki spółek Q1-Q3 (adj)'!$V$28-DL6-DK6 -> 17975800.84 | DN6: ='[44]wyniki spółek Q1-Q4 (adj)'!$V$10-'[44]wyniki spółek Q1-Q4 (adj)'!$V$28-DM6-DL6-DK6 -> 7271199.165 | DO6: ='[45]wyniki spółek Q1 (adj)'!$V$10-'[45]wyniki spółek Q1 (adj)'!$V$30 -> 2735000 | DP6: ='[42]wyniki spółek Q1-Q2 (adj)'!$Q$10-'[42]wyniki spółek Q1-Q2 (adj)'!$Q$28-DO6 -> 6927000 | DQ6: ='[43]wyniki spółek Q1-Q3 (adj)'!$U$10-'[43]wyniki spółek Q1-Q3 (adj)'!$U$28-DP6-DO6 -> 6191252.12 | DR6: ='[44]wyniki spółek Q1-Q4 (adj)'!$U$10-'[44]wyniki spółek Q1-Q4 (adj)'!$U$28-DQ6-DP6-DO6 -> 9457747.88 | DS6: ='[45]wyniki spółek Q1 (adj)'!$U$10-'[45]wyniki spółek Q1 (adj)'!$U$30 -> 6324000 | DU6: 2715513.873 | DV6: 1568977.039 | DW6: -2364679.038 | DX6: 2198452.11 | DY6: 1166531.266 | DZ6: 2583968.304 | EA6: 3189981.882 | EB6: 3770773.463 | EC6: 2230132.103 | ED6: 241995.3038 | EE6: 5061823.822 | EF6: 1532753.871 | EG6: 2179162.938 | EH6: 2898918.504 | EI6: 2734331.405 | EJ6: 19720.11266 | EK6: ='[37]wyniki spółek Q1 adj przypisane'!$V$10-EK7 -> 813824.0042 | EL6: ='[38]wyniki spółek H1 adj przypisane'!$V$10-EL7-EK6-EK7 -> -4071148.192 | EM6: ='[39]wyniki spółek Q1-Q3'!$V$10-'[39]wyniki spółek Q1-Q3'!$V$27-EL6-EK6 -> 11221457.32 | EN6: ='[40]wyniki spółek Q1-Q4'!$V$10-'[40]wyniki spółek Q1-Q4'!$V$28-EM6-EL6-EK6 -> 4582773.572 | EO6: ='[41]wyniki spółek Q1 (adj)'!$V$10-'[41]wyniki spółek Q1 (adj)'!$V$28 -> 4483155.825 | EP6: ='[42]wyniki spółek Q1-Q2 (adj)'!$V$10-'[42]wyniki spółek Q1-Q2 (adj)'!$V$28-EO6 -> 6713783.309 | EQ6: ='[43]wyniki spółek Q1-Q3 (adj)'!$Z$10-'[43]wyniki spółek Q1-Q3 (adj)'!$Z$28-EP6-EO6 -> 16899054.41 | ER6: ='[44]wyniki spółek Q1-Q4 (adj)'!$Z$10-'[44]wyniki spółek Q1-Q4 (adj)'!$Z$28-EQ6-EP6-EO6 -> 4988696.308 | ES6: ='[45]wyniki spółek Q1 (adj)'!$Z$10-'[45]wyniki spółek Q1 (adj)'!$Z$30 -> 1442993.441 | ET6: ='[42]wyniki spółek Q1-Q2 (adj)'!$U$10-'[42]wyniki spółek Q1-Q2 (adj)'!$U$28-ES6 -> 4975806.327 | EU6: ='[43]wyniki spółek Q1-Q3 (adj)'!$Y$10-'[43]wyniki spółek Q1-Q3 (adj)'!$Y$28-ET6-ES6 -> 4366910.262 | EV6: ='[44]wyniki spółek Q1-Q4 (adj)'!$Y$10-'[44]wyniki spółek Q1-Q4 (adj)'!$Y$28-EU6-ET6-ES6 -> 6702052.863 | EW6: ='[45]wyniki spółek Q1 (adj)'!$Y$10-'[45]wyniki spółek Q1 (adj)'!$Y$30 -> 4249032.928 | EY6: 2715513.873 | EZ6: 1568977.039 | FA6: -2364679.038 | FB6: 2198452.11 | FC6: 1166531.266 | FD6: 2583968.304 | FE6: 3189981.882 | FF6: 3795883.463 | FG6: 2230132.103 | FH6: 241995.3038 | FI6: 5061823.822 | FJ6: 1534753.871 | FK6: 2179162.938 | FL6: 2898918.504 | FM6: 2734331.405 | FN6: 19720.11266 | FO6: ='[37]wyniki spółek Q1 adj przypisane'!$Z$10-FO7 -> 813824.0042 | FP6: ='[38]wyniki spółek H1 adj przypisane'!$Z$10-FP7-FO6-FO7 -> 3248851.808 | FQ6: ='[39]wyniki spółek Q1-Q3'!$Z$10-'[39]wyniki spółek Q1-Q3'!$Z$27-FP6-FO6 -> 3901457.32 | FR6: ='[40]wyniki spółek Q1-Q4'!$Z$10-'[40]wyniki spółek Q1-Q4'!$Z$28-FQ6-FP6-FO6 -> 4582773.572 | FS6: ='[41]wyniki spółek Q1 (adj)'!$Z$10-'[41]wyniki spółek Q1 (adj)'!$Z$28 -> 4483155.825 | FT6: ='[42]wyniki spółek Q1-Q2 (adj)'!$Z$10-'[42]wyniki spółek Q1-Q2 (adj)'!$Z$28-FS6 -> 6713783.309 | FU6: ='[43]wyniki spółek Q1-Q3 (adj)'!$AD$10-'[43]wyniki spółek Q1-Q3 (adj)'!$AD$28-FT6-FS6 -> 17826054.41 | FV6: ='[44]wyniki spółek Q1-Q4 (adj)'!$AD$10-'[44]wyniki spółek Q1-Q4 (adj)'!$AD$28-FU6-FT6-FS6 -> 4988696.308 | FW6: ='[45]wyniki spółek Q1 (adj)'!$AD$10-'[45]wyniki spółek Q1 (adj)'!$AD$30 -> 1442993.441 | FX6: ='[42]wyniki spółek Q1-Q2 (adj)'!$Y$10-'[42]wyniki spółek Q1-Q2 (adj)'!$Y$28-FW6 -> 4975806.327 | FY6: ='[43]wyniki spółek Q1-Q3 (adj)'!$AC$10-'[43]wyniki spółek Q1-Q3 (adj)'!$AC$28-FX6-FW6 -> 4366910.262 | FZ6: ='[44]wyniki spółek Q1-Q4 (adj)'!$AC$10-'[44]wyniki spółek Q1-Q4 (adj)'!$AC$28-FY6-FX6-FW6 -> 6699052.863 | GA6: ='[45]wyniki spółek Q1 (adj)'!$AC$10-'[45]wyniki spółek Q1 (adj)'!$AC$30 -> 4249032.928
D7: korekty | E7: -11833400.51 | F7: -11889992.82 | G7: -18501551.33 | H7: -36250055.34 | I7: -13147000 | J7: -10219000 | K7: -18242000 | L7: -11884000 | M7: -9112000 | N7: -13962000 | O7: -10154000 | P7: -13417000 | Q7: -10347000 | R7: -12811000 | S7: -11156000 | T7: -21412000 | U7: ='[37]wyniki spółek Q1 adj przypisane'!$F$29 -> -5950000 | V7: ='[38]wyniki spółek H1 adj przypisane'!$F$29-U7 -> -6837000 | W7: ='[39]wyniki spółek Q1-Q3'!$F$27-V7-U7 -> -6993000 | X7: ='[40]wyniki spółek Q1-Q4'!$F$28-W7-V7-U7 -> -17452000 | Y7: ='[41]wyniki spółek Q1 (adj)'!$F$30 -> -17831000 | Z7: ='[42]wyniki spółek Q1-Q2 (adj)'!$F$30-Y7 -> -16527000 | AA7: ='[43]wyniki spółek Q1-Q3 (adj)'!$F$30-Z7-Y7 -> -22668000 | AB7: ='[44]wyniki spółek Q1-Q4 (adj)'!$F$30-AA7-Z7-Y7 -> -25305000 | AC7: ='[45]wyniki spółek Q1 (adj)'!$F$30 -> -19079000 | AD7: ='[42]wyniki spółek Q1-Q2 (adj)'!$E$30-AC7 -> -19894000 | AE7: ='[43]wyniki spółek Q1-Q3 (adj)'!$E$30-AD7-AC7 -> -27897000 | AF7: ='[44]wyniki spółek Q1-Q4 (adj)'!$E$30-AE7-AD7-AC7 -> -20098000 | AG7: ='[45]wyniki spółek Q1 (adj)'!$E$30 -> -22261000 | AI7: -2426042.526 | AJ7: 695597.6591 | AK7: -2905342.17 | AL7: 4081787.037 | AM7: -542000 | AN7: 2274000 | AO7: -3513000 | AP7: -9374000 | AQ7: 1108000 | AR7: -158000 | AS7: 426053.9356 | AT7: -3050315.355 | AU7: -45000 | AV7: -781000 | AW7: -1605000 | AX7: 3054000 | AY7: ='[37]wyniki spółek Q1 adj przypisane'!$J$29 -> -973000 | AZ7: ='[38]wyniki spółek H1 adj przypisane'!$J$29-AY7 -> 66000 | BA7: ='[39]wyniki spółek Q1-Q3'!$J$27-AZ7-AY7 -> -984000 | BB7: ='[40]wyniki spółek Q1-Q4'!$J$28-BA7-AZ7-AY7 -> 5374000 | BC7: ='[41]wyniki spółek Q1 (adj)'!$J$30 -> -961000 | BD7: ='[42]wyniki spółek Q1-Q2 (adj)'!$J$30-BC7 -> -253000 | BE7: ='[43]wyniki spółek Q1-Q3 (adj)'!$N$30-BD7-BC7 -> -5435000 | BF7: ='[44]wyniki spółek Q1-Q4 (adj)'!$N$30-BE7-BD7-BC7 -> -8238000 | BG7: ='[45]wyniki spółek Q1 (adj)'!$N$30 -> -4154000 | BH7: ='[42]wyniki spółek Q1-Q2 (adj)'!$I$30-BG7 -> -1436000 | BI7: ='[43]wyniki spółek Q1-Q3 (adj)'!$M$30-BH7-BG7 -> -4633000 | BJ7: ='[44]wyniki spółek Q1-Q4 (adj)'!$M$30-BI7-BH7-BG7 -> 9951000 | BK7: ='[45]wyniki spółek Q1 (adj)'!$M$30 -> -1997000 | BM7: -2334042.526 | BN7: 781597.6591 | BO7: -2815342.17 | BP7: 4170787.037 | BQ7: -453000 | BR7: 2363000 | BS7: -3035111.111 | BT7: -8700388.889 | BU7: 645000 | BV7: 483000 | BW7: 515053.9356 | BX7: -2926315.355 | BY7: 44000 | BZ7: -601000 | CA7: -1574103.661 | CB7: 3039000 | CC7: ='[37]wyniki spółek Q1 adj przypisane'!$N$29 -> -973000 | CD7: ='[38]wyniki spółek H1 adj przypisane'!$N$29-CC7 -> 66000 | CE7: ='[39]wyniki spółek Q1-Q3'!$N$27-CD7-CC7 -> -984000 | CF7: ='[40]wyniki spółek Q1-Q4'!$N$28-CE7-CD7-CC7 -> 5374000 | CG7: ='[41]wyniki spółek Q1 (adj)'!$N$30 -> -961000 | CH7: ='[42]wyniki spółek Q1-Q2 (adj)'!$N$30-CG7 -> -253000 | CI7: ='[43]wyniki spółek Q1-Q3 (adj)'!$R$30-CH7-CG7 -> -5854000 | CJ7: ='[44]wyniki spółek Q1-Q4 (adj)'!$R$30-CI7-CH7-CG7 -> -3238000 | CK7: ='[45]wyniki spółek Q1 (adj)'!$R$30 -> -4154000 | CL7: ='[42]wyniki spółek Q1-Q2 (adj)'!$M$30-CK7 -> 3478000 | CM7: ='[43]wyniki spółek Q1-Q3 (adj)'!$Q$30-CL7-CK7 -> -4633000 | CN7: ='[44]wyniki spółek Q1-Q4 (adj)'!$Q$30-CM7-CL7-CK7 -> 4182000 | CO7: ='[45]wyniki spółek Q1 (adj)'!$Q$30 -> -1606620.69 | CQ7: 32312802.36 | CR7: -30946970.76 | CS7: 22675981.38 | CT7: -55151812.98 | CU7: -5764656 | CV7: 1749684.99 | CW7: -4255999.75 | CX7: -6388000 | CY7: 1066000 | CZ7: -1118000 | DA7: 44053.93556 | DB7: -3510315.355 | DC7: -328000 | DD7: -97000 | DE7: -1615000 | DF7: 1623000 | DG7: ='[37]wyniki spółek Q1 adj przypisane'!$R$29 -> -766000 | DH7: ='[38]wyniki spółek H1 adj przypisane'!$R$29-DG7 -> 4349000 | DI7: ='[39]wyniki spółek Q1-Q3'!$R$27-DH7-DG7 -> -8034000 | DJ7: ='[40]wyniki spółek Q1-Q4'!$R$28-DI7-DH7-DG7 -> 7347000 | DK7: ='[41]wyniki spółek Q1 (adj)'!$R$30 -> -5526000 | DL7: ='[42]wyniki spółek Q1-Q2 (adj)'!$R$30-DK7 -> -894000 | DM7: ='[43]wyniki spółek Q1-Q3 (adj)'!$V$30-DL7-DK7 -> -1283480.835 | DN7: ='[44]wyniki spółek Q1-Q4 (adj)'!$V$30-DM7-DL7-DK7 -> -781519.1646 | DO7: ='[45]wyniki spółek Q1 (adj)'!$V$30 -> -5367000 | DP7: ='[42]wyniki spółek Q1-Q2 (adj)'!$Q$30-DO7 -> 7391000 | DQ7: ='[43]wyniki spółek Q1-Q3 (adj)'!$U$30-DP7-DO7 -> -3860252.12 | DR7: ='[44]wyniki spółek Q1-Q4 (adj)'!$U$30-DQ7-DP7-DO7 -> 11656252.12 | DS7: ='[45]wyniki spółek Q1 (adj)'!$U$30 -> -1798000 | DU7: 4248208.905 | DV7: -2776700.81 | DW7: -21782945.49 | DX7: -10661042.48 | DY7: -5670157.058 | DZ7: 1650982.252 | EA7: -3891103.24 | EB7: -6449656.442 | EC7: 1096764.348 | ED7: -1152773.682 | EE7: 1080.283389 | EF7: -3442444.747 | EG7: -328195.6522 | EH7: -55699.51893 | EI7: -1666255.993 | EJ7: 3045040.337 | EK7: ='[37]wyniki spółek Q1 adj przypisane'!$V$29 -> -834664.0742 | EL7: ='[38]wyniki spółek H1 adj przypisane'!$V$29-EK7 -> 4444097.272 | EM7: ='[39]wyniki spółek Q1-Q3'!$V$27-EL7-EK7 -> -8081606.052 | EN7: ='[40]wyniki spółek Q1-Q4'!$V$28-EM7-EL7-EK7 -> 7292576.49 | EO7: ='[41]wyniki spółek Q1 (adj)'!$V$30 -> -4842837.095 | EP7: ='[42]wyniki spółek Q1-Q2 (adj)'!$V$30-EO7 -> -913848.1793 | EQ7: ='[43]wyniki spółek Q1-Q3 (adj)'!$Z$30-EP7-EO7 -> -1869715.82 | ER7: ='[44]wyniki spółek Q1-Q4 (adj)'!$Z$30-EQ7-EP7-EO7 -> 278596.1813 | ES7: ='[45]wyniki spółek Q1 (adj)'!$Z$30 -> -5329339 | ET7: ='[42]wyniki spółek Q1-Q2 (adj)'!$U$30-ES7 -> 7419339 | EU7: ='[43]wyniki spółek Q1-Q3 (adj)'!$Y$30-ET7-ES7 -> -4012452.237 | EV7: ='[44]wyniki spółek Q1-Q4 (adj)'!$Y$30-EU7-ET7-ES7 -> 11746854.46 | EW7: ='[45]wyniki spółek Q1 (adj)'!$Y$30 -> -1778000 | EY7: 981873.0113 | EZ7: -873220.3813 | FA7: 23675668.67 | FB7: 2012127.891 | FC7: -5573752.22 | FD7: 1771847.41 | FE7: -4317513.442 | FF7: -9704848.942 | FG7: 727644.3478 | FH7: 391346.3178 | FI7: 22080.28339 | FJ7: -3325444.747 | FK7: -256195.6522 | FL7: 105740.6115 | FM7: -1635359.654 | FN7: 3045040.337 | FO7: ='[37]wyniki spółek Q1 adj przypisane'!$Z$29 -> -834664.0742 | FP7: ='[38]wyniki spółek H1 adj przypisane'!$Z$29-FO7 -> -1682902.728 | FQ7: ='[39]wyniki spółek Q1-Q3'!$Z$27-FP7-FO7 -> 948393.9484 | FR7: ='[40]wyniki spółek Q1-Q4'!$Z$28-FQ7-FP7-FO7 -> 5543576.49 | FS7: ='[41]wyniki spółek Q1 (adj)'!$Z$30 -> -4842837.095 | FT7: ='[42]wyniki spółek Q1-Q2 (adj)'!$Z$30-FS7 -> -1131848.179 | FU7: ='[43]wyniki spółek Q1-Q3 (adj)'!$AD$30-FT7-FS7 -> -3713715.82 | FV7: ='[44]wyniki spółek Q1-Q4 (adj)'!$AD$30-FU7-FT7-FS7 -> -171403.8187 | FW7: ='[45]wyniki spółek Q1 (adj)'!$AD$30 -> -5329334 | FX7: ='[42]wyniki spółek Q1-Q2 (adj)'!$Y$30-FW7 -> 4572334 | FY7: ='[43]wyniki spółek Q1-Q3 (adj)'!$AC$30-FX7-FW7 -> -4012452.237 | FZ7: ='[44]wyniki spółek Q1-Q4 (adj)'!$AC$30-FY7-FX7-FW7 -> 3856854.461 | GA7: ='[45]wyniki spółek Q1 (adj)'!$AC$30 -> -1588275.007
B8: Rynek izraelski | E8: 1264717781 | F8: 1247233115 | G8: 1305895209 | H8: 1343555254 | I8: 1263800000 | J8: 1322900000 | K8: 1327800000 | L8: 1488200000 | M8: 1486100000 | N8: 1567200000 | O8: 1768600000 | P8: 1732500000 | Q8: 1862500000 | R8: 1775800000 | S8: 1859000000 | T8: 2064100000 | U8: ='[37]wyniki spółek Q1 adj przypisane'!$F$30 -> 2159900000 | V8: ='[38]wyniki spółek H1 adj przypisane'!$F$30-U8 -> 2206000000 | W8: ='[39]wyniki spółek Q1-Q3'!$F$30-V8-U8 -> 2290800000 | X8: ='[40]wyniki spółek Q1-Q4'!$F$31-W8-V8-U8 -> 2652200000 | Y8: ='[41]wyniki spółek Q1 (adj)'!$F$31 -> 2706300000 | Z8: ='[42]wyniki spółek Q1-Q2 (adj)'!$F$31-Y8 -> 2777500000 | AA8: ='[43]wyniki spółek Q1-Q3 (adj)'!$F$31-Z8-Y8 -> 2993600000 | AB8: ='[44]wyniki spółek Q1-Q4 (adj)'!$F$31-AA8-Z8-Y8 -> 2986600000 | AC8: ='[45]wyniki spółek Q1 (adj)'!$F$31 -> 2903400000 | AD8: ='[42]wyniki spółek Q1-Q2 (adj)'!$E$31-AC8 -> 2722600000 | AE8: ='[43]wyniki spółek Q1-Q3 (adj)'!$E$31-AD8-AC8 -> 2713100000 | AF8: ='[44]wyniki spółek Q1-Q4 (adj)'!$E$31-AE8-AD8-AC8 -> 2583800000 | AG8: ='[45]wyniki spółek Q1 (adj)'!$E$31 -> 2801600000 | AI8: 72723810.96 | AJ8: 54891847.51 | AK8: 55653157.08 | AL8: 29152558.92 | AM8: 56800000 | AN8: 69800000 | AO8: 74800000 | AP8: 99700000 | AQ8: 105000000 | AR8: 109400000 | AS8: 135000000 | AT8: 123300000 | AU8: 126900000 | AV8: 160500000 | AW8: 159000000 | AX8: 168200000 | AY8: ='[37]wyniki spółek Q1 adj przypisane'!$J$30 -> 166500000 | AZ8: ='[38]wyniki spółek H1 adj przypisane'!$J$30-AY8 -> 172500000 | BA8: ='[39]wyniki spółek Q1-Q3'!$J$30-AZ8-AY8 -> 182900000 | BB8: ='[40]wyniki spółek Q1-Q4'!$J$31-BA8-AZ8-AY8 -> 237900000 | BC8: ='[41]wyniki spółek Q1 (adj)'!$J$31 -> 224600000 | BD8: ='[42]wyniki spółek Q1-Q2 (adj)'!$J$31-BC8 -> 403100000 | BE8: ='[43]wyniki spółek Q1-Q3 (adj)'!$N$31-BD8-BC8 -> 250900000 | BF8: ='[44]wyniki spółek Q1-Q4 (adj)'!$N$31-BE8-BD8-BC8 -> 235200000 | BG8: ='[45]wyniki spółek Q1 (adj)'!$N$31 -> 237600000 | BH8: ='[42]wyniki spółek Q1-Q2 (adj)'!$I$31-BG8 -> 225700000 | BI8: ='[43]wyniki spółek Q1-Q3 (adj)'!$M$31-BH8-BG8 -> 214600000 | BJ8: ='[44]wyniki spółek Q1-Q4 (adj)'!$M$31-BI8-BH8-BG8 -> 228500000 | BK8: ='[45]wyniki spółek Q1 (adj)'!$M$31 -> 236600000 | BM8: 98481127.66 | BN8: 79847837.16 | BO8: 113108286.6 | BP8: 100831216.3 | BQ8: 118103675.9 | BR8: 123554359.8 | BS8: 126526248.9 | BT8: 155249344.8 | BU8: 154312220.2 | BV8: 156731041.3 | BW8: 187652290.6 | BX8: 173844233.5 | BY8: 185712432.1 | BZ8: 207314764 | CA8: 213864462.3 | CB8: 235833003.3 | CC8: ='[37]wyniki spółek Q1 adj przypisane'!$N$30 -> 234815129.1 | CD8: ='[38]wyniki spółek H1 adj przypisane'!$N$30-CC8 -> 242632578.4 | CE8: ='[39]wyniki spółek Q1-Q3'!$N$30-CD8-CC8 -> 259230343.6 | CF8: ='[40]wyniki spółek Q1-Q4'!$N$31-CE8-CD8-CC8 -> 318713903.7 | CG8: ='[41]wyniki spółek Q1 (adj)'!$N$31 -> 309192364.2 | CH8: ='[42]wyniki spółek Q1-Q2 (adj)'!$N$31-CG8 -> 295713971.9 | CI8: ='[43]wyniki spółek Q1-Q3 (adj)'!$R$31-CH8-CG8 -> 328011136.1 | CJ8: ='[44]wyniki spółek Q1-Q4 (adj)'!$R$31-CI8-CH8-CG8 -> 338664284.6 | CK8: ='[45]wyniki spółek Q1 (adj)'!$R$31 -> 326135653.5 | CL8: ='[42]wyniki spółek Q1-Q2 (adj)'!$M$31-CK8 -> 310562743.2 | CM8: ='[43]wyniki spółek Q1-Q3 (adj)'!$Q$31-CL8-CK8 -> 303206002.4 | CN8: ='[44]wyniki spółek Q1-Q4 (adj)'!$Q$31-CM8-CL8-CK8 -> 307155279.8 | CO8: ='[45]wyniki spółek Q1 (adj)'!$Q$31 -> 307545628.9 | CQ8: 22455810.96 | CR8: 15244847.51 | CS8: 23986433.06 | CT8: 412864498.5 | CU8: 32971321.06 | CV8: 45030678.94 | CW8: 44935000 | CX8: 65893000 | CY8: 60963000 | CZ8: 75224000 | DA8: 85286000 | DB8: 81994000 | DC8: 78340000 | DD8: 98423000 | DE8: 99585000 | DF8: 107090000 | DG8: ='[37]wyniki spółek Q1 adj przypisane'!$R$30 -> 113041000 | DH8: ='[38]wyniki spółek H1 adj przypisane'!$R$30-DG8 -> 107443000 | DI8: ='[39]wyniki spółek Q1-Q3'!$R$30-DH8-DG8 -> 120354000 | DJ8: ='[40]wyniki spółek Q1-Q4'!$R$31-DI8-DH8-DG8 -> 147123000 | DK8: ='[41]wyniki spółek Q1 (adj)'!$R$31 -> 163415601.5 | DL8: ='[42]wyniki spółek Q1-Q2 (adj)'!$R$31-DK8 -> 302234211.7 | DM8: ='[43]wyniki spółek Q1-Q3 (adj)'!$V$31-DL8-DK8 -> 181174096 | DN8: ='[44]wyniki spółek Q1-Q4 (adj)'!$V$31-DM8-DL8-DK8 -> 144866804.4 | DO8: ='[45]wyniki spółek Q1 (adj)'!$V$31 -> 162196396.4 | DP8: ='[42]wyniki spółek Q1-Q2 (adj)'!$Q$31-DO8 -> 161640749 | DQ8: ='[43]wyniki spółek Q1-Q3 (adj)'!$U$31-DP8-DO8 -> 145959854.7 | DR8: ='[44]wyniki spółek Q1-Q4 (adj)'!$U$31-DQ8-DP8-DO8 -> 147427000 | DS8: ='[45]wyniki spółek Q1 (adj)'!$U$31 -> 162665000 | DU8: 354608.1468 | DV8: -405230.8236 | DW8: 4337093.51 | DX8: 401174452 | DY8: 3352027.306 | DZ8: 5155191.379 | EA8: 4273191.918 | EB8: 7869090.088 | EC8: 5952207.628 | ED8: 8857314.729 | EE8: 8806254.977 | EF8: 8657110.955 | EG8: 7389284.423 | EH8: 11867144.42 | EI8: 10575919.39 | EJ8: 10655654.98 | EK8: ='[37]wyniki spółek Q1 adj przypisane'!$V$30 -> 11400000 | EL8: ='[38]wyniki spółek H1 adj przypisane'!$V$30-EK8 -> 10200000 | EM8: ='[39]wyniki spółek Q1-Q3'!$V$30-EL8-EK8 -> 11921279.42 | EN8: ='[40]wyniki spółek Q1-Q4'!$V$31-EM8-EL8-EK8 -> 15178720.58 | EO8: ='[41]wyniki spółek Q1 (adj)'!$V$31 -> 16000000 | EP8: ='[42]wyniki spółek Q1-Q2 (adj)'!$V$31-EO8 -> 34016262.2 | EQ8: ='[43]wyniki spółek Q1-Q3 (adj)'!$Z$31-EP8-EO8 -> 19319628.07 | ER8: ='[44]wyniki spółek Q1-Q4 (adj)'!$Z$31-EQ8-EP8-EO8 -> 12967977.92 | ES8: ='[45]wyniki spółek Q1 (adj)'!$Z$31 -> 15531576.81 | ET8: ='[42]wyniki spółek Q1-Q2 (adj)'!$U$31-ES8 -> 16851536.74 | EU8: ='[43]wyniki spółek Q1-Q3 (adj)'!$Y$31-ET8-ES8 -> 15097240.52 | EV8: ='[44]wyniki spółek Q1-Q4 (adj)'!$Y$31-EU8-ET8-ES8 -> 14915429.39 | EW8: ='[45]wyniki spółek Q1 (adj)'!$Y$31 -> 17065189.18 | EY8: 6671644.808 | EZ8: 5800712.403 | FA8: 11936294.42 | FB8: 7964017.823 | FC8: 10631090.3 | FD8: 11319105.83 | FE8: 10316918.24 | FF8: 14718032.06 | FG8: 11128723.83 | FH8: 13698780.87 | FI8: 14330324.1 | FJ8: 14718730.15 | FK8: 14909355.98 | FL8: 16824492.22 | FM8: 15739287.95 | FN8: 18987797.42 | FO8: ='[37]wyniki spółek Q1 adj przypisane'!$Z$30 -> 19317323.38 | FP8: ='[38]wyniki spółek H1 adj przypisane'!$Z$30-FO8 -> 19392627.4 | FQ8: ='[39]wyniki spółek Q1-Q3'!$Z$30-FP8-FO8 -> 21356977.07 | FR8: ='[40]wyniki spółek Q1-Q4'!$Z$31-FQ8-FP8-FO8 -> 26537709.95 | FS8: ='[41]wyniki spółek Q1 (adj)'!$Z$31 -> 26332770.3 | FT8: ='[42]wyniki spółek Q1-Q2 (adj)'!$Z$31-FS8 -> 26425115.58 | FU8: ='[43]wyniki spółek Q1-Q3 (adj)'!$AD$31-FT8-FS8 -> 28642137.14 | FV8: ='[44]wyniki spółek Q1-Q4 (adj)'!$AD$31-FU8-FT8-FS8 -> 25593255.47 | FW8: ='[45]wyniki spółek Q1 (adj)'!$AD$31 -> 26213621.53 | FX8: ='[42]wyniki spółek Q1-Q2 (adj)'!$Y$31-FW8 -> 27912736.17 | FY8: ='[43]wyniki spółek Q1-Q3 (adj)'!$AC$31-FX8-FW8 -> 26260882.78 | FZ8: ='[44]wyniki spółek Q1-Q4 (adj)'!$AC$31-FY8-FX8-FW8 -> 23598116.12 | GA8: ='[45]wyniki spółek Q1 (adj)'!$AC$31 -> 26395956.62
B9: Matrix IT | E9: 760222000 | F9: 707844000 | G9: 758484450 | H9: 798284035.3 | I9: 759908192 | J9: 773974079.7 | K9: 765809682.8 | L9: 885310052 | M9: 888804243.2 | N9: 935449905.1 | O9: 1066891860 | P9: 998489337.6 | Q9: 1112976989 | R9: 995774161.7 | S9: 1080977636 | T9: 1206625081 | U9: ='[37]wyniki spółek Q1 adj przypisane'!$F$31 -> 1280654956 | V9: ='[38]wyniki spółek H1 adj przypisane'!$F$31-U9 -> 1227244011 | W9: ='[39]wyniki spółek Q1-Q3'!$F$31-V9-U9 -> 1241272304 | X9: ='[40]wyniki spółek Q1-Q4'!$F$32-W9-V9-U9 -> 1483937268 | Y9: ='[41]wyniki spółek Q1 (adj)'!$F$32 -> 1505427489 | Z9: ='[42]wyniki spółek Q1-Q2 (adj)'!$F$32-Y9 -> 1513089479 | AA9: ='[43]wyniki spółek Q1-Q3 (adj)'!$F$32-Z9-Y9 -> 1583468752 | AB9: ='[44]wyniki spółek Q1-Q4 (adj)'!$F$32-AA9-Z9-Y9 -> 1587977287 | AC9: ='[45]wyniki spółek Q1 (adj)'!$F$32 -> 1571728213 | AD9: ='[42]wyniki spółek Q1-Q2 (adj)'!$E$32-AC9 -> 1458223330 | AE9: ='[43]wyniki spółek Q1-Q3 (adj)'!$E$32-AD9-AC9 -> 1471546917 | AF9: ='[44]wyniki spółek Q1-Q4 (adj)'!$E$32-AE9-AD9-AC9 -> 1408619826 | AG9: ='[45]wyniki spółek Q1 (adj)'!$E$32 -> 1596063655 | AI9: 53017000 | AJ9: 43328000 | AK9: 55766101.15 | AL9: 55523719.11 | AM9: 52733426.52 | AN9: 53170361.63 | AO9: 50707810.65 | AP9: 69334136.72 | AQ9: 62884255.45 | AR9: 63016636.19 | AS9: 75943784.22 | AT9: 72032917.69 | AU9: 77710252.65 | AV9: 76841471.94 | AW9: 80939794.24 | AX9: 91810593.72 | AY9: ='[37]wyniki spółek Q1 adj przypisane'!$J$31 -> 93996137.46 | AZ9: ='[38]wyniki spółek H1 adj przypisane'!$J$31-AY9 -> 94925938.88 | BA9: ='[39]wyniki spółek Q1-Q3'!$J$31-AZ9-AY9 -> 90435860.17 | BB9: ='[40]wyniki spółek Q1-Q4'!$J$32-BA9-AZ9-AY9 -> 116667519.7 | BC9: ='[41]wyniki spółek Q1 (adj)'!$J$32 -> 119766585.4 | BD9: ='[42]wyniki spółek Q1-Q2 (adj)'!$J$32-BC9 -> 299247600.3 | BE9: ='[43]wyniki spółek Q1-Q3 (adj)'!$N$32-BD9-BC9 -> 114356457.1 | BF9: ='[44]wyniki spółek Q1-Q4 (adj)'!$N$32-BE9-BD9-BC9 -> 112900592.5 | BG9: ='[45]wyniki spółek Q1 (adj)'!$N$32 -> 123511224.3 | BH9: ='[42]wyniki spółek Q1-Q2 (adj)'!$I$32-BG9 -> 106266311.9 | BI9: ='[43]wyniki spółek Q1-Q3 (adj)'!$M$32-BH9-BG9 -> 97004831.97 | BJ9: ='[44]wyniki spółek Q1-Q4 (adj)'!$M$32-BI9-BH9-BG9 -> 110401954 | BK9: ='[45]wyniki spółek Q1 (adj)'!$M$32 -> 121178010.2 | BM9: 57122191.84 | BN9: 46437246.78 | BO9: 58103931.17 | BP9: 57643352.36 | BQ9: 56373425.07 | BR9: 57451517.06 | BS9: 54447627.93 | BT9: 74626498.96 | BU9: 69610473.66 | BV9: 69441391.73 | BW9: 83105410.71 | BX9: 78414439.92 | BY9: 84147717.86 | BZ9: 83296847.44 | CA9: 88921494.54 | CB9: 99774329.96 | CC9: ='[37]wyniki spółek Q1 adj przypisane'!$N$31 -> 100722028.7 | CD9: ='[38]wyniki spółek H1 adj przypisane'!$N$31-CC9 -> 101869268.2 | CE9: ='[39]wyniki spółek Q1-Q3'!$N$31-CD9-CC9 -> 97972108.92 | CF9: ='[40]wyniki spółek Q1-Q4'!$N$32-CE9-CD9-CC9 -> 124666781.6 | CG9: ='[41]wyniki spółek Q1 (adj)'!$N$32 -> 126551511.5 | CH9: ='[42]wyniki spółek Q1-Q2 (adj)'!$N$32-CG9 -> 116143567.7 | CI9: ='[43]wyniki spółek Q1-Q3 (adj)'!$R$32-CH9-CG9 -> 121080333 | CJ9: ='[44]wyniki spółek Q1-Q4 (adj)'!$R$32-CI9-CH9-CG9 -> 129169481.7 | CK9: ='[45]wyniki spółek Q1 (adj)'!$R$32 -> 134241735.3 | CL9: ='[42]wyniki spółek Q1-Q2 (adj)'!$M$32-CK9 -> 124739866.3 | CM9: ='[43]wyniki spółek Q1-Q3 (adj)'!$Q$32-CL9-CK9 -> 111915556.8 | CN9: ='[44]wyniki spółek Q1-Q4 (adj)'!$Q$32-CM9-CL9-CK9 -> 119802563.5 | CO9: ='[45]wyniki spółek Q1 (adj)'!$Q$32 -> 132420497.4 | CQ9: 30833000 | CR9: 25706000 | CS9: 35640584.35 | CT9: 41719555.51 | CU9: 34345845.84 | CV9: 34687108.95 | CW9: 31351500.5 | CX9: 44622358.29 | CY9: 39895166.82 | CZ9: 39682481.85 | DA9: 49026859.63 | DB9: 51907383.71 | DC9: 49169004.41 | DD9: 48342710.25 | DE9: 50133264.49 | DF9: 70052743.33 | DG9: ='[37]wyniki spółek Q1 adj przypisane'!$R$31 -> 63608386.86 | DH9: ='[38]wyniki spółek H1 adj przypisane'!$R$31-DG9 -> 63059403.19 | DI9: ='[39]wyniki spółek Q1-Q3'!$R$31-DH9-DG9 -> 58052591.55 | DJ9: ='[40]wyniki spółek Q1-Q4'!$R$32-DI9-DH9-DG9 -> 77840608.53 | DK9: ='[41]wyniki spółek Q1 (adj)'!$R$32 -> 88425913.41 | DL9: ='[42]wyniki spółek Q1-Q2 (adj)'!$R$32-DK9 -> 237343671.8 | DM9: ='[43]wyniki spółek Q1-Q3 (adj)'!$V$32-DL9-DK9 -> 75557171.39 | DN9: ='[44]wyniki spółek Q1-Q4 (adj)'!$V$32-DM9-DL9-DK9 -> 68258554.27 | DO9: ='[45]wyniki spółek Q1 (adj)'!$V$32 -> 79563060.74 | DP9: ='[42]wyniki spółek Q1-Q2 (adj)'!$Q$32-DO9 -> 71104851.97 | DQ9: ='[43]wyniki spółek Q1-Q3 (adj)'!$U$32-DP9-DO9 -> 62194055.89 | DR9: ='[44]wyniki spółek Q1-Q4 (adj)'!$U$32-DQ9-DP9-DO9 -> 65998806.55 | DS9: ='[45]wyniki spółek Q1 (adj)'!$U$32 -> 78400842.55 | DU9: 7095356.749 | DV9: 5541517.16 | DW9: 5626038.265 | DX9: 5346883.021 | DY9: 4339318.363 | DZ9: 4293513.774 | EA9: 3876789.904 | EB9: 5498629.268 | EC9: 4814369.379 | ED9: 4662835.157 | EE9: 5763528.203 | EF9: 6185929.06 | EG9: 5636167.369 | EH9: 5679315.75 | EI9: 5729241.496 | EJ9: 7649250.548 | EK9: ='[37]wyniki spółek Q1 adj przypisane'!$V$31 -> 7022687.642 | EL9: ='[38]wyniki spółek H1 adj przypisane'!$V$31-EK9 -> 7161252.517 | EM9: ='[39]wyniki spółek Q1-Q3'!$V$31-EL9-EK9 -> 6569507.871 | EN9: ='[40]wyniki spółek Q1-Q4'!$V$32-EM9-EL9-EK9 -> 8638704.94 | EO9: ='[41]wyniki spółek Q1 (adj)'!$V$32 -> 9608255.142 | EP9: ='[42]wyniki spółek Q1-Q2 (adj)'!$V$32-EO9 -> 28939600.79 | EQ9: ='[43]wyniki spółek Q1-Q3 (adj)'!$Z$32-EP9-EO9 -> 8714933.092 | ER9: ='[44]wyniki spółek Q1-Q4 (adj)'!$Z$32-EQ9-EP9-EO9 -> 7995097.312 | ES9: ='[45]wyniki spółek Q1 (adj)'!$Z$32 -> 9205701.308 | ET9: ='[42]wyniki spółek Q1-Q2 (adj)'!$U$32-ES9 -> 8266482.37 | EU9: ='[43]wyniki spółek Q1-Q3 (adj)'!$Y$32-ET9-ES9 -> 7010395.349 | EV9: ='[44]wyniki spółek Q1-Q4 (adj)'!$Y$32-EU9-ET9-ES9 -> 7496906.243 | EW9: ='[45]wyniki spółek Q1 (adj)'!$Y$32 -> 9379874.887 | EY9: 8188853.931 | EZ9: 6830239.689 | FA9: 6048806.943 | FB9: 4831332.076 | FC9: 5025176.544 | FD9: 5310002.299 | FE9: 4841869.986 | FF9: 6562281.789 | FG9: 5602516.477 | FH9: 5514801.167 | FI9: 6683084.843 | FJ9: 6831457.202 | FK9: 6073807.565 | FL9: 6682624.093 | FM9: 6207042.2 | FN9: 7684270.064 | FO9: ='[37]wyniki spółek Q1 adj przypisane'!$Z$31 -> 7454302.157 | FP9: ='[38]wyniki spółek H1 adj przypisane'!$Z$31-FO9 -> 7968519.184 | FQ9: ='[39]wyniki spółek Q1-Q3'!$Z$31-FP9-FO9 -> 6886853.583 | FR9: ='[40]wyniki spółek Q1-Q4'!$Z$32-FQ9-FP9-FO9 -> 10159977.36 | FS9: ='[41]wyniki spółek Q1 (adj)'!$Z$32 -> 9535305.561 | FT9: ='[42]wyniki spółek Q1-Q2 (adj)'!$Z$32-FS9 -> 11271877.22 | FU9: ='[43]wyniki spółek Q1-Q3 (adj)'!$AD$32-FT9-FS9 -> 9441985.256 | FV9: ='[44]wyniki spółek Q1-Q4 (adj)'!$AD$32-FU9-FT9-FS9 -> 9870384.779 | FW9: ='[45]wyniki spółek Q1 (adj)'!$AD$32 -> 10364682.53 | FX9: ='[42]wyniki spółek Q1-Q2 (adj)'!$Y$32-FW9 -> 10582378.6 | FY9: ='[43]wyniki spółek Q1-Q3 (adj)'!$AC$32-FX9-FW9 -> 8580647.413 | FZ9: ='[44]wyniki spółek Q1-Q4 (adj)'!$AC$32-FY9-FX9-FW9 -> 8999108.415 | GA9: ='[45]wyniki spółek Q1 (adj)'!$AC$32 -> 10854302.3
B10: Magic Software | E10: 244404000 | F10: 247476000 | G10: 246088914.1 | H10: 245359832 | I10: 236243311.3 | J10: 256256989 | K10: 264383788.9 | L10: 273324710 | M10: 271624575 | N10: 293085764 | O10: 337158171.4 | P10: 349840772.1 | Q10: 339162772.2 | R10: 351437968.4 | S10: 358384043.3 | T10: 400349858.8 | U10: ='[37]wyniki spółek Q1 adj przypisane'!$F$32 -> 409106054.1 | V10: ='[38]wyniki spółek H1 adj przypisane'!$F$32-U10 -> 447225987.4 | W10: ='[39]wyniki spółek Q1-Q3'!$F$32-V10-U10 -> 469704729.6 | X10: ='[40]wyniki spółek Q1-Q4'!$F$33-W10-V10-U10 -> 535582466.7 | Y10: ='[41]wyniki spółek Q1 (adj)'!$F$33 -> 577526932.6 | Z10: ='[42]wyniki spółek Q1-Q2 (adj)'!$F$33-Y10 -> 600838698.5 | AA10: ='[43]wyniki spółek Q1-Q3 (adj)'!$F$33-Z10-Y10 -> 685417464.9 | AB10: ='[44]wyniki spółek Q1-Q4 (adj)'!$F$33-AA10-Z10-Y10 -> 668581117.1 | AC10: ='[45]wyniki spółek Q1 (adj)'!$F$33 -> 621460976.7 | AD10: ='[42]wyniki spółek Q1-Q2 (adj)'!$E$33-AC10 -> 574549934.9 | AE10: ='[43]wyniki spółek Q1-Q3 (adj)'!$E$33-AD10-AC10 -> 537714640.5 | AF10: ='[44]wyniki spółek Q1-Q4 (adj)'!$E$33-AE10-AD10-AC10 -> 504476963.8 | AG10: ='[45]wyniki spółek Q1 (adj)'!$E$33 -> 522113105 | AI10: 25501000 | AJ10: 26584000 | AK10: 23941604.09 | AL10: 24182734.45 | AM10: 25638257.42 | AN10: 29089081.48 | AO10: 28269706.46 | AP10: 31698428.13 | AQ10: 31735307.65 | AR10: 30437457 | AS10: 35671641.79 | AT10: 33826256.86 | AU10: 34714809.62 | AV10: 42058373.51 | AW10: 42898448.78 | AX10: 48782010.65 | AY10: ='[37]wyniki spółek Q1 adj przypisane'!$J$32 -> 47152485.78 | AZ10: ='[38]wyniki spółek H1 adj przypisane'!$J$32-AY10 -> 48499714.4 | BA10: ='[39]wyniki spółek Q1-Q3'!$J$32-AZ10-AY10 -> 49904390.95 | BB10: ='[40]wyniki spółek Q1-Q4'!$J$33-BA10-AZ10-AY10 -> 67596656.7 | BC10: ='[41]wyniki spółek Q1 (adj)'!$J$33 -> 68960304.09 | BD10: ='[42]wyniki spółek Q1-Q2 (adj)'!$J$33-BC10 -> 63544545.91 | BE10: ='[43]wyniki spółek Q1-Q3 (adj)'!$N$33-BD10-BC10 -> 78839908.21 | BF10: ='[44]wyniki spółek Q1-Q4 (adj)'!$N$33-BE10-BD10-BC10 -> 64599106.12 | BG10: ='[45]wyniki spółek Q1 (adj)'!$N$33 -> 66565782.94 | BH10: ='[42]wyniki spółek Q1-Q2 (adj)'!$I$33-BG10 -> 64967526.95 | BI10: ='[43]wyniki spółek Q1-Q3 (adj)'!$M$33-BH10-BG10 -> 55270235.21 | BJ10: ='[44]wyniki spółek Q1-Q4 (adj)'!$M$33-BI10-BH10-BG10 -> 52087311.1 | BK10: ='[45]wyniki spółek Q1 (adj)'!$M$33 -> 57623361.12 | BM10: 33754896.47 | BN10: 33822123.53 | BO10: 31650424.87 | BP10: 31355727.02 | BQ10: 31808108.98 | BR10: 35658794.38 | BS10: 35465706.83 | BT10: 38183396.74 | BU10: 37844798.87 | BV10: 37852031.07 | BW10: 45460698.05 | BX10: 43709487.52 | BY10: 41327344.35 | BZ10: 49540962.5 | CA10: 51673798.69 | CB10: 57495374.83 | CC10: ='[37]wyniki spółek Q1 adj przypisane'!$N$32 -> 56444198.23 | CD10: ='[38]wyniki spółek H1 adj przypisane'!$N$32-CC10 -> 56897703.17 | CE10: ='[39]wyniki spółek Q1-Q3'!$N$32-CD10-CC10 -> 58706943.78 | CF10: ='[40]wyniki spółek Q1-Q4'!$N$33-CE10-CD10-CC10 -> 77919914.42 | CG10: ='[41]wyniki spółek Q1 (adj)'!$N$33 -> 79752787.37 | CH10: ='[42]wyniki spółek Q1-Q2 (adj)'!$N$33-CG10 -> 77286831.63 | CI10: ='[43]wyniki spółek Q1-Q3 (adj)'!$R$33-CH10-CG10 -> 89653622.6 | CJ10: ='[44]wyniki spółek Q1-Q4 (adj)'!$R$33-CI10-CH10-CG10 -> 84553772.76 | CK10: ='[45]wyniki spółek Q1 (adj)'!$R$33 -> 79532519.97 | CL10: ='[42]wyniki spółek Q1-Q2 (adj)'!$M$33-CK10 -> 77354138.65 | CM10: ='[43]wyniki spółek Q1-Q3 (adj)'!$Q$33-CL10-CK10 -> 72139576.58 | CN10: ='[44]wyniki spółek Q1-Q4 (adj)'!$Q$33-CM10-CL10-CK10 -> 69938718.96 | CO10: ='[45]wyniki spółek Q1 (adj)'!$Q$33 -> 69250283.16 | CQ10: 19559000 | CR10: 18282000 | CS10: 15594956.57 | CT10: 14870521.45 | CU10: 19614097.03 | CV10: 24685802.79 | CW10: 22487454.28 | CX10: 22962035.05 | CY10: 24698989.58 | CZ10: 23065808.74 | DA10: 25986436.52 | DB10: 22854916.56 | DC10: 27950629.57 | DD10: 27243542.48 | DE10: 31212389.42 | DF10: 28523623.47 | DG10: ='[37]wyniki spółek Q1 adj przypisane'!$R$32 -> 33617163.99 | DH10: ='[38]wyniki spółek H1 adj przypisane'!$R$32-DG10 -> 34176971 | DI10: ='[39]wyniki spółek Q1-Q3'!$R$32-DH10-DG10 -> 34051573.2 | DJ10: ='[40]wyniki spółek Q1-Q4'!$R$33-DI10-DH10-DG10 -> 35157294.83 | DK10: ='[41]wyniki spółek Q1 (adj)'!$R$33 -> 46900668.11 | DL10: ='[42]wyniki spółek Q1-Q2 (adj)'!$R$33-DK10 -> 48075388.89 | DM10: ='[43]wyniki spółek Q1-Q3 (adj)'!$V$33-DL10-DK10 -> 61687142.28 | DN10: ='[44]wyniki spółek Q1-Q4 (adj)'!$V$33-DM10-DL10-DK10 -> 47844078.68 | DO10: ='[45]wyniki spółek Q1 (adj)'!$V$33 -> 51640073.86 | DP10: ='[42]wyniki spółek Q1-Q2 (adj)'!$Q$33-DO10 -> 53057809.81 | DQ10: ='[43]wyniki spółek Q1-Q3 (adj)'!$U$33-DP10-DO10 -> 35839787.83 | DR10: ='[44]wyniki spółek Q1-Q4 (adj)'!$U$33-DQ10-DP10-DO10 -> 37254217.03 | DS10: ='[45]wyniki spółek Q1 (adj)'!$U$33 -> 39901391.67 | DU10: 3754409.564 | DV10: 3522397.511 | DW10: 1774636.64 | DX10: 1765278.34 | DY10: 1923780.68 | DZ10: 2569075.479 | EA10: 2250208.041 | EB10: 2055315.533 | EC10: 2363685.408 | ED10: 2057419.928 | EE10: 2289718.732 | EF10: 2062692.374 | EG10: 2586290.328 | EH10: 2744020.4 | EI10: 3052885.832 | EJ10: 2744059.384 | EK10: ='[37]wyniki spółek Q1 adj przypisane'!$V$32 -> 3363294.589 | EL10: ='[38]wyniki spółek H1 adj przypisane'!$V$32-EK10 -> 3411833.494 | EM10: ='[39]wyniki spółek Q1-Q3'!$V$32-EL10-EK10 -> 3393246.115 | EN10: ='[40]wyniki spółek Q1-Q4'!$V$33-EM10-EL10-EK10 -> 3281695.121 | EO10: ='[41]wyniki spółek Q1 (adj)'!$V$33 -> 4722299.583 | EP10: ='[42]wyniki spółek Q1-Q2 (adj)'!$V$33-EO10 -> 4922429.233 | EQ10: ='[43]wyniki spółek Q1-Q3 (adj)'!$Z$33-EP10-EO10 -> 6505526.084 | ER10: ='[44]wyniki spółek Q1-Q4 (adj)'!$Z$33-EQ10-EP10-EO10 -> 4865523.752 | ES10: ='[45]wyniki spółek Q1 (adj)'!$Z$33 -> 5243782.595 | ET10: ='[42]wyniki spółek Q1-Q2 (adj)'!$U$33-ES10 -> 5655178.607 | EU10: ='[43]wyniki spółek Q1-Q3 (adj)'!$Y$33-ET10-ES10 -> 3519157.807 | EV10: ='[44]wyniki spółek Q1-Q4 (adj)'!$Y$33-EU10-ET10-ES10 -> 4088112.9 | EW10: ='[45]wyniki spółek Q1 (adj)'!$Y$33 -> 4237232.969 | EY10: 5148095.813 | EZ10: 4741289.682 | FA10: 2694877.041 | FB10: 2596976.727 | FC10: 2513230.441 | FD10: 3196527.957 | FE10: 2942704.435 | FF10: 2633755.938 | FG10: 2882327.865 | FH10: 2553219.032 | FI10: 3153635.277 | FJ10: 3220244.88 | FK10: 3479181.774 | FL10: 3855995.786 | FM10: 3743265.7 | FN10: 4436028.344 | FO10: ='[37]wyniki spółek Q1 adj przypisane'!$Z$32 -> 4369423.771 | FP10: ='[38]wyniki spółek H1 adj przypisane'!$Z$32-FO10 -> 4498429.385 | FQ10: ='[39]wyniki spółek Q1-Q3'!$Z$32-FP10-FO10 -> 4611973.402 | FR10: ='[40]wyniki spółek Q1-Q4'!$Z$33-FQ10-FP10-FO10 -> 5750911.054 | FS10: ='[41]wyniki spółek Q1 (adj)'!$Z$33 -> 6354547.126 | FT10: ='[42]wyniki spółek Q1-Q2 (adj)'!$Z$33-FS10 -> 6113567.578 | FU10: ='[43]wyniki spółek Q1-Q3 (adj)'!$AD$33-FT10-FS10 -> 7584270.179 | FV10: ='[44]wyniki spółek Q1-Q4 (adj)'!$AD$33-FU10-FT10-FS10 -> 7049703.142 | FW10: ='[45]wyniki spółek Q1 (adj)'!$AD$33 -> 6416099.21 | FX10: ='[42]wyniki spółek Q1-Q2 (adj)'!$Y$33-FW10 -> 6885415.562 | FY10: ='[43]wyniki spółek Q1-Q3 (adj)'!$AC$33-FX10-FW10 -> 5208105.749 | FZ10: ='[44]wyniki spółek Q1-Q4 (adj)'!$AC$33-FY10-FX10-FW10 -> 4735077.017 | GA10: ='[45]wyniki spółek Q1 (adj)'!$AC$33 -> 5168672.905
B11: Sapiens Int. | E11: 227403000 | F11: 261914000 | G11: 270400367.3 | H11: 265168011.6 | I11: 240546283 | J11: 263261260.5 | K11: 268479678.1 | L11: 277241569.9 | M11: 290482664 | N11: 302516301.9 | O11: 325231382.6 | P11: 333644223.8 | Q11: 361295009.7 | R11: 377032101.3 | S11: 368182048.4 | T11: 388555475.7 | U11: ='[37]wyniki spółek Q1 adj przypisane'!$F$33 -> 417848728.2 | V11: ='[38]wyniki spółek H1 adj przypisane'!$F$33-U11 -> 429196031.1 | W11: ='[39]wyniki spółek Q1-Q3'!$F$33-V11-U11 -> 457947869.4 | X11: ='[40]wyniki spółek Q1-Q4'!$F$34-W11-V11-U11 -> 481852246.7 | Y11: ='[41]wyniki spółek Q1 (adj)'!$F$34 -> 490058685.5 | Z11: ='[42]wyniki spółek Q1-Q2 (adj)'!$F$34-Y11 -> 519876183.8 | AA11: ='[43]wyniki spółek Q1-Q3 (adj)'!$F$34-Z11-Y11 -> 567951434 | AB11: ='[44]wyniki spółek Q1-Q4 (adj)'!$F$34-AA11-Z11-Y11 -> 543166874.6 | AC11: ='[45]wyniki spółek Q1 (adj)'!$F$34 -> 544162295.7 | AD11: ='[42]wyniki spółek Q1-Q2 (adj)'!$E$34-AC11 -> 536519922.8 | AE11: ='[43]wyniki spółek Q1-Q3 (adj)'!$E$34-AD11-AC11 -> 543894313.9 | AF11: ='[44]wyniki spółek Q1-Q4 (adj)'!$E$34-AE11-AD11-AC11 -> 528009622.3 | AG11: ='[45]wyniki spółek Q1 (adj)'!$E$34 -> 536212395.5 | AI11: -2370000 | AJ11: -6389000 | AK11: 12807157.71 | AL11: 2823874.983 | AM11: 17547315.34 | AN11: 17810254.85 | AO11: 24342058.94 | AP11: 27176939.1 | AQ11: 32325450.45 | AR11: 37104407.29 | AS11: 45640974.26 | AT11: 37138056.15 | AU11: 42867741.69 | AV11: 54129229.5 | AW11: 53095184.04 | AX11: 45377011.35 | AY11: ='[37]wyniki spółek Q1 adj przypisane'!$J$33 -> 50008248.04 | AZ11: ='[38]wyniki spółek H1 adj przypisane'!$J$33-AY11 -> 54027463.81 | BA11: ='[39]wyniki spółek Q1-Q3'!$J$33-AZ11-AY11 -> 61255489.62 | BB11: ='[40]wyniki spółek Q1-Q4'!$J$34-BA11-AZ11-AY11 -> 67701882.63 | BC11: ='[41]wyniki spółek Q1 (adj)'!$J$34 -> 69768074.83 | BD11: ='[42]wyniki spółek Q1-Q2 (adj)'!$J$34-BC11 -> 72264301.32 | BE11: ='[43]wyniki spółek Q1-Q3 (adj)'!$N$34-BD11-BC11 -> 82649672.63 | BF11: ='[44]wyniki spółek Q1-Q4 (adj)'!$N$34-BE11-BD11-BC11 -> 83327634.57 | BG11: ='[45]wyniki spółek Q1 (adj)'!$N$34 -> 85631947.42 | BH11: ='[42]wyniki spółek Q1-Q2 (adj)'!$I$34-BG11 -> 81770200.52 | BI11: ='[43]wyniki spółek Q1-Q3 (adj)'!$M$34-BH11-BG11 -> 88732468.36 | BJ11: ='[44]wyniki spółek Q1-Q4 (adj)'!$M$34-BI11-BH11-BG11 -> 85402170.94 | BK11: ='[45]wyniki spółek Q1 (adj)'!$M$34 -> 80345985.46 | BM11: 4838081.126 | BN11: 2101447.189 | BO11: 22921886 | BP11: 16272566.28 | BQ11: 29202608.79 | BR11: 30448114.28 | BS11: 35733781.21 | BT11: 39384488.45 | BU11: 43314968.71 | BV11: 47241261.98 | BW11: 56907812.88 | BX11: 47343498.48 | BY11: 54983405.79 | BZ11: 69230625.98 | CA11: 66642096.85 | CB11: 66242324.16 | CC11: ='[37]wyniki spółek Q1 adj przypisane'!$N$33 -> 70257851.98 | CD11: ='[38]wyniki spółek H1 adj przypisane'!$N$33-CC11 -> 74746270.1 | CE11: ='[39]wyniki spółek Q1-Q3'!$N$33-CD11-CC11 -> 79559632.24 | CF11: ='[40]wyniki spółek Q1-Q4'!$N$34-CE11-CD11-CC11 -> 91292330.28 | CG11: ='[41]wyniki spółek Q1 (adj)'!$N$34 -> 90965811.09 | CH11: ='[42]wyniki spółek Q1-Q2 (adj)'!$N$34-CG11 -> 89458776.76 | CI11: ='[43]wyniki spółek Q1-Q3 (adj)'!$R$34-CH11-CG11 -> 99223264.47 | CJ11: ='[44]wyniki spółek Q1-Q4 (adj)'!$R$34-CI11-CH11-CG11 -> 104436054.3 | CK11: ='[45]wyniki spółek Q1 (adj)'!$R$34 -> 104942438 | CL11: ='[42]wyniki spółek Q1-Q2 (adj)'!$M$34-CK11 -> 96538950.05 | CM11: ='[43]wyniki spółek Q1-Q3 (adj)'!$Q$34-CL11-CK11 -> 103984300.6 | CN11: ='[44]wyniki spółek Q1-Q4 (adj)'!$Q$34-CM11-CL11-CK11 -> 102148004.8 | CO11: ='[45]wyniki spółek Q1 (adj)'!$Q$34 -> 95979023.2 | CQ11: -8039000 | CR11: -10033000 | CS11: 6111145.791 | CT11: 10460666.26 | CU11: 10798087.27 | CV11: 6741688.76 | CW11: 18630461.96 | CX11: 16616487.98 | CY11: 20129165.81 | CZ11: 24156931.85 | DA11: 31109774.74 | DB11: 26315044.61 | DC11: 25675949.55 | DD11: 35771551.28 | DE11: 37128056.84 | DF11: 28583651.88 | DG11: ='[37]wyniki spółek Q1 adj przypisane'!$R$33 -> 36491990.09 | DH11: ='[38]wyniki spółek H1 adj przypisane'!$R$33-DG11 -> 38604157.11 | DI11: ='[39]wyniki spółek Q1-Q3'!$R$33-DH11-DG11 -> 49988983.17 | DJ11: ='[40]wyniki spółek Q1-Q4'!$R$34-DI11-DH11-DG11 -> 52237039.84 | DK11: ='[41]wyniki spółek Q1 (adj)'!$R$34 -> 56756303.89 | DL11: ='[42]wyniki spółek Q1-Q2 (adj)'!$R$34-DK11 -> 46152946.71 | DM11: ='[43]wyniki spółek Q1-Q3 (adj)'!$V$34-DL11-DK11 -> 66722609.51 | DN11: ='[44]wyniki spółek Q1-Q4 (adj)'!$V$34-DM11-DL11-DK11 -> 64850279.19 | DO11: ='[45]wyniki spółek Q1 (adj)'!$V$34 -> 64445381.13 | DP11: ='[42]wyniki spółek Q1-Q2 (adj)'!$Q$34-DO11 -> 62496478.32 | DQ11: ='[43]wyniki spółek Q1-Q3 (adj)'!$U$34-DP11-DO11 -> 68295216.06 | DR11: ='[44]wyniki spółek Q1-Q4 (adj)'!$U$34-DQ11-DP11-DO11 -> 70438437.01 | DS11: ='[45]wyniki spółek Q1 (adj)'!$U$34 -> 65000525.32 | DU11: -1792418.334 | DV11: -2258985.349 | DW11: 905486.1858 | DX11: 1453816.453 | DY11: 1364406.99 | DZ11: 809498.1944 | EA11: 2350251.507 | EB11: 2062352.506 | EC11: 2488614.14 | ED11: 2931081.514 | EE11: 3749456.18 | EF11: 3146533.394 | EG11: 3097616.354 | EH11: 4356791.704 | EI11: 4422217.857 | EJ11: 3300509.664 | EK11: ='[37]wyniki spółek Q1 adj przypisane'!$V$33 -> 4075162.617 | EL11: ='[38]wyniki spółek H1 adj przypisane'!$V$33-EK11 -> 4331025.443 | EM11: ='[39]wyniki spółek Q1-Q3'!$V$33-EL11-EK11 -> 5571003.842 | EN11: ='[40]wyniki spółek Q1-Q4'!$V$34-EM11-EL11-EK11 -> 5860386.195 | EO11: ='[41]wyniki spółek Q1 (adj)'!$V$34 -> 6347928.194 | EP11: ='[42]wyniki spółek Q1-Q2 (adj)'!$V$34-EO11 -> 5176807.661 | EQ11: ='[43]wyniki spółek Q1-Q3 (adj)'!$Z$34-EP11-EO11 -> 7344639.034 | ER11: ='[44]wyniki spółek Q1-Q4 (adj)'!$Z$34-EQ11-EP11-EO11 -> 7323392.581 | ES11: ='[45]wyniki spółek Q1 (adj)'!$Z$34 -> 7217346.507 | ET11: ='[42]wyniki spółek Q1-Q2 (adj)'!$U$34-ES11 -> 7084015.514 | EU11: ='[43]wyniki spółek Q1-Q3 (adj)'!$Y$34-ET11-ES11 -> 7673295.818 | EV11: ='[44]wyniki spółek Q1-Q4 (adj)'!$Y$34-EU11-ET11-ES11 -> 7912189.421 | EW11: ='[45]wyniki spółek Q1 (adj)'!$Y$34 -> 7255697.421 | EY11: 134942.9724 | EZ11: -575527.8778 | FA11: 2434853.881 | FB11: 2877220.466 | FC11: 2633408.464 | FD11: 2219936.365 | FE11: 3460949.149 | FF11: 3299279.487 | FG11: 3586421.661 | FH11: 3909014.464 | FI11: 4857969.546 | FJ11: 4359635.299 | FK11: 4297431.613 | FL11: 6355257.173 | FM11: 5537830.143 | FN11: 5903065.221 | FO11: ='[37]wyniki spółek Q1 adj przypisane'!$Z$33 -> 6049671.941 | FP11: ='[38]wyniki spółek H1 adj przypisane'!$Z$33-FO11 -> 6364452.282 | FQ11: ='[39]wyniki spółek Q1-Q3'!$Z$33-FP11-FO11 -> 7087534.181 | FR11: ='[40]wyniki spółek Q1-Q4'!$Z$34-FQ11-FP11-FO11 -> 7445757.235 | FS11: ='[41]wyniki spółek Q1 (adj)'!$Z$34 -> 8474113.575 | FT11: ='[42]wyniki spółek Q1-Q2 (adj)'!$Z$34-FS11 -> 6706380.481 | FU11: ='[43]wyniki spółek Q1-Q3 (adj)'!$AD$34-FT11-FS11 -> 8867122.861 | FV11: ='[44]wyniki spółek Q1-Q4 (adj)'!$AD$34-FU11-FT11-FS11 -> 9179278.638 | FW11: ='[45]wyniki spółek Q1 (adj)'!$AD$34 -> 8966811.527 | FX11: ='[42]wyniki spółek Q1-Q2 (adj)'!$Y$34-FW11 -> 8401591.33 | FY11: ='[43]wyniki spółek Q1-Q3 (adj)'!$AC$34-FX11-FW11 -> 9232767.697 | FZ11: ='[44]wyniki spółek Q1-Q4 (adj)'!$AC$34-FY11-FX11-FW11 -> 9444928.951 | GA11: ='[45]wyniki spółek Q1 (adj)'!$AC$34 -> 8690915.031
B12: Pozostałe | E12: 32688781.38 | F12: 29999114.83 | G12: 30921477.35 | H12: 34743374.85 | I12: 27102213.67 | J12: 29407670.83 | K12: 29126850.2 | L12: 52323668.15 | M12: 35188517.82 | N12: 36148029.12 | O12: 39318586.08 | P12: 50525666.49 | Q12: 49065228.85 | R12: 51555768.54 | S12: 51456272.72 | T12: 68569584.09 | U12: ='[37]wyniki spółek Q1 adj przypisane'!$F$34 -> 52290261.87 | V12: ='[38]wyniki spółek H1 adj przypisane'!$F$34-U12 -> 102333970.1 | W12: ='[39]wyniki spółek Q1-Q3'!$F$34-V12-U12 -> 121875097.1 | X12: ='[40]wyniki spółek Q1-Q4'!$F$35-W12-V12-U12 -> 150828018.2 | Y12: ='[41]wyniki spółek Q1 (adj)'!$F$35 -> 133286893.4 | Z12: ='[42]wyniki spółek Q1-Q2 (adj)'!$F$35-Y12 -> 143695638.5 | AA12: ='[43]wyniki spółek Q1-Q3 (adj)'!$F$35-Z12-Y12 -> 156762349.6 | AB12: ='[44]wyniki spółek Q1-Q4 (adj)'!$F$35-AA12-Z12-Y12 -> 186874721 | AC12: ='[45]wyniki spółek Q1 (adj)'!$F$35 -> 166048514.6 | AD12: ='[42]wyniki spółek Q1-Q2 (adj)'!$E$35-AC12 -> 153306812.6 | AE12: ='[43]wyniki spółek Q1-Q3 (adj)'!$E$35-AD12-AC12 -> 159944128.3 | AF12: ='[44]wyniki spółek Q1-Q4 (adj)'!$E$35-AE12-AD12-AC12 -> 142693587.9 | AG12: ='[45]wyniki spółek Q1 (adj)'!$E$35 -> 147210844.6 | AI12: -3424189.037 | AJ12: -8631152.493 | AK12: -36861705.86 | AL12: -53377769.61 | AM12: -39118999.28 | AN12: -30269697.96 | AO12: -28519576.06 | AP12: -28509503.96 | AQ12: -21945013.55 | AR12: -21158500.48 | AS12: -22256400.27 | AT12: -19697230.7 | AU12: -28392803.96 | AV12: -12529074.95 | AW12: -17933427.07 | AX12: -17769615.71 | AY12: ='[37]wyniki spółek Q1 adj przypisane'!$J$34 -> -24656871.27 | AZ12: ='[38]wyniki spółek H1 adj przypisane'!$J$34-AY12 -> -24953117.09 | BA12: ='[39]wyniki spółek Q1-Q3'!$J$34-AZ12-AY12 -> -18695740.74 | BB12: ='[40]wyniki spółek Q1-Q4'!$J$35-BA12-AZ12-AY12 -> -14066059.05 | BC12: ='[41]wyniki spółek Q1 (adj)'!$J$35 -> -33894964.27 | BD12: ='[42]wyniki spółek Q1-Q2 (adj)'!$J$35-BC12 -> -31956447.5 | BE12: ='[43]wyniki spółek Q1-Q3 (adj)'!$N$35-BD12-BC12 -> -24946037.94 | BF12: ='[44]wyniki spółek Q1-Q4 (adj)'!$N$35-BE12-BD12-BC12 -> -25627333.19 | BG12: ='[45]wyniki spółek Q1 (adj)'!$N$35 -> -38108954.67 | BH12: ='[42]wyniki spółek Q1-Q2 (adj)'!$I$35-BG12 -> -27304039.39 | BI12: ='[43]wyniki spółek Q1-Q3 (adj)'!$M$35-BH12-BG12 -> -26407535.54 | BJ12: ='[44]wyniki spółek Q1-Q4 (adj)'!$M$35-BI12-BH12-BG12 -> -19391436.05 | BK12: ='[45]wyniki spółek Q1 (adj)'!$M$35 -> -22547356.77 | BM12: 2765958.23 | BN12: -2512980.34 | BO12: 432044.6015 | BP12: -4440429.358 | BQ12: 719533.0699 | BR12: -4065.927892 | BS12: 879132.9052 | BT12: 3054960.651 | BU12: 3541978.96 | BV12: 2196356.53 | BW12: 2178368.928 | BX12: 4376807.536 | BY12: 5253964.076 | BZ12: 5246328.077 | CA12: 6627072.173 | CB12: 12320974.36 | CC12: ='[37]wyniki spółek Q1 adj przypisane'!$N$34 -> 7391050.18 | CD12: ='[38]wyniki spółek H1 adj przypisane'!$N$34-CC12 -> 9119336.913 | CE12: ='[39]wyniki spółek Q1-Q3'!$N$34-CD12-CC12 -> 22991658.66 | CF12: ='[40]wyniki spółek Q1-Q4'!$N$35-CE12-CD12-CC12 -> 24834877.39 | CG12: ='[41]wyniki spółek Q1 (adj)'!$N$35 -> 11922254.25 | CH12: ='[42]wyniki spółek Q1-Q2 (adj)'!$N$35-CG12 -> 12824795.84 | CI12: ='[43]wyniki spółek Q1-Q3 (adj)'!$R$35-CH12-CG12 -> 18053915.98 | CJ12: ='[44]wyniki spółek Q1-Q4 (adj)'!$R$35-CI12-CH12-CG12 -> 20504975.83 | CK12: ='[45]wyniki spółek Q1 (adj)'!$R$35 -> 7418960.224 | CL12: ='[42]wyniki spółek Q1-Q2 (adj)'!$M$35-CK12 -> 11929788.2 | CM12: ='[43]wyniki spółek Q1-Q3 (adj)'!$Q$35-CL12-CK12 -> 15166568.44 | CN12: ='[44]wyniki spółek Q1-Q4 (adj)'!$Q$35-CM12-CL12-CK12 -> 15265992.57 | CO12: ='[45]wyniki spółek Q1 (adj)'!$Q$35 -> 9895825.221 | CQ12: -19897189.04 | CR12: -18710152.49 | CS12: -33360253.65 | CT12: 345813755.3 | CU12: -31786709.07 | CV12: -21083921.56 | CW12: -27534416.74 | CX12: -18307881.32 | CY12: -23760322.21 | CZ12: -11681222.43 | DA12: -20837070.89 | DB12: -19083344.87 | DC12: -24455583.53 | DD12: -12934804 | DE12: -18888710.76 | DF12: -20070018.68 | DG12: ='[37]wyniki spółek Q1 adj przypisane'!$R$34 -> -20676540.94 | DH12: ='[38]wyniki spółek H1 adj przypisane'!$R$34-DG12 -> -28397531.31 | DI12: ='[39]wyniki spółek Q1-Q3'!$R$34-DH12-DG12 -> -21739147.91 | DJ12: ='[40]wyniki spółek Q1-Q4'!$R$35-DI12-DH12-DG12 -> -18111943.2 | DK12: ='[41]wyniki spółek Q1 (adj)'!$R$35 -> -28667283.94 | DL12: ='[42]wyniki spółek Q1-Q2 (adj)'!$R$35-DK12 -> -29337795.71 | DM12: ='[43]wyniki spółek Q1-Q3 (adj)'!$V$35-DL12-DK12 -> -22792827.15 | DN12: ='[44]wyniki spółek Q1-Q4 (adj)'!$V$35-DM12-DL12-DK12 -> -36086107.74 | DO12: ='[45]wyniki spółek Q1 (adj)'!$V$35 -> -33452119.37 | DP12: ='[42]wyniki spółek Q1-Q2 (adj)'!$Q$35-DO12 -> -25018391.1 | DQ12: ='[43]wyniki spółek Q1-Q3 (adj)'!$U$35-DP12-DO12 -> -20369205.13 | DR12: ='[44]wyniki spółek Q1-Q4 (adj)'!$U$35-DQ12-DP12-DO12 -> -26264460.59 | DS12: ='[45]wyniki spółek Q1 (adj)'!$U$35 -> -20637759.54 | DU12: -8702739.832 | DV12: -7210160.146 | DW12: -3969067.582 | DX12: 392608474.2 | DY12: -4275478.727 | DZ12: -2516896.069 | EA12: -4204057.533 | EB12: -1747207.218 | EC12: -3714461.3 | ED12: -794021.8696 | EE12: -2996448.138 | EF12: -2738043.874 | EG12: -3930789.628 | EH12: -912983.4313 | EI12: -2628425.797 | EJ12: -3038164.616 | EK12: ='[37]wyniki spółek Q1 adj przypisane'!$V$34 -> -3061144.848 | EL12: ='[38]wyniki spółek H1 adj przypisane'!$V$34-EK12 -> -4704111.454 | EM12: ='[39]wyniki spółek Q1-Q3'!$V$34-EL12-EK12 -> -3612478.406 | EN12: ='[40]wyniki spółek Q1-Q4'!$V$35-EM12-EL12-EK12 -> -2602065.678 | EO12: ='[41]wyniki spółek Q1 (adj)'!$V$35 -> -4678482.919 | EP12: ='[42]wyniki spółek Q1-Q2 (adj)'!$V$35-EO12 -> -5022575.482 | EQ12: ='[43]wyniki spółek Q1-Q3 (adj)'!$Z$35-EP12-EO12 -> -3245470.142 | ER12: ='[44]wyniki spółek Q1-Q4 (adj)'!$Z$35-EQ12-EP12-EO12 -> -7216035.727 | ES12: ='[45]wyniki spółek Q1 (adj)'!$Z$35 -> -6135253.601 | ET12: ='[42]wyniki spółek Q1-Q2 (adj)'!$U$35-ES12 -> -4154139.748 | EU12: ='[43]wyniki spółek Q1-Q3 (adj)'!$Y$35-ET12-ES12 -> -3105608.451 | EV12: ='[44]wyniki spółek Q1-Q4 (adj)'!$Y$35-EU12-ET12-ES12 -> -4581779.176 | EW12: ='[45]wyniki spółek Q1 (adj)'!$Y$35 -> -3807616.094 | EY12: -6800247.909 | EZ12: -5195289.09 | FA12: 757756.5582 | FB12: -2341511.446 | FC12: 459274.8471 | FD12: 592639.204 | FE12: -928605.3254 | FF12: 2222714.841 | FG12: -942542.1743 | FH12: 1721746.207 | FI12: -364365.5643 | FJ12: 307392.7717 | FK12: 1058935.027 | FL12: -69384.82925 | FM12: 251149.9078 | FN12: 964433.7922 | FO12: ='[37]wyniki spółek Q1 adj przypisane'!$Z$34 -> 1443925.512 | FP12: ='[38]wyniki spółek H1 adj przypisane'!$Z$34-FO12 -> 561226.552 | FQ12: ='[39]wyniki spółek Q1-Q3'!$Z$34-FP12-FO12 -> 2770615.906 | FR12: ='[40]wyniki spółek Q1-Q4'!$Z$35-FQ12-FP12-FO12 -> 3181064.302 | FS12: ='[41]wyniki spółek Q1 (adj)'!$Z$35 -> 1968804.035 | FT12: ='[42]wyniki spółek Q1-Q2 (adj)'!$Z$35-FS12 -> 2333290.303 | FU12: ='[43]wyniki spółek Q1-Q3 (adj)'!$AD$35-FT12-FS12 -> 2748758.84 | FV12: ='[44]wyniki spółek Q1-Q4 (adj)'!$AD$35-FU12-FT12-FS12 -> -506111.0859 | FW12: ='[45]wyniki spółek Q1 (adj)'!$AD$35 -> 466028.2653 | FX12: ='[42]wyniki spółek Q1-Q2 (adj)'!$Y$35-FW12 -> 2043350.678 | FY12: ='[43]wyniki spółek Q1-Q3 (adj)'!$AC$35-FX12-FW12 -> 3239361.919 | FZ12: ='[44]wyniki spółek Q1-Q4 (adj)'!$AC$35-FY12-FX12-FW12 -> 419001.741 | GA12: ='[45]wyniki spółek Q1 (adj)'!$AC$35 -> 1682066.386
B13: Inne rynki międzynarodowe | E13: 505567376.6 | F13: 543299651.3 | G13: 505849136.6 | H13: 678183835.4 | I13: 574000000 | J13: 644300000 | K13: 586800000 | L13: 787100000 | M13: 673600000 | N13: 672600000 | O13: 686600000 | P13: 896600000 | Q13: 754600000 | R13: 749500000 | S13: 720900000 | T13: 1002100000 | U13: ='[37]wyniki spółek Q1 adj przypisane'!$F$35 -> 818800000 | V13: ='[38]wyniki spółek H1 adj przypisane'!$F$35-U13 -> 872500000 | W13: ='[39]wyniki spółek Q1-Q3'!$F$35-V13-U13 -> 845900000 | X13: ='[40]wyniki spółek Q1-Q4'!$F$36-W13-V13-U13 -> 1107900000 | Y13: ='[41]wyniki spółek Q1 (adj)'!$F$36 -> 940300000 | Z13: ='[42]wyniki spółek Q1-Q2 (adj)'!$F$36-Y13 -> 1002700000 | AA13: ='[43]wyniki spółek Q1-Q3 (adj)'!$F$36-Z13-Y13 -> 1048400000 | AB13: ='[44]wyniki spółek Q1-Q4 (adj)'!$F$36-AA13-Z13-Y13 -> 1205400000 | AC13: ='[45]wyniki spółek Q1 (adj)'!$F$36 -> 988400000 | AD13: ='[42]wyniki spółek Q1-Q2 (adj)'!$E$36-AC13 -> 953800000 | AE13: ='[43]wyniki spółek Q1-Q3 (adj)'!$E$36-AD13-AC13 -> 947800000 | AF13: ='[44]wyniki spółek Q1-Q4 (adj)'!$E$36-AE13-AD13-AC13 -> 1169400000 | AG13: ='[45]wyniki spółek Q1 (adj)'!$E$36 -> 955100000 | AI13: 54195333.47 | AJ13: 56780252.08 | AK13: 52484965.61 | AL13: 85339448.83 | AM13: 54300000 | AN13: 69600000 | AO13: 58900000 | AP13: 91100000 | AQ13: 76400000 | AR13: 74400000 | AS13: 88200000 | AT13: 109300000 | AU13: 80900000 | AV13: 91700000 | AW13: 78800000 | AX13: 136800000 | AY13: ='[37]wyniki spółek Q1 adj przypisane'!$J$35 -> 97600000 | AZ13: ='[38]wyniki spółek H1 adj przypisane'!$J$35-AY13 -> 101100000 | BA13: ='[39]wyniki spółek Q1-Q3'!$J$35-AZ13-AY13 -> 119400000 | BB13: ='[40]wyniki spółek Q1-Q4'!$J$36-BA13-AZ13-AY13 -> 113800000 | BC13: ='[41]wyniki spółek Q1 (adj)'!$J$36 -> 95100000 | BD13: ='[42]wyniki spółek Q1-Q2 (adj)'!$J$36-BC13 -> 60600000 | BE13: ='[43]wyniki spółek Q1-Q3 (adj)'!$N$36-BD13-BC13 -> 99900000 | BF13: ='[44]wyniki spółek Q1-Q4 (adj)'!$N$36-BE13-BD13-BC13 -> 151000000 | BG13: ='[45]wyniki spółek Q1 (adj)'!$N$36 -> 97300000 | BH13: ='[42]wyniki spółek Q1-Q2 (adj)'!$I$36-BG13 -> 89600000 | BI13: ='[43]wyniki spółek Q1-Q3 (adj)'!$M$36-BH13-BG13 -> 103600000 | BJ13: ='[44]wyniki spółek Q1-Q4 (adj)'!$M$36-BI13-BH13-BG13 -> 165700000 | BK13: ='[45]wyniki spółek Q1 (adj)'!$M$36 -> 102229000 | BM13: 56665290.94 | BN13: 58480210.02 | BO13: 54751138.63 | BP13: 87800220.51 | BQ13: 56814525.93 | BR13: 72236627.2 | BS13: 61466614.83 | BT13: 94887053.9 | BU13: 79377654.77 | BV13: 77439419.69 | BW13: 91055961.96 | BX13: 113673580.3 | BY13: 84682806.78 | BZ13: 95564083.09 | CA13: 82849680.92 | CB13: 140762730.4 | CC13: ='[37]wyniki spółek Q1 adj przypisane'!$N$35 -> 101516598.9 | CD13: ='[38]wyniki spółek H1 adj przypisane'!$N$35-CC13 -> 105136469.1 | CE13: ='[39]wyniki spółek Q1-Q3'!$N$35-CD13-CC13 -> 123755599.7 | CF13: ='[40]wyniki spółek Q1-Q4'!$N$36-CE13-CD13-CC13 -> 118385385.1 | CG13: ='[41]wyniki spółek Q1 (adj)'!$N$36 -> 100989934.5 | CH13: ='[42]wyniki spółek Q1-Q2 (adj)'!$N$36-CG13 -> 111772841.1 | CI13: ='[43]wyniki spółek Q1-Q3 (adj)'!$R$36-CH13-CG13 -> 107862005.7 | CJ13: ='[44]wyniki spółek Q1-Q4 (adj)'!$R$36-CI13-CH13-CG13 -> 144481508.8 | CK13: ='[45]wyniki spółek Q1 (adj)'!$R$36 -> 102124231.8 | CL13: ='[42]wyniki spółek Q1-Q2 (adj)'!$M$36-CK13 -> 89250511.59 | CM13: ='[43]wyniki spółek Q1-Q3 (adj)'!$Q$36-CL13-CK13 -> 107983699.7 | CN13: ='[44]wyniki spółek Q1-Q4 (adj)'!$Q$36-CM13-CL13-CK13 -> 165707508.6 | CO13: ='[45]wyniki spółek Q1 (adj)'!$Q$36 -> 108380691 | CQ13: 42492264.87 | CR13: 48385693 | CS13: 36127999.77 | CT13: -4663144.256 | CU13: 43133755.2 | CV13: 59333215.81 | CW13: 52325999.75 | CX13: 80654000 | CY13: 60158000 | CZ13: 57530000 | DA13: 70683000 | DB13: 91242000 | DC13: 66127000 | DD13: 73777000 | DE13: 62511000 | DF13: 112111000 | DG13: ='[37]wyniki spółek Q1 adj przypisane'!$R$35 -> 74409000 | DH13: ='[38]wyniki spółek H1 adj przypisane'!$R$35-DG13 -> 94631000 | DI13: ='[39]wyniki spółek Q1-Q3'!$R$35-DH13-DG13 -> 91352000 | DJ13: ='[40]wyniki spółek Q1-Q4'!$R$36-DI13-DH13-DG13 -> 86533000 | DK13: ='[41]wyniki spółek Q1 (adj)'!$R$36 -> 76281000 | DL13: ='[42]wyniki spółek Q1-Q2 (adj)'!$R$36-DK13 -> 76729951.98 | DM13: ='[43]wyniki spółek Q1-Q3 (adj)'!$V$36-DL13-DK13 -> 86983213.3 | DN13: ='[44]wyniki spółek Q1-Q4 (adj)'!$V$36-DM13-DL13-DK13 -> 111988834.7 | DO13: ='[45]wyniki spółek Q1 (adj)'!$V$36 -> 82590000 | DP13: ='[42]wyniki spółek Q1-Q2 (adj)'!$Q$36-DO13 -> 75589000 | DQ13: ='[43]wyniki spółek Q1-Q3 (adj)'!$U$36-DP13-DO13 -> 98162000 | DR13: ='[44]wyniki spółek Q1-Q4 (adj)'!$U$36-DQ13-DP13-DO13 -> 124793000 | DS13: ='[45]wyniki spółek Q1 (adj)'!$U$36 -> 94246000 | DU13: 29179751.04 | DV13: 34293603.05 | DW13: 22818045.52 | DX13: -30627160.71 | DY13: 26347970.54 | DZ13: 38140689.12 | EA13: 31806986.39 | EB13: 53254700.86 | EC13: 38258739.01 | ED13: 36649428.24 | EE13: 45006931.67 | EF13: 55170796.33 | EG13: 42709607.83 | EH13: 46472119.03 | EI13: 36215566.03 | EJ13: 70226588.21 | EK13: ='[37]wyniki spółek Q1 adj przypisane'!$V$35 -> 45320775.29 | EL13: ='[38]wyniki spółek H1 adj przypisane'!$V$35-EK13 -> 63279224.71 | EM13: ='[39]wyniki spółek Q1-Q3'!$V$35-EL13-EK13 -> 57200000 | EN13: ='[40]wyniki spółek Q1-Q4'!$V$36-EM13-EL13-EK13 -> 46100000 | EO13: ='[41]wyniki spółek Q1 (adj)'!$V$36 -> 43500000 | EP13: ='[42]wyniki spółek Q1-Q2 (adj)'!$V$36-EO13 -> 45420740 | EQ13: ='[43]wyniki spółek Q1-Q3 (adj)'!$Z$36-EP13-EO13 -> 47637494.09 | ER13: ='[44]wyniki spółek Q1-Q4 (adj)'!$Z$36-EQ13-EP13-EO13 -> 73441765.91 | ES13: ='[45]wyniki spółek Q1 (adj)'!$Z$36 -> 46298815.93 | ET13: ='[42]wyniki spółek Q1-Q2 (adj)'!$U$36-ES13 -> 38932873.93 | EU13: ='[43]wyniki spółek Q1-Q3 (adj)'!$Y$36-ET13-ES13 -> 50848467.86 | EV13: ='[44]wyniki spółek Q1-Q4 (adj)'!$Y$36-EU13-ET13-ES13 -> 78069373.95 | EW13: ='[45]wyniki spółek Q1 (adj)'!$Y$36 -> 54405452.37 | EY13: 25665995.45 | EZ13: 31518280.2 | FA13: 30377365.93 | FB13: 43773525.88 | FC13: 27943842.03 | FD13: 40172958.66 | FE13: 33123653.55 | FF13: 50123545.19 | FG13: 40129677.91 | FH13: 37927365.33 | FI13: 47944271.18 | FJ13: 58076366.55 | FK13: 44888067.1 | FL13: 49158568.55 | FM13: 39403855.39 | FN13: 72266968.75 | FO13: ='[37]wyniki spółek Q1 adj przypisane'!$Z$35 -> 48357589.81 | FP13: ='[38]wyniki spółek H1 adj przypisane'!$Z$35-FO13 -> 51690686.26 | FQ13: ='[39]wyniki spółek Q1-Q3'!$Z$35-FP13-FO13 -> 59520851.36 | FR13: ='[40]wyniki spółek Q1-Q4'!$Z$36-FQ13-FP13-FO13 -> 57984876.72 | FS13: ='[41]wyniki spółek Q1 (adj)'!$Z$36 -> 47512403.2 | FT13: ='[42]wyniki spółek Q1-Q2 (adj)'!$Z$36-FS13 -> 56756771.75 | FU13: ='[43]wyniki spółek Q1-Q3 (adj)'!$AD$36-FT13-FS13 -> 46505370.58 | FV13: ='[44]wyniki spółek Q1-Q4 (adj)'!$AD$36-FU13-FT13-FS13 -> 64531471.55 | FW13: ='[45]wyniki spółek Q1 (adj)'!$AD$36 -> 44558273.93 | FX13: ='[42]wyniki spółek Q1-Q2 (adj)'!$Y$36-FW13 -> 37643305.93 | FY13: ='[43]wyniki spółek Q1-Q3 (adj)'!$AC$36-FX13-FW13 -> 48567277.2 | FZ13: ='[44]wyniki spółek Q1-Q4 (adj)'!$AC$36-FY13-FX13-FW13 -> 78436947.93 | GA13: ='[45]wyniki spółek Q1 (adj)'!$AC$36 -> 53213512.85
C14: Rynek środkowoeurop. | E14: 218777000 | F14: 243308000 | G14: 221064000 | H14: 321871472 | I14: 272268722.4 | J14: 306810471.4 | K14: 278464465.4 | L14: 355493822.5 | M14: 319965093.5 | N14: 315722979.1 | O14: 295402297.3 | P14: 403211812.6 | Q14: 321336321.9 | R14: 320868428.1 | S14: 302059924.1 | T14: 387960701.3 | U14: ='[37]wyniki spółek Q1 adj przypisane'!$F$36 -> 340717464.1 | V14: ='[38]wyniki spółek H1 adj przypisane'!$F$36-U14 -> 373233179.5 | W14: ='[39]wyniki spółek Q1-Q3'!$F$36-V14-U14 -> 360672088.2 | X14: ='[40]wyniki spółek Q1-Q4'!$F$37-W14-V14-U14 -> 472865228.2 | Y14: ='[41]wyniki spółek Q1 (adj)'!$F$37 -> 360385712.8 | Z14: ='[42]wyniki spółek Q1-Q2 (adj)'!$F$37-Y14 -> 392566615.3 | AA14: ='[43]wyniki spółek Q1-Q3 (adj)'!$F$37-Z14-Y14 -> 386869949.5 | AB14: ='[44]wyniki spółek Q1-Q4 (adj)'!$F$37-AA14-Z14-Y14 -> 440855878.4 | AC14: ='[45]wyniki spółek Q1 (adj)'!$F$37 -> 412950101 | AD14: ='[42]wyniki spółek Q1-Q2 (adj)'!$E$37-AC14 -> 401056529.1 | AE14: ='[43]wyniki spółek Q1-Q3 (adj)'!$E$37-AD14-AC14 -> 400534151.9 | AF14: ='[44]wyniki spółek Q1-Q4 (adj)'!$E$37-AE14-AD14-AC14 -> 479735716.2 | AG14: ='[45]wyniki spółek Q1 (adj)'!$E$37 -> 410305729.4 | AI14: 31266000 | AJ14: 27516000 | AK14: 28132000 | AL14: 45617000 | AM14: 32716872 | AN14: 39714131.25 | AO14: 35683895.47 | AP14: 52965473.62 | AQ14: 44882273.15 | AR14: 44591829.69 | AS14: 48198238.28 | AT14: 60006358.04 | AU14: 46771881.42 | AV14: 49114706.08 | AW14: 36715212.03 | AX14: 73639001.47 | AY14: ='[37]wyniki spółek Q1 adj przypisane'!$J$36 -> 53891342.7 | AZ14: ='[38]wyniki spółek H1 adj przypisane'!$J$36-AY14 -> 52275905.41 | BA14: ='[39]wyniki spółek Q1-Q3'!$J$36-AZ14-AY14 -> 58011288.11 | BB14: ='[40]wyniki spółek Q1-Q4'!$J$37-BA14-AZ14-AY14 -> 57468591.28 | BC14: ='[41]wyniki spółek Q1 (adj)'!$J$37 -> 41522580 | BD14: ='[42]wyniki spółek Q1-Q2 (adj)'!$J$37-BC14 -> 51613956.67 | BE14: ='[43]wyniki spółek Q1-Q3 (adj)'!$N$37-BD14-BC14 -> 39096842.51 | BF14: ='[44]wyniki spółek Q1-Q4 (adj)'!$N$37-BE14-BD14-BC14 -> 63435349.35 | BG14: ='[45]wyniki spółek Q1 (adj)'!$N$37 -> 41824752.7 | BH14: ='[42]wyniki spółek Q1-Q2 (adj)'!$I$37-BG14 -> 25572025.94 | BI14: ='[43]wyniki spółek Q1-Q3 (adj)'!$M$37-BH14-BG14 -> 40971298.06 | BJ14: ='[44]wyniki spółek Q1-Q4 (adj)'!$M$37-BI14-BH14-BG14 -> 91916482.87 | BK14: ='[45]wyniki spółek Q1 (adj)'!$M$37 -> 48063595.3 | BM14: 31589568.03 | BN14: 27743783.11 | BO14: 28321849.6 | BP14: 46014706.4 | BQ14: 33180516.39 | BR14: 40200795.8 | BS14: 36165351.5 | BT14: 54572172.3 | BU14: 45681274.26 | BV14: 45310689.8 | BW14: 49104832.51 | BX14: 60710351.92 | BY14: 47631086.3 | BZ14: 49900938.03 | CA14: 37748302.75 | CB14: 74512451.44 | CC14: ='[37]wyniki spółek Q1 adj przypisane'!$N$36 -> 54705824.68 | CD14: ='[38]wyniki spółek H1 adj przypisane'!$N$36-CC14 -> 53077536.84 | CE14: ='[39]wyniki spółek Q1-Q3'!$N$36-CD14-CC14 -> 58822639.17 | CF14: ='[40]wyniki spółek Q1-Q4'!$N$37-CE14-CD14-CC14 -> 58083289.86 | CG14: ='[41]wyniki spółek Q1 (adj)'!$N$37 -> 42140824.91 | CH14: ='[42]wyniki spółek Q1-Q2 (adj)'!$N$37-CG14 -> 52226140.76 | CI14: ='[43]wyniki spółek Q1-Q3 (adj)'!$R$37-CH14-CG14 -> 39735100.62 | CJ14: ='[44]wyniki spółek Q1-Q4 (adj)'!$R$37-CI14-CH14-CG14 -> 64084122.13 | CK14: ='[45]wyniki spółek Q1 (adj)'!$R$37 -> 42525091.95 | CL14: ='[42]wyniki spółek Q1-Q2 (adj)'!$M$37-CK14 -> 26253685.23 | CM14: ='[43]wyniki spółek Q1-Q3 (adj)'!$Q$37-CL14-CK14 -> 41648533.37 | CN14: ='[44]wyniki spółek Q1-Q4 (adj)'!$Q$37-CM14-CL14-CK14 -> 92567043.03 | CO14: ='[45]wyniki spółek Q1 (adj)'!$Q$37 -> 48703749.64 | CQ14: 24550666.07 | CR14: 25136000 | CS14: 20619533.93 | CT14: 36472800 | CU14: 24251433.6 | CV14: 30034723.65 | CW14: 28818292.01 | CX14: 49498521.03 | CY14: 35216446.06 | CZ14: 35347429.92 | DA14: 37607556.94 | DB14: 50146177.79 | DC14: 36273596.54 | DD14: 40848709.71 | DE14: 28457978.01 | DF14: 59614588.49 | DG14: ='[37]wyniki spółek Q1 adj przypisane'!$R$36 -> 41907868.6 | DH14: ='[38]wyniki spółek H1 adj przypisane'!$R$36-DG14 -> 41878225.01 | DI14: ='[39]wyniki spółek Q1-Q3'!$R$36-DH14-DG14 -> 43924531.41 | DJ14: ='[40]wyniki spółek Q1-Q4'!$R$37-DI14-DH14-DG14 -> 50308349.98 | DK14: ='[41]wyniki spółek Q1 (adj)'!$R$37 -> 31772324.8 | DL14: ='[42]wyniki spółek Q1-Q2 (adj)'!$R$37-DK14 -> 42018219.73 | DM14: ='[43]wyniki spółek Q1-Q3 (adj)'!$V$37-DL14-DK14 -> 29986539.89 | DN14: ='[44]wyniki spółek Q1-Q4 (adj)'!$V$37-DM14-DL14-DK14 -> 49284525.48 | DO14: ='[45]wyniki spółek Q1 (adj)'!$V$37 -> 31441421.76 | DP14: ='[42]wyniki spółek Q1-Q2 (adj)'!$Q$37-DO14 -> 19113172.3 | DQ14: ='[43]wyniki spółek Q1-Q3 (adj)'!$U$37-DP14-DO14 -> 32729878.64 | DR14: ='[44]wyniki spółek Q1-Q4 (adj)'!$U$37-DQ14-DP14-DO14 -> 70579782.76 | DS14: ='[45]wyniki spółek Q1 (adj)'!$U$37 -> 39041138.5 | DU14: 18663344.13 | DV14: 20131955.74 | DW14: 15459573 | DX14: 23903516.43 | DY14: 15849945.54 | DZ14: 20967071.34 | EA14: 19976276.55 | EB14: 35116908.49 | EC14: 25210862.51 | ED14: 25590339.96 | EE14: 27190610.78 | EF14: 32113971.02 | EG14: 25968872.77 | EH14: 29762533.09 | EI14: 19078212.66 | EJ14: 40019629.22 | EK14: ='[37]wyniki spółek Q1 adj przypisane'!$V$36 -> 30714883.92 | EL14: ='[38]wyniki spółek H1 adj przypisane'!$V$36-EK14 -> 30430430.96 | EM14: ='[39]wyniki spółek Q1-Q3'!$V$36-EL14-EK14 -> 31616239.03 | EN14: ='[40]wyniki spółek Q1-Q4'!$V$37-EM14-EL14-EK14 -> 32055528.56 | EO14: ='[41]wyniki spółek Q1 (adj)'!$V$37 -> 20793123.32 | EP14: ='[42]wyniki spółek Q1-Q2 (adj)'!$V$37-EO14 -> 30597894.89 | EQ14: ='[43]wyniki spółek Q1-Q3 (adj)'!$Z$37-EP14-EO14 -> 17587476.54 | ER14: ='[44]wyniki spółek Q1-Q4 (adj)'!$Z$37-EQ14-EP14-EO14 -> 31754268.94 | ES14: ='[45]wyniki spółek Q1 (adj)'!$Z$37 -> 19490856.19 | ET14: ='[42]wyniki spółek Q1-Q2 (adj)'!$U$37-ES14 -> 8267110.215 | EU14: ='[43]wyniki spółek Q1-Q3 (adj)'!$Y$37-ET14-ES14 -> 17663426.06 | EV14: ='[44]wyniki spółek Q1-Q4 (adj)'!$Y$37-EU14-ET14-ES14 -> 50768232.99 | EW14: ='[45]wyniki spółek Q1 (adj)'!$Y$37 -> 24535022.93 | EY14: 19187853.96 | EZ14: 16322407.79 | FA14: 15690305.07 | FB14: 24086361.35 | FC14: 16032404.27 | FD14: 21540272.06 | FE14: 20238713.94 | FF14: 29359731.06 | FG14: 25731806.89 | FH14: 26231760.72 | FI14: 27823519.03 | FJ14: 32453269.17 | FK14: 26533957.42 | FL14: 30236823.91 | FM14: 19748579.7 | FN14: 40572497.04 | FO14: ='[37]wyniki spółek Q1 adj przypisane'!$Z$36 -> 31223641.3 | FP14: ='[38]wyniki spółek H1 adj przypisane'!$Z$36-FO14 -> 30965036.3 | FQ14: ='[39]wyniki spółek Q1-Q3'!$Z$36-FP14-FO14 -> 32102095.91 | FR14: ='[40]wyniki spółek Q1-Q4'!$Z$37-FQ14-FP14-FO14 -> 32854500.71 | FS14: ='[41]wyniki spółek Q1 (adj)'!$Z$37 -> 21251542.46 | FT14: ='[42]wyniki spółek Q1-Q2 (adj)'!$Z$37-FS14 -> 31021233.58 | FU14: ='[43]wyniki spółek Q1-Q3 (adj)'!$AD$37-FT14-FS14 -> 18022140.9 | FV14: ='[44]wyniki spółek Q1-Q4 (adj)'!$AD$37-FU14-FT14-FS14 -> 32202727 | FW14: ='[45]wyniki spółek Q1 (adj)'!$AD$37 -> 19967368.95 | FX14: ='[42]wyniki spółek Q1-Q2 (adj)'!$Y$37-FW14 -> 8739042.475 | FY14: ='[43]wyniki spółek Q1-Q3 (adj)'!$AC$37-FX14-FW14 -> 18214703.64 | FZ14: ='[44]wyniki spółek Q1-Q4 (adj)'!$AC$37-FY14-FX14-FW14 -> 51918923.62 | GA14: ='[45]wyniki spółek Q1 (adj)'!$AC$37 -> 24966394.05
C15: Rynek południowo-wschodniej Europy | E15: 133205000 | F15: 149616000 | G15: 127810000 | H15: 160228000 | I15: 156138451.2 | J15: 183755656.2 | K15: 173909809.4 | L15: 261490760.7 | M15: 187076182.9 | N15: 198384469.2 | O15: 228834687 | P15: 275797340.8 | Q15: 231335950 | R15: 233791721.2 | S15: 227324204 | T15: 335951306.6 | U15: ='[37]wyniki spółek Q1 adj przypisane'!$F$37 -> 253111456 | V15: ='[38]wyniki spółek H1 adj przypisane'!$F$37-U15 -> 272982089.7 | W15: ='[39]wyniki spółek Q1-Q3'!$F$37-V15-U15 -> 264945591.6 | X15: ='[40]wyniki spółek Q1-Q4'!$F$38-W15-V15-U15 -> 357226737.7 | Y15: ='[41]wyniki spółek Q1 (adj)'!$F$38 -> 312022302.4 | Z15: ='[42]wyniki spółek Q1-Q2 (adj)'!$F$38-Y15 -> 348703451.7 | AA15: ='[43]wyniki spółek Q1-Q3 (adj)'!$F$38-Z15-Y15 -> 420261844.9 | AB15: ='[44]wyniki spółek Q1-Q4 (adj)'!$F$38-AA15-Z15-Y15 -> 485363163.3 | AC15: ='[45]wyniki spółek Q1 (adj)'!$F$38 -> 380352364.4 | AD15: ='[42]wyniki spółek Q1-Q2 (adj)'!$E$38-AC15 -> 376461878.8 | AE15: ='[43]wyniki spółek Q1-Q3 (adj)'!$E$38-AD15-AC15 -> 399077593.9 | AF15: ='[44]wyniki spółek Q1-Q4 (adj)'!$E$38-AE15-AD15-AC15 -> 489863034 | AG15: ='[45]wyniki spółek Q1 (adj)'!$E$38 -> 366952133.1 | AI15: 12844000 | AJ15: 17886000 | AK15: 13321000 | AL15: 21815000 | AM15: 13409180 | AN15: 18823988.5 | AO15: 19447109.62 | AP15: 26719237.8 | AQ15: 21364359.67 | AR15: 22562279.15 | AS15: 29345537.8 | AT15: 34327249.76 | AU15: 27916293.55 | AV15: 35207192.7 | AW15: 36325365.14 | AX15: 43672187.08 | AY15: ='[37]wyniki spółek Q1 adj przypisane'!$J$37 -> 37980434.7 | AZ15: ='[38]wyniki spółek H1 adj przypisane'!$J$37-AY15 -> 41745039.05 | BA15: ='[39]wyniki spółek Q1-Q3'!$J$37-AZ15-AY15 -> 46585695.18 | BB15: ='[40]wyniki spółek Q1-Q4'!$J$38-BA15-AZ15-AY15 -> 52724842.14 | BC15: ='[41]wyniki spółek Q1 (adj)'!$J$38 -> 45937572 | BD15: ='[42]wyniki spółek Q1-Q2 (adj)'!$J$38-BC15 -> 50769175.36 | BE15: ='[43]wyniki spółek Q1-Q3 (adj)'!$N$38-BD15-BC15 -> 54268385.52 | BF15: ='[44]wyniki spółek Q1-Q4 (adj)'!$N$38-BE15-BD15-BC15 -> 59003699.56 | BG15: ='[45]wyniki spółek Q1 (adj)'!$N$38 -> 49857193.49 | BH15: ='[42]wyniki spółek Q1-Q2 (adj)'!$I$38-BG15 -> 56786927.12 | BI15: ='[43]wyniki spółek Q1-Q3 (adj)'!$M$38-BH15-BG15 -> 60641381.89 | BJ15: ='[44]wyniki spółek Q1-Q4 (adj)'!$M$38-BI15-BH15-BG15 -> 67307394.36 | BK15: ='[45]wyniki spółek Q1 (adj)'!$M$38 -> 46702448.8 | BM15: 12844000 | BN15: 17886000 | BO15: 13901000 | BP15: 22406632.05 | BQ15: 14482315.94 | BR15: 19938634.15 | BS15: 20559389.61 | BT15: 27891700.41 | BU15: 22537320.33 | BV15: 23881732.13 | BW15: 30130583.69 | BX15: 35599991.17 | BY15: 29226465.57 | BZ15: 36634154.97 | CA15: 37705792.12 | CB15: 45084936.74 | CC15: ='[37]wyniki spółek Q1 adj przypisane'!$N$37 -> 39400018.84 | CD15: ='[38]wyniki spółek H1 adj przypisane'!$N$37-CC15 -> 43156544 | CE15: ='[39]wyniki spółek Q1-Q3'!$N$37-CD15-CC15 -> 48092686.88 | CF15: ='[40]wyniki spółek Q1-Q4'!$N$38-CE15-CD15-CC15 -> 54736128.69 | CG15: ='[41]wyniki spółek Q1 (adj)'!$N$38 -> 49236548.11 | CH15: ='[42]wyniki spółek Q1-Q2 (adj)'!$N$38-CG15 -> 54795964.11 | CI15: ='[43]wyniki spółek Q1-Q3 (adj)'!$R$38-CH15-CG15 -> 60536944.12 | CJ15: ='[44]wyniki spółek Q1-Q4 (adj)'!$R$38-CI15-CH15-CG15 -> 65022959.28 | CK15: ='[45]wyniki spółek Q1 (adj)'!$R$38 -> 52555133.23 | CL15: ='[42]wyniki spółek Q1-Q2 (adj)'!$M$38-CK15 -> 56572811.83 | CM15: ='[43]wyniki spółek Q1-Q3 (adj)'!$Q$38-CL15-CK15 -> 63295206.82 | CN15: ='[44]wyniki spółek Q1-Q4 (adj)'!$Q$38-CM15-CL15-CK15 -> 64417907.9 | CO15: ='[45]wyniki spółek Q1 (adj)'!$Q$38 -> 51404398.37 | CQ15: 10152000 | CR15: 15234168.4 | CS15: 11161031.6 | CT15: 18127800 | CU15: 11557975.2 | CV15: 16113672.65 | CW15: 18805958.24 | CX15: 21352211.92 | CY15: 18348450.36 | CZ15: 18238050.73 | DA15: 24661683.6 | DB15: 27863465.66 | DC15: 23291420.98 | DD15: 27245562.77 | DE15: 30902908.67 | DF15: 34805658.63 | DG15: ='[37]wyniki spółek Q1 adj przypisane'!$R$37 -> 31899541.7 | DH15: ='[38]wyniki spółek H1 adj przypisane'!$R$37-DG15 -> 34489092.12 | DI15: ='[39]wyniki spółek Q1-Q3'!$R$37-DH15-DG15 -> 38406467.5 | DJ15: ='[40]wyniki spółek Q1-Q4'!$R$38-DI15-DH15-DG15 -> 48537120.27 | DK15: ='[41]wyniki spółek Q1 (adj)'!$R$38 -> 39742854.4 | DL15: ='[42]wyniki spółek Q1-Q2 (adj)'!$R$38-DK15 -> 65715319.69 | DM15: ='[43]wyniki spółek Q1-Q3 (adj)'!$V$38-DL15-DK15 -> 52095391.31 | DN15: ='[44]wyniki spółek Q1-Q4 (adj)'!$V$38-DM15-DL15-DK15 -> 38097873.27 | DO15: ='[45]wyniki spółek Q1 (adj)'!$V$38 -> 46883222.39 | DP15: ='[42]wyniki spółek Q1-Q2 (adj)'!$Q$38-DO15 -> 49427686.84 | DQ15: ='[43]wyniki spółek Q1-Q3 (adj)'!$U$38-DP15-DO15 -> 63235459.56 | DR15: ='[44]wyniki spółek Q1-Q4 (adj)'!$U$38-DQ15-DP15-DO15 -> 49198516.18 | DS15: ='[45]wyniki spółek Q1 (adj)'!$U$38 -> 48491384.2 | DU15: 5579378.8 | DV15: 8241858.602 | DW15: 5643834.332 | DX15: 9196096.899 | DY15: 5872741.388 | DZ15: 8281768.204 | EA15: 9586954.823 | EB15: 10991226.86 | EC15: 9169111.275 | ED15: 9098016.095 | EE15: 12520556.83 | EF15: 14260492.27 | EG15: 11909097.48 | EH15: 13625999.34 | EI15: 15770608.02 | EJ15: 17488101.1 | EK15: ='[37]wyniki spółek Q1 adj przypisane'!$V$37 -> 15932285.32 | EL15: ='[38]wyniki spółek H1 adj przypisane'!$V$37-EK15 -> 16924083.6 | EM15: ='[39]wyniki spółek Q1-Q3'!$V$37-EL15-EK15 -> 19070477.66 | EN15: ='[40]wyniki spółek Q1-Q4'!$V$38-EM15-EL15-EK15 -> 23671346.87 | EO15: ='[41]wyniki spółek Q1 (adj)'!$V$38 -> 19520441.22 | EP15: ='[42]wyniki spółek Q1-Q2 (adj)'!$V$38-EO15 -> 32667589.07 | EQ15: ='[43]wyniki spółek Q1-Q3 (adj)'!$Z$38-EP15-EO15 -> 25437795.17 | ER15: ='[44]wyniki spółek Q1-Q4 (adj)'!$Z$38-EQ15-EP15-EO15 -> 17780801.91 | ES15: ='[45]wyniki spółek Q1 (adj)'!$Z$38 -> 23000119.64 | ET15: ='[42]wyniki spółek Q1-Q2 (adj)'!$U$38-ES15 -> 24136548.54 | EU15: ='[43]wyniki spółek Q1-Q3 (adj)'!$Y$38-ET15-ES15 -> 31549605.57 | EV15: ='[44]wyniki spółek Q1-Q4 (adj)'!$Y$38-EU15-ET15-ES15 -> 23375962.92 | EW15: ='[45]wyniki spółek Q1 (adj)'!$Y$38 -> 23918317.98 | EY15: 5579378.8 | EZ15: 8551690.2 | FA15: 5939982.332 | FB15: 9522647.489 | FC15: 6432126.532 | FD15: 8862682.555 | FE15: 10166609.33 | FF15: 11597289.72 | FG15: 9839457.837 | FH15: 8643000.659 | FI15: 12924768.84 | FJ15: 15104052.18 | FK15: 12289246.44 | FL15: 14634385.63 | FM15: 17098407.24 | FN15: 18031536.87 | FO15: ='[37]wyniki spółek Q1 adj przypisane'!$Z$37 -> 17276376.91 | FP15: ='[38]wyniki spółek H1 adj przypisane'!$Z$37-FO15 -> 17779537.11 | FQ15: ='[39]wyniki spółek Q1-Q3'!$Z$37-FP15-FO15 -> 19586174.75 | FR15: ='[40]wyniki spółek Q1-Q4'!$Z$38-FQ15-FP15-FO15 -> 24212938.53 | FS15: ='[41]wyniki spółek Q1 (adj)'!$Z$38 -> 21767429.51 | FT15: ='[42]wyniki spółek Q1-Q2 (adj)'!$Z$38-FS15 -> 23890391.8 | FU15: ='[43]wyniki spółek Q1-Q3 (adj)'!$AD$38-FT15-FS15 -> 23050211.71 | FV15: ='[44]wyniki spółek Q1-Q4 (adj)'!$AD$38-FU15-FT15-FS15 -> 22364595.29 | FW15: ='[45]wyniki spółek Q1 (adj)'!$AD$38 -> 19721464.18 | FX15: ='[42]wyniki spółek Q1-Q2 (adj)'!$Y$38-FW15 -> 23544488.09 | FY15: ='[43]wyniki spółek Q1-Q3 (adj)'!$AC$38-FX15-FW15 -> 28007223.06 | FZ15: ='[44]wyniki spółek Q1-Q4 (adj)'!$AC$38-FY15-FX15-FW15 -> 21065920.58 | GA15: ='[45]wyniki spółek Q1 (adj)'!$AC$38 -> 21814549.41
B16: Rynek zachodniooeuropejski | E16: 146300200.6 | F16: 149689914.3 | G16: 154846208.4 | H16: 187328270 | I16: 144236434 | J16: 155543111.3 | K16: 131496770.3 | L16: 168886672.8 | M16: 163936458.3 | N16: 156649012.5 | O16: 161073405.5 | P16: 214516797 | Q16: 199581427.9 | R16: 191434405.1 | S16: 189361860.9 | T16: 276307402.5 | U16: ='[37]wyniki spółek Q1 adj przypisane'!$F$38 -> 223978034.8 | V16: ='[38]wyniki spółek H1 adj przypisane'!$F$38-U16 -> 223594129.4 | W16: ='[39]wyniki spółek Q1-Q3'!$F$38-V16-U16 -> 217414987.6 | X16: ='[40]wyniki spółek Q1-Q4'!$F$39-W16-V16-U16 -> 277119298.6 | Y16: ='[41]wyniki spółek Q1 (adj)'!$F$39 -> 265744148 | Z16: ='[42]wyniki spółek Q1-Q2 (adj)'!$F$39-Y16 -> 259907861.1 | AA16: ='[43]wyniki spółek Q1-Q3 (adj)'!$F$39-Z16-Y16 -> 236534708.1 | AB16: ='[44]wyniki spółek Q1-Q4 (adj)'!$F$39-AA16-Z16-Y16 -> 281256367.2 | AC16: ='[45]wyniki spółek Q1 (adj)'!$F$39 -> 193706232.7 | AD16: ='[42]wyniki spółek Q1-Q2 (adj)'!$E$39-AC16 -> 175433305 | AE16: ='[43]wyniki spółek Q1-Q3 (adj)'!$E$39-AD16-AC16 -> 147944311.4 | AF16: ='[44]wyniki spółek Q1-Q4 (adj)'!$E$39-AE16-AD16-AC16 -> 196109350.4 | AG16: ='[45]wyniki spółek Q1 (adj)'!$E$39 -> 178703411.6 | AI16: 13440062.4 | AJ16: 12195556.53 | AK16: 10209415.45 | AL16: 16115765.61 | AM16: 11132100.8 | AN16: 13227148.75 | AO16: 6120649.518 | AP16: 14635022.73 | AQ16: 12773330.23 | AR16: 10223366.66 | AS16: 14836708.45 | AT16: 16498255.96 | AU16: 8996959.802 | AV16: 10526775.2 | AW16: 8608496.944 | AX16: 21772529.73 | AY16: ='[37]wyniki spółek Q1 adj przypisane'!$J$38 -> 8572687.5 | AZ16: ='[38]wyniki spółek H1 adj przypisane'!$J$38-AY16 -> 12735335.66 | BA16: ='[39]wyniki spółek Q1-Q3'!$J$38-AZ16-AY16 -> 17475600.4 | BB16: ='[40]wyniki spółek Q1-Q4'!$J$39-BA16-AZ16-AY16 -> 9307591.439 | BC16: ='[41]wyniki spółek Q1 (adj)'!$J$39 -> 11106608 | BD16: ='[42]wyniki spółek Q1-Q2 (adj)'!$J$39-BC16 -> -38034074.86 | BE16: ='[43]wyniki spółek Q1-Q3 (adj)'!$N$39-BD16-BC16 -> 9773993.63 | BF16: ='[44]wyniki spółek Q1-Q4 (adj)'!$N$39-BE16-BD16-BC16 -> 34026159.96 | BG16: ='[45]wyniki spółek Q1 (adj)'!$N$39 -> 10594851.94 | BH16: ='[42]wyniki spółek Q1-Q2 (adj)'!$I$39-BG16 -> 13886515.78 | BI16: ='[43]wyniki spółek Q1-Q3 (adj)'!$M$39-BH16-BG16 -> 7257630.477 | BJ16: ='[44]wyniki spółek Q1-Q4 (adj)'!$M$39-BI16-BH16-BG16 -> 8355027.571 | BK16: ='[45]wyniki spółek Q1 (adj)'!$M$39 -> 11347208.6 | BM16: 14941120.8 | BN16: 13667731.36 | BO16: 11705738.86 | BP16: 17587198.84 | BQ16: 12109846.4 | BR16: 14233465.75 | BS16: 7122528.334 | BT16: 15642915.34 | BU16: 13779023.23 | BV16: 11224473.25 | BW16: 16001030.3 | BX16: 18872100.98 | BY16: 10610389.68 | BZ16: 12177664.07 | CA16: 10244660.16 | CB16: 23449060.46 | CC16: ='[37]wyniki spółek Q1 adj przypisane'!$N$38 -> 10255220.3 | CD16: ='[38]wyniki spółek H1 adj przypisane'!$N$38-CC16 -> 14558668.38 | CE16: ='[39]wyniki spółek Q1-Q3'!$N$38-CD16-CC16 -> 19512857.38 | CF16: ='[40]wyniki spółek Q1-Q4'!$N$39-CE16-CD16-CC16 -> 11266991.44 | CG16: ='[41]wyniki spółek Q1 (adj)'!$N$39 -> 13079321.46 | CH16: ='[42]wyniki spółek Q1-Q2 (adj)'!$N$39-CG16 -> 8272302.689 | CI16: ='[43]wyniki spółek Q1-Q3 (adj)'!$R$39-CH16-CG16 -> 10826960.23 | CJ16: ='[44]wyniki spółek Q1-Q4 (adj)'!$R$39-CI16-CH16-CG16 -> 21436623.44 | CK16: ='[45]wyniki spółek Q1 (adj)'!$R$39 -> 12020804.75 | CL16: ='[42]wyniki spółek Q1-Q2 (adj)'!$M$39-CK16 -> 13069483.37 | CM16: ='[43]wyniki spółek Q1-Q3 (adj)'!$Q$39-CL16-CK16 -> 8630680.981 | CN16: ='[44]wyniki spółek Q1-Q4 (adj)'!$Q$39-CM16-CL16-CK16 -> 9819156.363 | CO16: ='[45]wyniki spółek Q1 (adj)'!$Q$39 -> 12643538.6 | CQ16: 6135062.4 | CR16: 8633556.533 | CS16: 10232415.45 | CT16: -3351234.386 | CU16: 11382232 | CV16: 15062699.4 | CW16: 5953954.835 | CX16: 13403554.39 | CY16: 11053027.25 | CZ16: 8177801.134 | DA16: 13331893.06 | DB16: 12032879.7 | DC16: 11300603.55 | DD16: 8893760.198 | DE16: 6871580.186 | DF16: 19111843.88 | DG16: ='[37]wyniki spółek Q1 adj przypisane'!$R$38 -> 6355219 | DH16: ='[38]wyniki spółek H1 adj przypisane'!$R$38-DG16 -> 9164260.947 | DI16: ='[39]wyniki spółek Q1-Q3'!$R$38-DH16-DG16 -> 12141430.7 | DJ16: ='[40]wyniki spółek Q1-Q4'!$R$39-DI16-DH16-DG16 -> -3889953.145 | DK16: ='[41]wyniki spółek Q1 (adj)'!$R$39 -> 8227689.6 | DL16: ='[42]wyniki spółek Q1-Q2 (adj)'!$R$39-DK16 -> -30791049.76 | DM16: ='[43]wyniki spółek Q1-Q3 (adj)'!$V$39-DL16-DK16 -> 8058619.475 | DN16: ='[44]wyniki spółek Q1-Q4 (adj)'!$V$39-DM16-DL16-DK16 -> 30266304.28 | DO16: ='[45]wyniki spółek Q1 (adj)'!$V$39 -> 9020195.597 | DP16: ='[42]wyniki spółek Q1-Q2 (adj)'!$Q$39-DO16 -> 13671315.21 | DQ16: ='[43]wyniki spółek Q1-Q3 (adj)'!$U$39-DP16-DO16 -> 6667291.397 | DR16: ='[44]wyniki spółek Q1-Q4 (adj)'!$U$39-DQ16-DP16-DO16 -> 5741857.691 | DS16: ='[45]wyniki spółek Q1 (adj)'!$U$39 -> 9960135.5 | DU16: 2813831.965 | DV16: 6119503.069 | DW16: 7508676.626 | DX16: -7220401.893 | DY16: 8209680.37 | DZ16: 11167388.33 | EA16: 3747467.25 | EB16: 10211690.13 | EC16: 8123681.372 | ED16: 6242363.181 | EE16: 10160598.87 | EF16: 8243553.298 | EG16: 9789450.703 | EH16: 6521545.915 | EI16: 5141688.315 | EJ16: 13886091.81 | EK16: ='[37]wyniki spółek Q1 adj przypisane'!$V$38 -> 4610442.458 | EL16: ='[38]wyniki spółek H1 adj przypisane'!$V$38-EK16 -> 6672156.806 | EM16: ='[39]wyniki spółek Q1-Q3'!$V$38-EL16-EK16 -> 9957935.278 | EN16: ='[40]wyniki spółek Q1-Q4'!$V$39-EM16-EL16-EK16 -> -2213919.843 | EO16: ='[41]wyniki spółek Q1 (adj)'!$V$39 -> 6901214.214 | EP16: ='[42]wyniki spółek Q1-Q2 (adj)'!$V$39-EO16 -> -17706320.53 | EQ16: ='[43]wyniki spółek Q1-Q3 (adj)'!$Z$39-EP16-EO16 -> 7931560.15 | ER16: ='[44]wyniki spółek Q1-Q4 (adj)'!$Z$39-EQ16-EP16-EO16 -> 28857684.38 | ES16: ='[45]wyniki spółek Q1 (adj)'!$Z$39 -> 8055539.302 | ET16: ='[42]wyniki spółek Q1-Q2 (adj)'!$U$39-ES16 -> 12151548.73 | EU16: ='[43]wyniki spółek Q1-Q3 (adj)'!$Y$39-ET16-ES16 -> 5989854.831 | EV16: ='[44]wyniki spółek Q1-Q4 (adj)'!$Y$39-EU16-ET16-ES16 -> 5422865.721 | EW16: ='[45]wyniki spółek Q1 (adj)'!$Y$39 -> 9199212.406 | EY16: 3606767.023 | EZ16: 6896847.074 | FA16: 8298942.69 | FB16: 8874817.556 | FC16: 8745739.173 | FD16: 11725819.86 | FE16: 4290049.163 | FF16: 11022319.81 | FG16: 8788788.328 | FH16: 6797418.581 | FI16: 11161881.21 | FJ16: 9618873.259 | FK16: 10690157.82 | FL16: 7427450.469 | FM16: 6057132.21 | FN16: 14554848.69 | FO16: ='[37]wyniki spółek Q1 adj przypisane'!$Z$38 -> 5515261.048 | FP16: ='[38]wyniki spółek H1 adj przypisane'!$Z$38-FO16 -> 7327980.393 | FQ16: ='[39]wyniki spółek Q1-Q3'!$Z$38-FP16-FO16 -> 11310304.81 | FR16: ='[40]wyniki spółek Q1-Q4'!$Z$39-FQ16-FP16-FO16 -> 5154292.98 | FS16: ='[41]wyniki spółek Q1 (adj)'!$Z$39 -> 8208209.979 | FT16: ='[42]wyniki spółek Q1-Q2 (adj)'!$Z$39-FS16 -> 5033801.84 | FU16: ='[43]wyniki spółek Q1-Q3 (adj)'!$AD$39-FT16-FS16 -> 8782154.286 | FV16: ='[44]wyniki spółek Q1-Q4 (adj)'!$AD$39-FU16-FT16-FS16 -> 15512277.3 | FW16: ='[45]wyniki spółek Q1 (adj)'!$AD$39 -> 9117140.002 | FX16: ='[42]wyniki spółek Q1-Q2 (adj)'!$Y$39-FW16 -> 10982108.92 | FY16: ='[43]wyniki spółek Q1-Q3 (adj)'!$AC$39-FX16-FW16 -> 7020180.101 | FZ16: ='[44]wyniki spółek Q1-Q4 (adj)'!$AC$39-FY16-FX16-FW16 -> 6546918.539 | GA16: ='[45]wyniki spółek Q1 (adj)'!$AC$39 -> 10166413.25
B17: Pozostałe | E17: 7285175.98 | F17: 685737.01 | G17: 2128928.25 | H17: 8756093.479 | I17: 1356392.4 | J17: -1809238.95 | K17: 2928954.91 | L17: 1228744.002 | M17: 2622265.204 | N17: 1843539.159 | O17: 1289610.209 | P17: 3074049.581 | Q17: 2346300.151 | R17: 3405445.539 | S17: 2154011.045 | T17: 1880589.575 | U17: ='[37]wyniki spółek Q1 adj przypisane'!$F$39 -> 993045.1 | V17: ='[38]wyniki spółek H1 adj przypisane'!$F$39-U17 -> 2690601.412 | W17: ='[39]wyniki spółek Q1-Q3'!$F$39-V17-U17 -> 2867332.533 | X17: ='[40]wyniki spółek Q1-Q4'!$F$40-W17-V17-U17 -> 688735.4649 | Y17: ='[41]wyniki spółek Q1 (adj)'!$F$40 -> 2147836.78 | Z17: ='[42]wyniki spółek Q1-Q2 (adj)'!$F$40-Y17 -> 1522071.963 | AA17: ='[43]wyniki spółek Q1-Q3 (adj)'!$F$40-Z17-Y17 -> 4733497.483 | AB17: ='[44]wyniki spółek Q1-Q4 (adj)'!$F$40-AA17-Z17-Y17 -> -2075408.865 | AC17: ='[45]wyniki spółek Q1 (adj)'!$F$40 -> 1391301.867 | AD17: ='[42]wyniki spółek Q1-Q2 (adj)'!$E$40-AC17 -> 848287.184 | AE17: ='[43]wyniki spółek Q1-Q3 (adj)'!$E$40-AD17-AC17 -> 243942.7487 | AF17: ='[44]wyniki spółek Q1-Q4 (adj)'!$E$40-AE17-AD17-AC17 -> 3691899.486 | AG17: ='[45]wyniki spółek Q1 (adj)'!$E$40 -> -861274.1 | AI17: -3354728.93 | AJ17: -817304.45 | AK17: 822550.16 | AL17: 1791683.22 | AM17: -2958152.8 | AN17: -2165268.5 | AO17: -2351654.605 | AP17: -3219734.151 | AQ17: -2619963.054 | AR17: -2977475.497 | AS17: -4180484.535 | AT17: -1531863.761 | AU17: -2785134.768 | AV17: -3148673.982 | AW17: -2849074.109 | AX17: -2283718.28 | AY17: ='[37]wyniki spółek Q1 adj przypisane'!$J$39 -> -2844464.9 | AZ17: ='[38]wyniki spółek H1 adj przypisane'!$J$39-AY17 -> -5656280.119 | BA17: ='[39]wyniki spółek Q1-Q3'!$J$39-AZ17-AY17 -> -2672583.695 | BB17: ='[40]wyniki spółek Q1-Q4'!$J$40-BA17-AZ17-AY17 -> -5701024.854 | BC17: ='[41]wyniki spółek Q1 (adj)'!$J$40 -> -3466760 | BD17: ='[42]wyniki spółek Q1-Q2 (adj)'!$J$40-BC17 -> -3749057.17 | BE17: ='[43]wyniki spółek Q1-Q3 (adj)'!$N$40-BD17-BC17 -> -3239221.658 | BF17: ='[44]wyniki spółek Q1-Q4 (adj)'!$N$40-BE17-BD17-BC17 -> -5465208.881 | BG17: ='[45]wyniki spółek Q1 (adj)'!$N$40 -> -4976798.126 | BH17: ='[42]wyniki spółek Q1-Q2 (adj)'!$I$40-BG17 -> -6645468.841 | BI17: ='[43]wyniki spółek Q1-Q3 (adj)'!$M$40-BH17-BG17 -> -5270310.432 | BJ17: ='[44]wyniki spółek Q1-Q4 (adj)'!$M$40-BI17-BH17-BG17 -> -1878904.796 | BK17: ='[45]wyniki spółek Q1 (adj)'!$M$40 -> -3884252.7 | BM17: -2709397.88 | BN17: -817304.45 | BO17: 822550.16 | BP17: 1791683.22 | BQ17: -2958152.8 | BR17: -2136268.5 | BS17: -2380654.605 | BT17: -3219734.151 | BU17: -2619963.054 | BV17: -2977475.497 | BW17: -4180484.535 | BX17: -1508863.761 | BY17: -2785134.768 | BZ17: -3148673.982 | CA17: -2849074.109 | CB17: -2283718.28 | CC17: ='[37]wyniki spółek Q1 adj przypisane'!$N$39 -> -2844464.9 | CD17: ='[38]wyniki spółek H1 adj przypisane'!$N$39-CC17 -> -5656280.119 | CE17: ='[39]wyniki spółek Q1-Q3'!$N$39-CD17-CC17 -> -2672583.695 | CF17: ='[40]wyniki spółek Q1-Q4'!$N$40-CE17-CD17-CC17 -> -5701024.854 | CG17: ='[41]wyniki spółek Q1 (adj)'!$N$40 -> -3466760 | CH17: ='[42]wyniki spółek Q1-Q2 (adj)'!$N$40-CG17 -> -3521566.501 | CI17: ='[43]wyniki spółek Q1-Q3 (adj)'!$R$40-CH17-CG17 -> -3236999.238 | CJ17: ='[44]wyniki spółek Q1-Q4 (adj)'!$R$40-CI17-CH17-CG17 -> -6062196.087 | CK17: ='[45]wyniki spółek Q1 (adj)'!$R$40 -> -4976798.126 | CL17: ='[42]wyniki spółek Q1-Q2 (adj)'!$M$40-CK17 -> -6645468.841 | CM17: ='[43]wyniki spółek Q1-Q3 (adj)'!$Q$40-CL17-CK17 -> -5590721.432 | CN17: ='[44]wyniki spółek Q1-Q4 (adj)'!$Q$40-CM17-CL17-CK17 -> -1096598.7 | CO17: ='[45]wyniki spółek Q1 (adj)'!$Q$40 -> -4370995.6 | CQ17: 1654536.393 | CR17: -618031.9333 | CS17: -5884981.209 | CT17: -55912509.87 | CU17: -4057885.6 | CV17: -1877879.89 | CW17: -1252205.33 | CX17: -3600287.344 | CY17: -4459923.666 | CZ17: -4233281.785 | DA17: -4918133.592 | DB17: 1199476.848 | DC17: -4738621.071 | DD17: -3211032.679 | DE17: -3721466.863 | DF17: -1421091.005 | DG17: ='[37]wyniki spółek Q1 adj przypisane'!$R$39 -> -5753629.3 | DH17: ='[38]wyniki spółek H1 adj przypisane'!$R$39-DG17 -> 9099421.919 | DI17: ='[39]wyniki spółek Q1-Q3'!$R$39-DH17-DG17 -> -3120429.608 | DJ17: ='[40]wyniki spółek Q1-Q4'!$R$40-DI17-DH17-DG17 -> -8422517.098 | DK17: ='[41]wyniki spółek Q1 (adj)'!$R$40 -> -3461868.8 | DL17: ='[42]wyniki spółek Q1-Q2 (adj)'!$R$40-DK17 -> -212537.6749 | DM17: ='[43]wyniki spółek Q1-Q3 (adj)'!$V$40-DL17-DK17 -> -3157337.387 | DN17: ='[44]wyniki spółek Q1-Q4 (adj)'!$V$40-DM17-DL17-DK17 -> -5659868.309 | DO17: ='[45]wyniki spółek Q1 (adj)'!$V$40 -> -4754839.747 | DP17: ='[42]wyniki spółek Q1-Q2 (adj)'!$Q$40-DO17 -> -6623174.351 | DQ17: ='[43]wyniki spółek Q1-Q3 (adj)'!$U$40-DP17-DO17 -> -4470629.602 | DR17: ='[44]wyniki spółek Q1-Q4 (adj)'!$U$40-DQ17-DP17-DO17 -> -727156.6356 | DS17: ='[45]wyniki spółek Q1 (adj)'!$U$40 -> -3246658.2 | DU17: 2123196.147 | DV17: -199714.3598 | DW17: -5794038.433 | DX17: -56506372.15 | DY17: -3584396.751 | DZ17: -2275538.759 | EA17: -1503712.234 | EB17: -3065124.616 | EC17: -4244916.146 | ED17: -4281291.001 | EE17: -4864834.802 | EF17: 552779.7394 | EG17: -4957813.126 | EH17: -3437959.312 | EI17: -3774942.959 | EJ17: -1167233.908 | EK17: ='[37]wyniki spółek Q1 adj przypisane'!$V$39 -> -5936836.409 | EL17: ='[38]wyniki spółek H1 adj przypisane'!$V$39-EK17 -> 9252553.352 | EM17: ='[39]wyniki spółek Q1-Q3'!$V$39-EL17-EK17 -> -3444651.972 | EN17: ='[40]wyniki spółek Q1-Q4'!$V$40-EM17-EL17-EK17 -> -7412955.587 | EO17: ='[41]wyniki spółek Q1 (adj)'!$V$40 -> -3714778.747 | EP17: ='[42]wyniki spółek Q1-Q2 (adj)'!$V$40-EO17 -> -138423.4429 | EQ17: ='[43]wyniki spółek Q1-Q3 (adj)'!$Z$40-EP17-EO17 -> -3319337.758 | ER17: ='[44]wyniki spółek Q1-Q4 (adj)'!$Z$40-EQ17-EP17-EO17 -> -4950989.314 | ES17: ='[45]wyniki spółek Q1 (adj)'!$Z$40 -> -4247699.202 | ET17: ='[42]wyniki spółek Q1-Q2 (adj)'!$U$40-ES17 -> -5622333.557 | EU17: ='[43]wyniki spółek Q1-Q3 (adj)'!$Y$40-ET17-ES17 -> -4354418.606 | EV17: ='[44]wyniki spółek Q1-Q4 (adj)'!$Y$40-EU17-ET17-ES17 -> -1497687.678 | EW17: ='[45]wyniki spółek Q1 (adj)'!$Y$40 -> -3247100.946 | EY17: -2708004.335 | EZ17: -252664.8677 | FA17: 448135.8427 | FB17: 1289699.484 | FC17: -3266427.943 | FD17: -1955815.813 | FE17: -1571718.886 | FF17: -1855795.396 | FG17: -4230375.151 | FH17: -3744814.637 | FI17: -3965897.9 | FJ17: 900171.9431 | FK17: -4625294.585 | FL17: -3140091.457 | FM17: -3500263.749 | FN17: -891913.8597 | FO17: ='[37]wyniki spółek Q1 adj przypisane'!$Z$39 -> -5657689.446 | FP17: ='[38]wyniki spółek H1 adj przypisane'!$Z$39-FO17 -> -4381867.541 | FQ17: ='[39]wyniki spółek Q1-Q3'!$Z$39-FP17-FO17 -> -3477724.119 | FR17: ='[40]wyniki spółek Q1-Q4'!$Z$40-FQ17-FP17-FO17 -> -4236855.499 | FS17: ='[41]wyniki spółek Q1 (adj)'!$Z$40 -> -3714778.747 | FT17: ='[42]wyniki spółek Q1-Q2 (adj)'!$Z$40-FS17 -> -3188655.465 | FU17: ='[43]wyniki spółek Q1-Q3 (adj)'!$AD$40-FT17-FS17 -> -3349136.322 | FV17: ='[44]wyniki spółek Q1-Q4 (adj)'!$AD$40-FU17-FT17-FS17 -> -5548128.038 | FW17: ='[45]wyniki spółek Q1 (adj)'!$AD$40 -> -4247699.202 | FX17: ='[42]wyniki spółek Q1-Q2 (adj)'!$Y$40-FW17 -> -5622333.557 | FY17: ='[43]wyniki spółek Q1-Q3 (adj)'!$AC$40-FX17-FW17 -> -4674829.606 | FZ17: ='[44]wyniki spółek Q1-Q4 (adj)'!$AC$40-FY17-FX17-FW17 -> -1094814.818 | GA17: ='[45]wyniki spółek Q1 (adj)'!$AC$40 -> -3733843.846
B18: Korekta konsolidacyjna | E18: -11501757.48 | F18: -12291773.34 | G18: -4374168.98 | H18: -14032300.2 | I18: -5100000 | J18: -8400000 | K18: -4400000 | L18: -7200000 | M18: -6100000 | N18: -6200000 | O18: -6900000 | P18: -9500000 | Q18: -7400000 | R18: -7000000 | S18: -7300000 | T18: -12600000 | U18: ='[37]wyniki spółek Q1 adj przypisane'!$F$40 -> -6400000 | V18: ='[38]wyniki spółek H1 adj przypisane'!$F$40-U18 -> -10900000 | W18: ='[39]wyniki spółek Q1-Q3'!$F$40-V18-U18 -> -7000000 | X18: ='[40]wyniki spółek Q1-Q4'!$F$41-W18-V18-U18 -> -6800000 | Y18: ='[41]wyniki spółek Q1 (adj)'!$F$41 -> -7500000 | Z18: ='[42]wyniki spółek Q1-Q2 (adj)'!$F$41-Y18 -> -7700000 | AA18: ='[43]wyniki spółek Q1-Q3 (adj)'!$F$41-Z18-Y18 -> -5200000 | AB18: ='[44]wyniki spółek Q1-Q4 (adj)'!$F$41-AA18-Z18-Y18 -> -8300000 | AC18: ='[45]wyniki spółek Q1 (adj)'!$F$41 -> -13500000 | AD18: ='[42]wyniki spółek Q1-Q2 (adj)'!$E$41-AC18 -> -10000000 | AE18: ='[43]wyniki spółek Q1-Q3 (adj)'!$E$41-AD18-AC18 -> -10300000 | AF18: ='[44]wyniki spółek Q1-Q4 (adj)'!$E$41-AE18-AD18-AC18 -> -15800000 | AG18: ='[45]wyniki spółek Q1 (adj)'!$E$41 -> -15800000 | AI18: -1268101.906 | AJ18: 527302.75 | AK18: 300374.1217 | AL18: -1359574.966 | AM18: 400000 | AN18: -300000 | AO18: 1300000 | AP18: -300000 | AQ18: -3.278255463e-07 | AR18: 1000000 | AS18: -300000 | AT18: -200000 | AU18: -700000 | AV18: -600000 | AW18: 1000000 | AX18: -2700000 | AY18: ='[37]wyniki spółek Q1 adj przypisane'!$J$40 -> -500000 | AZ18: ='[38]wyniki spółek H1 adj przypisane'!$J$40-AY18 -> -2500000 | BA18: ='[39]wyniki spółek Q1-Q3'!$J$40-AZ18-AY18 -> 300000 | BB18: ='[40]wyniki spółek Q1-Q4'!$J$41-BA18-AZ18-AY18 -> 2600000 | BC18: ='[41]wyniki spółek Q1 (adj)'!$J$41 -> -500000 | BD18: ='[42]wyniki spółek Q1-Q2 (adj)'!$J$41-BC18 -> -200000 | BE18: ='[43]wyniki spółek Q1-Q3 (adj)'!$N$41-BD18-BC18 -> -1300000 | BF18: ='[44]wyniki spółek Q1-Q4 (adj)'!$N$41-BE18-BD18-BC18 -> 500000 | BG18: ='[45]wyniki spółek Q1 (adj)'!$N$41 -> -3900000 | BH18: ='[42]wyniki spółek Q1-Q2 (adj)'!$I$41-BG18 -> 3300000 | BI18: ='[43]wyniki spółek Q1-Q3 (adj)'!$M$41-BH18-BG18 -> -800000 | BJ18: ='[44]wyniki spółek Q1-Q4 (adj)'!$M$41-BI18-BH18-BG18 -> -1200000 | BK18: ='[45]wyniki spółek Q1 (adj)'!$M$41 -> -4529000 | BM18: -1259601.906 | BN18: 518802.75 | BO18: 300374.1217 | BP18: -1359574.966 | BQ18: 400000 | BR18: -300000 | BS18: 1300000 | BT18: -300000 | BU18: -3.278255463e-07 | BV18: 1000000 | BW18: -300000 | BX18: -232000 | BY18: -700000 | BZ18: -600000 | CA18: 1044874.552 | CB18: -2744874.552 | CC18: ='[37]wyniki spółek Q1 adj przypisane'!$N$40 -> -500000 | CD18: ='[38]wyniki spółek H1 adj przypisane'!$N$40-CC18 -> -2500000 | CE18: ='[39]wyniki spółek Q1-Q3'!$N$40-CD18-CC18 -> 300000 | CF18: ='[40]wyniki spółek Q1-Q4'!$N$41-CE18-CD18-CC18 -> 2600000 | CG18: ='[41]wyniki spółek Q1 (adj)'!$N$41 -> -500000 | CH18: ='[42]wyniki spółek Q1-Q2 (adj)'!$N$41-CG18 -> -200000 | CI18: ='[43]wyniki spółek Q1-Q3 (adj)'!$R$41-CH18-CG18 -> -1300000 | CJ18: ='[44]wyniki spółek Q1-Q4 (adj)'!$R$41-CI18-CH18-CG18 -> 500000 | CK18: ='[45]wyniki spółek Q1 (adj)'!$R$41 -> -3900000 | CL18: ='[42]wyniki spółek Q1-Q2 (adj)'!$M$41-CK18 -> 3300000 | CM18: ='[43]wyniki spółek Q1-Q3 (adj)'!$Q$41-CL18-CK18 -> -800000 | CN18: ='[44]wyniki spółek Q1-Q4 (adj)'!$Q$41-CM18-CL18-CK18 -> -1200000 | CO18: ='[45]wyniki spółek Q1 (adj)'!$Q$41 -> -4529000 | CQ18: -29136569.2 | CR18: 28234121.26 | CS18: 227873.8094 | CT18: -1303239.253 | CU18: 392579.7379 | CV18: -351579.7379 | CW18: 1398000 | CX18: -317000 | CY18: 33000 | CZ18: 1117000 | DA18: -255000 | DB18: -33000 | DC18: -565000 | DD18: -409000 | DE18: 1221000 | DF18: -2750000 | DG18: ='[37]wyniki spółek Q1 adj przypisane'!$R$40 -> -406000 | DH18: ='[38]wyniki spółek H1 adj przypisane'!$R$40-DG18 -> -2440000 | DI18: ='[39]wyniki spółek Q1-Q3'!$R$40-DH18-DG18 -> 530000 | DJ18: ='[40]wyniki spółek Q1-Q4'!$R$41-DI18-DH18-DG18 -> 2549000 | DK18: ='[41]wyniki spółek Q1 (adj)'!$R$41 -> -446601.4599 | DL18: ='[42]wyniki spółek Q1-Q2 (adj)'!$R$41-DK18 -> -166163.7159 | DM18: ='[43]wyniki spółek Q1-Q3 (adj)'!$V$41-DL18-DK18 -> -426309.3226 | DN18: ='[44]wyniki spółek Q1-Q4 (adj)'!$V$41-DM18-DL18-DK18 -> 183360.8786 | DO18: ='[45]wyniki spółek Q1 (adj)'!$V$41 -> -3820396.355 | DP18: ='[42]wyniki spółek Q1-Q2 (adj)'!$Q$41-DO18 -> 3368396.355 | DQ18: ='[43]wyniki spółek Q1-Q3 (adj)'!$U$41-DP18-DO18 -> -690000 | DR18: ='[44]wyniki spółek Q1-Q4 (adj)'!$U$41-DQ18-DP18-DO18 -> -1044000 | DS18: ='[45]wyniki spółek Q1 (adj)'!$U$41 -> -4476000 | DU18: -1326295.425 | DV18: 59319.11303 | DW18: 1154213.98 | DX18: -1496645.551 | DY18: 361182.1349 | DZ18: -169988.1126 | EA18: 1470453.748 | EB18: -147797.8049 | EC18: 113905.2298 | ED18: 1035195.181 | EE18: -217880.0745 | EF18: -129827.8369 | EG18: -528920.3551 | EH18: -309235.3467 | EI18: 926309.8955 | EJ18: -2496144.113 | EK18: ='[37]wyniki spółek Q1 adj przypisane'!$V$40 -> -420775.2892 | EL18: ='[38]wyniki spółek H1 adj przypisane'!$V$40-EK18 -> -2579224.711 | EM18: ='[39]wyniki spółek Q1-Q3'!$V$40-EL18-EK18 -> 627183.2601 | EN18: ='[40]wyniki spółek Q1-Q4'!$V$41-EM18-EL18-EK18 -> 2772816.74 | EO18: ='[41]wyniki spółek Q1 (adj)'!$V$41 -> -500000 | EP18: ='[42]wyniki spółek Q1-Q2 (adj)'!$V$41-EO18 -> -237002.1949 | EQ18: ='[43]wyniki spółek Q1-Q3 (adj)'!$Z$41-EP18-EO18 -> -261584.0304 | ER18: ='[44]wyniki spółek Q1-Q4 (adj)'!$Z$41-EQ18-EP18-EO18 -> 100997.7644 | ES18: ='[45]wyniki spółek Q1 (adj)'!$Z$41 -> -3810582.931 | ET18: ='[42]wyniki spółek Q1-Q2 (adj)'!$U$41-ES18 -> 3300629.959 | EU18: ='[43]wyniki spółek Q1-Q3 (adj)'!$Y$41-ET18-ES18 -> -599822.2466 | EV18: ='[44]wyniki spółek Q1-Q4 (adj)'!$Y$41-EU18-ET18-ES18 -> -1244200.672 | EW18: ='[45]wyniki spółek Q1 (adj)'!$Y$41 -> -4380794.895 | EY18: -1326295.425 | EZ18: 59319.11303 | FA18: 1154213.98 | FB18: -1496645.551 | FC18: 361182.1349 | FD18: -169988.1126 | FE18: 1470453.748 | FF18: -147797.8049 | FG18: 69713.37019 | FH18: 1035195.181 | FI18: -217880.0745 | FJ18: -85635.97731 | FK18: -528920.3551 | FL18: -309235.3467 | FM18: 956077.3593 | FN18: -2525911.577 | FO18: ='[37]wyniki spółek Q1 adj przypisane'!$Z$40 -> -420775.2892 | FP18: ='[38]wyniki spółek H1 adj przypisane'!$Z$40-FO18 -> -2579224.711 | FQ18: ='[39]wyniki spółek Q1-Q3'!$Z$40-FP18-FO18 -> 627183.2601 | FR18: ='[40]wyniki spółek Q1-Q4'!$Z$41-FQ18-FP18-FO18 -> 2772816.74 | FS18: ='[41]wyniki spółek Q1 (adj)'!$Z$41 -> -500000 | FT18: ='[42]wyniki spółek Q1-Q2 (adj)'!$Z$41-FS18 -> -237002.1949 | FU18: ='[43]wyniki spółek Q1-Q3 (adj)'!$AD$41-FT18-FS18 -> -261584.0304 | FV18: ='[44]wyniki spółek Q1-Q4 (adj)'!$AD$41-FU18-FT18-FS18 -> 100997.7644 | FW18: ='[45]wyniki spółek Q1 (adj)'!$AD$41 -> -3810582.931 | FX18: ='[42]wyniki spółek Q1-Q2 (adj)'!$Y$41-FW18 -> 3300629.959 | FY18: ='[43]wyniki spółek Q1-Q3 (adj)'!$AC$41-FX18-FW18 -> -599822.2466 | FZ18: ='[44]wyniki spółek Q1-Q4 (adj)'!$AC$41-FY18-FX18-FW18 -> -1244200.672 | GA18: ='[45]wyniki spółek Q1 (adj)'!$AC$41 -> -4380794.895
B19: Grupa Asseco | E19: 2068300000 | F19: 2093700000 | G19: 2124246625 | H19: 2411554734 | I19: 2149000000 | J19: 2310900000 | K19: 2218400000 | L19: 2650300000 | M19: 2452200000 | N19: 2538700000 | O19: 2738400000 | P19: 2938100000 | Q19: 2920400000 | R19: 2850300000 | S19: 2938100000 | T19: 3484000000 | U19: ='[37]wyniki spółek Q1 adj przypisane'!$F$41 -> 3339100000 | V19: ='[38]wyniki spółek H1 adj przypisane'!$F$41-U19 -> 3451900000 | W19: ='[39]wyniki spółek Q1-Q3'!$F$41-V19-U19 -> 3502100000 | X19: ='[40]wyniki spółek Q1-Q4'!$F$42-W19-V19-U19 -> 4205000000 | Y19: ='[41]wyniki spółek Q1 (adj)'!$F$42 -> 4047500000 | Z19: ='[42]wyniki spółek Q1-Q2 (adj)'!$F$42-Y19 -> 4202500000 | AA19: ='[43]wyniki spółek Q1-Q3 (adj)'!$F$42-Z19-Y19 -> 4456800000 | AB19: ='[44]wyniki spółek Q1-Q4 (adj)'!$F$42-AA19-Z19-Y19 -> 4663300000 | AC19: ='[45]wyniki spółek Q1 (adj)'!$F$42 -> 4335400000 | AD19: ='[42]wyniki spółek Q1-Q2 (adj)'!$E$42-AC19 -> 4180000000 | AE19: ='[43]wyniki spółek Q1-Q3 (adj)'!$E$42-AD19-AC19 -> 4095200000 | AF19: ='[44]wyniki spółek Q1-Q4 (adj)'!$E$42-AE19-AD19-AC19 -> 4285900000 | AG19: ='[45]wyniki spółek Q1 (adj)'!$E$42 -> 4249600000 | AI19: 165200000 | AJ19: 144000000 | AK19: 144399154.6 | AL19: 158322219.8 | AM19: 167300000 | AN19: 203800000 | AO19: 187600000 | AP19: 238100000 | AQ19: 224700000 | AR19: 228900000 | AS19: 261100000 | AT19: 259900000 | AU19: 249800000 | AV19: 303700000 | AW19: 299000000 | AX19: 362100000 | AY19: ='[37]wyniki spółek Q1 adj przypisane'!$J$41 -> 322600000 | AZ19: ='[38]wyniki spółek H1 adj przypisane'!$J$41-AY19 -> 349400000 | BA19: ='[39]wyniki spółek Q1-Q3'!$J$41-AZ19-AY19 -> 372600000 | BB19: ='[40]wyniki spółek Q1-Q4'!$J$42-BA19-AZ19-AY19 -> 410300000 | BC19: ='[41]wyniki spółek Q1 (adj)'!$J$42 -> 386700000 | BD19: ='[42]wyniki spółek Q1-Q2 (adj)'!$J$42-BC19 -> 536500000 | BE19: ='[43]wyniki spółek Q1-Q3 (adj)'!$N$42-BD19-BC19 -> 423600000 | BF19: ='[44]wyniki spółek Q1-Q4 (adj)'!$N$42-BE19-BD19-BC19 -> 447100000 | BG19: ='[45]wyniki spółek Q1 (adj)'!$N$42 -> 397200000 | BH19: ='[42]wyniki spółek Q1-Q2 (adj)'!$I$42-BG19 -> 395300000 | BI19: ='[43]wyniki spółek Q1-Q3 (adj)'!$M$42-BH19-BG19 -> 373600000 | BJ19: ='[44]wyniki spółek Q1-Q4 (adj)'!$M$42-BI19-BH19-BG19 -> 458300000 | BK19: ='[45]wyniki spółek Q1 (adj)'!$M$42 -> 420300000 | BM19: 197949774.2 | BN19: 175156447.6 | BO19: 208631457.2 | BP19: 236969648.9 | BQ19: 235333201.8 | BR19: 264407987 | BS19: 246494752.6 | BT19: 302238009.8 | BU19: 280652875 | BV19: 284038461 | BW19: 320823252.5 | BX19: 318836813.8 | BY19: 316410238.9 | BZ19: 358484847.1 | CA19: 362004914.1 | CB19: 441899859.1 | CC19: ='[37]wyniki spółek Q1 adj przypisane'!$N$41 -> 398623728 | CD19: ='[38]wyniki spółek H1 adj przypisane'!$N$41-CC19 -> 427361047.5 | CE19: ='[39]wyniki spółek Q1-Q3'!$N$41-CD19-CC19 -> 457077943.3 | CF19: ='[40]wyniki spółek Q1-Q4'!$N$42-CE19-CD19-CC19 -> 499460288.9 | CG19: ='[41]wyniki spółek Q1 (adj)'!$N$42 -> 480495298.7 | CH19: ='[42]wyniki spółek Q1-Q2 (adj)'!$N$42-CG19 -> 483558812.9 | CI19: ='[43]wyniki spółek Q1-Q3 (adj)'!$R$42-CH19-CG19 -> 511507643.7 | CJ19: ='[44]wyniki spółek Q1-Q4 (adj)'!$R$42-CI19-CH19-CG19 -> 552296291.5 | CK19: ='[45]wyniki spółek Q1 (adj)'!$R$42 -> 494081885.3 | CL19: ='[42]wyniki spółek Q1-Q2 (adj)'!$M$42-CK19 -> 488251254.8 | CM19: ='[43]wyniki spółek Q1-Q3 (adj)'!$Q$42-CL19-CK19 -> 470111702.1 | CN19: ='[44]wyniki spółek Q1-Q4 (adj)'!$Q$42-CM19-CL19-CK19 -> 535239788.4 | CO19: ='[45]wyniki spółek Q1 (adj)'!$Q$42 -> 501309699.3 | CQ19: 97000000 | CR19: 84800000 | CS19: 81771936.33 | CT19: 351160653.7 | CU19: 116600000 | CV19: 151400000 | CW19: 141300000 | CX19: 184400000 | CY19: 157200000 | CZ19: 169400000 | DA19: 181500000 | DB19: 194200000 | DC19: 176400000 | DD19: 211600000 | DE19: 207500000 | DF19: 271700000 | DG19: ='[37]wyniki spółek Q1 adj przypisane'!$R$41 -> 232900000 | DH19: ='[38]wyniki spółek H1 adj przypisane'!$R$41-DG19 -> 269500000 | DI19: ='[39]wyniki spółek Q1-Q3'!$R$41-DH19-DG19 -> 263700000 | DJ19: ='[40]wyniki spółek Q1-Q4'!$R$42-DI19-DH19-DG19 -> 278100000 | DK19: ='[41]wyniki spółek Q1 (adj)'!$R$42 -> 287100000 | DL19: ='[42]wyniki spółek Q1-Q2 (adj)'!$R$42-DK19 -> 441700000 | DM19: ='[43]wyniki spółek Q1-Q3 (adj)'!$V$42-DL19-DK19 -> 330600000 | DN19: ='[44]wyniki spółek Q1-Q4 (adj)'!$V$42-DM19-DL19-DK19 -> 298600000 | DO19: ='[45]wyniki spółek Q1 (adj)'!$V$42 -> 292100000 | DP19: ='[42]wyniki spółek Q1-Q2 (adj)'!$Q$42-DO19 -> 306032145.3 | DQ19: ='[43]wyniki spółek Q1-Q3 (adj)'!$U$42-DP19-DO19 -> 293767854.7 | DR19: ='[44]wyniki spółek Q1-Q4 (adj)'!$U$42-DQ19-DP19-DO19 -> 320700000 | DS19: ='[45]wyniki spółek Q1 (adj)'!$U$42 -> 312600000 | DU19: 60900113.92 | DV19: 52399886.08 | DW19: 45574255.88 | DX19: 307720937.1 | DY19: 68900000 | DZ19: 88400000 | EA19: 78000000 | EB19: 98000000 | EC19: 79600000 | ED19: 80100000 | EE19: 78500000 | EF19: 83700000 | EG19: 81700000 | EH19: 95100000 | EI19: 90700000 | EJ19: 134100000 | EK19: ='[37]wyniki spółek Q1 adj przypisane'!$V$41 -> 102200000 | EL19: ='[38]wyniki spółek H1 adj przypisane'!$V$41-EK19 -> 139600000 | EM19: ='[39]wyniki spółek Q1-Q3'!$V$41-EL19-EK19 -> 120200000 | EN19: ='[40]wyniki spółek Q1-Q4'!$V$42-EM19-EL19-EK19 -> 105600000 | EO19: ='[41]wyniki spółek Q1 (adj)'!$V$42 -> 107600000 | EP19: ='[42]wyniki spółek Q1-Q2 (adj)'!$V$42-EO19 -> 140300000 | EQ19: ='[43]wyniki spółek Q1-Q3 (adj)'!$Z$42-EP19-EO19 -> 127804480 | ER19: ='[44]wyniki spółek Q1-Q4 (adj)'!$Z$42-EQ19-EP19-EO19 -> 126595520 | ES19: ='[45]wyniki spółek Q1 (adj)'!$Z$42 -> 107900000 | ET19: ='[42]wyniki spółek Q1-Q2 (adj)'!$U$42-ES19 -> 122595376.5 | EU19: ='[43]wyniki spółek Q1-Q3 (adj)'!$Y$42-ET19-ES19 -> 113704623.5 | EV19: ='[44]wyniki spółek Q1-Q4 (adj)'!$Y$42-EU19-ET19-ES19 -> 138600000 | EW19: ='[45]wyniki spółek Q1 (adj)'!$Y$42 -> 125200000 | EY19: 67527224.16 | EZ19: 59201638.97 | FA19: 64410270.48 | FB19: 74168848.38 | FC19: 81170041.63 | FD19: 100121853.3 | FE19: 88291603.33 | FF19: 101831383.4 | FG19: 89573223.7 | FH19: 90316463.23 | FI19: 90325408.63 | FJ19: 96014470.82 | FK19: 94650530.83 | FL19: 106085237.4 | FM19: 102364231.7 | FN19: 151161205.5 | FO19: ='[37]wyniki spółek Q1 adj przypisane'!$Z$41 -> 116225137.9 | FP19: ='[38]wyniki spółek H1 adj przypisane'!$Z$41-FO19 -> 133196367.5 | FQ19: ='[39]wyniki spółek Q1-Q3'!$Z$41-FP19-FO19 -> 136759749 | FR19: ='[40]wyniki spółek Q1-Q4'!$Z$42-FQ19-FP19-FO19 -> 130141387.6 | FS19: ='[41]wyniki spółek Q1 (adj)'!$Z$42 -> 124660173.5 | FT19: ='[42]wyniki spółek Q1-Q2 (adj)'!$Z$42-FS19 -> 146695885.1 | FU19: ='[43]wyniki spółek Q1-Q3 (adj)'!$AD$42-FT19-FS19 -> 138594678.7 | FV19: ='[44]wyniki spółek Q1-Q4 (adj)'!$AD$42-FU19-FT19-FS19 -> 143157549.7 | FW19: ='[45]wyniki spółek Q1 (adj)'!$AD$42 -> 120197507.7 | FX19: ='[42]wyniki spółek Q1-Q2 (adj)'!$Y$42-FW19 -> 140029003 | FY19: ='[43]wyniki spółek Q1-Q3 (adj)'!$AC$42-FX19-FW19 -> 124145075.1 | FZ19: ='[44]wyniki spółek Q1-Q4 (adj)'!$AC$42-FY19-FX19-FW19 -> 146779260.7 | GA19: ='[45]wyniki spółek Q1 (adj)'!$AC$42 -> 136563552.9

Sheet company results
E1: Sales revenues | AI1: Operating profit | BM1: Operating profit non-IFRS | CQ1: Net profit 100% | DU1: Contribution to net profit of ACP | EY1: Contribution to net profit non-IFRS of ACP
E2: Q1 2017 | F2: Q2 2017 | G2: Q3 2017 PF | H2: Q4 2017 PF | I2: Q1 2018 | J2: Q2 2018 | K2: Q3 2018 | L2: Q4 2018 | M2: Q1 2019 | N2: Q2 2019 | O2: Q3 2019 | P2: Q4 2019 | Q2: Q1 2020 | R2: Q2 2020 | S2: Q3 2020 | T2: Q4 2020 | U2: Q1 2021 | V2: Q2 2021 | W2: Q3 2021 | X2: Q4 2021 | Y2: Q1 2022 | Z2: Q2 2022 | AA2: Q3 2022 | AB2: Q4 2022 | AC2: Q1 2023 | AD2: Q2 2023 | AE2: Q3 2023 | AF2: Q4 2023 | AG2: Q1 2024 | AI2: Q1 2017 | AJ2: Q2 2017 | AK2: Q3 2017 PF | AL2: Q4 2017 PF | AM2: Q1 2018 | AN2: Q2 2018 | AO2: Q3 2018 | AP2: Q4 2018 | AQ2: Q1 2019 | AR2: Q2 2019 | AS2: Q3 2019 | AT2: Q4 2019 | AU2: Q1 2020 | AV2: Q2 2020 | AW2: Q3 2020 | AX2: Q4 2020 | AY2: Q1 2021 | AZ2: Q2 2021 | BA2: Q3 2021 | BB2: Q4 2021 | BC2: Q1 2022 | BD2: Q2 2022 | BE2: Q3 2022 | BF2: Q4 2022 | BG2: Q1 2023 | BH2: Q2 2023 | BI2: Q3 2023 | BJ2: Q4 2023 | BK2: Q1 2024 | BM2: Q1 2017 | BN2: Q2 2017 | BO2: Q3 2017 PF | BP2: Q4 2017 PF | BQ2: Q1 2018 | BR2: Q2 2018 | BS2: Q3 2018 | BT2: Q4 2018 | BU2: Q1 2019 | BV2: Q2 2019 | BW2: Q3 2019 | BX2: Q4 2019 | BY2: Q1 2020 | BZ2: Q2 2020 | CA2: Q3 2020 | CB2: Q4 2020 | CC2: Q1 2021 | CD2: Q2 2021 | CE2: Q3 2021 | CF2: Q4 2021 | CG2: Q1 2022 | CH2: Q2 2022 | CI2: Q3 2022 | CJ2: Q4 2022 | CK2: Q1 2023 | CL2: Q2 2023 | CM2: Q3 2023 | CN2: Q4 2023 | CO2: Q1 2024 | CQ2: Q1 2017 | CR2: Q2 2017 | CS2: Q3 2017 PF | CT2: Q4 2017 PF | CU2: Q1 2018 | CV2: Q2 2018 | CW2: Q3 2018 | CX2: Q4 2018 | CY2: Q1 2019 | CZ2: Q2 2019 | DA2: Q3 2019 | DB2: Q4 2019 | DC2: Q1 2020 | DD2: Q2 2020 | DE2: Q3 2020 | DF2: Q4 2020 | DG2: Q1 2021 | DH2: Q2 2021 | DI2: Q3 2021 | DJ2: Q4 2021 | DK2: Q1 2022 | DL2: Q2 2022 | DM2: Q3 2022 | DN2: Q4 2022 | DO2: Q1 2023 | DP2: Q2 2023 | DQ2: Q3 2023 | DR2: Q4 2023 | DS2: Q1 2024 | DU2: Q1 2017 | DV2: Q2 2017 | DW2: Q3 2017 PF | DX2: Q4 2017 PF | DY2: Q1 2018 | DZ2: Q2 2018 | EA2: Q3 2018 | EB2: Q4 2018 | EC2: Q1 2019 | ED2: Q2 2019 | EE2: Q3 2019 | EF2: Q4 2019 | EG2: Q1 2020 | EH2: Q2 2020 | EI2: Q3 2020 | EJ2: Q4 2020 | EK2: Q1 2021 | EL2: Q2 2021 | EM2: Q3 2021 | EN2: Q4 2021 | EO2: Q1 2022 | EP2: Q2 2022 | EQ2: Q3 2022 | ER2: Q4 2022 | ES2: Q1 2023 | ET2: Q2 2023 | EU2: Q3 2023 | EV2: Q4 2023 | EW2: Q1 2024 | EY2: Q1 2017 | EZ2: Q2 2017 | FA2: Q3 2017 PF | FB2: Q4 2017 PF | FC2: Q1 2018 | FD2: Q2 2018 | FE2: Q3 2018 | FF2: Q4 2018 | FG2: Q1 2019 | FH2: Q2 2019 | FI2: Q3 2019 | FJ2: Q4 2019 | FK2: Q1 2020 | FL2: Q2 2020 | FM2: Q3 2020 | FN2: Q4 2020 | FO2: Q1 2021 | FP2: Q2 2021 | FQ2: Q3 2021 | FR2: Q4 2021 | FS2: Q1 2022 | FT2: Q2 2022 | FU2: Q3 2022 | FV2: Q4 2022 | FW2: Q1 2023 | FX2: Q2 2023 | FY2: Q3 2023 | FZ2: Q4 2023 | GA2: Q1 2024
B3: Asseco Poland Segment | E3: 309516599.5 | F3: 315459007.2 | G3: 316876448.7 | H3: 403847944.7 | I3: 316300000 | J3: 352100000 | K3: 308200000 | L3: 382200000 | M3: 298600000 | N3: 305100000 | O3: 290100000 | P3: 318500000 | Q3: 310700000 | R3: 332000000 | S3: 365500000 | T3: 430400000 | U3: ='[37]wyniki spółek Q1 adj przypisane'!$F$3 -> 366800000 | V3: ='[38]wyniki spółek H1 adj przypisane'!$F$3-U3 -> 384300000 | W3: ='[39]wyniki spółek Q1-Q3'!$F$3-U3-V3 -> 372400000 | X3: ='[40]wyniki spółek Q1-Q4'!$F$3-W3-V3-U3 -> 451700000 | Y3: ='[41]wyniki spółek Q1 (adj)'!$F$3 -> 408400000 | Z3: ='[42]wyniki spółek Q1-Q2 (adj)'!$F$3-Y3 -> 430000000 | AA3: ='[43]wyniki spółek Q1-Q3 (adj)'!$F$3-Z3-Y3 -> 420000000 | AB3: ='[44]wyniki spółek Q1-Q4 (adj)'!$F$3-AA3-Z3-Y3 -> 479600000 | AC3: ='[45]wyniki spółek Q1 (adj)'!$F$3 -> 457100000 | AD3: ='[42]wyniki spółek Q1-Q2 (adj)'!$E$3-AC3 -> 513600000 | AE3: ='[43]wyniki spółek Q1-Q3 (adj)'!$E$3-AD3-AC3 -> 444600000 | AF3: ='[44]wyniki spółek Q1-Q4 (adj)'!$E$3-AE3-AD3-AC3 -> 548500000 | AG3: ='[45]wyniki spółek Q1 (adj)'!$E$3 -> 508700000 | AI3: 39548957.47 | AJ3: 31800597.66 | AK3: 35960657.83 | AL3: 45189787.04 | AM3: 55800000 | AN3: 64700000 | AO3: 52600000 | AP3: 47600000 | AQ3: 43300000 | AR3: 44100000 | AS3: 38200000 | AT3: 27500000 | AU3: 42700000 | AV3: 52100000 | AW3: 60200000 | AX3: 59800000 | AY3: ='[37]wyniki spółek Q1 adj przypisane'!$J$3 -> 59000000 | AZ3: ='[38]wyniki spółek H1 adj przypisane'!$J$3-AY3 -> 78300000 | BA3: ='[39]wyniki spółek Q1-Q3'!$J$3-AY3-AZ3 -> 70000000 | BB3: ='[40]wyniki spółek Q1-Q4'!$J$3-BA3-AZ3-AY3 -> 56000000 | BC3: ='[41]wyniki spółek Q1 (adj)'!$J$3 -> 67500000 | BD3: ='[42]wyniki spółek Q1-Q2 (adj)'!$J$3-BC3 -> 73000000 | BE3: ='[43]wyniki spółek Q1-Q3 (adj)'!$N$3-BD3-BC3 -> 74100000 | BF3: ='[44]wyniki spółek Q1-Q4 (adj)'!$N$3-BE3-BD3-BC3 -> 60400000 | BG3: ='[45]wyniki spółek Q1 (adj)'!$N$3 -> 66200000 | BH3: ='[42]wyniki spółek Q1-Q2 (adj)'!$I$3-BG3 -> 76700000 | BI3: ='[43]wyniki spółek Q1-Q3 (adj)'!$M$3-BH3-BG3 -> 56200000 | BJ3: ='[44]wyniki spółek Q1-Q4 (adj)'!$M$3-BI3-BH3-BG3 -> 65300000 | BK3: ='[45]wyniki spółek Q1 (adj)'!$M$3 -> 86000000 | BM3: 44062957.47 | BN3: 36309597.66 | BO3: 40471657.83 | BP3: 49697787.04 | BQ3: 60015000 | BR3: 68917000 | BS3: 57201888.89 | BT3: 52401611.11 | BU3: 46963000 | BV3: 48868000 | BW3: 42415000 | BX3: 31551000 | BY3: 46715000 | BZ3: 56206000 | CA3: 64245896.34 | CB3: 68049000 | CC3: ='[37]wyniki spółek Q1 adj przypisane'!$N$3 -> 62792000 | CD3: ='[38]wyniki spółek H1 adj przypisane'!$N$3-CC3 -> 82092000 | CE3: ='[39]wyniki spółek Q1-Q3'!$N$3-CC3-CD3 -> 73792000 | CF3: ='[40]wyniki spółek Q1-Q4'!$N$3-CE3-CD3-CC3 -> 59761000 | CG3: ='[41]wyniki spółek Q1 (adj)'!$N$3 -> 70813000 | CH3: ='[42]wyniki spółek Q1-Q2 (adj)'!$N$3-CG3 -> 76272000 | CI3: ='[43]wyniki spółek Q1-Q3 (adj)'!$R$3-CH3-CG3 -> 76934501.85 | CJ3: ='[44]wyniki spółek Q1-Q4 (adj)'!$R$3-CI3-CH3-CG3 -> 68650498.15 | CK3: ='[45]wyniki spółek Q1 (adj)'!$R$3 -> 69722000 | CL3: ='[42]wyniki spółek Q1-Q2 (adj)'!$M$3-CK3 -> 85138000 | CM3: ='[43]wyniki spółek Q1-Q3 (adj)'!$Q$3-CL3-CK3 -> 59722000 | CN3: ='[44]wyniki spółek Q1-Q4 (adj)'!$Q$3-CM3-CL3-CK3 -> 63577000 | CO3: ='[45]wyniki spółek Q1 (adj)'!$Q$3 -> 89912379.31 | CQ3: 61188493.37 | CR3: -7064661.769 | CS3: 21429629.69 | CT3: -55737461.29 | CU3: 40102344 | CV3: 47387684.99 | CW3: 42641000.25 | CX3: 38170000 | CY3: 36046000 | CZ3: 35529000 | DA3: 25786000 | DB3: 20997000 | DC3: 32498000 | DD3: 39809000 | DE3: 44183000 | DF3: 55249000 | DG3: ='[37]wyniki spółek Q1 adj przypisane'!$R$3 -> 45856000 | DH3: ='[38]wyniki spółek H1 adj przypisane'!$R$3-DG3 -> 69866000 | DI3: ='[39]wyniki spółek Q1-Q3'!$R$3-DG3-DH3 -> 51464000 | DJ3: ='[40]wyniki spółek Q1-Q4'!$R$3-DI3-DH3-DG3 -> 41895000 | DK3: ='[41]wyniki spółek Q1 (adj)'!$R$3 -> 47850000 | DL3: ='[42]wyniki spółek Q1-Q2 (adj)'!$R$3-DK3 -> 62902000 | DM3: ='[43]wyniki spółek Q1-Q3 (adj)'!$V$3-DL3-DK3 -> 62869000 | DN3: ='[44]wyniki spółek Q1-Q4 (adj)'!$V$3-DM3-DL3-DK3 -> 41561000 | DO3: ='[45]wyniki spółek Q1 (adj)'!$V$3 -> 51134000 | DP3: ='[42]wyniki spółek Q1-Q2 (adj)'!$Q$3-DO3 -> 65434000 | DQ3: ='[43]wyniki spółek Q1-Q3 (adj)'!$U$3-DP3-DO3 -> 50336000 | DR3: ='[44]wyniki spółek Q1-Q4 (adj)'!$U$3-DQ3-DP3-DO3 -> 49524000 | DS3: ='[45]wyniki spółek Q1 (adj)'!$U$3 -> 60165000 | DU3: 32692050.16 | DV3: 18452194.74 | DW3: 17264902.86 | DX3: -61329708.7 | DY3: 38838820.02 | DZ3: 45274107.62 | EA3: 40449367.94 | EB3: 37024006.86 | EC3: 35275148.13 | ED3: 33558061.85 | EE3: 24904693.43 | EF3: 20001920.55 | EG3: 32130028.11 | EH3: 37069971.89 | EI3: 42982204.68 | EJ3: 55713900.92 | EK3: ='[37]wyniki spółek Q1 adj przypisane'!$V$3 -> 45900000 | EL3: ='[38]wyniki spółek H1 adj przypisane'!$V$3-EK3 -> 68700000 | EM3: ='[39]wyniki spółek Q1-Q3'!$V$3-EK3-EL3 -> 50451537.32 | EN3: ='[40]wyniki spółek Q1-Q4'!$V$3-EM3-EL3-EK3 -> 41548462.68 | EO3: ='[41]wyniki spółek Q1 (adj)'!$V$3 -> 48600000 | EP3: ='[42]wyniki spółek Q1-Q2 (adj)'!$V$3-EO3 -> 61100000 | EQ3: ='[43]wyniki spółek Q1-Q3 (adj)'!$Z$3-EP3-EO3 -> 61108941.87 | ER3: ='[44]wyniki spółek Q1-Q4 (adj)'!$Z$3-EQ3-EP3-EO3 -> 40084778.41 | ES3: ='[45]wyniki spółek Q1 (adj)'!$Z$3 -> 49880190.19 | ET3: ='[42]wyniki spółek Q1-Q2 (adj)'!$U$3-ES3 -> 63510335.91 | EU3: ='[43]wyniki spółek Q1-Q3 (adj)'!$Y$3-ET3-ES3 -> 48358737.32 | EV3: ='[44]wyniki spółek Q1-Q4 (adj)'!$Y$3-EU3-ET3-ES3 -> 46859397.33 | EW3: ='[45]wyniki spółek Q1 (adj)'!$Y$3 -> 58110153.34 | EY3: 36515879.33 | EZ3: 21823327.26 | FA3: 20942396.14 | FB3: 23927950.23 | FC3: 42233927.18 | FD3: 48799776.92 | FE3: 43380577.79 | FF3: 37137603.95 | FG3: 38245108.59 | FH3: 37655121.85 | FI3: 28268693.43 | FJ3: 23305010.09 | FK3: 35382028.11 | FL3: 40411412.03 | FM3: 46265011.02 | FN3: 62432350.92 | FO3: ='[37]wyniki spółek Q1 adj przypisane'!$Z$3 -> 48971000 | FP3: ='[38]wyniki spółek H1 adj przypisane'!$Z$3-FO3 -> 64692278.5 | FQ3: ='[39]wyniki spółek Q1-Q3'!$Z$3-FO3-FP3 -> 55254737.32 | FR3: ='[40]wyniki spółek Q1-Q4'!$Z$3-FQ3-FP3-FO3 -> 42845984.18 | FS3: ='[41]wyniki spółek Q1 (adj)'!$Z$3 -> 51315000 | FT3: ='[42]wyniki spółek Q1-Q2 (adj)'!$Z$3-FS3 -> 63751000 | FU3: ='[43]wyniki spółek Q1-Q3 (adj)'!$AD$3-FT3-FS3 -> 63708755.03 | FV3: ='[44]wyniki spółek Q1-Q4 (adj)'!$AD$3-FU3-FT3-FS3 -> 52931824.89 | FW3: ='[45]wyniki spółek Q1 (adj)'!$AD$3 -> 53236195.19 | FX3: ='[42]wyniki spółek Q1-Q2 (adj)'!$Y$3-FW3 -> 71172330.91 | FY3: ='[43]wyniki spółek Q1-Q3 (adj)'!$AC$3-FX3-FW3 -> 49916737.32 | FZ3: ='[44]wyniki spółek Q1-Q4 (adj)'!$AC$3-FY3-FX3-FW3 -> 45988397.33 | GA3: ='[45]wyniki spółek Q1 (adj)'!$AC$3 -> 61334878.33
B4: Asseco Poland (without dividends) | E4: 202880000 | F4: 196326000 | G4: 202853000 | H4: 259176000 | I4: 205373000 | J4: 225425000 | K4: 210982000 | L4: 251505000 | M4: 195051000 | N4: 210024000 | O4: 191685000 | P4: 208784000 | Q4: 203854000 | R4: 226591000 | S4: 261223000 | T4: 315204000 | U4: ='[37]wyniki spółek Q1 adj przypisane'!$F$4 -> 261578000 | V4: ='[38]wyniki spółek H1 adj przypisane'!$F$4-U4 -> 268176000 | W4: ='[39]wyniki spółek Q1-Q3'!$F$4-U4-V4 -> 263503000 | X4: ='[40]wyniki spółek Q1-Q4'!$F$4-W4-V4-U4 -> 305705000 | Y4: ='[41]wyniki spółek Q1 (adj)'!$F$4 -> 279847000 | Z4: ='[42]wyniki spółek Q1-Q2 (adj)'!$F$4-Y4 -> 293426000 | AA4: ='[43]wyniki spółek Q1-Q3 (adj)'!$F$4-Z4-Y4 -> 303086000 | AB4: ='[44]wyniki spółek Q1-Q4 (adj)'!$F$4-AA4-Z4-Y4 -> 326428000 | AC4: ='[45]wyniki spółek Q1 (adj)'!$F$4 -> 317481000 | AD4: ='[42]wyniki spółek Q1-Q2 (adj)'!$E$4-AC4 -> 367072000 | AE4: ='[43]wyniki spółek Q1-Q3 (adj)'!$E$4-AD4-AC4 -> 322455000 | AF4: ='[44]wyniki spółek Q1-Q4 (adj)'!$E$4-AE4-AD4-AC4 -> 373126000 | AG4: ='[45]wyniki spółek Q1 (adj)'!$E$4 -> 370979000 | AI4: 31517000 | AJ4: 22093000 | AK4: 32430000 | AL4: 34655000 | AM4: 46308000 | AN4: 43215000 | AO4: 47506000 | AP4: 44687000 | AQ4: 29061000 | AR4: 31933000 | AS4: 28117000 | AT4: 20223000 | AU4: 31374000 | AV4: 34011000 | AW4: 43893000 | AX4: 48777000 | AY4: ='[37]wyniki spółek Q1 adj przypisane'!$J$4 -> 46049000 | AZ4: ='[38]wyniki spółek H1 adj przypisane'!$J$4-AY4 -> 56996000 | BA4: ='[39]wyniki spółek Q1-Q3'!$J$4-AY4-AZ4 -> 55925000 | BB4: ='[40]wyniki spółek Q1-Q4'!$J$4-BA4-AZ4-AY4 -> 27558000 | BC4: ='[41]wyniki spółek Q1 (adj)'!$J$4 -> 46609000 | BD4: ='[42]wyniki spółek Q1-Q2 (adj)'!$J$4-BC4 -> 49778000 | BE4: ='[43]wyniki spółek Q1-Q3 (adj)'!$N$4-BD4-BC4 -> 48956000 | BF4: ='[44]wyniki spółek Q1-Q4 (adj)'!$N$4-BE4-BD4-BC4 -> 46894000 | BG4: ='[45]wyniki spółek Q1 (adj)'!$N$4 -> 50121000 | BH4: ='[42]wyniki spółek Q1-Q2 (adj)'!$I$4-BG4 -> 60572000 | BI4: ='[43]wyniki spółek Q1-Q3 (adj)'!$M$4-BH4-BG4 -> 42383000 | BJ4: ='[44]wyniki spółek Q1-Q4 (adj)'!$M$4-BI4-BH4-BG4 -> 34751000 | BK4: ='[45]wyniki spółek Q1 (adj)'!$M$4 -> 69223000 | BM4: 34225000 | BN4: 24801000 | BO4: 35136000 | BP4: 37363000 | BQ4: 49016000 | BR4: 45922000 | BS4: 50213000 | BT4: 47397000 | BU4: 31769000 | BV4: 34640000 | BW4: 30825000 | BX4: 22731000 | BY4: 33881000 | BZ4: 36518000 | CA4: 46490000 | CB4: 55622000 | CC4: ='[37]wyniki spółek Q1 adj przypisane'!$N$4 -> 48422000 | CD4: ='[38]wyniki spółek H1 adj przypisane'!$N$4-CC4 -> 59369000 | CE4: ='[39]wyniki spółek Q1-Q3'!$N$4-CC4-CD4 -> 58299000 | CF4: ='[40]wyniki spółek Q1-Q4'!$N$4-CE4-CD4-CC4 -> 29929000 | CG4: ='[41]wyniki spółek Q1 (adj)'!$N$4 -> 48214000 | CH4: ='[42]wyniki spółek Q1-Q2 (adj)'!$N$4-CG4 -> 51383000 | CI4: ='[43]wyniki spółek Q1-Q3 (adj)'!$R$4-CH4-CG4 -> 50561000 | CJ4: ='[44]wyniki spółek Q1-Q4 (adj)'!$R$4-CI4-CH4-CG4 -> 48499000 | CK4: ='[45]wyniki spółek Q1 (adj)'!$R$4 -> 51726000 | CL4: ='[42]wyniki spółek Q1-Q2 (adj)'!$M$4-CK4 -> 62177000 | CM4: ='[43]wyniki spółek Q1-Q3 (adj)'!$Q$4-CL4-CK4 -> 43988000 | CN4: ='[44]wyniki spółek Q1-Q4 (adj)'!$Q$4-CM4-CL4-CK4 -> 36356000 | CO4: ='[45]wyniki spółek Q1 (adj)'!$Q$4 -> 70828000 | CQ4: 21672691.01 | CR4: 17421308.99 | CS4: -5260351.69 | CT4: -3603648.31 | CU4: 38885000 | CV4: 30938000 | CW4: 40170000 | CX4: 36002000 | CY4: 24125000 | CZ4: 28206000 | DA4: 22701000 | DB4: 16943000 | DC4: 24274000 | DD4: 25451000 | DE4: 32927000 | DF4: 46838000 | DG4: ='[37]wyniki spółek Q1 adj przypisane'!$R$4 -> 35587000 | DH4: ='[38]wyniki spółek H1 adj przypisane'!$R$4-DG4 -> 55225000 | DI4: ='[39]wyniki spółek Q1-Q3'!$R$4-DG4-DH4 -> 41537000 | DJ4: ='[40]wyniki spółek Q1-Q4'!$R$4-DI4-DH4-DG4 -> 18171000 | DK4: ='[41]wyniki spółek Q1 (adj)'!$R$4 -> 34949000 | DL4: ='[42]wyniki spółek Q1-Q2 (adj)'!$R$4-DK4 -> 44092000 | DM4: ='[43]wyniki spółek Q1-Q3 (adj)'!$V$4-DL4-DK4 -> 40439000 | DN4: ='[44]wyniki spółek Q1-Q4 (adj)'!$V$4-DM4-DL4-DK4 -> 29767000 | DO4: ='[45]wyniki spółek Q1 (adj)'!$V$4 -> 40148000 | DP4: ='[42]wyniki spółek Q1-Q2 (adj)'!$Q$4-DO4 -> 41846000 | DQ4: ='[43]wyniki spółek Q1-Q3 (adj)'!$U$4-DP4-DO4 -> 37988000 | DR4: ='[44]wyniki spółek Q1-Q4 (adj)'!$U$4-DQ4-DP4-DO4 -> 16288000 | DS4: ='[45]wyniki spółek Q1 (adj)'!$U$4 -> 42731000 | DU4: 21673327.38 | DV4: 17418918.51 | DW4: 38624527.39 | DX4: -47487118.33 | DY4: 38871445.81 | DZ4: 30952157.06 | EA4: 40171489.3 | EB4: 35998889.84 | EC4: 24129251.68 | ED4: 28206840.23 | EE4: 22699789.32 | EF4: 16940611.43 | EG4: 24274060.82 | EH4: 25451752.91 | EI4: 32926129.27 | EJ4: 46837140.47 | EK4: ='[37]wyniki spółek Q1 adj przypisane'!$V$4 -> 35586840.07 | EL4: ='[38]wyniki spółek H1 adj przypisane'!$V$4-EK4 -> 55226050.92 | EM4: ='[39]wyniki spółek Q1-Q3'!$V$4-EK4-EL4 -> 41533846.12 | EN4: ='[40]wyniki spółek Q1-Q4'!$V$4-EM4-EL4-EK4 -> 18171952.55 | EO4: ='[41]wyniki spółek Q1 (adj)'!$V$4 -> 34948681.27 | EP4: ='[42]wyniki spółek Q1-Q2 (adj)'!$V$4-EO4 -> 44091064.87 | EQ4: ='[43]wyniki spółek Q1-Q3 (adj)'!$Z$4-EP4-EO4 -> 40439603.28 | ER4: ='[44]wyniki spółek Q1-Q4 (adj)'!$Z$4-EQ4-EP4-EO4 -> 29769485.92 | ES4: ='[45]wyniki spółek Q1 (adj)'!$Z$4 -> 40148535.75 | ET4: ='[42]wyniki spółek Q1-Q2 (adj)'!$U$4-ES4 -> 41845190.58 | EU4: ='[43]wyniki spółek Q1-Q3 (adj)'!$Y$4-ET4-ES4 -> 37987279.3 | EV4: ='[44]wyniki spółek Q1-Q4 (adj)'!$Y$4-EU4-ET4-ES4 -> 16288490.01 | EW4: ='[45]wyniki spółek Q1 (adj)'!$Y$4 -> 42731120.41 | EY4: 27375152.44 | EZ4: 17497420.6 | FA4: -4545743.491 | FB4: 23711460.23 | FC4: 41021568.13 | FD4: 33205951.2 | FE4: 42381339.35 | FF4: 38193989.43 | FG4: 26319752.14 | FH4: 29609360.23 | FI4: 24894789.32 | FJ4: 18974700.97 | FK4: 26305060.82 | FL4: 27481752.91 | FM4: 35030039.27 | FN4: 52385590.47 | FO4: ='[37]wyniki spółek Q1 adj przypisane'!$Z$4 -> 37508840.07 | FP4: ='[38]wyniki spółek H1 adj przypisane'!$Z$4-FO4 -> 48875329.42 | FQ4: ='[39]wyniki spółek Q1-Q3'!$Z$4-FO4-FP4 -> 43479046.12 | FR4: ='[40]wyniki spółek Q1-Q4'!$Z$4-FQ4-FP4-FO4 -> 20092474.05 | FS4: ='[41]wyniki spółek Q1 (adj)'!$Z$4 -> 36248681.27 | FT4: ='[42]wyniki spółek Q1-Q2 (adj)'!$Z$4-FS4 -> 45393064.87 | FU4: ='[43]wyniki spółek Q1-Q3 (adj)'!$AD$4-FT4-FS4 -> 42539603.28 | FV4: ='[44]wyniki spółek Q1-Q4 (adj)'!$AD$4-FU4-FT4-FS4 -> 41757280.56 | FW4: ='[45]wyniki spółek Q1 (adj)'!$AD$4 -> 41760535.75 | FX4: ='[42]wyniki spółek Q1-Q2 (adj)'!$Y$4-FW4 -> 50601190.58 | FY4: ='[43]wyniki spółek Q1-Q3 (adj)'!$AC$4-FX4-FW4 -> 37811279.3 | FZ4: ='[44]wyniki spółek Q1-Q4 (adj)'!$AC$4-FY4-FX4-FW4 -> 21178490.01 | GA4: ='[45]wyniki spółek Q1 (adj)'!$AC$4 -> 44031120.41
B5: Asseco Data Systems | C5: Asseco Data Systems PF | D5: Asseco Data Systems PF | E5: 69557000 | F5: 74634000 | G5: 84596000 | H5: 128724000 | I5: 89075000 | J5: 93260000 | K5: 76711000 | L5: 91508000 | M5: 72401000 | N5: 68301000 | O5: 60973000 | P5: 74111000 | Q5: 67693000 | R5: 66439000 | S5: 72765000 | T5: 88263000 | U5: ='[37]wyniki spółek Q1 adj przypisane'!$F$9 -> 76813000 | V5: ='[38]wyniki spółek H1 adj przypisane'!$F$9-U5 -> 80753000 | W5: ='[39]wyniki spółek Q1-Q3'!$F$9-V5-U5 -> 69943000 | X5: ='[40]wyniki spółek Q1-Q4'!$F$9-W5-V5-U5 -> 92725000 | Y5: ='[41]wyniki spółek Q1 (adj)'!$F$9 -> 83359000 | Z5: ='[42]wyniki spółek Q1-Q2 (adj)'!$F$9-Y5 -> 87151000 | AA5: ='[43]wyniki spółek Q1-Q3 (adj)'!$F$9-Z5-Y5 -> 74783000 | AB5: ='[44]wyniki spółek Q1-Q4 (adj)'!$F$9-AA5-Z5-Y5 -> 97172000 | AC5: ='[45]wyniki spółek Q1 (adj)'!$F$9 -> 94352000 | AD5: ='[42]wyniki spółek Q1-Q2 (adj)'!$E$9-AC5 -> 91380000 | AE5: ='[43]wyniki spółek Q1-Q3 (adj)'!$E$9-AD5-AC5 -> 91337000 | AF5: ='[44]wyniki spółek Q1-Q4 (adj)'!$E$9-AE5-AD5-AC5 -> 108881000 | AG5: ='[45]wyniki spółek Q1 (adj)'!$E$9 -> 91202000 | AI5: 5752000 | AJ5: 2545000 | AK5: 4173000 | AL5: -4130000 | AM5: 5623000 | AN5: 12511000 | AO5: 1308000 | AP5: 6374000 | AQ5: 8989000 | AR5: 8071000 | AS5: 916000 | AT5: 6438000 | AU5: 7319000 | AV5: 11376000 | AW5: 11071000 | AX5: 7314000 | AY5: ='[37]wyniki spółek Q1 adj przypisane'!$J$9 -> 12926000 | AZ5: ='[38]wyniki spółek H1 adj przypisane'!$J$9-AY5 -> 16579000 | BA5: ='[39]wyniki spółek Q1-Q3'!$J$9-AZ5-AY5 -> 7299000 | BB5: ='[40]wyniki spółek Q1-Q4'!$J$9-BA5-AZ5-AY5 -> 16445000 | BC5: ='[41]wyniki spółek Q1 (adj)'!$J$9 -> 15439000 | BD5: ='[42]wyniki spółek Q1-Q2 (adj)'!$J$9-BC5 -> 12130000 | BE5: ='[43]wyniki spółek Q1-Q3 (adj)'!$N$9-BD5-BC5 -> 6864000 | BF5: ='[44]wyniki spółek Q1-Q4 (adj)'!$N$9-BE5-BD5-BC5 -> 13732000 | BG5: ='[45]wyniki spółek Q1 (adj)'!$N$9 -> 15937000 | BH5: ='[42]wyniki spółek Q1-Q2 (adj)'!$I$9-BG5 -> 9987000 | BI5: ='[43]wyniki spółek Q1-Q3 (adj)'!$M$9-BH5-BG5 -> 11275000 | BJ5: ='[44]wyniki spółek Q1-Q4 (adj)'!$M$9-BI5-BH5-BG5 -> 10330000 | BK5: ='[45]wyniki spółek Q1 (adj)'!$M$9 -> 11756000 | BM5: 7466000 | BN5: 4260000 | BO5: 5888000 | BP5: -2419000 | BQ5: 7041000 | BR5: 13932000 | BS5: 2725000 | BT5: 7792000 | BU5: 10407000 | BV5: 9491000 | BW5: 2334000 | BX5: 7857000 | BY5: 8738000 | BZ5: 12795000 | CA5: 12489000 | CB5: 8733000 | CC5: ='[37]wyniki spółek Q1 adj przypisane'!$N$9 -> 14345000 | CD5: ='[38]wyniki spółek H1 adj przypisane'!$N$9-CC5 -> 17998000 | CE5: ='[39]wyniki spółek Q1-Q3'!$N$9-CD5-CC5 -> 8717000 | CF5: ='[40]wyniki spółek Q1-Q4'!$N$9-CE5-CD5-CC5 -> 17835000 | CG5: ='[41]wyniki spółek Q1 (adj)'!$N$9 -> 17147000 | CH5: ='[42]wyniki spółek Q1-Q2 (adj)'!$N$9-CG5 -> 13797000 | CI5: ='[43]wyniki spółek Q1-Q3 (adj)'!$R$9-CH5-CG5 -> 8512501.847 | CJ5: ='[44]wyniki spółek Q1-Q4 (adj)'!$R$9-CI5-CH5-CG5 -> 15377498.15 | CK5: ='[45]wyniki spółek Q1 (adj)'!$R$9 -> 17854000 | CL5: ='[42]wyniki spółek Q1-Q2 (adj)'!$M$9-CK5 -> 11906000 | CM5: ='[43]wyniki spółek Q1-Q3 (adj)'!$Q$9-CL5-CK5 -> 13192000 | CN5: ='[44]wyniki spółek Q1-Q4 (adj)'!$Q$9-CM5-CL5-CK5 -> 12774000 | CO5: ='[45]wyniki spółek Q1 (adj)'!$Q$9 -> 13673000 | CQ5: 4055000 | CR5: 2241000 | CS5: 2788000 | CT5: -5380000 | CU5: 4471000 | CV5: 10087000 | CW5: 979000 | CX5: 3704000 | CY5: 7819000 | CZ5: 6262000 | DA5: -2858000 | DB5: 4971000 | DC5: 6005000 | DD5: 8775000 | DE5: 8988000 | DF5: 5812000 | DG5: ='[37]wyniki spółek Q1 adj przypisane'!$R$9 -> 10334000 | DH5: ='[38]wyniki spółek H1 adj przypisane'!$R$9-DG5 -> 13101000 | DI5: ='[39]wyniki spółek Q1-Q3'!$R$9-DH5-DG5 -> 5777000 | DJ5: ='[40]wyniki spółek Q1-Q4'!$R$9-DI5-DH5-DG5 -> 11502000 | DK5: ='[41]wyniki spółek Q1 (adj)'!$R$9 -> 14011000 | DL5: ='[42]wyniki spółek Q1-Q2 (adj)'!$R$9-DK5 -> 11155000 | DM5: ='[43]wyniki spółek Q1-Q3 (adj)'!$V$9-DL5-DK5 -> 5737680 | DN5: ='[44]wyniki spółek Q1-Q4 (adj)'!$V$9-DM5-DL5-DK5 -> 13005320 | DO5: ='[45]wyniki spółek Q1 (adj)'!$V$9 -> 13618000 | DP5: ='[42]wyniki spółek Q1-Q2 (adj)'!$Q$9-DO5 -> 9270000 | DQ5: ='[43]wyniki spółek Q1-Q3 (adj)'!$U$9-DP5-DO5 -> 10017000 | DR5: ='[44]wyniki spółek Q1-Q4 (adj)'!$U$9-DQ5-DP5-DO5 -> 12122000 | DS5: ='[45]wyniki spółek Q1 (adj)'!$U$9 -> 12908000 | DU5: 4055000 | DV5: 2241000 | DW5: 2788000 | DX5: -5380000 | DY5: 4471000 | DZ5: 10087000 | EA5: 979000 | EB5: 3704000 | EC5: 7819000 | ED5: 6262000 | EE5: -2858000 | EF5: 4971000 | EG5: 6005000 | EH5: 8775000 | EI5: 8988000 | EJ5: 5812000 | EK5: ='[37]wyniki spółek Q1 adj przypisane'!$V$9 -> 10334000 | EL5: ='[38]wyniki spółek H1 adj przypisane'!$V$9-EK5 -> 13101000 | EM5: ='[39]wyniki spółek Q1-Q3'!$V$9-EL5-EK5 -> 5777839.93 | EN5: ='[40]wyniki spółek Q1-Q4'!$V$9-EM5-EL5-EK5 -> 11501160.07 | EO5: ='[41]wyniki spółek Q1 (adj)'!$V$9 -> 14011000 | EP5: ='[42]wyniki spółek Q1-Q2 (adj)'!$V$9-EO5 -> 11209000 | EQ5: ='[43]wyniki spółek Q1-Q3 (adj)'!$Z$9-EP5-EO5 -> 5640000 | ER5: ='[44]wyniki spółek Q1-Q4 (adj)'!$Z$9-EQ5-EP5-EO5 -> 12749000 | ES5: ='[45]wyniki spółek Q1 (adj)'!$Z$9 -> 13618000 | ET5: ='[42]wyniki spółek Q1-Q2 (adj)'!$U$9-ES5 -> 9270000 | EU5: ='[43]wyniki spółek Q1-Q3 (adj)'!$Y$9-ET5-ES5 -> 10017000 | EV5: ='[44]wyniki spółek Q1-Q4 (adj)'!$Y$9-EU5-ET5-ES5 -> 12122000 | EW5: ='[45]wyniki spółek Q1 (adj)'!$Y$9 -> 12908000 | EY5: 5443340 | EZ5: 3630150 | FA5: 4177150 | FB5: -3994090 | FC5: 5619580 | FD5: 11238010 | FE5: 2126770 | FF5: 4852580 | FG5: 8967580 | FH5: 7412420 | FI5: -1710000 | FJ5: 6121000 | FK5: 7154000 | FL5: 9925000 | FM5: 10136000 | FN5: 6982000 | FO5: ='[37]wyniki spółek Q1 adj przypisane'!$Z$9 -> 11483000 | FP5: ='[38]wyniki spółek H1 adj przypisane'!$Z$9-FO5 -> 14251000 | FQ5: ='[39]wyniki spółek Q1-Q3'!$Z$9-FP5-FO5 -> 6925839.93 | FR5: ='[40]wyniki spółek Q1-Q4'!$Z$9-FQ5-FP5-FO5 -> 12627160.07 | FS5: ='[41]wyniki spółek Q1 (adj)'!$Z$9 -> 15426000 | FT5: ='[42]wyniki spółek Q1-Q2 (adj)'!$Z$9-FS5 -> 12776000 | FU5: ='[43]wyniki spółek Q1-Q3 (adj)'!$AD$9-FT5-FS5 -> 7056813.162 | FV5: ='[44]wyniki spółek Q1-Q4 (adj)'!$AD$9-FU5-FT5-FS5 -> 14257246.84 | FW5: ='[45]wyniki spółek Q1 (adj)'!$AD$9 -> 15362000 | FX5: ='[42]wyniki spółek Q1-Q2 (adj)'!$Y$9-FW5 -> 11023000 | FY5: ='[43]wyniki spółek Q1-Q3 (adj)'!$AC$9-FX5-FW5 -> 11751000 | FZ5: ='[44]wyniki spółek Q1-Q4 (adj)'!$AC$9-FY5-FX5-FW5 -> 14254000 | GA5: ='[45]wyniki spółek Q1 (adj)'!$AC$9 -> 14643000
B6: Other Companies | E6: 48913000 | F6: 56389000 | G6: 47929000 | H6: 52198000 | I6: 34999000 | J6: 43634000 | K6: 38749000 | L6: 51071000 | M6: 40260000 | N6: 40737000 | O6: 47596000 | P6: 49022000 | Q6: 49500000 | R6: 51781000 | S6: 42668000 | T6: 48345000 | U6: ='[37]wyniki spółek Q1 adj przypisane'!$F$10-U7 -> 34359000 | V6: ='[38]wyniki spółek H1 adj przypisane'!$F$10-V7-U6-U7 -> 42208000 | W6: ='[39]wyniki spółek Q1-Q3'!$F$10-'[39]wyniki spółek Q1-Q3'!$F$27-V6-U6 -> 45947000 | X6: ='[40]wyniki spółek Q1-Q4'!$F$10-'[40]wyniki spółek Q1-Q4'!$F$28-W6-V6-U6 -> 70722000 | Y6: ='[41]wyniki spółek Q1 (adj)'!$F$10-'[41]wyniki spółek Q1 (adj)'!$F$28 -> 63025000 | Z6: ='[42]wyniki spółek Q1-Q2 (adj)'!$F$10-'[42]wyniki spółek Q1-Q2 (adj)'!$F$28-Y6 -> 65950000 | AA6: ='[43]wyniki spółek Q1-Q3 (adj)'!$F$10-'[43]wyniki spółek Q1-Q3 (adj)'!$F$28-Z6-Y6 -> 64799000 | AB6: ='[44]wyniki spółek Q1-Q4 (adj)'!$F$10-'[44]wyniki spółek Q1-Q4 (adj)'!$F$28-AA6-Z6-Y6 -> 81305000 | AC6: ='[45]wyniki spółek Q1 (adj)'!$F$10-'[45]wyniki spółek Q1 (adj)'!$F$30 -> 64346000 | AD6: ='[42]wyniki spółek Q1-Q2 (adj)'!$E$10-'[42]wyniki spółek Q1-Q2 (adj)'!$E$28-AC6 -> 75042000 | AE6: ='[43]wyniki spółek Q1-Q3 (adj)'!$E$10-'[43]wyniki spółek Q1-Q3 (adj)'!$E$28-AD6-AC6 -> 58705000 | AF6: ='[44]wyniki spółek Q1-Q4 (adj)'!$E$10-'[44]wyniki spółek Q1-Q4 (adj)'!$E$28-AE6-AD6-AC6 -> 86591000 | AG6: ='[45]wyniki spółek Q1 (adj)'!$E$10-'[45]wyniki spółek Q1 (adj)'!$E$30 -> 68780000 | AI6: 4706000 | AJ6: 6467000 | AK6: 2263000 | AL6: 10583000 | AM6: 4411000 | AN6: 6700000 | AO6: 7299000 | AP6: 5913000 | AQ6: 4142000 | AR6: 4254000 | AS6: 8740946.064 | AT6: 3889315.355 | AU6: 4052000 | AV6: 7494000 | AW6: 6841000 | AX6: 655000 | AY6: ='[37]wyniki spółek Q1 adj przypisane'!$J$10-AY7 -> 998000 | AZ6: ='[38]wyniki spółek H1 adj przypisane'!$J$10-AZ7-AY6-AY7 -> 4659000 | BA6: ='[39]wyniki spółek Q1-Q3'!$J$10-'[39]wyniki spółek Q1-Q3'!$J$27-AZ6-AY6 -> 7760000 | BB6: ='[40]wyniki spółek Q1-Q4'!$J$10-'[40]wyniki spółek Q1-Q4'!$J$28-BA6-AZ6-AY6 -> 6623000 | BC6: ='[41]wyniki spółek Q1 (adj)'!$J$10-'[41]wyniki spółek Q1 (adj)'!$J$28 -> 6413000 | BD6: ='[42]wyniki spółek Q1-Q2 (adj)'!$J$10-'[42]wyniki spółek Q1-Q2 (adj)'!$J$28-BC6 -> 11345000 | BE6: ='[43]wyniki spółek Q1-Q3 (adj)'!$N$10-'[43]wyniki spółek Q1-Q3 (adj)'!$N$28-BD6-BC6 -> 23715000 | BF6: ='[44]wyniki spółek Q1-Q4 (adj)'!$N$10-'[44]wyniki spółek Q1-Q4 (adj)'!$N$28-BE6-BD6-BC6 -> 8012000 | BG6: ='[45]wyniki spółek Q1 (adj)'!$N$10-'[45]wyniki spółek Q1 (adj)'!$N$30 -> 4296000 | BH6: ='[42]wyniki spółek Q1-Q2 (adj)'!$I$10-'[42]wyniki spółek Q1-Q2 (adj)'!$I$28-BG6 -> 7577000 | BI6: ='[43]wyniki spółek Q1-Q3 (adj)'!$M$10-'[43]wyniki spółek Q1-Q3 (adj)'!$M$28-BH6-BG6 -> 7175000 | BJ6: ='[44]wyniki spółek Q1-Q4 (adj)'!$M$10-'[44]wyniki spółek Q1-Q4 (adj)'!$M$28-BI6-BH6-BG6 -> 10268000 | BK6: ='[45]wyniki spółek Q1 (adj)'!$M$10-'[45]wyniki spółek Q1 (adj)'!$M$30 -> 7018000 | BM6: 4706000 | BN6: 6467000 | BO6: 2263000 | BP6: 10583000 | BQ6: 4411000 | BR6: 6700000 | BS6: 7299000 | BT6: 5913000 | BU6: 4142000 | BV6: 4254000 | BW6: 8740946.064 | BX6: 3889315.355 | BY6: 4052000 | BZ6: 7494000 | CA6: 6841000 | CB6: 655000 | CC6: ='[37]wyniki spółek Q1 adj przypisane'!$N$10-CC7 -> 998000 | CD6: ='[38]wyniki spółek H1 adj przypisane'!$N$10-CD7-CC6-CC7 -> 4659000 | CE6: ='[39]wyniki spółek Q1-Q3'!$N$10-'[39]wyniki spółek Q1-Q3'!$N$27-CD6-CC6 -> 7760000 | CF6: ='[40]wyniki spółek Q1-Q4'!$N$10-'[40]wyniki spółek Q1-Q4'!$N$28-CE6-CD6-CC6 -> 6623000 | CG6: ='[41]wyniki spółek Q1 (adj)'!$N$10-'[41]wyniki spółek Q1 (adj)'!$N$28 -> 6413000 | CH6: ='[42]wyniki spółek Q1-Q2 (adj)'!$N$10-'[42]wyniki spółek Q1-Q2 (adj)'!$N$28-CG6 -> 11345000 | CI6: ='[43]wyniki spółek Q1-Q3 (adj)'!$R$10-'[43]wyniki spółek Q1-Q3 (adj)'!$R$28-CH6-CG6 -> 23715000 | CJ6: ='[44]wyniki spółek Q1-Q4 (adj)'!$R$10-'[44]wyniki spółek Q1-Q4 (adj)'!$R$28-CI6-CH6-CG6 -> 8012000 | CK6: ='[45]wyniki spółek Q1 (adj)'!$R$10-'[45]wyniki spółek Q1 (adj)'!$R$30 -> 4296000 | CL6: ='[42]wyniki spółek Q1-Q2 (adj)'!$M$10-'[42]wyniki spółek Q1-Q2 (adj)'!$M$28-CK6 -> 7577000 | CM6: ='[43]wyniki spółek Q1-Q3 (adj)'!$Q$10-'[43]wyniki spółek Q1-Q3 (adj)'!$Q$28-CL6-CK6 -> 7175000 | CN6: ='[44]wyniki spółek Q1-Q4 (adj)'!$Q$10-'[44]wyniki spółek Q1-Q4 (adj)'!$Q$28-CM6-CL6-CK6 -> 10265000 | CO6: ='[45]wyniki spółek Q1 (adj)'!$Q$10-'[45]wyniki spółek Q1 (adj)'!$Q$30 -> 7018000 | CQ6: 3148000 | CR6: 4220000 | CS6: 1226000 | CT6: 8398000 | CU6: 2511000 | CV6: 4613000 | CW6: 5748000 | CX6: 4852000 | CY6: 3036000 | CZ6: 2179000 | DA6: 5898946.064 | DB6: 2593315.355 | DC6: 2547000 | DD6: 5680000 | DE6: 3883000 | DF6: 976000 | DG6: ='[37]wyniki spółek Q1 adj przypisane'!$R$10-DG7 -> 701000 | DH6: ='[38]wyniki spółek H1 adj przypisane'!$R$10-DH7-DG6-DG7 -> -2809000 | DI6: ='[39]wyniki spółek Q1-Q3'!$R$10-'[39]wyniki spółek Q1-Q3'!$R$27-DH6-DG6 -> 12184000 | DJ6: ='[40]wyniki spółek Q1-Q4'!$R$10-'[40]wyniki spółek Q1-Q4'!$R$28-DI6-DH6-DG6 -> 4875000 | DK6: ='[41]wyniki spółek Q1 (adj)'!$R$10-'[41]wyniki spółek Q1 (adj)'!$R$28 -> 4416000 | DL6: ='[42]wyniki spółek Q1-Q2 (adj)'!$R$10-'[42]wyniki spółek Q1-Q2 (adj)'!$R$28-DK6 -> 8549000 | DM6: ='[43]wyniki spółek Q1-Q3 (adj)'!$V$10-'[43]wyniki spółek Q1-Q3 (adj)'!$V$28-DL6-DK6 -> 17975800.84 | DN6: ='[44]wyniki spółek Q1-Q4 (adj)'!$V$10-'[44]wyniki spółek Q1-Q4 (adj)'!$V$28-DM6-DL6-DK6 -> 7271199.165 | DO6: ='[45]wyniki spółek Q1 (adj)'!$V$10-'[45]wyniki spółek Q1 (adj)'!$V$30 -> 2735000 | DP6: ='[42]wyniki spółek Q1-Q2 (adj)'!$Q$10-'[42]wyniki spółek Q1-Q2 (adj)'!$Q$28-DO6 -> 6927000 | DQ6: ='[43]wyniki spółek Q1-Q3 (adj)'!$U$10-'[43]wyniki spółek Q1-Q3 (adj)'!$U$28-DP6-DO6 -> 6191252.12 | DR6: ='[44]wyniki spółek Q1-Q4 (adj)'!$U$10-'[44]wyniki spółek Q1-Q4 (adj)'!$U$28-DQ6-DP6-DO6 -> 9457747.88 | DS6: ='[45]wyniki spółek Q1 (adj)'!$U$10-'[45]wyniki spółek Q1 (adj)'!$U$30 -> 6324000 | DU6: 2715513.873 | DV6: 1568977.039 | DW6: -2364679.038 | DX6: 2198452.11 | DY6: 1166531.266 | DZ6: 2583968.304 | EA6: 3189981.882 | EB6: 3770773.463 | EC6: 2230132.103 | ED6: 241995.3038 | EE6: 5061823.822 | EF6: 1532753.871 | EG6: 2179162.938 | EH6: 2898918.504 | EI6: 2734331.405 | EJ6: 19720.11266 | EK6: ='[37]wyniki spółek Q1 adj przypisane'!$V$10-EK7 -> 813824.0042 | EL6: ='[38]wyniki spółek H1 adj przypisane'!$V$10-EL7-EK6-EK7 -> -4071148.192 | EM6: ='[39]wyniki spółek Q1-Q3'!$V$10-'[39]wyniki spółek Q1-Q3'!$V$27-EL6-EK6 -> 11221457.32 | EN6: ='[40]wyniki spółek Q1-Q4'!$V$10-'[40]wyniki spółek Q1-Q4'!$V$28-EM6-EL6-EK6 -> 4582773.572 | EO6: ='[41]wyniki spółek Q1 (adj)'!$V$10-'[41]wyniki spółek Q1 (adj)'!$V$28 -> 4483155.825 | EP6: ='[42]wyniki spółek Q1-Q2 (adj)'!$V$10-'[42]wyniki spółek Q1-Q2 (adj)'!$V$28-EO6 -> 6713783.309 | EQ6: ='[43]wyniki spółek Q1-Q3 (adj)'!$Z$10-'[43]wyniki spółek Q1-Q3 (adj)'!$Z$28-EP6-EO6 -> 16899054.41 | ER6: ='[44]wyniki spółek Q1-Q4 (adj)'!$Z$10-'[44]wyniki spółek Q1-Q4 (adj)'!$Z$28-EQ6-EP6-EO6 -> 4988696.308 | ES6: ='[45]wyniki spółek Q1 (adj)'!$Z$10-'[45]wyniki spółek Q1 (adj)'!$Z$30 -> 1442993.441 | ET6: ='[42]wyniki spółek Q1-Q2 (adj)'!$U$10-'[42]wyniki spółek Q1-Q2 (adj)'!$U$28-ES6 -> 4975806.327 | EU6: ='[43]wyniki spółek Q1-Q3 (adj)'!$Y$10-'[43]wyniki spółek Q1-Q3 (adj)'!$Y$28-ET6-ES6 -> 4366910.262 | EV6: ='[44]wyniki spółek Q1-Q4 (adj)'!$Y$10-'[44]wyniki spółek Q1-Q4 (adj)'!$Y$28-EU6-ET6-ES6 -> 6702052.863 | EW6: ='[45]wyniki spółek Q1 (adj)'!$Y$10-'[45]wyniki spółek Q1 (adj)'!$Y$30 -> 4249032.928 | EY6: 2715513.873 | EZ6: 1568977.039 | FA6: -2364679.038 | FB6: 2198452.11 | FC6: 1166531.266 | FD6: 2583968.304 | FE6: 3189981.882 | FF6: 3795883.463 | FG6: 2230132.103 | FH6: 241995.3038 | FI6: 5061823.822 | FJ6: 1534753.871 | FK6: 2179162.938 | FL6: 2898918.504 | FM6: 2734331.405 | FN6: 19720.11266 | FO6: ='[37]wyniki spółek Q1 adj przypisane'!$Z$10-FO7 -> 813824.0042 | FP6: ='[38]wyniki spółek H1 adj przypisane'!$Z$10-FP7-FO6-FO7 -> 3248851.808 | FQ6: ='[39]wyniki spółek Q1-Q3'!$Z$10-'[39]wyniki spółek Q1-Q3'!$Z$27-FP6-FO6 -> 3901457.32 | FR6: ='[40]wyniki spółek Q1-Q4'!$Z$10-'[40]wyniki spółek Q1-Q4'!$Z$28-FQ6-FP6-FO6 -> 4582773.572 | FS6: ='[41]wyniki spółek Q1 (adj)'!$Z$10-'[41]wyniki spółek Q1 (adj)'!$Z$28 -> 4483155.825 | FT6: ='[42]wyniki spółek Q1-Q2 (adj)'!$Z$10-'[42]wyniki spółek Q1-Q2 (adj)'!$Z$28-FS6 -> 6713783.309 | FU6: ='[43]wyniki spółek Q1-Q3 (adj)'!$AD$10-'[43]wyniki spółek Q1-Q3 (adj)'!$AD$28-FT6-FS6 -> 17826054.41 | FV6: ='[44]wyniki spółek Q1-Q4 (adj)'!$AD$10-'[44]wyniki spółek Q1-Q4 (adj)'!$AD$28-FU6-FT6-FS6 -> 4988696.308 | FW6: ='[45]wyniki spółek Q1 (adj)'!$AD$10-'[45]wyniki spółek Q1 (adj)'!$AD$30 -> 1442993.441 | FX6: ='[42]wyniki spółek Q1-Q2 (adj)'!$Y$10-'[42]wyniki spółek Q1-Q2 (adj)'!$Y$28-FW6 -> 4975806.327 | FY6: ='[43]wyniki spółek Q1-Q3 (adj)'!$AC$10-'[43]wyniki spółek Q1-Q3 (adj)'!$AC$28-FX6-FW6 -> 4366910.262 | FZ6: ='[44]wyniki spółek Q1-Q4 (adj)'!$AC$10-'[44]wyniki spółek Q1-Q4 (adj)'!$AC$28-FY6-FX6-FW6 -> 6699052.863 | GA6: ='[45]wyniki spółek Q1 (adj)'!$AC$10-'[45]wyniki spółek Q1 (adj)'!$AC$30 -> 4249032.928
D7: Consolidation adjustment | E7: -11833400.51 | F7: -11889992.82 | G7: -18501551.33 | H7: -36250055.34 | I7: -13147000 | J7: -10219000 | K7: -18242000 | L7: -11884000 | M7: -9112000 | N7: -13962000 | O7: -10154000 | P7: -13417000 | Q7: -10347000 | R7: -12811000 | S7: -11156000 | T7: -21412000 | U7: ='[37]wyniki spółek Q1 adj przypisane'!$F$29 -> -5950000 | V7: ='[38]wyniki spółek H1 adj przypisane'!$F$29-U7 -> -6837000 | W7: ='[39]wyniki spółek Q1-Q3'!$F$27-V7-U7 -> -6993000 | X7: ='[40]wyniki spółek Q1-Q4'!$F$28-W7-V7-U7 -> -17452000 | Y7: ='[41]wyniki spółek Q1 (adj)'!$F$30 -> -17831000 | Z7: ='[42]wyniki spółek Q1-Q2 (adj)'!$F$30-Y7 -> -16527000 | AA7: ='[43]wyniki spółek Q1-Q3 (adj)'!$F$30-Z7-Y7 -> -22668000 | AB7: ='[44]wyniki spółek Q1-Q4 (adj)'!$F$30-AA7-Z7-Y7 -> -25305000 | AC7: ='[45]wyniki spółek Q1 (adj)'!$F$30 -> -19079000 | AD7: ='[42]wyniki spółek Q1-Q2 (adj)'!$E$30-AC7 -> -19894000 | AE7: ='[43]wyniki spółek Q1-Q3 (adj)'!$E$30-AD7-AC7 -> -27897000 | AF7: ='[44]wyniki spółek Q1-Q4 (adj)'!$E$30-AE7-AD7-AC7 -> -20098000 | AG7: ='[45]wyniki spółek Q1 (adj)'!$E$30 -> -22261000 | AI7: -2426042.526 | AJ7: 695597.6591 | AK7: -2905342.17 | AL7: 4081787.037 | AM7: -542000 | AN7: 2274000 | AO7: -3513000 | AP7: -9374000 | AQ7: 1108000 | AR7: -158000 | AS7: 426053.9356 | AT7: -3050315.355 | AU7: -45000 | AV7: -781000 | AW7: -1605000 | AX7: 3054000 | AY7: ='[37]wyniki spółek Q1 adj przypisane'!$J$29 -> -973000 | AZ7: ='[38]wyniki spółek H1 adj przypisane'!$J$29-AY7 -> 66000 | BA7: ='[39]wyniki spółek Q1-Q3'!$J$27-AZ7-AY7 -> -984000 | BB7: ='[40]wyniki spółek Q1-Q4'!$J$28-BA7-AZ7-AY7 -> 5374000 | BC7: ='[41]wyniki spółek Q1 (adj)'!$J$30 -> -961000 | BD7: ='[42]wyniki spółek Q1-Q2 (adj)'!$J$30-BC7 -> -253000 | BE7: ='[43]wyniki spółek Q1-Q3 (adj)'!$N$30-BD7-BC7 -> -5435000 | BF7: ='[44]wyniki spółek Q1-Q4 (adj)'!$N$30-BE7-BD7-BC7 -> -8238000 | BG7: ='[45]wyniki spółek Q1 (adj)'!$N$30 -> -4154000 | BH7: ='[42]wyniki spółek Q1-Q2 (adj)'!$I$30-BG7 -> -1436000 | BI7: ='[43]wyniki spółek Q1-Q3 (adj)'!$M$30-BH7-BG7 -> -4633000 | BJ7: ='[44]wyniki spółek Q1-Q4 (adj)'!$M$30-BI7-BH7-BG7 -> 9951000 | BK7: ='[45]wyniki spółek Q1 (adj)'!$M$30 -> -1997000 | BM7: -2334042.526 | BN7: 781597.6591 | BO7: -2815342.17 | BP7: 4170787.037 | BQ7: -453000 | BR7: 2363000 | BS7: -3035111.111 | BT7: -8700388.889 | BU7: 645000 | BV7: 483000 | BW7: 515053.9356 | BX7: -2926315.355 | BY7: 44000 | BZ7: -601000 | CA7: -1574103.661 | CB7: 3039000 | CC7: ='[37]wyniki spółek Q1 adj przypisane'!$N$29 -> -973000 | CD7: ='[38]wyniki spółek H1 adj przypisane'!$N$29-CC7 -> 66000 | CE7: ='[39]wyniki spółek Q1-Q3'!$N$27-CD7-CC7 -> -984000 | CF7: ='[40]wyniki spółek Q1-Q4'!$N$28-CE7-CD7-CC7 -> 5374000 | CG7: ='[41]wyniki spółek Q1 (adj)'!$N$30 -> -961000 | CH7: ='[42]wyniki spółek Q1-Q2 (adj)'!$N$30-CG7 -> -253000 | CI7: ='[43]wyniki spółek Q1-Q3 (adj)'!$R$30-CH7-CG7 -> -5854000 | CJ7: ='[44]wyniki spółek Q1-Q4 (adj)'!$R$30-CI7-CH7-CG7 -> -3238000 | CK7: ='[45]wyniki spółek Q1 (adj)'!$R$30 -> -4154000 | CL7: ='[42]wyniki spółek Q1-Q2 (adj)'!$M$30-CK7 -> 3478000 | CM7: ='[43]wyniki spółek Q1-Q3 (adj)'!$Q$30-CL7-CK7 -> -4633000 | CN7: ='[44]wyniki spółek Q1-Q4 (adj)'!$Q$30-CM7-CL7-CK7 -> 4182000 | CO7: ='[45]wyniki spółek Q1 (adj)'!$Q$30 -> -1606620.69 | CQ7: 32312802.36 | CR7: -30946970.76 | CS7: 22675981.38 | CT7: -55151812.98 | CU7: -5764656 | CV7: 1749684.99 | CW7: -4255999.75 | CX7: -6388000 | CY7: 1066000 | CZ7: -1118000 | DA7: 44053.93556 | DB7: -3510315.355 | DC7: -328000 | DD7: -97000 | DE7: -1615000 | DF7: 1623000 | DG7: ='[37]wyniki spółek Q1 adj przypisane'!$R$29 -> -766000 | DH7: ='[38]wyniki spółek H1 adj przypisane'!$R$29-DG7 -> 4349000 | DI7: ='[39]wyniki spółek Q1-Q3'!$R$27-DH7-DG7 -> -8034000 | DJ7: ='[40]wyniki spółek Q1-Q4'!$R$28-DI7-DH7-DG7 -> 7347000 | DK7: ='[41]wyniki spółek Q1 (adj)'!$R$30 -> -5526000 | DL7: ='[42]wyniki spółek Q1-Q2 (adj)'!$R$30-DK7 -> -894000 | DM7: ='[43]wyniki spółek Q1-Q3 (adj)'!$V$30-DL7-DK7 -> -1283480.835 | DN7: ='[44]wyniki spółek Q1-Q4 (adj)'!$V$30-DM7-DL7-DK7 -> -781519.1646 | DO7: ='[45]wyniki spółek Q1 (adj)'!$V$30 -> -5367000 | DP7: ='[42]wyniki spółek Q1-Q2 (adj)'!$Q$30-DO7 -> 7391000 | DQ7: ='[43]wyniki spółek Q1-Q3 (adj)'!$U$30-DP7-DO7 -> -3860252.12 | DR7: ='[44]wyniki spółek Q1-Q4 (adj)'!$U$30-DQ7-DP7-DO7 -> 11656252.12 | DS7: ='[45]wyniki spółek Q1 (adj)'!$U$30 -> -1798000 | DU7: 4248208.905 | DV7: -2776700.81 | DW7: -21782945.49 | DX7: -10661042.48 | DY7: -5670157.058 | DZ7: 1650982.252 | EA7: -3891103.24 | EB7: -6449656.442 | EC7: 1096764.348 | ED7: -1152773.682 | EE7: 1080.283389 | EF7: -3442444.747 | EG7: -328195.6522 | EH7: -55699.51893 | EI7: -1666255.993 | EJ7: 3045040.337 | EK7: ='[37]wyniki spółek Q1 adj przypisane'!$V$29 -> -834664.0742 | EL7: ='[38]wyniki spółek H1 adj przypisane'!$V$29-EK7 -> 4444097.272 | EM7: ='[39]wyniki spółek Q1-Q3'!$V$27-EL7-EK7 -> -8081606.052 | EN7: ='[40]wyniki spółek Q1-Q4'!$V$28-EM7-EL7-EK7 -> 7292576.49 | EO7: ='[41]wyniki spółek Q1 (adj)'!$V$30 -> -4842837.095 | EP7: ='[42]wyniki spółek Q1-Q2 (adj)'!$V$30-EO7 -> -913848.1793 | EQ7: ='[43]wyniki spółek Q1-Q3 (adj)'!$Z$30-EP7-EO7 -> -1869715.82 | ER7: ='[44]wyniki spółek Q1-Q4 (adj)'!$Z$30-EQ7-EP7-EO7 -> 278596.1813 | ES7: ='[45]wyniki spółek Q1 (adj)'!$Z$30 -> -5329339 | ET7: ='[42]wyniki spółek Q1-Q2 (adj)'!$U$30-ES7 -> 7419339 | EU7: ='[43]wyniki spółek Q1-Q3 (adj)'!$Y$30-ET7-ES7 -> -4012452.237 | EV7: ='[44]wyniki spółek Q1-Q4 (adj)'!$Y$30-EU7-ET7-ES7 -> 11746854.46 | EW7: ='[45]wyniki spółek Q1 (adj)'!$Y$30 -> -1778000 | EY7: 981873.0113 | EZ7: -873220.3813 | FA7: 23675668.67 | FB7: 2012127.891 | FC7: -5573752.22 | FD7: 1771847.41 | FE7: -4317513.442 | FF7: -9704848.942 | FG7: 727644.3478 | FH7: 391346.3178 | FI7: 22080.28339 | FJ7: -3325444.747 | FK7: -256195.6522 | FL7: 105740.6115 | FM7: -1635359.654 | FN7: 3045040.337 | FO7: ='[37]wyniki spółek Q1 adj przypisane'!$Z$29 -> -834664.0742 | FP7: ='[38]wyniki spółek H1 adj przypisane'!$Z$29-FO7 -> -1682902.728 | FQ7: ='[39]wyniki spółek Q1-Q3'!$Z$27-FP7-FO7 -> 948393.9484 | FR7: ='[40]wyniki spółek Q1-Q4'!$Z$28-FQ7-FP7-FO7 -> 5543576.49 | FS7: ='[41]wyniki spółek Q1 (adj)'!$Z$30 -> -4842837.095 | FT7: ='[42]wyniki spółek Q1-Q2 (adj)'!$Z$30-FS7 -> -1131848.179 | FU7: ='[43]wyniki spółek Q1-Q3 (adj)'!$AD$30-FT7-FS7 -> -3713715.82 | FV7: ='[44]wyniki spółek Q1-Q4 (adj)'!$AD$30-FU7-FT7-FS7 -> -171403.8187 | FW7: ='[45]wyniki spółek Q1 (adj)'!$AD$30 -> -5329334 | FX7: ='[42]wyniki spółek Q1-Q2 (adj)'!$Y$30-FW7 -> 4572334 | FY7: ='[43]wyniki spółek Q1-Q3 (adj)'!$AC$30-FX7-FW7 -> -4012452.237 | FZ7: ='[44]wyniki spółek Q1-Q4 (adj)'!$AC$30-FY7-FX7-FW7 -> 3856854.461 | GA7: ='[45]wyniki spółek Q1 (adj)'!$AC$30 -> -1588275.007
B8: Formula Systems Segment | E8: 1264717781 | F8: 1247233115 | G8: 1305895209 | H8: 1343555254 | I8: 1263800000 | J8: 1322900000 | K8: 1327800000 | L8: 1488200000 | M8: 1486100000 | N8: 1567200000 | O8: 1768600000 | P8: 1732500000 | Q8: 1862500000 | R8: 1775800000 | S8: 1859000000 | T8: 2064100000 | U8: ='[37]wyniki spółek Q1 adj przypisane'!$F$30 -> 2159900000 | V8: ='[38]wyniki spółek H1 adj przypisane'!$F$30-U8 -> 2206000000 | W8: ='[39]wyniki spółek Q1-Q3'!$F$30-V8-U8 -> 2290800000 | X8: ='[40]wyniki spółek Q1-Q4'!$F$31-W8-V8-U8 -> 2652200000 | Y8: ='[41]wyniki spółek Q1 (adj)'!$F$31 -> 2706300000 | Z8: ='[42]wyniki spółek Q1-Q2 (adj)'!$F$31-Y8 -> 2777500000 | AA8: ='[43]wyniki spółek Q1-Q3 (adj)'!$F$31-Z8-Y8 -> 2993600000 | AB8: ='[44]wyniki spółek Q1-Q4 (adj)'!$F$31-AA8-Z8-Y8 -> 2986600000 | AC8: ='[45]wyniki spółek Q1 (adj)'!$F$31 -> 2903400000 | AD8: ='[42]wyniki spółek Q1-Q2 (adj)'!$E$31-AC8 -> 2722600000 | AE8: ='[43]wyniki spółek Q1-Q3 (adj)'!$E$31-AD8-AC8 -> 2713100000 | AF8: ='[44]wyniki spółek Q1-Q4 (adj)'!$E$31-AE8-AD8-AC8 -> 2583800000 | AG8: ='[45]wyniki spółek Q1 (adj)'!$E$31 -> 2801600000 | AI8: 72723810.96 | AJ8: 54891847.51 | AK8: 55653157.08 | AL8: 29152558.92 | AM8: 56800000 | AN8: 69800000 | AO8: 74800000 | AP8: 99700000 | AQ8: 105000000 | AR8: 109400000 | AS8: 135000000 | AT8: 123300000 | AU8: 126900000 | AV8: 160500000 | AW8: 159000000 | AX8: 168200000 | AY8: ='[37]wyniki spółek Q1 adj przypisane'!$J$30 -> 166500000 | AZ8: ='[38]wyniki spółek H1 adj przypisane'!$J$30-AY8 -> 172500000 | BA8: ='[39]wyniki spółek Q1-Q3'!$J$30-AZ8-AY8 -> 182900000 | BB8: ='[40]wyniki spółek Q1-Q4'!$J$31-BA8-AZ8-AY8 -> 237900000 | BC8: ='[41]wyniki spółek Q1 (adj)'!$J$31 -> 224600000 | BD8: ='[42]wyniki spółek Q1-Q2 (adj)'!$J$31-BC8 -> 403100000 | BE8: ='[43]wyniki spółek Q1-Q3 (adj)'!$N$31-BD8-BC8 -> 250900000 | BF8: ='[44]wyniki spółek Q1-Q4 (adj)'!$N$31-BE8-BD8-BC8 -> 235200000 | BG8: ='[45]wyniki spółek Q1 (adj)'!$N$31 -> 237600000 | BH8: ='[42]wyniki spółek Q1-Q2 (adj)'!$I$31-BG8 -> 225700000 | BI8: ='[43]wyniki spółek Q1-Q3 (adj)'!$M$31-BH8-BG8 -> 214600000 | BJ8: ='[44]wyniki spółek Q1-Q4 (adj)'!$M$31-BI8-BH8-BG8 -> 228500000 | BK8: ='[45]wyniki spółek Q1 (adj)'!$M$31 -> 236600000 | BM8: 98481127.66 | BN8: 79847837.16 | BO8: 113108286.6 | BP8: 100831216.3 | BQ8: 118103675.9 | BR8: 123554359.8 | BS8: 126526248.9 | BT8: 155249344.8 | BU8: 154312220.2 | BV8: 156731041.3 | BW8: 187652290.6 | BX8: 173844233.5 | BY8: 185712432.1 | BZ8: 207314764 | CA8: 213864462.3 | CB8: 235833003.3 | CC8: ='[37]wyniki spółek Q1 adj przypisane'!$N$30 -> 234815129.1 | CD8: ='[38]wyniki spółek H1 adj przypisane'!$N$30-CC8 -> 242632578.4 | CE8: ='[39]wyniki spółek Q1-Q3'!$N$30-CD8-CC8 -> 259230343.6 | CF8: ='[40]wyniki spółek Q1-Q4'!$N$31-CE8-CD8-CC8 -> 318713903.7 | CG8: ='[41]wyniki spółek Q1 (adj)'!$N$31 -> 309192364.2 | CH8: ='[42]wyniki spółek Q1-Q2 (adj)'!$N$31-CG8 -> 295713971.9 | CI8: ='[43]wyniki spółek Q1-Q3 (adj)'!$R$31-CH8-CG8 -> 328011136.1 | CJ8: ='[44]wyniki spółek Q1-Q4 (adj)'!$R$31-CI8-CH8-CG8 -> 338664284.6 | CK8: ='[45]wyniki spółek Q1 (adj)'!$R$31 -> 326135653.5 | CL8: ='[42]wyniki spółek Q1-Q2 (adj)'!$M$31-CK8 -> 310562743.2 | CM8: ='[43]wyniki spółek Q1-Q3 (adj)'!$Q$31-CL8-CK8 -> 303206002.4 | CN8: ='[44]wyniki spółek Q1-Q4 (adj)'!$Q$31-CM8-CL8-CK8 -> 307155279.8 | CO8: ='[45]wyniki spółek Q1 (adj)'!$Q$31 -> 307545628.9 | CQ8: 22455810.96 | CR8: 15244847.51 | CS8: 23986433.06 | CT8: 412864498.5 | CU8: 32971321.06 | CV8: 45030678.94 | CW8: 44935000 | CX8: 65893000 | CY8: 60963000 | CZ8: 75224000 | DA8: 85286000 | DB8: 81994000 | DC8: 78340000 | DD8: 98423000 | DE8: 99585000 | DF8: 107090000 | DG8: ='[37]wyniki spółek Q1 adj przypisane'!$R$30 -> 113041000 | DH8: ='[38]wyniki spółek H1 adj przypisane'!$R$30-DG8 -> 107443000 | DI8: ='[39]wyniki spółek Q1-Q3'!$R$30-DH8-DG8 -> 120354000 | DJ8: ='[40]wyniki spółek Q1-Q4'!$R$31-DI8-DH8-DG8 -> 147123000 | DK8: ='[41]wyniki spółek Q1 (adj)'!$R$31 -> 163415601.5 | DL8: ='[42]wyniki spółek Q1-Q2 (adj)'!$R$31-DK8 -> 302234211.7 | DM8: ='[43]wyniki spółek Q1-Q3 (adj)'!$V$31-DL8-DK8 -> 181174096 | DN8: ='[44]wyniki spółek Q1-Q4 (adj)'!$V$31-DM8-DL8-DK8 -> 144866804.4 | DO8: ='[45]wyniki spółek Q1 (adj)'!$V$31 -> 162196396.4 | DP8: ='[42]wyniki spółek Q1-Q2 (adj)'!$Q$31-DO8 -> 161640749 | DQ8: ='[43]wyniki spółek Q1-Q3 (adj)'!$U$31-DP8-DO8 -> 145959854.7 | DR8: ='[44]wyniki spółek Q1-Q4 (adj)'!$U$31-DQ8-DP8-DO8 -> 147427000 | DS8: ='[45]wyniki spółek Q1 (adj)'!$U$31 -> 162665000 | DU8: 354608.1468 | DV8: -405230.8236 | DW8: 4337093.51 | DX8: 401174452 | DY8: 3352027.306 | DZ8: 5155191.379 | EA8: 4273191.918 | EB8: 7869090.088 | EC8: 5952207.628 | ED8: 8857314.729 | EE8: 8806254.977 | EF8: 8657110.955 | EG8: 7389284.423 | EH8: 11867144.42 | EI8: 10575919.39 | EJ8: 10655654.98 | EK8: ='[37]wyniki spółek Q1 adj przypisane'!$V$30 -> 11400000 | EL8: ='[38]wyniki spółek H1 adj przypisane'!$V$30-EK8 -> 10200000 | EM8: ='[39]wyniki spółek Q1-Q3'!$V$30-EL8-EK8 -> 11921279.42 | EN8: ='[40]wyniki spółek Q1-Q4'!$V$31-EM8-EL8-EK8 -> 15178720.58 | EO8: ='[41]wyniki spółek Q1 (adj)'!$V$31 -> 16000000 | EP8: ='[42]wyniki spółek Q1-Q2 (adj)'!$V$31-EO8 -> 34016262.2 | EQ8: ='[43]wyniki spółek Q1-Q3 (adj)'!$Z$31-EP8-EO8 -> 19319628.07 | ER8: ='[44]wyniki spółek Q1-Q4 (adj)'!$Z$31-EQ8-EP8-EO8 -> 12967977.92 | ES8: ='[45]wyniki spółek Q1 (adj)'!$Z$31 -> 15531576.81 | ET8: ='[42]wyniki spółek Q1-Q2 (adj)'!$U$31-ES8 -> 16851536.74 | EU8: ='[43]wyniki spółek Q1-Q3 (adj)'!$Y$31-ET8-ES8 -> 15097240.52 | EV8: ='[44]wyniki spółek Q1-Q4 (adj)'!$Y$31-EU8-ET8-ES8 -> 14915429.39 | EW8: ='[45]wyniki spółek Q1 (adj)'!$Y$31 -> 17065189.18 | EY8: 6671644.808 | EZ8: 5800712.403 | FA8: 11936294.42 | FB8: 7964017.823 | FC8: 10631090.3 | FD8: 11319105.83 | FE8: 10316918.24 | FF8: 14718032.06 | FG8: 11128723.83 | FH8: 13698780.87 | FI8: 14330324.1 | FJ8: 14718730.15 | FK8: 14909355.98 | FL8: 16824492.22 | FM8: 15739287.95 | FN8: 18987797.42 | FO8: ='[37]wyniki spółek Q1 adj przypisane'!$Z$30 -> 19317323.38 | FP8: ='[38]wyniki spółek H1 adj przypisane'!$Z$30-FO8 -> 19392627.4 | FQ8: ='[39]wyniki spółek Q1-Q3'!$Z$30-FP8-FO8 -> 21356977.07 | FR8: ='[40]wyniki spółek Q1-Q4'!$Z$31-FQ8-FP8-FO8 -> 26537709.95 | FS8: ='[41]wyniki spółek Q1 (adj)'!$Z$31 -> 26332770.3 | FT8: ='[42]wyniki spółek Q1-Q2 (adj)'!$Z$31-FS8 -> 26425115.58 | FU8: ='[43]wyniki spółek Q1-Q3 (adj)'!$AD$31-FT8-FS8 -> 28642137.14 | FV8: ='[44]wyniki spółek Q1-Q4 (adj)'!$AD$31-FU8-FT8-FS8 -> 25593255.47 | FW8: ='[45]wyniki spółek Q1 (adj)'!$AD$31 -> 26213621.53 | FX8: ='[42]wyniki spółek Q1-Q2 (adj)'!$Y$31-FW8 -> 27912736.17 | FY8: ='[43]wyniki spółek Q1-Q3 (adj)'!$AC$31-FX8-FW8 -> 26260882.78 | FZ8: ='[44]wyniki spółek Q1-Q4 (adj)'!$AC$31-FY8-FX8-FW8 -> 23598116.12 | GA8: ='[45]wyniki spółek Q1 (adj)'!$AC$31 -> 26395956.62
